Workbook

Sheet MENU
B2: Navigation
A3: Menu | E3: MENU
A4: Owat | E4: |
C5: MODE EMPLOI | E5: MODE EMPLOI
C6: VERSION&LICENCE | E6: VERSION&LICENCE
A7: Résultats | E7: |
C8: CALCUL | E8: CALCUL
C9: FEUILLE DE ROUTE | E9: FEUILLE DE ROUTE
A10: Audit | E10: |
B11: Approvisionnement Energétique | E11: |
C12: POINT_COMPTAGE | E12: POINT_COMPTAGE
C13: COMPTEURS | E13: COMPTEURS
C14: ENERGIE_PROD | E14: ENERGIE_PROD
B15: Prod. et Dis. de chauffage et d'ECS | E15: |
C16: UNITE_PROD. | E16: UNITE_PROD.
C17: PRODUCTEUR | E17: PRODUCTEUR
C18: DISTRIBUTION | E18: DISTRIBUTION
B19: Usages | E19: |
C20: BATIMENTS | E20: BATIMENTS
C21: ENVELOPPE | E21: ENVELOPPE
C22: SECTEURS | E22: SECTEURS
C23: ECLAIRAGE | E23: ECLAIRAGE
C24: VENTILATION | E24: VENTILATION
C25: ECS | E25: ECS
C26: AUTRES USAGES | E26: AUTRES USAGES
A27: Bases de données paramétrables | E27: |
C28: BD_USAGES | E28: BD_USAGES
C29: BD_AAPE | E29: BD_AAPE
C30: BD_Uex | E30: BD_Uex
C31: BD_Vecteurs | E31: BD_Vecteurs
C32: BD_Producteur | E32: BD_Producteur
A33: Bases de données non paramétrables | E33: |
C34: BD_Divers | E34: BD_Divers
C35: BD_biblio | E35: BD_biblio
C36: BD_MTD | E36: BD_MTD
C37: BD_Climat | E37: BD_Climat
C39: || | E39: ||
C40: FdR Ddonnees | E40: FdR Ddonnees
C41: BD_Benchmark | E41: FdR_Pistes
C42: BD_Climat | E42: FdR_Pistes
C43: || | E43: FdR_Pistes
C44: Non utilisé
C45: Non utilisé
C46: Non utilisé
C47: Non utilisé
C48: Non utilisé
C49: Non utilisé
C50: Non utilisé

Sheet | (hidden)
A1: =RIGHT(CELL("nomfichier",A1), LEN(CELL("nomfichier",A1))-FIND("]", CELL("nomfichier",A1))) -> 

Sheet MODE EMPLOI (hidden)
A1: =RIGHT(CELL("nomfichier",A1), LEN(CELL("nomfichier",A1))-FIND("]", CELL("nomfichier",A1))) -> 
A5: Code couleur des cellules des formulaires d'encodage
A7: Données à saisir par l'auditeur
B8: Données d'entrées libres
B9: Listes déroulantes
B10: Valeurs "manuelles" : des valeurs de référence (rendement etc.) sont proposées par l'outil. Des valeur personnalisées peuvent être encodées.
B11: Données indicatives
A12: Résultats et calculs
B13: Valeur fixe non calculée
B14: Valeur calculée
A15: Vérification de l'encodage
B16: Encodage correct
B17: Encodage erroné à vérifier - l'aide sur l'encodage erroné se trouve dans la note en tête de colonne
A20: Code couleur des section des formulaires d'encodage
B22: Identification
B23: Caractéristiques:
B24: Caractéristiques commune à la situation Existante et la situation Existante Modifiée
B25: Situation existante
B26: Situation existante modifiée:
B27: Situation existante + Modifications qui ne sont pas des améliorations mais qui impacte la consommation énergétique. Exemples: Extension, démolition, ajout de groupe de ventilation pour la mise au norme,…
B28: Pistes d'amélioration
A30: Navigation dans le logiciel
A58: Volets de navigation des colonnes
A60: 1 | B60: Vue synthétique et encodage de base de l'existant
A61: 2 | B61: Encodage standardisé auditeur
A62: 3 | B62: Encodage personnalisé par l'auditeur (valeur personnalisées, remarques, ... ) et/ou informations supplémentaires
A76: Bilan énergétique d'un bâtiment et du site
B77: L'outil permet de modéliser les usages PEB et d'autre usage personnalisés
B78: On retrouve les 6 usages PEB + "Autres Usages" dans le feuille de calcul :
A105: Energie approvisionnée
B106: L'énergie consommée est quantifiée en "énergie approvisionnée" :
B107: - Energie finale « livrée/facturée » : combustible (gaz, mazout, bois…), électricité, réseau d’énergie thermique (froid/chaleur) ;
B108: - Energie « locale renouvelable » : captée à l’aide d’équipements techniques (pompe à chaleur, panneaux solaires photovoltaïque,
B109: panneaux solaire thermique, sonde géothermique... ) dans l’environnement (air, eau, terre, soleil…) ;
B110: - Toute autre source d’énergie (voir AdB : Matières énergétiquement valorisées. Ex: palette de bois,…).
B111: - Energie des combustible comptée en PCS

Sheet VERSION&LICENCE (hidden)
A1: =RIGHT(CELL("nomfichier",A1), LEN(CELL("nomfichier",A1))-FIND("]", CELL("nomfichier",A1))) -> 
B4: VERSION DE L'ENCODAGE
B6: Numéro du projet | C6: Numéro -> version | D6: Nom du projet | E6: Nom projet->version
D7: Adresse principale
B8: Client nom court | D8: Client personne de contact
D9: Client email de contact
D10: Client tel de contact
B11: Auditeur n° agr. | D11: Auditeur nom
D12: Auditeur email de contact
B13: Version | C13: ="OWAT-V"&_xlfn.XLOOKUP(MAX(Form_vers_logiciel[Date]),Form_vers_logiciel[Date],Form_vers_logiciel[Version],"",0) &CHAR(10)&_xlfn.XLOOKUP(MAX(Form_vers_encodage[Date]),Form_vers_encodage[Date],Form_vers_encodage[Indice],"",0) &CHAR(10)&TEXT(MAX(Form_vers_encodage[Date]),"jj/mm/aa") &CHAR(10)&_xlfn.XLOOKUP(MAX(Form_vers_encodage[Date]),Form_vers_encodage[Date],Form_vers_encodage[Qui?],"",0) -> OWAT-VP1 indice -->version 01/12/25 Encodeur-->version | D13: Auditeur tel de contact
B15: Indice | C15: Date | D15: Qui? | E15: Modification/remarques
B16: indice -->version | C16: 2025-12-01 | D16: Encodeur-->version
B28: VERSION DU PROGRAMME
B30: Version | C30: Date | D30: Qui? | E30: Modification/remarques
B31: P1 | C31: 2025-12-01 | D31: Bureau d'études greisch | E31: Version initiale du logiciel OWAT publiée sur le site de la Wallonie
B35: Distribué sous Licence Publique de l’Union Européenne (EUPL) – Version 1.2
B37: Copyright (C) 2025 Développeur - Bureau d'études greisch - Bastien Mercenier et Jean-François Oudkerk
B38: Copyright (C) 2025 Commanditaire - Service public de Wallonie - Territoire logement patrimoine énergie - Direction du Bâtiment durable - Marie-Eve DORN
B45: Ce logiciel est distribué sous la Licence Publique de l’Union Européenne (EUPL) version 1.2.
B46: Vous pouvez obtenir une copie complète de cette licence à l’adresse suivante :
B47: https://joinup.ec.europa.eu/collection/eupl/eupl-text-eupl-12
B49: En utilisant ce logiciel, vous acceptez les termes de la licence EUPL v1.2.
B51: Résumé des droits et obligations :
B52: - Vous êtes libre d’utiliser, copier, modifier et distribuer ce logiciel.
B53: - Toute redistribution doit se faire sous la même licence EUPL ou une licence compatible reconnue par la Commission Européenne.
B54: - Vous devez fournir le code source ou indiquer comment y accéder.
B55: - Ce logiciel est fourni « tel quel », sans garantie.
B57: Obligations spécifiques :
B58: 1. **Citation des auteurs** :
B59: - Conservez toutes les mentions de copyright et d’auteur présentes dans le code original.
B60: - Si vous modifiez le code, indiquez clairement vos modifications dans l'onglet version et licence.
B61: 2. **Redistribution** :
B62: - Vous devez inclure la licence EUPL ou un lien vers celle-ci dans toute redistribution.
B63: - Vous ne pouvez pas supprimer les mentions des auteurs précédents.
B64: 3. **Compatibilité** :
B65: - Cette licence est compatible avec la GNU GPL et d’autres licences libres reconnues par la Commission Européenne.
B67: Clause spécifique :
B68: En cas de litige ou d’interprétation juridique, le droit belge sera applicable, et les tribunaux compétents seront ceux du ressort du siège social du titulaire des droits.
B70: Pour toute question, consultez le texte officiel :
B71: https://joinup.ec.europa.eu/collection/eupl/eupl-text-eupl-12

Sheet | (hidden)
A1: =RIGHT(CELL("nomfichier",A1), LEN(CELL("nomfichier",A1))-FIND("]", CELL("nomfichier",A1))) -> 

Sheet CALCUL (hidden)
B1: =RIGHT(CELL("nomfichier",B1), LEN(CELL("nomfichier",B1))-FIND("]", CELL("nomfichier",B1))) ->  | P1: BAT01 | Q1: =INDEX(Liste_Bat_Description,MATCH(P1,Liste_Bat,0)) -> Réfectoire école | V1: BAT02 | W1: =INDEX(Liste_Bat_Description,MATCH(V1,Liste_Bat,0)) -> Adm. Com. + Police | AB1: BAT03 | AC1: =INDEX(Liste_Bat_Description,MATCH(AB1,Liste_Bat,0)) -> 0 | AH1: BAT04 | AI1: =INDEX(Liste_Bat_Description,MATCH(AH1,Liste_Bat,0)) -> 0 | AN1: BAT05 | AO1: =INDEX(Liste_Bat_Description,MATCH(AN1,Liste_Bat,0)) -> 0 | AT1: BAT06 | AU1: =INDEX(Liste_Bat_Description,MATCH(AT1,Liste_Bat,0)) -> 0 | AZ1: BAT07 | BA1: =INDEX(Liste_Bat_Description,MATCH(AZ1,Liste_Bat,0)) -> 0 | BF1: BAT08 | BG1: =INDEX(Liste_Bat_Description,MATCH(BF1,Liste_Bat,0)) -> 0 | BL1: BAT09 | BM1: =INDEX(Liste_Bat_Description,MATCH(BL1,Liste_Bat,0)) -> 0 | BR1: BAT10 | BS1: =INDEX(Liste_Bat_Description,MATCH(BR1,Liste_Bat,0)) -> 0 | BX1: --
F3: Calcul Non Ajusté aux consommations réelles | R3: Calcul Non Ajusté | X3: Calcul Non Ajusté | AD3: Calcul Non Ajusté | AJ3: Calcul Non Ajusté | AP3: Calcul Non Ajusté | AV3: Calcul Non Ajusté | BB3: Calcul Non Ajusté | BH3: Calcul Non Ajusté | BN3: Calcul Non Ajusté | BT3: Calcul Non Ajusté
C6: Paramètres | G6: SITE | H6: SITE | I6: SITE | J6: SITE | K6: SITE | Q6: =P1 -> BAT01 | R6: =P1 -> BAT01 | S6: =P1 -> BAT01 | T6: =P1 -> BAT01 | U6: =P1 -> BAT01 | W6: =V1 -> BAT02 | X6: =V1 -> BAT02 | Y6: =V1 -> BAT02 | Z6: =V1 -> BAT02 | AA6: =V1 -> BAT02 | AC6: =AB1 -> BAT03 | AD6: =AB1 -> BAT03 | AE6: =AB1 -> BAT03 | AF6: =AB1 -> BAT03 | AG6: =AB1 -> BAT03 | AI6: =AH1 -> BAT04 | AJ6: =AH1 -> BAT04 | AK6: =AH1 -> BAT04 | AL6: =AH1 -> BAT04 | AM6: =AH1 -> BAT04 | AO6: =AN1 -> BAT05 | AP6: =AN1 -> BAT05 | AQ6: =AN1 -> BAT05 | AR6: =AN1 -> BAT05 | AS6: =AN1 -> BAT05 | AU6: =AT1 -> BAT06 | AV6: =AT1 -> BAT06 | AW6: =AT1 -> BAT06 | AX6: =AT1 -> BAT06 | AY6: =AT1 -> BAT06 | BA6: =AZ1 -> BAT07 | BB6: =AZ1 -> BAT07 | BC6: =AZ1 -> BAT07 | BD6: =AZ1 -> BAT07 | BE6: =AZ1 -> BAT07 | BG6: =BF1 -> BAT08 | BH6: =BF1 -> BAT08 | BI6: =BF1 -> BAT08 | BJ6: =BF1 -> BAT08 | BK6: =BF1 -> BAT08 | BM6: =BL1 -> BAT09 | BN6: =BL1 -> BAT09 | BO6: =BL1 -> BAT09 | BP6: =BL1 -> BAT09 | BQ6: =BL1 -> BAT09 | BS6: =BR1 -> BAT10 | BT6: =BR1 -> BAT10 | BU6: =BR1 -> BAT10 | BV6: =BR1 -> BAT10 | BW6: =BR1 -> BAT10
G7: Existant | H7: Etape 1 | I7: Etape 2 | J7: Etape 3 | K7: MTD | Q7: Existant | R7: Etape 1 | S7: Etape 2 | T7: Etape 3 | U7: MTD | W7: Existant | X7: Etape 1 | Y7: Etape 2 | Z7: Etape 3 | AA7: MTD | AC7: Existant | AD7: Etape 1 | AE7: Etape 2 | AF7: Etape 3 | AG7: MTD | AI7: Existant | AJ7: Etape 1 | AK7: Etape 2 | AL7: Etape 3 | AM7: MTD | AO7: Existant | AP7: Etape 1 | AQ7: Etape 2 | AR7: Etape 3 | AS7: MTD | AU7: Existant | AV7: Etape 1 | AW7: Etape 2 | AX7: Etape 3 | AY7: MTD | BA7: Existant | BB7: Etape 1 | BC7: Etape 2 | BD7: Etape 3 | BE7: MTD | BG7: Existant | BH7: Etape 1 | BI7: Etape 2 | BJ7: Etape 3 | BK7: MTD | BM7: Existant | BN7: Etape 1 | BO7: Etape 2 | BP7: Etape 3 | BQ7: MTD | BS7: Existant | BT7: Etape 1 | BU7: Etape 2 | BV7: Etape 3 | BW7: MTD
F8: Besoins par Usage [MWh(s)/an] - Non ajusté | I8: =I$6 -> SITE | S8: =S$6 -> BAT01 | Y8: =Y$6 -> BAT02 | AE8: =AE$6 -> BAT03 | AK8: =AK$6 -> BAT04 | AQ8: =AQ$6 -> BAT05 | AW8: =AW$6 -> BAT06 | BC8: =BC$6 -> BAT07 | BI8: =BI$6 -> BAT08 | BO8: =BO$6 -> BAT09 | BU8: =BU$6 -> BAT10
E9: 1. | F9: Chauffage | G9: =SUMIFS($O9:$BX9,$O$7:$BX$7,G$7) -> 270.1724163 | H9: =SUMIFS($O9:$BX9,$O$7:$BX$7,H$7) -> 176.1597905 | I9: =SUMIFS($O9:$BX9,$O$7:$BX$7,I$7) -> 191.9158178 | J9: =SUMIFS($O9:$BX9,$O$7:$BX$7,J$7) -> 171.3298522 | K9: =SUMIFS($O9:$BX9,$O$7:$BX$7,K$7) -> 54.430021 | Q9: =SUM(Q14:Q16) -> 82.06353843 | R9: =SUM(R14:R16) -> 12.73432277 | S9: =SUM(S14:S16) -> 28.49035009 | T9: =SUM(T14:T16) -> 28.49035009 | U9: =SUM(U14:U16) -> 25.15703479 | W9: =SUM(W14:W16) -> 188.1088778 | X9: =SUM(X14:X16) -> 163.4254677 | Y9: =SUM(Y14:Y16) -> 163.4254677 | Z9: =SUM(Z14:Z16) -> 142.8395021 | AA9: =SUM(AA14:AA16) -> 29.27298621 | AC9: =SUM(AC14:AC16) -> 0 | AD9: =SUM(AD14:AD16) -> 0 | AE9: =SUM(AE14:AE16) -> 0 | AF9: =SUM(AF14:AF16) -> 0 | AG9: =SUM(AG14:AG16) -> 0 | AI9: =SUM(AI14:AI16) -> 0 | AJ9: =SUM(AJ14:AJ16) -> 0 | AK9: =SUM(AK14:AK16) -> 0 | AL9: =SUM(AL14:AL16) -> 0 | AM9: =SUM(AM14:AM16) -> 0 | AO9: =SUM(AO14:AO16) -> 0 | AP9: =SUM(AP14:AP16) -> 0 | AQ9: =SUM(AQ14:AQ16) -> 0 | AR9: =SUM(AR14:AR16) -> 0 | AS9: =SUM(AS14:AS16) -> 0 | AU9: =SUM(AU14:AU16) -> 0 | AV9: =SUM(AV14:AV16) -> 0 | AW9: =SUM(AW14:AW16) -> 0 | AX9: =SUM(AX14:AX16) -> 0 | AY9: =SUM(AY14:AY16) -> 0 | BA9: =SUM(BA14:BA16) -> 0 | BB9: =SUM(BB14:BB16) -> 0 | BC9: =SUM(BC14:BC16) -> 0 | BD9: =SUM(BD14:BD16) -> 0 | BE9: =SUM(BE14:BE16) -> 0 | BG9: =SUM(BG14:BG16) -> 0 | BH9: =SUM(BH14:BH16) -> 0 | BI9: =SUM(BI14:BI16) -> 0 | BJ9: =SUM(BJ14:BJ16) -> 0 | BK9: =SUM(BK14:BK16) -> 0 | BM9: =SUM(BM14:BM16) -> 0 | BN9: =SUM(BN14:BN16) -> 0 | BO9: =SUM(BO14:BO16) -> 0 | BP9: =SUM(BP14:BP16) -> 0 | BQ9: =SUM(BQ14:BQ16) -> 0 | BS9: =SUM(BS14:BS16) -> 0 | BT9: =SUM(BT14:BT16) -> 0 | BU9: =SUM(BU14:BU16) -> 0 | BV9: =SUM(BV14:BV16) -> 0 | BW9: =SUM(BW14:BW16) -> 0
F10: Déperditions par transmission | G10: =SUMIFS($O10:$BX10,$O$7:$BX$7,G$7) -> 180.3115882 | H10: =SUMIFS($O10:$BX10,$O$7:$BX$7,H$7) -> 131.657607 | I10: =SUMIFS($O10:$BX10,$O$7:$BX$7,I$7) -> 131.657607 | J10: =SUMIFS($O10:$BX10,$O$7:$BX$7,J$7) -> 131.657607 | K10: =SUMIFS($O10:$BX10,$O$7:$BX$7,K$7) -> 40.87520358 | Q10: =SUM(Q426:Q430) -> 63.38679322 | R10: =SUM(R426:R430) -> 14.73281204 | S10: =SUM(S426:S430) -> 14.73281204 | T10: =SUM(T426:T430) -> 14.73281204 | U10: =SUM(U426:U430) -> 16.37273434 | W10: =SUM(W426:W430) -> 116.924795 | X10: =SUM(X426:X430) -> 116.924795 | Y10: =SUM(Y426:Y430) -> 116.924795 | Z10: =SUM(Z426:Z430) -> 116.924795 | AA10: =SUM(AA426:AA430) -> 24.50246924 | AC10: =SUM(AC426:AC430) -> 0 | AD10: =SUM(AD426:AD430) -> 0 | AE10: =SUM(AE426:AE430) -> 0 | AF10: =SUM(AF426:AF430) -> 0 | AG10: =SUM(AG426:AG430) -> 0 | AI10: =SUM(AI426:AI430) -> 0 | AJ10: =SUM(AJ426:AJ430) -> 0 | AK10: =SUM(AK426:AK430) -> 0 | AL10: =SUM(AL426:AL430) -> 0 | AM10: =SUM(AM426:AM430) -> 0 | AO10: =SUM(AO426:AO430) -> 0 | AP10: =SUM(AP426:AP430) -> 0 | AQ10: =SUM(AQ426:AQ430) -> 0 | AR10: =SUM(AR426:AR430) -> 0 | AS10: =SUM(AS426:AS430) -> 0 | AU10: =SUM(AU426:AU430) -> 0 | AV10: =SUM(AV426:AV430) -> 0 | AW10: =SUM(AW426:AW430) -> 0 | AX10: =SUM(AX426:AX430) -> 0 | AY10: =SUM(AY426:AY430) -> 0 | BA10: =SUM(BA426:BA430) -> 0 | BB10: =SUM(BB426:BB430) -> 0 | BC10: =SUM(BC426:BC430) -> 0 | BD10: =SUM(BD426:BD430) -> 0 | BE10: =SUM(BE426:BE430) -> 0 | BG10: =SUM(BG426:BG430) -> 0 | BH10: =SUM(BH426:BH430) -> 0 | BI10: =SUM(BI426:BI430) -> 0 | BJ10: =SUM(BJ426:BJ430) -> 0 | BK10: =SUM(BK426:BK430) -> 0 | BM10: =SUM(BM426:BM430) -> 0 | BN10: =SUM(BN426:BN430) -> 0 | BO10: =SUM(BO426:BO430) -> 0 | BP10: =SUM(BP426:BP430) -> 0 | BQ10: =SUM(BQ426:BQ430) -> 0 | BS10: =SUM(BS426:BS430) -> 0 | BT10: =SUM(BT426:BT430) -> 0 | BU10: =SUM(BU426:BU430) -> 0 | BV10: =SUM(BV426:BV430) -> 0 | BW10: =SUM(BW426:BW430) -> 0
F11: Déperditions par in/exfiltration | G11: =SUMIFS($O11:$BX11,$O$7:$BX$7,G$7) -> 32.14561879 | H11: =SUMIFS($O11:$BX11,$O$7:$BX$7,H$7) -> 13.04011668 | I11: =SUMIFS($O11:$BX11,$O$7:$BX$7,I$7) -> 13.04011668 | J11: =SUMIFS($O11:$BX11,$O$7:$BX$7,J$7) -> 13.04011668 | K11: =SUMIFS($O11:$BX11,$O$7:$BX$7,K$7) -> 8.936281977 | Q11: =Q437 -> 3.599509119 | R11: =R437 -> 2.335325551 | S11: 2.335325551 | T11: 2.335325551 | U11: 1.799754559 | W11: =W437 -> 28.54610967 | X11: =X437 -> 10.70479113 | Y11: 10.70479113 | Z11: 10.70479113 | AA11: 7.136527417 | AC11: =AC437 -> 0 | AD11: =AD437 -> 0 | AE11: 0 | AF11: 0 | AG11: 0 | AI11: =AI437 -> 0 | AJ11: =AJ437 -> 0 | AK11: 0 | AL11: 0 | AM11: 0 | AO11: =AO437 -> 0 | AP11: =AP437 -> 0 | AQ11: 0 | AR11: 0 | AS11: 0 | AU11: =AU437 -> 0 | AV11: =AV437 -> 0 | AW11: 0 | AX11: 0 | AY11: 0 | BA11: =BA437 -> 0 | BB11: =BB437 -> 0 | BC11: 0 | BD11: 0 | BE11: 0 | BG11: =BG437 -> 0 | BH11: =BH437 -> 0 | BI11: 0 | BJ11: 0 | BK11: 0 | BM11: =BM437 -> 0 | BN11: =BN437 -> 0 | BO11: 0 | BP11: 0 | BQ11: 0 | BS11: =BS437 -> 0 | BT11: =BT437 -> 0 | BU11: 0 | BV11: 0 | BW11: 0
F12: Déperditions par ventilation | G12: =SUMIFS($O12:$BX12,$O$7:$BX$7,G$7) -> 20.02230857 | H12: =SUMIFS($O12:$BX12,$O$7:$BX$7,H$7) -> 20.02230857 | I12: =SUMIFS($O12:$BX12,$O$7:$BX$7,I$7) -> 32.31678284 | J12: =SUMIFS($O12:$BX12,$O$7:$BX$7,J$7) -> 32.31678284 | K12: =SUMIFS($O12:$BX12,$O$7:$BX$7,K$7) -> 34.23469714 | Q12: =Q438 -> 0 | R12: 0 | S12: =S438 -> 12.29447427 | T12: 12.29447427 | U12: =U438 -> 14.21238857 | W12: =W438 -> 20.02230857 | X12: =X438 -> 20.02230857 | Y12: =Y438 -> 20.02230857 | Z12: =Z438 -> 20.02230857 | AA12: =AA438 -> 20.02230857 | AC12: =AC438 -> 0 | AD12: =AD438 -> 0 | AE12: =AE438 -> 0 | AF12: =AF438 -> 0 | AG12: =AG438 -> 0 | AI12: =AI438 -> 0 | AJ12: 0 | AK12: =AK438 -> 0 | AL12: 0 | AM12: =AM438 -> 0 | AO12: =AO438 -> 0 | AP12: =AP438 -> 0 | AQ12: =AQ438 -> 0 | AR12: =AR438 -> 0 | AS12: =AS438 -> 0 | AU12: =AU438 -> 0 | AV12: 0 | AW12: =AW438 -> 0 | AX12: 0 | AY12: =AY438 -> 0 | BA12: =BA438 -> 0 | BB12: =BB438 -> 0 | BC12: =BC438 -> 0 | BD12: =BD438 -> 0 | BE12: =BE438 -> 0 | BG12: =BG438 -> 0 | BH12: 0 | BI12: =BI438 -> 0 | BJ12: 0 | BK12: =BK438 -> 0 | BM12: =BM438 -> 0 | BN12: =BN438 -> 0 | BO12: =BO438 -> 0 | BP12: =BP438 -> 0 | BQ12: =BQ438 -> 0 | BS12: =BS438 -> 0 | BT12: 0 | BU12: =BU438 -> 0 | BV12: 0 | BW12: =BW438 -> 0
F13: Apports Valorisés | G13: =SUMIFS($O13:$BX13,$O$7:$BX$7,G$7) -> -29.82306031 | H13: =SUMIFS($O13:$BX13,$O$7:$BX$7,H$7) -> -29.76526794 | I13: =SUMIFS($O13:$BX13,$O$7:$BX$7,I$7) -> -29.81753712 | J13: =SUMIFS($O13:$BX13,$O$7:$BX$7,J$7) -> -29.81753712 | K13: =SUMIFS($O13:$BX13,$O$7:$BX$7,K$7) -> -29.6161617 | Q13: =Q439 -> -7.230865455 | R13: =R439 -> -7.173753191 | S13: =S439 -> -7.226022372 | T13: =T439 -> -7.226022372 | U13: =U439 -> -7.227842678 | W13: =W439 -> -22.59219485 | X13: =X439 -> -22.59151475 | Y13: =Y439 -> -22.59151475 | Z13: =Z439 -> -22.59151475 | AA13: =AA439 -> -22.38831902 | AC13: =AC439 -> 0 | AD13: =AD439 -> 0 | AE13: =AE439 -> 0 | AF13: =AF439 -> 0 | AG13: =AG439 -> 0 | AI13: =AI439 -> 0 | AJ13: =AJ439 -> 0 | AK13: =AK439 -> 0 | AL13: =AL439 -> 0 | AM13: =AM439 -> 0 | AO13: =AO439 -> 0 | AP13: =AP439 -> 0 | AQ13: =AQ439 -> 0 | AR13: =AR439 -> 0 | AS13: =AS439 -> 0 | AU13: =AU439 -> 0 | AV13: =AV439 -> 0 | AW13: =AW439 -> 0 | AX13: =AX439 -> 0 | AY13: =AY439 -> 0 | BA13: =BA439 -> 0 | BB13: =BB439 -> 0 | BC13: =BC439 -> 0 | BD13: =BD439 -> 0 | BE13: =BE439 -> 0 | BG13: =BG439 -> 0 | BH13: =BH439 -> 0 | BI13: =BI439 -> 0 | BJ13: =BJ439 -> 0 | BK13: =BK439 -> 0 | BM13: =BM439 -> 0 | BN13: =BN439 -> 0 | BO13: =BO439 -> 0 | BP13: =BP439 -> 0 | BQ13: =BQ439 -> 0 | BS13: =BS439 -> 0 | BT13: =BT439 -> 0 | BU13: =BU439 -> 0 | BV13: =BV439 -> 0 | BW13: =BW439 -> 0
F14: Besoin net en chauffage (BNC) | G14: =SUMIFS($O14:$BX14,$O$7:$BX$7,G$7) -> 202.6564553 | H14: =SUMIFS($O14:$BX14,$O$7:$BX$7,H$7) -> 134.9547643 | I14: =SUMIFS($O14:$BX14,$O$7:$BX$7,I$7) -> 147.1969694 | J14: =SUMIFS($O14:$BX14,$O$7:$BX$7,J$7) -> 147.1969694 | K14: =SUMIFS($O14:$BX14,$O$7:$BX$7,K$7) -> 54.430021 | Q14: =SUM(Q10:Q13) -> 59.75543688 | R14: =SUM(R10:R13) -> 9.894384396 | S14: =SUM(S10:S13) -> 22.13658948 | T14: =SUM(T10:T13) -> 22.13658948 | U14: =SUM(U10:U13) -> 25.15703479 | W14: =SUM(W10:W13) -> 142.9010184 | X14: =SUM(X10:X13) -> 125.06038 | Y14: =SUM(Y10:Y13) -> 125.06038 | Z14: =SUM(Z10:Z13) -> 125.06038 | AA14: =SUM(AA10:AA13) -> 29.27298621 | AC14: =SUM(AC10:AC13) -> 0 | AD14: =SUM(AD10:AD13) -> 0 | AE14: =SUM(AE10:AE13) -> 0 | AF14: =SUM(AF10:AF13) -> 0 | AG14: =SUM(AG10:AG13) -> 0 | AI14: =SUM(AI10:AI13) -> 0 | AJ14: =SUM(AJ10:AJ13) -> 0 | AK14: =SUM(AK10:AK13) -> 0 | AL14: =SUM(AL10:AL13) -> 0 | AM14: =SUM(AM10:AM13) -> 0 | AO14: =SUM(AO10:AO13) -> 0 | AP14: =SUM(AP10:AP13) -> 0 | AQ14: =SUM(AQ10:AQ13) -> 0 | AR14: =SUM(AR10:AR13) -> 0 | AS14: =SUM(AS10:AS13) -> 0 | AU14: =SUM(AU10:AU13) -> 0 | AV14: =SUM(AV10:AV13) -> 0 | AW14: =SUM(AW10:AW13) -> 0 | AX14: =SUM(AX10:AX13) -> 0 | AY14: =SUM(AY10:AY13) -> 0 | BA14: =SUM(BA10:BA13) -> 0 | BB14: =SUM(BB10:BB13) -> 0 | BC14: =SUM(BC10:BC13) -> 0 | BD14: =SUM(BD10:BD13) -> 0 | BE14: =SUM(BE10:BE13) -> 0 | BG14: =SUM(BG10:BG13) -> 0 | BH14: =SUM(BH10:BH13) -> 0 | BI14: =SUM(BI10:BI13) -> 0 | BJ14: =SUM(BJ10:BJ13) -> 0 | BK14: =SUM(BK10:BK13) -> 0 | BM14: =SUM(BM10:BM13) -> 0 | BN14: =SUM(BN10:BN13) -> 0 | BO14: =SUM(BO10:BO13) -> 0 | BP14: =SUM(BP10:BP13) -> 0 | BQ14: =SUM(BQ10:BQ13) -> 0 | BS14: =SUM(BS10:BS13) -> 0 | BT14: =SUM(BT10:BT13) -> 0 | BU14: =SUM(BU10:BU13) -> 0 | BV14: =SUM(BV10:BV13) -> 0 | BW14: =SUM(BW10:BW13) -> 0
F15: Pertes du système de chauffage | G15: =SUMIFS($O15:$BX15,$O$7:$BX$7,G$7) -> 67.51596098 | H15: =SUMIFS($O15:$BX15,$O$7:$BX$7,H$7) -> 41.20502616 | I15: =SUMIFS($O15:$BX15,$O$7:$BX$7,I$7) -> 44.7188484 | J15: =SUMIFS($O15:$BX15,$O$7:$BX$7,J$7) -> 24.13288277 | K15: =SUMIFS($O15:$BX15,$O$7:$BX$7,K$7) -> 0 | Q15: =Q446 -> 22.30810155 | R15: =R446 -> 2.83993837 | S15: =S446 -> 6.353760611 | T15: =T446 -> 6.353760611 | U15: =U446 -> 0 | W15: =W446 -> 45.20785943 | X15: =X446 -> 38.36508779 | Y15: =Y446 -> 38.36508779 | Z15: =Z446 -> 17.77912216 | AA15: =AA446 -> 0 | AC15: =AC446 -> 0 | AD15: =AD446 -> 0 | AE15: =AE446 -> 0 | AF15: =AF446 -> 0 | AG15: =AG446 -> 0 | AI15: =AI446 -> 0 | AJ15: =AJ446 -> 0 | AK15: =AK446 -> 0 | AL15: =AL446 -> 0 | AM15: =AM446 -> 0 | AO15: =AO446 -> 0 | AP15: =AP446 -> 0 | AQ15: =AQ446 -> 0 | AR15: =AR446 -> 0 | AS15: =AS446 -> 0 | AU15: =AU446 -> 0 | AV15: =AV446 -> 0 | AW15: =AW446 -> 0 | AX15: =AX446 -> 0 | AY15: =AY446 -> 0 | BA15: =BA446 -> 0 | BB15: =BB446 -> 0 | BC15: =BC446 -> 0 | BD15: =BD446 -> 0 | BE15: =BE446 -> 0 | BG15: =BG446 -> 0 | BH15: =BH446 -> 0 | BI15: =BI446 -> 0 | BJ15: =BJ446 -> 0 | BK15: =BK446 -> 0 | BM15: =BM446 -> 0 | BN15: =BN446 -> 0 | BO15: =BO446 -> 0 | BP15: =BP446 -> 0 | BQ15: =BQ446 -> 0 | BS15: =BS446 -> 0 | BT15: =BT446 -> 0 | BU15: =BU446 -> 0 | BV15: =BV446 -> 0 | BW15: =BW446 -> 0
C16: 1.CHA | F16: ="Autres usages - "&INDEX(Liste_Usages_Description,MATCH(C16,Liste_Usages,0)) -> Autres usages - Chauffage | G16: =SUMIFS($O16:$BX16,$O$7:$BX$7,G$7) -> 0 | H16: =SUMIFS($O16:$BX16,$O$7:$BX$7,H$7) -> 0 | I16: =SUMIFS($O16:$BX16,$O$7:$BX$7,I$7) -> 0 | J16: =SUMIFS($O16:$BX16,$O$7:$BX$7,J$7) -> 0 | K16: =SUMIFS($O16:$BX16,$O$7:$BX$7,K$7) -> 0 | Q16: =SUMIFS(Form_Autres_Usages[[Conso_ex]:[Conso_ex]],Form_Autres_Usages[[BatID]:[BatID]],Q$6,Form_Autres_Usages[[Usage]:[Usage]],$C16)/1000 -> 0 | R16: =SUMIFS(Form_Autres_Usages[[Conso_pr_et1]:[Conso_pr_et1]],Form_Autres_Usages[[BatID]:[BatID]],R$6,Form_Autres_Usages[[Usage]:[Usage]],$C16)/1000 -> 0 | S16: =SUMIFS(Form_Autres_Usages[[Conso_pr_et2]:[Conso_pr_et2]],Form_Autres_Usages[[BatID]:[BatID]],S$6,Form_Autres_Usages[[Usage]:[Usage]],$C16)/1000 -> 0 | T16: =SUMIFS(Form_Autres_Usages[[Conso_pr_et3]:[Conso_pr_et3]],Form_Autres_Usages[[BatID]:[BatID]],T$6,Form_Autres_Usages[[Usage]:[Usage]],$C16)/1000 -> 0 | U16: =T16*P_MTD_Autres_Usages -> 0 | W16: =SUMIFS(Form_Autres_Usages[[Conso_ex]:[Conso_ex]],Form_Autres_Usages[[BatID]:[BatID]],W$6,Form_Autres_Usages[[Usage]:[Usage]],$C16)/1000 -> 0 | X16: =SUMIFS(Form_Autres_Usages[[Conso_pr_et1]:[Conso_pr_et1]],Form_Autres_Usages[[BatID]:[BatID]],X$6,Form_Autres_Usages[[Usage]:[Usage]],$C16)/1000 -> 0 | Y16: =SUMIFS(Form_Autres_Usages[[Conso_pr_et2]:[Conso_pr_et2]],Form_Autres_Usages[[BatID]:[BatID]],Y$6,Form_Autres_Usages[[Usage]:[Usage]],$C16)/1000 -> 0 | Z16: =SUMIFS(Form_Autres_Usages[[Conso_pr_et3]:[Conso_pr_et3]],Form_Autres_Usages[[BatID]:[BatID]],Z$6,Form_Autres_Usages[[Usage]:[Usage]],$C16)/1000 -> 0 | AA16: =Z16*P_MTD_Autres_Usages -> 0 | AC16: =SUMIFS(Form_Autres_Usages[[Conso_ex]:[Conso_ex]],Form_Autres_Usages[[BatID]:[BatID]],AC$6,Form_Autres_Usages[[Usage]:[Usage]],$C16)/1000 -> 0 | AD16: =SUMIFS(Form_Autres_Usages[[Conso_pr_et1]:[Conso_pr_et1]],Form_Autres_Usages[[BatID]:[BatID]],AD$6,Form_Autres_Usages[[Usage]:[Usage]],$C16)/1000 -> 0 | AE16: =SUMIFS(Form_Autres_Usages[[Conso_pr_et2]:[Conso_pr_et2]],Form_Autres_Usages[[BatID]:[BatID]],AE$6,Form_Autres_Usages[[Usage]:[Usage]],$C16)/1000 -> 0 | AF16: =SUMIFS(Form_Autres_Usages[[Conso_pr_et3]:[Conso_pr_et3]],Form_Autres_Usages[[BatID]:[BatID]],AF$6,Form_Autres_Usages[[Usage]:[Usage]],$C16)/1000 -> 0 | AG16: =AF16*P_MTD_Autres_Usages -> 0 | AI16: =SUMIFS(Form_Autres_Usages[[Conso_ex]:[Conso_ex]],Form_Autres_Usages[[BatID]:[BatID]],AI$6,Form_Autres_Usages[[Usage]:[Usage]],$C16)/1000 -> 0 | AJ16: =SUMIFS(Form_Autres_Usages[[Conso_pr_et1]:[Conso_pr_et1]],Form_Autres_Usages[[BatID]:[BatID]],AJ$6,Form_Autres_Usages[[Usage]:[Usage]],$C16)/1000 -> 0 | AK16: =SUMIFS(Form_Autres_Usages[[Conso_pr_et2]:[Conso_pr_et2]],Form_Autres_Usages[[BatID]:[BatID]],AK$6,Form_Autres_Usages[[Usage]:[Usage]],$C16)/1000 -> 0 | AL16: =SUMIFS(Form_Autres_Usages[[Conso_pr_et3]:[Conso_pr_et3]],Form_Autres_Usages[[BatID]:[BatID]],AL$6,Form_Autres_Usages[[Usage]:[Usage]],$C16)/1000 -> 0 | AM16: =AL16*P_MTD_Autres_Usages -> 0 | AO16: =SUMIFS(Form_Autres_Usages[[Conso_ex]:[Conso_ex]],Form_Autres_Usages[[BatID]:[BatID]],AO$6,Form_Autres_Usages[[Usage]:[Usage]],$C16)/1000 -> 0 | AP16: =SUMIFS(Form_Autres_Usages[[Conso_pr_et1]:[Conso_pr_et1]],Form_Autres_Usages[[BatID]:[BatID]],AP$6,Form_Autres_Usages[[Usage]:[Usage]],$C16)/1000 -> 0 | AQ16: =SUMIFS(Form_Autres_Usages[[Conso_pr_et2]:[Conso_pr_et2]],Form_Autres_Usages[[BatID]:[BatID]],AQ$6,Form_Autres_Usages[[Usage]:[Usage]],$C16)/1000 -> 0 | AR16: =SUMIFS(Form_Autres_Usages[[Conso_pr_et3]:[Conso_pr_et3]],Form_Autres_Usages[[BatID]:[BatID]],AR$6,Form_Autres_Usages[[Usage]:[Usage]],$C16)/1000 -> 0 | AS16: =AR16*P_MTD_Autres_Usages -> 0 | AU16: =SUMIFS(Form_Autres_Usages[[Conso_ex]:[Conso_ex]],Form_Autres_Usages[[BatID]:[BatID]],AU$6,Form_Autres_Usages[[Usage]:[Usage]],$C16)/1000 -> 0 | AV16: =SUMIFS(Form_Autres_Usages[[Conso_pr_et1]:[Conso_pr_et1]],Form_Autres_Usages[[BatID]:[BatID]],AV$6,Form_Autres_Usages[[Usage]:[Usage]],$C16)/1000 -> 0 | AW16: =SUMIFS(Form_Autres_Usages[[Conso_pr_et2]:[Conso_pr_et2]],Form_Autres_Usages[[BatID]:[BatID]],AW$6,Form_Autres_Usages[[Usage]:[Usage]],$C16)/1000 -> 0 | AX16: =SUMIFS(Form_Autres_Usages[[Conso_pr_et3]:[Conso_pr_et3]],Form_Autres_Usages[[BatID]:[BatID]],AX$6,Form_Autres_Usages[[Usage]:[Usage]],$C16)/1000 -> 0 | AY16: =AX16*P_MTD_Autres_Usages -> 0 | BA16: =SUMIFS(Form_Autres_Usages[[Conso_ex]:[Conso_ex]],Form_Autres_Usages[[BatID]:[BatID]],BA$6,Form_Autres_Usages[[Usage]:[Usage]],$C16)/1000 -> 0 | BB16: =SUMIFS(Form_Autres_Usages[[Conso_pr_et1]:[Conso_pr_et1]],Form_Autres_Usages[[BatID]:[BatID]],BB$6,Form_Autres_Usages[[Usage]:[Usage]],$C16)/1000 -> 0 | BC16: =SUMIFS(Form_Autres_Usages[[Conso_pr_et2]:[Conso_pr_et2]],Form_Autres_Usages[[BatID]:[BatID]],BC$6,Form_Autres_Usages[[Usage]:[Usage]],$C16)/1000 -> 0 | BD16: =SUMIFS(Form_Autres_Usages[[Conso_pr_et3]:[Conso_pr_et3]],Form_Autres_Usages[[BatID]:[BatID]],BD$6,Form_Autres_Usages[[Usage]:[Usage]],$C16)/1000 -> 0 | BE16: =BD16*P_MTD_Autres_Usages -> 0 | BG16: =SUMIFS(Form_Autres_Usages[[Conso_ex]:[Conso_ex]],Form_Autres_Usages[[BatID]:[BatID]],BG$6,Form_Autres_Usages[[Usage]:[Usage]],$C16)/1000 -> 0 | BH16: =SUMIFS(Form_Autres_Usages[[Conso_pr_et1]:[Conso_pr_et1]],Form_Autres_Usages[[BatID]:[BatID]],BH$6,Form_Autres_Usages[[Usage]:[Usage]],$C16)/1000 -> 0 | BI16: =SUMIFS(Form_Autres_Usages[[Conso_pr_et2]:[Conso_pr_et2]],Form_Autres_Usages[[BatID]:[BatID]],BI$6,Form_Autres_Usages[[Usage]:[Usage]],$C16)/1000 -> 0 | BJ16: =SUMIFS(Form_Autres_Usages[[Conso_pr_et3]:[Conso_pr_et3]],Form_Autres_Usages[[BatID]:[BatID]],BJ$6,Form_Autres_Usages[[Usage]:[Usage]],$C16)/1000 -> 0 | BK16: =BJ16*P_MTD_Autres_Usages -> 0 | BM16: =SUMIFS(Form_Autres_Usages[[Conso_ex]:[Conso_ex]],Form_Autres_Usages[[BatID]:[BatID]],BM$6,Form_Autres_Usages[[Usage]:[Usage]],$C16)/1000 -> 0 | BN16: =SUMIFS(Form_Autres_Usages[[Conso_pr_et1]:[Conso_pr_et1]],Form_Autres_Usages[[BatID]:[BatID]],BN$6,Form_Autres_Usages[[Usage]:[Usage]],$C16)/1000 -> 0 | BO16: =SUMIFS(Form_Autres_Usages[[Conso_pr_et2]:[Conso_pr_et2]],Form_Autres_Usages[[BatID]:[BatID]],BO$6,Form_Autres_Usages[[Usage]:[Usage]],$C16)/1000 -> 0 | BP16: =SUMIFS(Form_Autres_Usages[[Conso_pr_et3]:[Conso_pr_et3]],Form_Autres_Usages[[BatID]:[BatID]],BP$6,Form_Autres_Usages[[Usage]:[Usage]],$C16)/1000 -> 0 | BQ16: =BP16*P_MTD_Autres_Usages -> 0 | BS16: =SUMIFS(Form_Autres_Usages[[Conso_ex]:[Conso_ex]],Form_Autres_Usages[[BatID]:[BatID]],BS$6,Form_Autres_Usages[[Usage]:[Usage]],$C16)/1000 -> 0 | BT16: =SUMIFS(Form_Autres_Usages[[Conso_pr_et1]:[Conso_pr_et1]],Form_Autres_Usages[[BatID]:[BatID]],BT$6,Form_Autres_Usages[[Usage]:[Usage]],$C16)/1000 -> 0 | BU16: =SUMIFS(Form_Autres_Usages[[Conso_pr_et2]:[Conso_pr_et2]],Form_Autres_Usages[[BatID]:[BatID]],BU$6,Form_Autres_Usages[[Usage]:[Usage]],$C16)/1000 -> 0 | BV16: =SUMIFS(Form_Autres_Usages[[Conso_pr_et3]:[Conso_pr_et3]],Form_Autres_Usages[[BatID]:[BatID]],BV$6,Form_Autres_Usages[[Usage]:[Usage]],$C16)/1000 -> 0 | BW16: =BV16*P_MTD_Autres_Usages -> 0
E17: 2. | F17: Auxiliaires | G17: =SUMIFS($O17:$BX17,$O$7:$BX$7,G$7) -> 8.32 | H17: =SUMIFS($O17:$BX17,$O$7:$BX$7,H$7) -> 5.824 | I17: =SUMIFS($O17:$BX17,$O$7:$BX$7,I$7) -> 9.290666667 | J17: =SUMIFS($O17:$BX17,$O$7:$BX$7,J$7) -> 9.290666667 | K17: =SUMIFS($O17:$BX17,$O$7:$BX$7,K$7) -> 7.8 | Q17: =SUM(Q18:Q26) -> 0 | R17: =SUM(R18:R26) -> 0 | S17: =SUM(S18:S26) -> 3.466666667 | T17: =SUM(T18:T26) -> 3.466666667 | U17: =SUM(U18:U26) -> 3.466666667 | W17: =SUM(W18:W26) -> 8.32 | X17: =SUM(X18:X26) -> 5.824 | Y17: =SUM(Y18:Y26) -> 5.824 | Z17: =SUM(Z18:Z26) -> 5.824 | AA17: =SUM(AA18:AA26) -> 4.333333333 | AC17: =SUM(AC18:AC26) -> 0 | AD17: =SUM(AD18:AD26) -> 0 | AE17: =SUM(AE18:AE26) -> 0 | AF17: =SUM(AF18:AF26) -> 0 | AG17: =SUM(AG18:AG26) -> 0 | AI17: =SUM(AI18:AI26) -> 0 | AJ17: =SUM(AJ18:AJ26) -> 0 | AK17: =SUM(AK18:AK26) -> 0 | AL17: =SUM(AL18:AL26) -> 0 | AM17: =SUM(AM18:AM26) -> 0 | AO17: =SUM(AO18:AO26) -> 0 | AP17: =SUM(AP18:AP26) -> 0 | AQ17: =SUM(AQ18:AQ26) -> 0 | AR17: =SUM(AR18:AR26) -> 0 | AS17: =SUM(AS18:AS26) -> 0 | AU17: =SUM(AU18:AU26) -> 0 | AV17: =SUM(AV18:AV26) -> 0 | AW17: =SUM(AW18:AW26) -> 0 | AX17: =SUM(AX18:AX26) -> 0 | AY17: =SUM(AY18:AY26) -> 0 | BA17: =SUM(BA18:BA26) -> 0 | BB17: =SUM(BB18:BB26) -> 0 | BC17: =SUM(BC18:BC26) -> 0 | BD17: =SUM(BD18:BD26) -> 0 | BE17: =SUM(BE18:BE26) -> 0 | BG17: =SUM(BG18:BG26) -> 0 | BH17: =SUM(BH18:BH26) -> 0 | BI17: =SUM(BI18:BI26) -> 0 | BJ17: =SUM(BJ18:BJ26) -> 0 | BK17: =SUM(BK18:BK26) -> 0 | BM17: =SUM(BM18:BM26) -> 0 | BN17: =SUM(BN18:BN26) -> 0 | BO17: =SUM(BO18:BO26) -> 0 | BP17: =SUM(BP18:BP26) -> 0 | BQ17: =SUM(BQ18:BQ26) -> 0 | BS17: =SUM(BS18:BS26) -> 0 | BT17: =SUM(BT18:BT26) -> 0 | BU17: =SUM(BU18:BU26) -> 0 | BV17: =SUM(BV18:BV26) -> 0 | BW17: =SUM(BW18:BW26) -> 0
F18: Ventilateurs | G18: =SUMIFS($O18:$BX18,$O$7:$BX$7,G$7) -> 8.32 | H18: =SUMIFS($O18:$BX18,$O$7:$BX$7,H$7) -> 5.824 | I18: =SUMIFS($O18:$BX18,$O$7:$BX$7,I$7) -> 9.290666667 | J18: =SUMIFS($O18:$BX18,$O$7:$BX$7,J$7) -> 9.290666667 | K18: =SUMIFS($O18:$BX18,$O$7:$BX$7,K$7) -> 7.8 | Q18: =SUMIF(Form_Ventilation[ [BatID]:[BatID] ],Q$6,Form_Ventilation[ [Conso_el_ex]:[Conso_el_ex] ])/1000 -> 0 | R18: =SUMIF(Form_Ventilation[ [BatID]:[BatID] ],S$6,Form_Ventilation[ [Conso_el_pr_et1]:[Conso_el_pr_et1] ])/1000 -> 0 | S18: =SUMIF(Form_Ventilation[ [BatID]:[BatID] ],S$6,Form_Ventilation[ [Conso_el_pr_et2]:[Conso_el_pr_et2] ])/1000 -> 3.466666667 | T18: =SUMIF(Form_Ventilation[ [BatID]:[BatID] ],T$6,Form_Ventilation[ [Conso_el_pr_et3]:[Conso_el_pr_et3] ])/1000 -> 3.466666667 | U18: =SUMIF(Form_Ventilation[ [BatID]:[BatID] ],U$6,Form_Ventilation[ [Conso_el_MTD]:[Conso_el_MTD] ])/1000 -> 3.466666667 | W18: =SUMIF(Form_Ventilation[ [BatID]:[BatID] ],W$6,Form_Ventilation[ [Conso_el_ex]:[Conso_el_ex] ])/1000 -> 8.32 | X18: =SUMIF(Form_Ventilation[ [BatID]:[BatID] ],Y$6,Form_Ventilation[ [Conso_el_pr_et1]:[Conso_el_pr_et1] ])/1000 -> 5.824 | Y18: =SUMIF(Form_Ventilation[ [BatID]:[BatID] ],Y$6,Form_Ventilation[ [Conso_el_pr_et2]:[Conso_el_pr_et2] ])/1000 -> 5.824 | Z18: =SUMIF(Form_Ventilation[ [BatID]:[BatID] ],Z$6,Form_Ventilation[ [Conso_el_pr_et3]:[Conso_el_pr_et3] ])/1000 -> 5.824 | AA18: =SUMIF(Form_Ventilation[ [BatID]:[BatID] ],AA$6,Form_Ventilation[ [Conso_el_MTD]:[Conso_el_MTD] ])/1000 -> 4.333333333 | AC18: =SUMIF(Form_Ventilation[ [BatID]:[BatID] ],AC$6,Form_Ventilation[ [Conso_el_ex]:[Conso_el_ex] ])/1000 -> 0 | AD18: =SUMIF(Form_Ventilation[ [BatID]:[BatID] ],AE$6,Form_Ventilation[ [Conso_el_pr_et1]:[Conso_el_pr_et1] ])/1000 -> 0 | AE18: =SUMIF(Form_Ventilation[ [BatID]:[BatID] ],AE$6,Form_Ventilation[ [Conso_el_pr_et2]:[Conso_el_pr_et2] ])/1000 -> 0 | AF18: =SUMIF(Form_Ventilation[ [BatID]:[BatID] ],AF$6,Form_Ventilation[ [Conso_el_pr_et3]:[Conso_el_pr_et3] ])/1000 -> 0 | AG18: =SUMIF(Form_Ventilation[ [BatID]:[BatID] ],AG$6,Form_Ventilation[ [Conso_el_MTD]:[Conso_el_MTD] ])/1000 -> 0 | AI18: =SUMIF(Form_Ventilation[ [BatID]:[BatID] ],AI$6,Form_Ventilation[ [Conso_el_ex]:[Conso_el_ex] ])/1000 -> 0 | AJ18: =SUMIF(Form_Ventilation[ [BatID]:[BatID] ],AK$6,Form_Ventilation[ [Conso_el_pr_et1]:[Conso_el_pr_et1] ])/1000 -> 0 | AK18: =SUMIF(Form_Ventilation[ [BatID]:[BatID] ],AK$6,Form_Ventilation[ [Conso_el_pr_et2]:[Conso_el_pr_et2] ])/1000 -> 0 | AL18: =SUMIF(Form_Ventilation[ [BatID]:[BatID] ],AL$6,Form_Ventilation[ [Conso_el_pr_et3]:[Conso_el_pr_et3] ])/1000 -> 0 | AM18: =SUMIF(Form_Ventilation[ [BatID]:[BatID] ],AM$6,Form_Ventilation[ [Conso_el_MTD]:[Conso_el_MTD] ])/1000 -> 0 | AO18: =SUMIF(Form_Ventilation[ [BatID]:[BatID] ],AO$6,Form_Ventilation[ [Conso_el_ex]:[Conso_el_ex] ])/1000 -> 0 | AP18: =SUMIF(Form_Ventilation[ [BatID]:[BatID] ],AQ$6,Form_Ventilation[ [Conso_el_pr_et1]:[Conso_el_pr_et1] ])/1000 -> 0 | AQ18: =SUMIF(Form_Ventilation[ [BatID]:[BatID] ],AQ$6,Form_Ventilation[ [Conso_el_pr_et2]:[Conso_el_pr_et2] ])/1000 -> 0 | AR18: =SUMIF(Form_Ventilation[ [BatID]:[BatID] ],AR$6,Form_Ventilation[ [Conso_el_pr_et3]:[Conso_el_pr_et3] ])/1000 -> 0 | AS18: =SUMIF(Form_Ventilation[ [BatID]:[BatID] ],AS$6,Form_Ventilation[ [Conso_el_MTD]:[Conso_el_MTD] ])/1000 -> 0 | AU18: =SUMIF(Form_Ventilation[ [BatID]:[BatID] ],AU$6,Form_Ventilation[ [Conso_el_ex]:[Conso_el_ex] ])/1000 -> 0 | AV18: =SUMIF(Form_Ventilation[ [BatID]:[BatID] ],AW$6,Form_Ventilation[ [Conso_el_pr_et1]:[Conso_el_pr_et1] ])/1000 -> 0 | AW18: =SUMIF(Form_Ventilation[ [BatID]:[BatID] ],AW$6,Form_Ventilation[ [Conso_el_pr_et2]:[Conso_el_pr_et2] ])/1000 -> 0 | AX18: =SUMIF(Form_Ventilation[ [BatID]:[BatID] ],AX$6,Form_Ventilation[ [Conso_el_pr_et3]:[Conso_el_pr_et3] ])/1000 -> 0 | AY18: =SUMIF(Form_Ventilation[ [BatID]:[BatID] ],AY$6,Form_Ventilation[ [Conso_el_MTD]:[Conso_el_MTD] ])/1000 -> 0 | BA18: =SUMIF(Form_Ventilation[ [BatID]:[BatID] ],BA$6,Form_Ventilation[ [Conso_el_ex]:[Conso_el_ex] ])/1000 -> 0 | BB18: =SUMIF(Form_Ventilation[ [BatID]:[BatID] ],BC$6,Form_Ventilation[ [Conso_el_pr_et1]:[Conso_el_pr_et1] ])/1000 -> 0 | BC18: =SUMIF(Form_Ventilation[ [BatID]:[BatID] ],BC$6,Form_Ventilation[ [Conso_el_pr_et2]:[Conso_el_pr_et2] ])/1000 -> 0 | BD18: =SUMIF(Form_Ventilation[ [BatID]:[BatID] ],BD$6,Form_Ventilation[ [Conso_el_pr_et3]:[Conso_el_pr_et3] ])/1000 -> 0 | BE18: =SUMIF(Form_Ventilation[ [BatID]:[BatID] ],BE$6,Form_Ventilation[ [Conso_el_MTD]:[Conso_el_MTD] ])/1000 -> 0 | BG18: =SUMIF(Form_Ventilation[ [BatID]:[BatID] ],BG$6,Form_Ventilation[ [Conso_el_ex]:[Conso_el_ex] ])/1000 -> 0 | BH18: =SUMIF(Form_Ventilation[ [BatID]:[BatID] ],BI$6,Form_Ventilation[ [Conso_el_pr_et1]:[Conso_el_pr_et1] ])/1000 -> 0 | BI18: =SUMIF(Form_Ventilation[ [BatID]:[BatID] ],BI$6,Form_Ventilation[ [Conso_el_pr_et2]:[Conso_el_pr_et2] ])/1000 -> 0 | BJ18: =SUMIF(Form_Ventilation[ [BatID]:[BatID] ],BJ$6,Form_Ventilation[ [Conso_el_pr_et3]:[Conso_el_pr_et3] ])/1000 -> 0 | BK18: =SUMIF(Form_Ventilation[ [BatID]:[BatID] ],BK$6,Form_Ventilation[ [Conso_el_MTD]:[Conso_el_MTD] ])/1000 -> 0 | BM18: =SUMIF(Form_Ventilation[ [BatID]:[BatID] ],BM$6,Form_Ventilation[ [Conso_el_ex]:[Conso_el_ex] ])/1000 -> 0 | BN18: =SUMIF(Form_Ventilation[ [BatID]:[BatID] ],BO$6,Form_Ventilation[ [Conso_el_pr_et1]:[Conso_el_pr_et1] ])/1000 -> 0 | BO18: =SUMIF(Form_Ventilation[ [BatID]:[BatID] ],BO$6,Form_Ventilation[ [Conso_el_pr_et2]:[Conso_el_pr_et2] ])/1000 -> 0 | BP18: =SUMIF(Form_Ventilation[ [BatID]:[BatID] ],BP$6,Form_Ventilation[ [Conso_el_pr_et3]:[Conso_el_pr_et3] ])/1000 -> 0 | BQ18: =SUMIF(Form_Ventilation[ [BatID]:[BatID] ],BQ$6,Form_Ventilation[ [Conso_el_MTD]:[Conso_el_MTD] ])/1000 -> 0 | BS18: =SUMIF(Form_Ventilation[ [BatID]:[BatID] ],BS$6,Form_Ventilation[ [Conso_el_ex]:[Conso_el_ex] ])/1000 -> 0 | BT18: =SUMIF(Form_Ventilation[ [BatID]:[BatID] ],BU$6,Form_Ventilation[ [Conso_el_pr_et1]:[Conso_el_pr_et1] ])/1000 -> 0 | BU18: =SUMIF(Form_Ventilation[ [BatID]:[BatID] ],BU$6,Form_Ventilation[ [Conso_el_pr_et2]:[Conso_el_pr_et2] ])/1000 -> 0 | BV18: =SUMIF(Form_Ventilation[ [BatID]:[BatID] ],BV$6,Form_Ventilation[ [Conso_el_pr_et3]:[Conso_el_pr_et3] ])/1000 -> 0 | BW18: =SUMIF(Form_Ventilation[ [BatID]:[BatID] ],BW$6,Form_Ventilation[ [Conso_el_MTD]:[Conso_el_MTD] ])/1000 -> 0
C19: 6.AUX-VEN | F19: ="Autres usages - "&INDEX(Liste_Usages_Description,MATCH(C19,Liste_Usages,0)) -> Autres usages - Ventilateurs | G19: =SUMIFS($O19:$BX19,$O$7:$BX$7,G$7) -> 0 | H19: =SUMIFS($O19:$BX19,$O$7:$BX$7,H$7) -> 0 | I19: =SUMIFS($O19:$BX19,$O$7:$BX$7,I$7) -> 0 | J19: =SUMIFS($O19:$BX19,$O$7:$BX$7,J$7) -> 0 | K19: =SUMIFS($O19:$BX19,$O$7:$BX$7,K$7) -> 0 | Q19: =SUMIFS(Form_Autres_Usages[[Conso_ex]:[Conso_ex]],Form_Autres_Usages[[BatID]:[BatID]],Q$6,Form_Autres_Usages[[Usage]:[Usage]],$C19)/1000 -> 0 | R19: =SUMIFS(Form_Autres_Usages[[Conso_pr_et1]:[Conso_pr_et1]],Form_Autres_Usages[[BatID]:[BatID]],R$6,Form_Autres_Usages[[Usage]:[Usage]],$C19)/1000 -> 0 | S19: =SUMIFS(Form_Autres_Usages[[Conso_pr_et2]:[Conso_pr_et2]],Form_Autres_Usages[[BatID]:[BatID]],S$6,Form_Autres_Usages[[Usage]:[Usage]],$C19)/1000 -> 0 | T19: =SUMIFS(Form_Autres_Usages[[Conso_pr_et3]:[Conso_pr_et3]],Form_Autres_Usages[[BatID]:[BatID]],T$6,Form_Autres_Usages[[Usage]:[Usage]],$C19)/1000 -> 0 | U19: =T19 -> 0 | W19: =SUMIFS(Form_Autres_Usages[[Conso_ex]:[Conso_ex]],Form_Autres_Usages[[BatID]:[BatID]],W$6,Form_Autres_Usages[[Usage]:[Usage]],$C19)/1000 -> 0 | X19: =SUMIFS(Form_Autres_Usages[[Conso_pr_et1]:[Conso_pr_et1]],Form_Autres_Usages[[BatID]:[BatID]],X$6,Form_Autres_Usages[[Usage]:[Usage]],$C19)/1000 -> 0 | Y19: =SUMIFS(Form_Autres_Usages[[Conso_pr_et2]:[Conso_pr_et2]],Form_Autres_Usages[[BatID]:[BatID]],Y$6,Form_Autres_Usages[[Usage]:[Usage]],$C19)/1000 -> 0 | Z19: =SUMIFS(Form_Autres_Usages[[Conso_pr_et3]:[Conso_pr_et3]],Form_Autres_Usages[[BatID]:[BatID]],Z$6,Form_Autres_Usages[[Usage]:[Usage]],$C19)/1000 -> 0 | AA19: =Z19 -> 0 | AC19: =SUMIFS(Form_Autres_Usages[[Conso_ex]:[Conso_ex]],Form_Autres_Usages[[BatID]:[BatID]],AC$6,Form_Autres_Usages[[Usage]:[Usage]],$C19)/1000 -> 0 | AD19: =SUMIFS(Form_Autres_Usages[[Conso_pr_et1]:[Conso_pr_et1]],Form_Autres_Usages[[BatID]:[BatID]],AD$6,Form_Autres_Usages[[Usage]:[Usage]],$C19)/1000 -> 0 | AE19: =SUMIFS(Form_Autres_Usages[[Conso_pr_et2]:[Conso_pr_et2]],Form_Autres_Usages[[BatID]:[BatID]],AE$6,Form_Autres_Usages[[Usage]:[Usage]],$C19)/1000 -> 0 | AF19: =SUMIFS(Form_Autres_Usages[[Conso_pr_et3]:[Conso_pr_et3]],Form_Autres_Usages[[BatID]:[BatID]],AF$6,Form_Autres_Usages[[Usage]:[Usage]],$C19)/1000 -> 0 | AG19: =AF19 -> 0 | AI19: =SUMIFS(Form_Autres_Usages[[Conso_ex]:[Conso_ex]],Form_Autres_Usages[[BatID]:[BatID]],AI$6,Form_Autres_Usages[[Usage]:[Usage]],$C19)/1000 -> 0 | AJ19: =SUMIFS(Form_Autres_Usages[[Conso_pr_et1]:[Conso_pr_et1]],Form_Autres_Usages[[BatID]:[BatID]],AJ$6,Form_Autres_Usages[[Usage]:[Usage]],$C19)/1000 -> 0 | AK19: =SUMIFS(Form_Autres_Usages[[Conso_pr_et2]:[Conso_pr_et2]],Form_Autres_Usages[[BatID]:[BatID]],AK$6,Form_Autres_Usages[[Usage]:[Usage]],$C19)/1000 -> 0 | AL19: =SUMIFS(Form_Autres_Usages[[Conso_pr_et3]:[Conso_pr_et3]],Form_Autres_Usages[[BatID]:[BatID]],AL$6,Form_Autres_Usages[[Usage]:[Usage]],$C19)/1000 -> 0 | AM19: =AL19 -> 0 | AO19: =SUMIFS(Form_Autres_Usages[[Conso_ex]:[Conso_ex]],Form_Autres_Usages[[BatID]:[BatID]],AO$6,Form_Autres_Usages[[Usage]:[Usage]],$C19)/1000 -> 0 | AP19: =SUMIFS(Form_Autres_Usages[[Conso_pr_et1]:[Conso_pr_et1]],Form_Autres_Usages[[BatID]:[BatID]],AP$6,Form_Autres_Usages[[Usage]:[Usage]],$C19)/1000 -> 0 | AQ19: =SUMIFS(Form_Autres_Usages[[Conso_pr_et2]:[Conso_pr_et2]],Form_Autres_Usages[[BatID]:[BatID]],AQ$6,Form_Autres_Usages[[Usage]:[Usage]],$C19)/1000 -> 0 | AR19: =SUMIFS(Form_Autres_Usages[[Conso_pr_et3]:[Conso_pr_et3]],Form_Autres_Usages[[BatID]:[BatID]],AR$6,Form_Autres_Usages[[Usage]:[Usage]],$C19)/1000 -> 0 | AS19: =AR19 -> 0 | AU19: =SUMIFS(Form_Autres_Usages[[Conso_ex]:[Conso_ex]],Form_Autres_Usages[[BatID]:[BatID]],AU$6,Form_Autres_Usages[[Usage]:[Usage]],$C19)/1000 -> 0 | AV19: =SUMIFS(Form_Autres_Usages[[Conso_pr_et1]:[Conso_pr_et1]],Form_Autres_Usages[[BatID]:[BatID]],AV$6,Form_Autres_Usages[[Usage]:[Usage]],$C19)/1000 -> 0 | AW19: =SUMIFS(Form_Autres_Usages[[Conso_pr_et2]:[Conso_pr_et2]],Form_Autres_Usages[[BatID]:[BatID]],AW$6,Form_Autres_Usages[[Usage]:[Usage]],$C19)/1000 -> 0 | AX19: =SUMIFS(Form_Autres_Usages[[Conso_pr_et3]:[Conso_pr_et3]],Form_Autres_Usages[[BatID]:[BatID]],AX$6,Form_Autres_Usages[[Usage]:[Usage]],$C19)/1000 -> 0 | AY19: =AX19 -> 0 | BA19: =SUMIFS(Form_Autres_Usages[[Conso_ex]:[Conso_ex]],Form_Autres_Usages[[BatID]:[BatID]],BA$6,Form_Autres_Usages[[Usage]:[Usage]],$C19)/1000 -> 0 | BB19: =SUMIFS(Form_Autres_Usages[[Conso_pr_et1]:[Conso_pr_et1]],Form_Autres_Usages[[BatID]:[BatID]],BB$6,Form_Autres_Usages[[Usage]:[Usage]],$C19)/1000 -> 0 | BC19: =SUMIFS(Form_Autres_Usages[[Conso_pr_et2]:[Conso_pr_et2]],Form_Autres_Usages[[BatID]:[BatID]],BC$6,Form_Autres_Usages[[Usage]:[Usage]],$C19)/1000 -> 0 | BD19: =SUMIFS(Form_Autres_Usages[[Conso_pr_et3]:[Conso_pr_et3]],Form_Autres_Usages[[BatID]:[BatID]],BD$6,Form_Autres_Usages[[Usage]:[Usage]],$C19)/1000 -> 0 | BE19: =BD19 -> 0 | BG19: =SUMIFS(Form_Autres_Usages[[Conso_ex]:[Conso_ex]],Form_Autres_Usages[[BatID]:[BatID]],BG$6,Form_Autres_Usages[[Usage]:[Usage]],$C19)/1000 -> 0 | BH19: =SUMIFS(Form_Autres_Usages[[Conso_pr_et1]:[Conso_pr_et1]],Form_Autres_Usages[[BatID]:[BatID]],BH$6,Form_Autres_Usages[[Usage]:[Usage]],$C19)/1000 -> 0 | BI19: =SUMIFS(Form_Autres_Usages[[Conso_pr_et2]:[Conso_pr_et2]],Form_Autres_Usages[[BatID]:[BatID]],BI$6,Form_Autres_Usages[[Usage]:[Usage]],$C19)/1000 -> 0 | BJ19: =SUMIFS(Form_Autres_Usages[[Conso_pr_et3]:[Conso_pr_et3]],Form_Autres_Usages[[BatID]:[BatID]],BJ$6,Form_Autres_Usages[[Usage]:[Usage]],$C19)/1000 -> 0 | BK19: =BJ19 -> 0 | BM19: =SUMIFS(Form_Autres_Usages[[Conso_ex]:[Conso_ex]],Form_Autres_Usages[[BatID]:[BatID]],BM$6,Form_Autres_Usages[[Usage]:[Usage]],$C19)/1000 -> 0 | BN19: =SUMIFS(Form_Autres_Usages[[Conso_pr_et1]:[Conso_pr_et1]],Form_Autres_Usages[[BatID]:[BatID]],BN$6,Form_Autres_Usages[[Usage]:[Usage]],$C19)/1000 -> 0 | BO19: =SUMIFS(Form_Autres_Usages[[Conso_pr_et2]:[Conso_pr_et2]],Form_Autres_Usages[[BatID]:[BatID]],BO$6,Form_Autres_Usages[[Usage]:[Usage]],$C19)/1000 -> 0 | BP19: =SUMIFS(Form_Autres_Usages[[Conso_pr_et3]:[Conso_pr_et3]],Form_Autres_Usages[[BatID]:[BatID]],BP$6,Form_Autres_Usages[[Usage]:[Usage]],$C19)/1000 -> 0 | BQ19: =BP19 -> 0 | BS19: =SUMIFS(Form_Autres_Usages[[Conso_ex]:[Conso_ex]],Form_Autres_Usages[[BatID]:[BatID]],BS$6,Form_Autres_Usages[[Usage]:[Usage]],$C19)/1000 -> 0 | BT19: =SUMIFS(Form_Autres_Usages[[Conso_pr_et1]:[Conso_pr_et1]],Form_Autres_Usages[[BatID]:[BatID]],BT$6,Form_Autres_Usages[[Usage]:[Usage]],$C19)/1000 -> 0 | BU19: =SUMIFS(Form_Autres_Usages[[Conso_pr_et2]:[Conso_pr_et2]],Form_Autres_Usages[[BatID]:[BatID]],BU$6,Form_Autres_Usages[[Usage]:[Usage]],$C19)/1000 -> 0 | BV19: =SUMIFS(Form_Autres_Usages[[Conso_pr_et3]:[Conso_pr_et3]],Form_Autres_Usages[[BatID]:[BatID]],BV$6,Form_Autres_Usages[[Usage]:[Usage]],$C19)/1000 -> 0 | BW19: =BV19 -> 0
C20: 6.AUX-CHA | F20: Autres usages - Auxiliaries chauffage | G20: =SUMIFS($O20:$BX20,$O$7:$BX$7,G$7) -> 0 | H20: =SUMIFS($O20:$BX20,$O$7:$BX$7,H$7) -> 0 | I20: =SUMIFS($O20:$BX20,$O$7:$BX$7,I$7) -> 0 | J20: =SUMIFS($O20:$BX20,$O$7:$BX$7,J$7) -> 0 | K20: =SUMIFS($O20:$BX20,$O$7:$BX$7,K$7) -> 0 | Q20: =SUMIFS(Form_Autres_Usages[[Conso_ex]:[Conso_ex]],Form_Autres_Usages[[BatID]:[BatID]],Q$6,Form_Autres_Usages[[Usage]:[Usage]],$C20)/1000 -> 0 | R20: =SUMIFS(Form_Autres_Usages[[Conso_pr_et1]:[Conso_pr_et1]],Form_Autres_Usages[[BatID]:[BatID]],R$6,Form_Autres_Usages[[Usage]:[Usage]],$C20)/1000 -> 0 | S20: =SUMIFS(Form_Autres_Usages[[Conso_pr_et2]:[Conso_pr_et2]],Form_Autres_Usages[[BatID]:[BatID]],S$6,Form_Autres_Usages[[Usage]:[Usage]],$C20)/1000 -> 0 | T20: =SUMIFS(Form_Autres_Usages[[Conso_pr_et3]:[Conso_pr_et3]],Form_Autres_Usages[[BatID]:[BatID]],T$6,Form_Autres_Usages[[Usage]:[Usage]],$C20)/1000 -> 0 | U20: =T20 -> 0 | W20: =SUMIFS(Form_Autres_Usages[[Conso_ex]:[Conso_ex]],Form_Autres_Usages[[BatID]:[BatID]],W$6,Form_Autres_Usages[[Usage]:[Usage]],$C20)/1000 -> 0 | X20: =SUMIFS(Form_Autres_Usages[[Conso_pr_et1]:[Conso_pr_et1]],Form_Autres_Usages[[BatID]:[BatID]],X$6,Form_Autres_Usages[[Usage]:[Usage]],$C20)/1000 -> 0 | Y20: =SUMIFS(Form_Autres_Usages[[Conso_pr_et2]:[Conso_pr_et2]],Form_Autres_Usages[[BatID]:[BatID]],Y$6,Form_Autres_Usages[[Usage]:[Usage]],$C20)/1000 -> 0 | Z20: =SUMIFS(Form_Autres_Usages[[Conso_pr_et3]:[Conso_pr_et3]],Form_Autres_Usages[[BatID]:[BatID]],Z$6,Form_Autres_Usages[[Usage]:[Usage]],$C20)/1000 -> 0 | AA20: =Z20 -> 0 | AC20: =SUMIFS(Form_Autres_Usages[[Conso_ex]:[Conso_ex]],Form_Autres_Usages[[BatID]:[BatID]],AC$6,Form_Autres_Usages[[Usage]:[Usage]],$C20)/1000 -> 0 | AD20: =SUMIFS(Form_Autres_Usages[[Conso_pr_et1]:[Conso_pr_et1]],Form_Autres_Usages[[BatID]:[BatID]],AD$6,Form_Autres_Usages[[Usage]:[Usage]],$C20)/1000 -> 0 | AE20: =SUMIFS(Form_Autres_Usages[[Conso_pr_et2]:[Conso_pr_et2]],Form_Autres_Usages[[BatID]:[BatID]],AE$6,Form_Autres_Usages[[Usage]:[Usage]],$C20)/1000 -> 0 | AF20: =SUMIFS(Form_Autres_Usages[[Conso_pr_et3]:[Conso_pr_et3]],Form_Autres_Usages[[BatID]:[BatID]],AF$6,Form_Autres_Usages[[Usage]:[Usage]],$C20)/1000 -> 0 | AG20: =AF20 -> 0 | AI20: =SUMIFS(Form_Autres_Usages[[Conso_ex]:[Conso_ex]],Form_Autres_Usages[[BatID]:[BatID]],AI$6,Form_Autres_Usages[[Usage]:[Usage]],$C20)/1000 -> 0 | AJ20: =SUMIFS(Form_Autres_Usages[[Conso_pr_et1]:[Conso_pr_et1]],Form_Autres_Usages[[BatID]:[BatID]],AJ$6,Form_Autres_Usages[[Usage]:[Usage]],$C20)/1000 -> 0 | AK20: =SUMIFS(Form_Autres_Usages[[Conso_pr_et2]:[Conso_pr_et2]],Form_Autres_Usages[[BatID]:[BatID]],AK$6,Form_Autres_Usages[[Usage]:[Usage]],$C20)/1000 -> 0 | AL20: =SUMIFS(Form_Autres_Usages[[Conso_pr_et3]:[Conso_pr_et3]],Form_Autres_Usages[[BatID]:[BatID]],AL$6,Form_Autres_Usages[[Usage]:[Usage]],$C20)/1000 -> 0 | AM20: =AL20 -> 0 | AO20: =SUMIFS(Form_Autres_Usages[[Conso_ex]:[Conso_ex]],Form_Autres_Usages[[BatID]:[BatID]],AO$6,Form_Autres_Usages[[Usage]:[Usage]],$C20)/1000 -> 0 | AP20: =SUMIFS(Form_Autres_Usages[[Conso_pr_et1]:[Conso_pr_et1]],Form_Autres_Usages[[BatID]:[BatID]],AP$6,Form_Autres_Usages[[Usage]:[Usage]],$C20)/1000 -> 0 | AQ20: =SUMIFS(Form_Autres_Usages[[Conso_pr_et2]:[Conso_pr_et2]],Form_Autres_Usages[[BatID]:[BatID]],AQ$6,Form_Autres_Usages[[Usage]:[Usage]],$C20)/1000 -> 0 | AR20: =SUMIFS(Form_Autres_Usages[[Conso_pr_et3]:[Conso_pr_et3]],Form_Autres_Usages[[BatID]:[BatID]],AR$6,Form_Autres_Usages[[Usage]:[Usage]],$C20)/1000 -> 0 | AS20: =AR20 -> 0 | AU20: =SUMIFS(Form_Autres_Usages[[Conso_ex]:[Conso_ex]],Form_Autres_Usages[[BatID]:[BatID]],AU$6,Form_Autres_Usages[[Usage]:[Usage]],$C20)/1000 -> 0 | AV20: =SUMIFS(Form_Autres_Usages[[Conso_pr_et1]:[Conso_pr_et1]],Form_Autres_Usages[[BatID]:[BatID]],AV$6,Form_Autres_Usages[[Usage]:[Usage]],$C20)/1000 -> 0 | AW20: =SUMIFS(Form_Autres_Usages[[Conso_pr_et2]:[Conso_pr_et2]],Form_Autres_Usages[[BatID]:[BatID]],AW$6,Form_Autres_Usages[[Usage]:[Usage]],$C20)/1000 -> 0 | AX20: =SUMIFS(Form_Autres_Usages[[Conso_pr_et3]:[Conso_pr_et3]],Form_Autres_Usages[[BatID]:[BatID]],AX$6,Form_Autres_Usages[[Usage]:[Usage]],$C20)/1000 -> 0 | AY20: =AX20 -> 0 | BA20: =SUMIFS(Form_Autres_Usages[[Conso_ex]:[Conso_ex]],Form_Autres_Usages[[BatID]:[BatID]],BA$6,Form_Autres_Usages[[Usage]:[Usage]],$C20)/1000 -> 0 | BB20: =SUMIFS(Form_Autres_Usages[[Conso_pr_et1]:[Conso_pr_et1]],Form_Autres_Usages[[BatID]:[BatID]],BB$6,Form_Autres_Usages[[Usage]:[Usage]],$C20)/1000 -> 0 | BC20: =SUMIFS(Form_Autres_Usages[[Conso_pr_et2]:[Conso_pr_et2]],Form_Autres_Usages[[BatID]:[BatID]],BC$6,Form_Autres_Usages[[Usage]:[Usage]],$C20)/1000 -> 0 | BD20: =SUMIFS(Form_Autres_Usages[[Conso_pr_et3]:[Conso_pr_et3]],Form_Autres_Usages[[BatID]:[BatID]],BD$6,Form_Autres_Usages[[Usage]:[Usage]],$C20)/1000 -> 0 | BE20: =BD20 -> 0 | BG20: =SUMIFS(Form_Autres_Usages[[Conso_ex]:[Conso_ex]],Form_Autres_Usages[[BatID]:[BatID]],BG$6,Form_Autres_Usages[[Usage]:[Usage]],$C20)/1000 -> 0 | BH20: =SUMIFS(Form_Autres_Usages[[Conso_pr_et1]:[Conso_pr_et1]],Form_Autres_Usages[[BatID]:[BatID]],BH$6,Form_Autres_Usages[[Usage]:[Usage]],$C20)/1000 -> 0 | BI20: =SUMIFS(Form_Autres_Usages[[Conso_pr_et2]:[Conso_pr_et2]],Form_Autres_Usages[[BatID]:[BatID]],BI$6,Form_Autres_Usages[[Usage]:[Usage]],$C20)/1000 -> 0 | BJ20: =SUMIFS(Form_Autres_Usages[[Conso_pr_et3]:[Conso_pr_et3]],Form_Autres_Usages[[BatID]:[BatID]],BJ$6,Form_Autres_Usages[[Usage]:[Usage]],$C20)/1000 -> 0 | BK20: =BJ20 -> 0 | BM20: =SUMIFS(Form_Autres_Usages[[Conso_ex]:[Conso_ex]],Form_Autres_Usages[[BatID]:[BatID]],BM$6,Form_Autres_Usages[[Usage]:[Usage]],$C20)/1000 -> 0 | BN20: =SUMIFS(Form_Autres_Usages[[Conso_pr_et1]:[Conso_pr_et1]],Form_Autres_Usages[[BatID]:[BatID]],BN$6,Form_Autres_Usages[[Usage]:[Usage]],$C20)/1000 -> 0 | BO20: =SUMIFS(Form_Autres_Usages[[Conso_pr_et2]:[Conso_pr_et2]],Form_Autres_Usages[[BatID]:[BatID]],BO$6,Form_Autres_Usages[[Usage]:[Usage]],$C20)/1000 -> 0 | BP20: =SUMIFS(Form_Autres_Usages[[Conso_pr_et3]:[Conso_pr_et3]],Form_Autres_Usages[[BatID]:[BatID]],BP$6,Form_Autres_Usages[[Usage]:[Usage]],$C20)/1000 -> 0 | BQ20: =BP20 -> 0 | BS20: =SUMIFS(Form_Autres_Usages[[Conso_ex]:[Conso_ex]],Form_Autres_Usages[[BatID]:[BatID]],BS$6,Form_Autres_Usages[[Usage]:[Usage]],$C20)/1000 -> 0 | BT20: =SUMIFS(Form_Autres_Usages[[Conso_pr_et1]:[Conso_pr_et1]],Form_Autres_Usages[[BatID]:[BatID]],BT$6,Form_Autres_Usages[[Usage]:[Usage]],$C20)/1000 -> 0 | BU20: =SUMIFS(Form_Autres_Usages[[Conso_pr_et2]:[Conso_pr_et2]],Form_Autres_Usages[[BatID]:[BatID]],BU$6,Form_Autres_Usages[[Usage]:[Usage]],$C20)/1000 -> 0 | BV20: =SUMIFS(Form_Autres_Usages[[Conso_pr_et3]:[Conso_pr_et3]],Form_Autres_Usages[[BatID]:[BatID]],BV$6,Form_Autres_Usages[[Usage]:[Usage]],$C20)/1000 -> 0 | BW20: =BV20 -> 0
C21: 6.AUX-ECS | F21: Autres usages - Auxiliaires ECS | G21: =SUMIFS($O21:$BX21,$O$7:$BX$7,G$7) -> 0 | H21: =SUMIFS($O21:$BX21,$O$7:$BX$7,H$7) -> 0 | I21: =SUMIFS($O21:$BX21,$O$7:$BX$7,I$7) -> 0 | J21: =SUMIFS($O21:$BX21,$O$7:$BX$7,J$7) -> 0 | K21: =SUMIFS($O21:$BX21,$O$7:$BX$7,K$7) -> 0 | Q21: =SUMIFS(Form_Autres_Usages[[Conso_ex]:[Conso_ex]],Form_Autres_Usages[[BatID]:[BatID]],Q$6,Form_Autres_Usages[[Usage]:[Usage]],$C21)/1000 -> 0 | R21: =SUMIFS(Form_Autres_Usages[[Conso_pr_et1]:[Conso_pr_et1]],Form_Autres_Usages[[BatID]:[BatID]],R$6,Form_Autres_Usages[[Usage]:[Usage]],$C21)/1000 -> 0 | S21: =SUMIFS(Form_Autres_Usages[[Conso_pr_et2]:[Conso_pr_et2]],Form_Autres_Usages[[BatID]:[BatID]],S$6,Form_Autres_Usages[[Usage]:[Usage]],$C21)/1000 -> 0 | T21: =SUMIFS(Form_Autres_Usages[[Conso_pr_et3]:[Conso_pr_et3]],Form_Autres_Usages[[BatID]:[BatID]],T$6,Form_Autres_Usages[[Usage]:[Usage]],$C21)/1000 -> 0 | U21: =T21 -> 0 | W21: =SUMIFS(Form_Autres_Usages[[Conso_ex]:[Conso_ex]],Form_Autres_Usages[[BatID]:[BatID]],W$6,Form_Autres_Usages[[Usage]:[Usage]],$C21)/1000 -> 0 | X21: =SUMIFS(Form_Autres_Usages[[Conso_pr_et1]:[Conso_pr_et1]],Form_Autres_Usages[[BatID]:[BatID]],X$6,Form_Autres_Usages[[Usage]:[Usage]],$C21)/1000 -> 0 | Y21: =SUMIFS(Form_Autres_Usages[[Conso_pr_et2]:[Conso_pr_et2]],Form_Autres_Usages[[BatID]:[BatID]],Y$6,Form_Autres_Usages[[Usage]:[Usage]],$C21)/1000 -> 0 | Z21: =SUMIFS(Form_Autres_Usages[[Conso_pr_et3]:[Conso_pr_et3]],Form_Autres_Usages[[BatID]:[BatID]],Z$6,Form_Autres_Usages[[Usage]:[Usage]],$C21)/1000 -> 0 | AA21: =Z21 -> 0 | AC21: =SUMIFS(Form_Autres_Usages[[Conso_ex]:[Conso_ex]],Form_Autres_Usages[[BatID]:[BatID]],AC$6,Form_Autres_Usages[[Usage]:[Usage]],$C21)/1000 -> 0 | AD21: =SUMIFS(Form_Autres_Usages[[Conso_pr_et1]:[Conso_pr_et1]],Form_Autres_Usages[[BatID]:[BatID]],AD$6,Form_Autres_Usages[[Usage]:[Usage]],$C21)/1000 -> 0 | AE21: =SUMIFS(Form_Autres_Usages[[Conso_pr_et2]:[Conso_pr_et2]],Form_Autres_Usages[[BatID]:[BatID]],AE$6,Form_Autres_Usages[[Usage]:[Usage]],$C21)/1000 -> 0 | AF21: =SUMIFS(Form_Autres_Usages[[Conso_pr_et3]:[Conso_pr_et3]],Form_Autres_Usages[[BatID]:[BatID]],AF$6,Form_Autres_Usages[[Usage]:[Usage]],$C21)/1000 -> 0 | AG21: =AF21 -> 0 | AI21: =SUMIFS(Form_Autres_Usages[[Conso_ex]:[Conso_ex]],Form_Autres_Usages[[BatID]:[BatID]],AI$6,Form_Autres_Usages[[Usage]:[Usage]],$C21)/1000 -> 0 | AJ21: =SUMIFS(Form_Autres_Usages[[Conso_pr_et1]:[Conso_pr_et1]],Form_Autres_Usages[[BatID]:[BatID]],AJ$6,Form_Autres_Usages[[Usage]:[Usage]],$C21)/1000 -> 0 | AK21: =SUMIFS(Form_Autres_Usages[[Conso_pr_et2]:[Conso_pr_et2]],Form_Autres_Usages[[BatID]:[BatID]],AK$6,Form_Autres_Usages[[Usage]:[Usage]],$C21)/1000 -> 0 | AL21: =SUMIFS(Form_Autres_Usages[[Conso_pr_et3]:[Conso_pr_et3]],Form_Autres_Usages[[BatID]:[BatID]],AL$6,Form_Autres_Usages[[Usage]:[Usage]],$C21)/1000 -> 0 | AM21: =AL21 -> 0 | AO21: =SUMIFS(Form_Autres_Usages[[Conso_ex]:[Conso_ex]],Form_Autres_Usages[[BatID]:[BatID]],AO$6,Form_Autres_Usages[[Usage]:[Usage]],$C21)/1000 -> 0 | AP21: =SUMIFS(Form_Autres_Usages[[Conso_pr_et1]:[Conso_pr_et1]],Form_Autres_Usages[[BatID]:[BatID]],AP$6,Form_Autres_Usages[[Usage]:[Usage]],$C21)/1000 -> 0 | AQ21: =SUMIFS(Form_Autres_Usages[[Conso_pr_et2]:[Conso_pr_et2]],Form_Autres_Usages[[BatID]:[BatID]],AQ$6,Form_Autres_Usages[[Usage]:[Usage]],$C21)/1000 -> 0 | AR21: =SUMIFS(Form_Autres_Usages[[Conso_pr_et3]:[Conso_pr_et3]],Form_Autres_Usages[[BatID]:[BatID]],AR$6,Form_Autres_Usages[[Usage]:[Usage]],$C21)/1000 -> 0 | AS21: =AR21 -> 0 | AU21: =SUMIFS(Form_Autres_Usages[[Conso_ex]:[Conso_ex]],Form_Autres_Usages[[BatID]:[BatID]],AU$6,Form_Autres_Usages[[Usage]:[Usage]],$C21)/1000 -> 0 | AV21: =SUMIFS(Form_Autres_Usages[[Conso_pr_et1]:[Conso_pr_et1]],Form_Autres_Usages[[BatID]:[BatID]],AV$6,Form_Autres_Usages[[Usage]:[Usage]],$C21)/1000 -> 0 | AW21: =SUMIFS(Form_Autres_Usages[[Conso_pr_et2]:[Conso_pr_et2]],Form_Autres_Usages[[BatID]:[BatID]],AW$6,Form_Autres_Usages[[Usage]:[Usage]],$C21)/1000 -> 0 | AX21: =SUMIFS(Form_Autres_Usages[[Conso_pr_et3]:[Conso_pr_et3]],Form_Autres_Usages[[BatID]:[BatID]],AX$6,Form_Autres_Usages[[Usage]:[Usage]],$C21)/1000 -> 0 | AY21: =AX21 -> 0 | BA21: =SUMIFS(Form_Autres_Usages[[Conso_ex]:[Conso_ex]],Form_Autres_Usages[[BatID]:[BatID]],BA$6,Form_Autres_Usages[[Usage]:[Usage]],$C21)/1000 -> 0 | BB21: =SUMIFS(Form_Autres_Usages[[Conso_pr_et1]:[Conso_pr_et1]],Form_Autres_Usages[[BatID]:[BatID]],BB$6,Form_Autres_Usages[[Usage]:[Usage]],$C21)/1000 -> 0 | BC21: =SUMIFS(Form_Autres_Usages[[Conso_pr_et2]:[Conso_pr_et2]],Form_Autres_Usages[[BatID]:[BatID]],BC$6,Form_Autres_Usages[[Usage]:[Usage]],$C21)/1000 -> 0 | BD21: =SUMIFS(Form_Autres_Usages[[Conso_pr_et3]:[Conso_pr_et3]],Form_Autres_Usages[[BatID]:[BatID]],BD$6,Form_Autres_Usages[[Usage]:[Usage]],$C21)/1000 -> 0 | BE21: =BD21 -> 0 | BG21: =SUMIFS(Form_Autres_Usages[[Conso_ex]:[Conso_ex]],Form_Autres_Usages[[BatID]:[BatID]],BG$6,Form_Autres_Usages[[Usage]:[Usage]],$C21)/1000 -> 0 | BH21: =SUMIFS(Form_Autres_Usages[[Conso_pr_et1]:[Conso_pr_et1]],Form_Autres_Usages[[BatID]:[BatID]],BH$6,Form_Autres_Usages[[Usage]:[Usage]],$C21)/1000 -> 0 | BI21: =SUMIFS(Form_Autres_Usages[[Conso_pr_et2]:[Conso_pr_et2]],Form_Autres_Usages[[BatID]:[BatID]],BI$6,Form_Autres_Usages[[Usage]:[Usage]],$C21)/1000 -> 0 | BJ21: =SUMIFS(Form_Autres_Usages[[Conso_pr_et3]:[Conso_pr_et3]],Form_Autres_Usages[[BatID]:[BatID]],BJ$6,Form_Autres_Usages[[Usage]:[Usage]],$C21)/1000 -> 0 | BK21: =BJ21 -> 0 | BM21: =SUMIFS(Form_Autres_Usages[[Conso_ex]:[Conso_ex]],Form_Autres_Usages[[BatID]:[BatID]],BM$6,Form_Autres_Usages[[Usage]:[Usage]],$C21)/1000 -> 0 | BN21: =SUMIFS(Form_Autres_Usages[[Conso_pr_et1]:[Conso_pr_et1]],Form_Autres_Usages[[BatID]:[BatID]],BN$6,Form_Autres_Usages[[Usage]:[Usage]],$C21)/1000 -> 0 | BO21: =SUMIFS(Form_Autres_Usages[[Conso_pr_et2]:[Conso_pr_et2]],Form_Autres_Usages[[BatID]:[BatID]],BO$6,Form_Autres_Usages[[Usage]:[Usage]],$C21)/1000 -> 0 | BP21: =SUMIFS(Form_Autres_Usages[[Conso_pr_et3]:[Conso_pr_et3]],Form_Autres_Usages[[BatID]:[BatID]],BP$6,Form_Autres_Usages[[Usage]:[Usage]],$C21)/1000 -> 0 | BQ21: =BP21 -> 0 | BS21: =SUMIFS(Form_Autres_Usages[[Conso_ex]:[Conso_ex]],Form_Autres_Usages[[BatID]:[BatID]],BS$6,Form_Autres_Usages[[Usage]:[Usage]],$C21)/1000 -> 0 | BT21: =SUMIFS(Form_Autres_Usages[[Conso_pr_et1]:[Conso_pr_et1]],Form_Autres_Usages[[BatID]:[BatID]],BT$6,Form_Autres_Usages[[Usage]:[Usage]],$C21)/1000 -> 0 | BU21: =SUMIFS(Form_Autres_Usages[[Conso_pr_et2]:[Conso_pr_et2]],Form_Autres_Usages[[BatID]:[BatID]],BU$6,Form_Autres_Usages[[Usage]:[Usage]],$C21)/1000 -> 0 | BV21: =SUMIFS(Form_Autres_Usages[[Conso_pr_et3]:[Conso_pr_et3]],Form_Autres_Usages[[BatID]:[BatID]],BV$6,Form_Autres_Usages[[Usage]:[Usage]],$C21)/1000 -> 0 | BW21: =BV21 -> 0
C22: 6.AUX-ECL | F22: Autres usages - Auxiliaires éclairage | G22: =SUMIFS($O22:$BX22,$O$7:$BX$7,G$7) -> 0 | H22: =SUMIFS($O22:$BX22,$O$7:$BX$7,H$7) -> 0 | I22: =SUMIFS($O22:$BX22,$O$7:$BX$7,I$7) -> 0 | J22: =SUMIFS($O22:$BX22,$O$7:$BX$7,J$7) -> 0 | K22: =SUMIFS($O22:$BX22,$O$7:$BX$7,K$7) -> 0 | Q22: =SUMIFS(Form_Autres_Usages[[Conso_ex]:[Conso_ex]],Form_Autres_Usages[[BatID]:[BatID]],Q$6,Form_Autres_Usages[[Usage]:[Usage]],$C22)/1000 -> 0 | R22: =SUMIFS(Form_Autres_Usages[[Conso_pr_et1]:[Conso_pr_et1]],Form_Autres_Usages[[BatID]:[BatID]],R$6,Form_Autres_Usages[[Usage]:[Usage]],$C22)/1000 -> 0 | S22: =SUMIFS(Form_Autres_Usages[[Conso_pr_et2]:[Conso_pr_et2]],Form_Autres_Usages[[BatID]:[BatID]],S$6,Form_Autres_Usages[[Usage]:[Usage]],$C22)/1000 -> 0 | T22: =SUMIFS(Form_Autres_Usages[[Conso_pr_et3]:[Conso_pr_et3]],Form_Autres_Usages[[BatID]:[BatID]],T$6,Form_Autres_Usages[[Usage]:[Usage]],$C22)/1000 -> 0 | U22: 0 | W22: =SUMIFS(Form_Autres_Usages[[Conso_ex]:[Conso_ex]],Form_Autres_Usages[[BatID]:[BatID]],W$6,Form_Autres_Usages[[Usage]:[Usage]],$C22)/1000 -> 0 | X22: =SUMIFS(Form_Autres_Usages[[Conso_pr_et1]:[Conso_pr_et1]],Form_Autres_Usages[[BatID]:[BatID]],X$6,Form_Autres_Usages[[Usage]:[Usage]],$C22)/1000 -> 0 | Y22: =SUMIFS(Form_Autres_Usages[[Conso_pr_et2]:[Conso_pr_et2]],Form_Autres_Usages[[BatID]:[BatID]],Y$6,Form_Autres_Usages[[Usage]:[Usage]],$C22)/1000 -> 0 | Z22: =SUMIFS(Form_Autres_Usages[[Conso_pr_et3]:[Conso_pr_et3]],Form_Autres_Usages[[BatID]:[BatID]],Z$6,Form_Autres_Usages[[Usage]:[Usage]],$C22)/1000 -> 0 | AA22: 0 | AC22: =SUMIFS(Form_Autres_Usages[[Conso_ex]:[Conso_ex]],Form_Autres_Usages[[BatID]:[BatID]],AC$6,Form_Autres_Usages[[Usage]:[Usage]],$C22)/1000 -> 0 | AD22: =SUMIFS(Form_Autres_Usages[[Conso_pr_et1]:[Conso_pr_et1]],Form_Autres_Usages[[BatID]:[BatID]],AD$6,Form_Autres_Usages[[Usage]:[Usage]],$C22)/1000 -> 0 | AE22: =SUMIFS(Form_Autres_Usages[[Conso_pr_et2]:[Conso_pr_et2]],Form_Autres_Usages[[BatID]:[BatID]],AE$6,Form_Autres_Usages[[Usage]:[Usage]],$C22)/1000 -> 0 | AF22: =SUMIFS(Form_Autres_Usages[[Conso_pr_et3]:[Conso_pr_et3]],Form_Autres_Usages[[BatID]:[BatID]],AF$6,Form_Autres_Usages[[Usage]:[Usage]],$C22)/1000 -> 0 | AG22: 0 | AI22: =SUMIFS(Form_Autres_Usages[[Conso_ex]:[Conso_ex]],Form_Autres_Usages[[BatID]:[BatID]],AI$6,Form_Autres_Usages[[Usage]:[Usage]],$C22)/1000 -> 0 | AJ22: =SUMIFS(Form_Autres_Usages[[Conso_pr_et1]:[Conso_pr_et1]],Form_Autres_Usages[[BatID]:[BatID]],AJ$6,Form_Autres_Usages[[Usage]:[Usage]],$C22)/1000 -> 0 | AK22: =SUMIFS(Form_Autres_Usages[[Conso_pr_et2]:[Conso_pr_et2]],Form_Autres_Usages[[BatID]:[BatID]],AK$6,Form_Autres_Usages[[Usage]:[Usage]],$C22)/1000 -> 0 | AL22: =SUMIFS(Form_Autres_Usages[[Conso_pr_et3]:[Conso_pr_et3]],Form_Autres_Usages[[BatID]:[BatID]],AL$6,Form_Autres_Usages[[Usage]:[Usage]],$C22)/1000 -> 0 | AM22: 0 | AO22: =SUMIFS(Form_Autres_Usages[[Conso_ex]:[Conso_ex]],Form_Autres_Usages[[BatID]:[BatID]],AO$6,Form_Autres_Usages[[Usage]:[Usage]],$C22)/1000 -> 0 | AP22: =SUMIFS(Form_Autres_Usages[[Conso_pr_et1]:[Conso_pr_et1]],Form_Autres_Usages[[BatID]:[BatID]],AP$6,Form_Autres_Usages[[Usage]:[Usage]],$C22)/1000 -> 0 | AQ22: =SUMIFS(Form_Autres_Usages[[Conso_pr_et2]:[Conso_pr_et2]],Form_Autres_Usages[[BatID]:[BatID]],AQ$6,Form_Autres_Usages[[Usage]:[Usage]],$C22)/1000 -> 0 | AR22: =SUMIFS(Form_Autres_Usages[[Conso_pr_et3]:[Conso_pr_et3]],Form_Autres_Usages[[BatID]:[BatID]],AR$6,Form_Autres_Usages[[Usage]:[Usage]],$C22)/1000 -> 0 | AS22: 0 | AU22: =SUMIFS(Form_Autres_Usages[[Conso_ex]:[Conso_ex]],Form_Autres_Usages[[BatID]:[BatID]],AU$6,Form_Autres_Usages[[Usage]:[Usage]],$C22)/1000 -> 0 | AV22: =SUMIFS(Form_Autres_Usages[[Conso_pr_et1]:[Conso_pr_et1]],Form_Autres_Usages[[BatID]:[BatID]],AV$6,Form_Autres_Usages[[Usage]:[Usage]],$C22)/1000 -> 0 | AW22: =SUMIFS(Form_Autres_Usages[[Conso_pr_et2]:[Conso_pr_et2]],Form_Autres_Usages[[BatID]:[BatID]],AW$6,Form_Autres_Usages[[Usage]:[Usage]],$C22)/1000 -> 0 | AX22: =SUMIFS(Form_Autres_Usages[[Conso_pr_et3]:[Conso_pr_et3]],Form_Autres_Usages[[BatID]:[BatID]],AX$6,Form_Autres_Usages[[Usage]:[Usage]],$C22)/1000 -> 0 | AY22: 0 | BA22: =SUMIFS(Form_Autres_Usages[[Conso_ex]:[Conso_ex]],Form_Autres_Usages[[BatID]:[BatID]],BA$6,Form_Autres_Usages[[Usage]:[Usage]],$C22)/1000 -> 0 | BB22: =SUMIFS(Form_Autres_Usages[[Conso_pr_et1]:[Conso_pr_et1]],Form_Autres_Usages[[BatID]:[BatID]],BB$6,Form_Autres_Usages[[Usage]:[Usage]],$C22)/1000 -> 0 | BC22: =SUMIFS(Form_Autres_Usages[[Conso_pr_et2]:[Conso_pr_et2]],Form_Autres_Usages[[BatID]:[BatID]],BC$6,Form_Autres_Usages[[Usage]:[Usage]],$C22)/1000 -> 0 | BD22: =SUMIFS(Form_Autres_Usages[[Conso_pr_et3]:[Conso_pr_et3]],Form_Autres_Usages[[BatID]:[BatID]],BD$6,Form_Autres_Usages[[Usage]:[Usage]],$C22)/1000 -> 0 | BE22: 0 | BG22: =SUMIFS(Form_Autres_Usages[[Conso_ex]:[Conso_ex]],Form_Autres_Usages[[BatID]:[BatID]],BG$6,Form_Autres_Usages[[Usage]:[Usage]],$C22)/1000 -> 0 | BH22: =SUMIFS(Form_Autres_Usages[[Conso_pr_et1]:[Conso_pr_et1]],Form_Autres_Usages[[BatID]:[BatID]],BH$6,Form_Autres_Usages[[Usage]:[Usage]],$C22)/1000 -> 0 | BI22: =SUMIFS(Form_Autres_Usages[[Conso_pr_et2]:[Conso_pr_et2]],Form_Autres_Usages[[BatID]:[BatID]],BI$6,Form_Autres_Usages[[Usage]:[Usage]],$C22)/1000 -> 0 | BJ22: =SUMIFS(Form_Autres_Usages[[Conso_pr_et3]:[Conso_pr_et3]],Form_Autres_Usages[[BatID]:[BatID]],BJ$6,Form_Autres_Usages[[Usage]:[Usage]],$C22)/1000 -> 0 | BK22: 0 | BM22: =SUMIFS(Form_Autres_Usages[[Conso_ex]:[Conso_ex]],Form_Autres_Usages[[BatID]:[BatID]],BM$6,Form_Autres_Usages[[Usage]:[Usage]],$C22)/1000 -> 0 | BN22: =SUMIFS(Form_Autres_Usages[[Conso_pr_et1]:[Conso_pr_et1]],Form_Autres_Usages[[BatID]:[BatID]],BN$6,Form_Autres_Usages[[Usage]:[Usage]],$C22)/1000 -> 0 | BO22: =SUMIFS(Form_Autres_Usages[[Conso_pr_et2]:[Conso_pr_et2]],Form_Autres_Usages[[BatID]:[BatID]],BO$6,Form_Autres_Usages[[Usage]:[Usage]],$C22)/1000 -> 0 | BP22: =SUMIFS(Form_Autres_Usages[[Conso_pr_et3]:[Conso_pr_et3]],Form_Autres_Usages[[BatID]:[BatID]],BP$6,Form_Autres_Usages[[Usage]:[Usage]],$C22)/1000 -> 0 | BQ22: 0 | BS22: =SUMIFS(Form_Autres_Usages[[Conso_ex]:[Conso_ex]],Form_Autres_Usages[[BatID]:[BatID]],BS$6,Form_Autres_Usages[[Usage]:[Usage]],$C22)/1000 -> 0 | BT22: =SUMIFS(Form_Autres_Usages[[Conso_pr_et1]:[Conso_pr_et1]],Form_Autres_Usages[[BatID]:[BatID]],BT$6,Form_Autres_Usages[[Usage]:[Usage]],$C22)/1000 -> 0 | BU22: =SUMIFS(Form_Autres_Usages[[Conso_pr_et2]:[Conso_pr_et2]],Form_Autres_Usages[[BatID]:[BatID]],BU$6,Form_Autres_Usages[[Usage]:[Usage]],$C22)/1000 -> 0 | BV22: =SUMIFS(Form_Autres_Usages[[Conso_pr_et3]:[Conso_pr_et3]],Form_Autres_Usages[[BatID]:[BatID]],BV$6,Form_Autres_Usages[[Usage]:[Usage]],$C22)/1000 -> 0 | BW22: 0
C23: 6.AUX-FRD | F23: Autres usages - Auxiliaires refroidissement | G23: =SUMIFS($O23:$BX23,$O$7:$BX$7,G$7) -> 0 | H23: =SUMIFS($O23:$BX23,$O$7:$BX$7,H$7) -> 0 | I23: =SUMIFS($O23:$BX23,$O$7:$BX$7,I$7) -> 0 | J23: =SUMIFS($O23:$BX23,$O$7:$BX$7,J$7) -> 0 | K23: =SUMIFS($O23:$BX23,$O$7:$BX$7,K$7) -> 0 | Q23: =SUMIFS(Form_Autres_Usages[[Conso_ex]:[Conso_ex]],Form_Autres_Usages[[BatID]:[BatID]],Q$6,Form_Autres_Usages[[Usage]:[Usage]],$C23)/1000 -> 0 | R23: =SUMIFS(Form_Autres_Usages[[Conso_pr_et1]:[Conso_pr_et1]],Form_Autres_Usages[[BatID]:[BatID]],R$6,Form_Autres_Usages[[Usage]:[Usage]],$C23)/1000 -> 0 | S23: =SUMIFS(Form_Autres_Usages[[Conso_pr_et2]:[Conso_pr_et2]],Form_Autres_Usages[[BatID]:[BatID]],S$6,Form_Autres_Usages[[Usage]:[Usage]],$C23)/1000 -> 0 | T23: =SUMIFS(Form_Autres_Usages[[Conso_pr_et3]:[Conso_pr_et3]],Form_Autres_Usages[[BatID]:[BatID]],T$6,Form_Autres_Usages[[Usage]:[Usage]],$C23)/1000 -> 0 | U23: 0 | W23: =SUMIFS(Form_Autres_Usages[[Conso_ex]:[Conso_ex]],Form_Autres_Usages[[BatID]:[BatID]],W$6,Form_Autres_Usages[[Usage]:[Usage]],$C23)/1000 -> 0 | X23: =SUMIFS(Form_Autres_Usages[[Conso_pr_et1]:[Conso_pr_et1]],Form_Autres_Usages[[BatID]:[BatID]],X$6,Form_Autres_Usages[[Usage]:[Usage]],$C23)/1000 -> 0 | Y23: =SUMIFS(Form_Autres_Usages[[Conso_pr_et2]:[Conso_pr_et2]],Form_Autres_Usages[[BatID]:[BatID]],Y$6,Form_Autres_Usages[[Usage]:[Usage]],$C23)/1000 -> 0 | Z23: =SUMIFS(Form_Autres_Usages[[Conso_pr_et3]:[Conso_pr_et3]],Form_Autres_Usages[[BatID]:[BatID]],Z$6,Form_Autres_Usages[[Usage]:[Usage]],$C23)/1000 -> 0 | AA23: 0 | AC23: =SUMIFS(Form_Autres_Usages[[Conso_ex]:[Conso_ex]],Form_Autres_Usages[[BatID]:[BatID]],AC$6,Form_Autres_Usages[[Usage]:[Usage]],$C23)/1000 -> 0 | AD23: =SUMIFS(Form_Autres_Usages[[Conso_pr_et1]:[Conso_pr_et1]],Form_Autres_Usages[[BatID]:[BatID]],AD$6,Form_Autres_Usages[[Usage]:[Usage]],$C23)/1000 -> 0 | AE23: =SUMIFS(Form_Autres_Usages[[Conso_pr_et2]:[Conso_pr_et2]],Form_Autres_Usages[[BatID]:[BatID]],AE$6,Form_Autres_Usages[[Usage]:[Usage]],$C23)/1000 -> 0 | AF23: =SUMIFS(Form_Autres_Usages[[Conso_pr_et3]:[Conso_pr_et3]],Form_Autres_Usages[[BatID]:[BatID]],AF$6,Form_Autres_Usages[[Usage]:[Usage]],$C23)/1000 -> 0 | AG23: 0 | AI23: =SUMIFS(Form_Autres_Usages[[Conso_ex]:[Conso_ex]],Form_Autres_Usages[[BatID]:[BatID]],AI$6,Form_Autres_Usages[[Usage]:[Usage]],$C23)/1000 -> 0 | AJ23: =SUMIFS(Form_Autres_Usages[[Conso_pr_et1]:[Conso_pr_et1]],Form_Autres_Usages[[BatID]:[BatID]],AJ$6,Form_Autres_Usages[[Usage]:[Usage]],$C23)/1000 -> 0 | AK23: =SUMIFS(Form_Autres_Usages[[Conso_pr_et2]:[Conso_pr_et2]],Form_Autres_Usages[[BatID]:[BatID]],AK$6,Form_Autres_Usages[[Usage]:[Usage]],$C23)/1000 -> 0 | AL23: =SUMIFS(Form_Autres_Usages[[Conso_pr_et3]:[Conso_pr_et3]],Form_Autres_Usages[[BatID]:[BatID]],AL$6,Form_Autres_Usages[[Usage]:[Usage]],$C23)/1000 -> 0 | AM23: 0 | AO23: =SUMIFS(Form_Autres_Usages[[Conso_ex]:[Conso_ex]],Form_Autres_Usages[[BatID]:[BatID]],AO$6,Form_Autres_Usages[[Usage]:[Usage]],$C23)/1000 -> 0 | AP23: =SUMIFS(Form_Autres_Usages[[Conso_pr_et1]:[Conso_pr_et1]],Form_Autres_Usages[[BatID]:[BatID]],AP$6,Form_Autres_Usages[[Usage]:[Usage]],$C23)/1000 -> 0 | AQ23: =SUMIFS(Form_Autres_Usages[[Conso_pr_et2]:[Conso_pr_et2]],Form_Autres_Usages[[BatID]:[BatID]],AQ$6,Form_Autres_Usages[[Usage]:[Usage]],$C23)/1000 -> 0 | AR23: =SUMIFS(Form_Autres_Usages[[Conso_pr_et3]:[Conso_pr_et3]],Form_Autres_Usages[[BatID]:[BatID]],AR$6,Form_Autres_Usages[[Usage]:[Usage]],$C23)/1000 -> 0 | AS23: 0 | AU23: =SUMIFS(Form_Autres_Usages[[Conso_ex]:[Conso_ex]],Form_Autres_Usages[[BatID]:[BatID]],AU$6,Form_Autres_Usages[[Usage]:[Usage]],$C23)/1000 -> 0 | AV23: =SUMIFS(Form_Autres_Usages[[Conso_pr_et1]:[Conso_pr_et1]],Form_Autres_Usages[[BatID]:[BatID]],AV$6,Form_Autres_Usages[[Usage]:[Usage]],$C23)/1000 -> 0 | AW23: =SUMIFS(Form_Autres_Usages[[Conso_pr_et2]:[Conso_pr_et2]],Form_Autres_Usages[[BatID]:[BatID]],AW$6,Form_Autres_Usages[[Usage]:[Usage]],$C23)/1000 -> 0 | AX23: =SUMIFS(Form_Autres_Usages[[Conso_pr_et3]:[Conso_pr_et3]],Form_Autres_Usages[[BatID]:[BatID]],AX$6,Form_Autres_Usages[[Usage]:[Usage]],$C23)/1000 -> 0 | AY23: 0 | BA23: =SUMIFS(Form_Autres_Usages[[Conso_ex]:[Conso_ex]],Form_Autres_Usages[[BatID]:[BatID]],BA$6,Form_Autres_Usages[[Usage]:[Usage]],$C23)/1000 -> 0 | BB23: =SUMIFS(Form_Autres_Usages[[Conso_pr_et1]:[Conso_pr_et1]],Form_Autres_Usages[[BatID]:[BatID]],BB$6,Form_Autres_Usages[[Usage]:[Usage]],$C23)/1000 -> 0 | BC23: =SUMIFS(Form_Autres_Usages[[Conso_pr_et2]:[Conso_pr_et2]],Form_Autres_Usages[[BatID]:[BatID]],BC$6,Form_Autres_Usages[[Usage]:[Usage]],$C23)/1000 -> 0 | BD23: =SUMIFS(Form_Autres_Usages[[Conso_pr_et3]:[Conso_pr_et3]],Form_Autres_Usages[[BatID]:[BatID]],BD$6,Form_Autres_Usages[[Usage]:[Usage]],$C23)/1000 -> 0 | BE23: 0 | BG23: =SUMIFS(Form_Autres_Usages[[Conso_ex]:[Conso_ex]],Form_Autres_Usages[[BatID]:[BatID]],BG$6,Form_Autres_Usages[[Usage]:[Usage]],$C23)/1000 -> 0 | BH23: =SUMIFS(Form_Autres_Usages[[Conso_pr_et1]:[Conso_pr_et1]],Form_Autres_Usages[[BatID]:[BatID]],BH$6,Form_Autres_Usages[[Usage]:[Usage]],$C23)/1000 -> 0 | BI23: =SUMIFS(Form_Autres_Usages[[Conso_pr_et2]:[Conso_pr_et2]],Form_Autres_Usages[[BatID]:[BatID]],BI$6,Form_Autres_Usages[[Usage]:[Usage]],$C23)/1000 -> 0 | BJ23: =SUMIFS(Form_Autres_Usages[[Conso_pr_et3]:[Conso_pr_et3]],Form_Autres_Usages[[BatID]:[BatID]],BJ$6,Form_Autres_Usages[[Usage]:[Usage]],$C23)/1000 -> 0 | BK23: 0 | BM23: =SUMIFS(Form_Autres_Usages[[Conso_ex]:[Conso_ex]],Form_Autres_Usages[[BatID]:[BatID]],BM$6,Form_Autres_Usages[[Usage]:[Usage]],$C23)/1000 -> 0 | BN23: =SUMIFS(Form_Autres_Usages[[Conso_pr_et1]:[Conso_pr_et1]],Form_Autres_Usages[[BatID]:[BatID]],BN$6,Form_Autres_Usages[[Usage]:[Usage]],$C23)/1000 -> 0 | BO23: =SUMIFS(Form_Autres_Usages[[Conso_pr_et2]:[Conso_pr_et2]],Form_Autres_Usages[[BatID]:[BatID]],BO$6,Form_Autres_Usages[[Usage]:[Usage]],$C23)/1000 -> 0 | BP23: =SUMIFS(Form_Autres_Usages[[Conso_pr_et3]:[Conso_pr_et3]],Form_Autres_Usages[[BatID]:[BatID]],BP$6,Form_Autres_Usages[[Usage]:[Usage]],$C23)/1000 -> 0 | BQ23: 0 | BS23: =SUMIFS(Form_Autres_Usages[[Conso_ex]:[Conso_ex]],Form_Autres_Usages[[BatID]:[BatID]],BS$6,Form_Autres_Usages[[Usage]:[Usage]],$C23)/1000 -> 0 | BT23: =SUMIFS(Form_Autres_Usages[[Conso_pr_et1]:[Conso_pr_et1]],Form_Autres_Usages[[BatID]:[BatID]],BT$6,Form_Autres_Usages[[Usage]:[Usage]],$C23)/1000 -> 0 | BU23: =SUMIFS(Form_Autres_Usages[[Conso_pr_et2]:[Conso_pr_et2]],Form_Autres_Usages[[BatID]:[BatID]],BU$6,Form_Autres_Usages[[Usage]:[Usage]],$C23)/1000 -> 0 | BV23: =SUMIFS(Form_Autres_Usages[[Conso_pr_et3]:[Conso_pr_et3]],Form_Autres_Usages[[BatID]:[BatID]],BV$6,Form_Autres_Usages[[Usage]:[Usage]],$C23)/1000 -> 0 | BW23: 0
C24: 6.AUX-HUM | F24: Autres usages - Axilaires humidification | G24: =SUMIFS($O24:$BX24,$O$7:$BX$7,G$7) -> 0 | H24: =SUMIFS($O24:$BX24,$O$7:$BX$7,H$7) -> 0 | I24: =SUMIFS($O24:$BX24,$O$7:$BX$7,I$7) -> 0 | J24: =SUMIFS($O24:$BX24,$O$7:$BX$7,J$7) -> 0 | K24: =SUMIFS($O24:$BX24,$O$7:$BX$7,K$7) -> 0 | Q24: =SUMIFS(Form_Autres_Usages[[Conso_ex]:[Conso_ex]],Form_Autres_Usages[[BatID]:[BatID]],Q$6,Form_Autres_Usages[[Usage]:[Usage]],$C24)/1000 -> 0 | R24: =SUMIFS(Form_Autres_Usages[[Conso_pr_et1]:[Conso_pr_et1]],Form_Autres_Usages[[BatID]:[BatID]],R$6,Form_Autres_Usages[[Usage]:[Usage]],$C24)/1000 -> 0 | S24: =SUMIFS(Form_Autres_Usages[[Conso_pr_et2]:[Conso_pr_et2]],Form_Autres_Usages[[BatID]:[BatID]],S$6,Form_Autres_Usages[[Usage]:[Usage]],$C24)/1000 -> 0 | T24: =SUMIFS(Form_Autres_Usages[[Conso_pr_et3]:[Conso_pr_et3]],Form_Autres_Usages[[BatID]:[BatID]],T$6,Form_Autres_Usages[[Usage]:[Usage]],$C24)/1000 -> 0 | U24: 0 | W24: =SUMIFS(Form_Autres_Usages[[Conso_ex]:[Conso_ex]],Form_Autres_Usages[[BatID]:[BatID]],W$6,Form_Autres_Usages[[Usage]:[Usage]],$C24)/1000 -> 0 | X24: =SUMIFS(Form_Autres_Usages[[Conso_pr_et1]:[Conso_pr_et1]],Form_Autres_Usages[[BatID]:[BatID]],X$6,Form_Autres_Usages[[Usage]:[Usage]],$C24)/1000 -> 0 | Y24: =SUMIFS(Form_Autres_Usages[[Conso_pr_et2]:[Conso_pr_et2]],Form_Autres_Usages[[BatID]:[BatID]],Y$6,Form_Autres_Usages[[Usage]:[Usage]],$C24)/1000 -> 0 | Z24: =SUMIFS(Form_Autres_Usages[[Conso_pr_et3]:[Conso_pr_et3]],Form_Autres_Usages[[BatID]:[BatID]],Z$6,Form_Autres_Usages[[Usage]:[Usage]],$C24)/1000 -> 0 | AA24: 0 | AC24: =SUMIFS(Form_Autres_Usages[[Conso_ex]:[Conso_ex]],Form_Autres_Usages[[BatID]:[BatID]],AC$6,Form_Autres_Usages[[Usage]:[Usage]],$C24)/1000 -> 0 | AD24: =SUMIFS(Form_Autres_Usages[[Conso_pr_et1]:[Conso_pr_et1]],Form_Autres_Usages[[BatID]:[BatID]],AD$6,Form_Autres_Usages[[Usage]:[Usage]],$C24)/1000 -> 0 | AE24: =SUMIFS(Form_Autres_Usages[[Conso_pr_et2]:[Conso_pr_et2]],Form_Autres_Usages[[BatID]:[BatID]],AE$6,Form_Autres_Usages[[Usage]:[Usage]],$C24)/1000 -> 0 | AF24: =SUMIFS(Form_Autres_Usages[[Conso_pr_et3]:[Conso_pr_et3]],Form_Autres_Usages[[BatID]:[BatID]],AF$6,Form_Autres_Usages[[Usage]:[Usage]],$C24)/1000 -> 0 | AG24: 0 | AI24: =SUMIFS(Form_Autres_Usages[[Conso_ex]:[Conso_ex]],Form_Autres_Usages[[BatID]:[BatID]],AI$6,Form_Autres_Usages[[Usage]:[Usage]],$C24)/1000 -> 0 | AJ24: =SUMIFS(Form_Autres_Usages[[Conso_pr_et1]:[Conso_pr_et1]],Form_Autres_Usages[[BatID]:[BatID]],AJ$6,Form_Autres_Usages[[Usage]:[Usage]],$C24)/1000 -> 0 | AK24: =SUMIFS(Form_Autres_Usages[[Conso_pr_et2]:[Conso_pr_et2]],Form_Autres_Usages[[BatID]:[BatID]],AK$6,Form_Autres_Usages[[Usage]:[Usage]],$C24)/1000 -> 0 | AL24: =SUMIFS(Form_Autres_Usages[[Conso_pr_et3]:[Conso_pr_et3]],Form_Autres_Usages[[BatID]:[BatID]],AL$6,Form_Autres_Usages[[Usage]:[Usage]],$C24)/1000 -> 0 | AM24: 0 | AO24: =SUMIFS(Form_Autres_Usages[[Conso_ex]:[Conso_ex]],Form_Autres_Usages[[BatID]:[BatID]],AO$6,Form_Autres_Usages[[Usage]:[Usage]],$C24)/1000 -> 0 | AP24: =SUMIFS(Form_Autres_Usages[[Conso_pr_et1]:[Conso_pr_et1]],Form_Autres_Usages[[BatID]:[BatID]],AP$6,Form_Autres_Usages[[Usage]:[Usage]],$C24)/1000 -> 0 | AQ24: =SUMIFS(Form_Autres_Usages[[Conso_pr_et2]:[Conso_pr_et2]],Form_Autres_Usages[[BatID]:[BatID]],AQ$6,Form_Autres_Usages[[Usage]:[Usage]],$C24)/1000 -> 0 | AR24: =SUMIFS(Form_Autres_Usages[[Conso_pr_et3]:[Conso_pr_et3]],Form_Autres_Usages[[BatID]:[BatID]],AR$6,Form_Autres_Usages[[Usage]:[Usage]],$C24)/1000 -> 0 | AS24: 0 | AU24: =SUMIFS(Form_Autres_Usages[[Conso_ex]:[Conso_ex]],Form_Autres_Usages[[BatID]:[BatID]],AU$6,Form_Autres_Usages[[Usage]:[Usage]],$C24)/1000 -> 0 | AV24: =SUMIFS(Form_Autres_Usages[[Conso_pr_et1]:[Conso_pr_et1]],Form_Autres_Usages[[BatID]:[BatID]],AV$6,Form_Autres_Usages[[Usage]:[Usage]],$C24)/1000 -> 0 | AW24: =SUMIFS(Form_Autres_Usages[[Conso_pr_et2]:[Conso_pr_et2]],Form_Autres_Usages[[BatID]:[BatID]],AW$6,Form_Autres_Usages[[Usage]:[Usage]],$C24)/1000 -> 0 | AX24: =SUMIFS(Form_Autres_Usages[[Conso_pr_et3]:[Conso_pr_et3]],Form_Autres_Usages[[BatID]:[BatID]],AX$6,Form_Autres_Usages[[Usage]:[Usage]],$C24)/1000 -> 0 | AY24: 0 | BA24: =SUMIFS(Form_Autres_Usages[[Conso_ex]:[Conso_ex]],Form_Autres_Usages[[BatID]:[BatID]],BA$6,Form_Autres_Usages[[Usage]:[Usage]],$C24)/1000 -> 0 | BB24: =SUMIFS(Form_Autres_Usages[[Conso_pr_et1]:[Conso_pr_et1]],Form_Autres_Usages[[BatID]:[BatID]],BB$6,Form_Autres_Usages[[Usage]:[Usage]],$C24)/1000 -> 0 | BC24: =SUMIFS(Form_Autres_Usages[[Conso_pr_et2]:[Conso_pr_et2]],Form_Autres_Usages[[BatID]:[BatID]],BC$6,Form_Autres_Usages[[Usage]:[Usage]],$C24)/1000 -> 0 | BD24: =SUMIFS(Form_Autres_Usages[[Conso_pr_et3]:[Conso_pr_et3]],Form_Autres_Usages[[BatID]:[BatID]],BD$6,Form_Autres_Usages[[Usage]:[Usage]],$C24)/1000 -> 0 | BE24: 0 | BG24: =SUMIFS(Form_Autres_Usages[[Conso_ex]:[Conso_ex]],Form_Autres_Usages[[BatID]:[BatID]],BG$6,Form_Autres_Usages[[Usage]:[Usage]],$C24)/1000 -> 0 | BH24: =SUMIFS(Form_Autres_Usages[[Conso_pr_et1]:[Conso_pr_et1]],Form_Autres_Usages[[BatID]:[BatID]],BH$6,Form_Autres_Usages[[Usage]:[Usage]],$C24)/1000 -> 0 | BI24: =SUMIFS(Form_Autres_Usages[[Conso_pr_et2]:[Conso_pr_et2]],Form_Autres_Usages[[BatID]:[BatID]],BI$6,Form_Autres_Usages[[Usage]:[Usage]],$C24)/1000 -> 0 | BJ24: =SUMIFS(Form_Autres_Usages[[Conso_pr_et3]:[Conso_pr_et3]],Form_Autres_Usages[[BatID]:[BatID]],BJ$6,Form_Autres_Usages[[Usage]:[Usage]],$C24)/1000 -> 0 | BK24: 0 | BM24: =SUMIFS(Form_Autres_Usages[[Conso_ex]:[Conso_ex]],Form_Autres_Usages[[BatID]:[BatID]],BM$6,Form_Autres_Usages[[Usage]:[Usage]],$C24)/1000 -> 0 | BN24: =SUMIFS(Form_Autres_Usages[[Conso_pr_et1]:[Conso_pr_et1]],Form_Autres_Usages[[BatID]:[BatID]],BN$6,Form_Autres_Usages[[Usage]:[Usage]],$C24)/1000 -> 0 | BO24: =SUMIFS(Form_Autres_Usages[[Conso_pr_et2]:[Conso_pr_et2]],Form_Autres_Usages[[BatID]:[BatID]],BO$6,Form_Autres_Usages[[Usage]:[Usage]],$C24)/1000 -> 0 | BP24: =SUMIFS(Form_Autres_Usages[[Conso_pr_et3]:[Conso_pr_et3]],Form_Autres_Usages[[BatID]:[BatID]],BP$6,Form_Autres_Usages[[Usage]:[Usage]],$C24)/1000 -> 0 | BQ24: 0 | BS24: =SUMIFS(Form_Autres_Usages[[Conso_ex]:[Conso_ex]],Form_Autres_Usages[[BatID]:[BatID]],BS$6,Form_Autres_Usages[[Usage]:[Usage]],$C24)/1000 -> 0 | BT24: =SUMIFS(Form_Autres_Usages[[Conso_pr_et1]:[Conso_pr_et1]],Form_Autres_Usages[[BatID]:[BatID]],BT$6,Form_Autres_Usages[[Usage]:[Usage]],$C24)/1000 -> 0 | BU24: =SUMIFS(Form_Autres_Usages[[Conso_pr_et2]:[Conso_pr_et2]],Form_Autres_Usages[[BatID]:[BatID]],BU$6,Form_Autres_Usages[[Usage]:[Usage]],$C24)/1000 -> 0 | BV24: =SUMIFS(Form_Autres_Usages[[Conso_pr_et3]:[Conso_pr_et3]],Form_Autres_Usages[[BatID]:[BatID]],BV$6,Form_Autres_Usages[[Usage]:[Usage]],$C24)/1000 -> 0 | BW24: 0
C25: 6.AUX-DEHUM | F25: Autres usages - Axilaires déshumidification | G25: =SUMIFS($O25:$BX25,$O$7:$BX$7,G$7) -> 0 | H25: =SUMIFS($O25:$BX25,$O$7:$BX$7,H$7) -> 0 | I25: =SUMIFS($O25:$BX25,$O$7:$BX$7,I$7) -> 0 | J25: =SUMIFS($O25:$BX25,$O$7:$BX$7,J$7) -> 0 | K25: =SUMIFS($O25:$BX25,$O$7:$BX$7,K$7) -> 0 | Q25: =SUMIFS(Form_Autres_Usages[[Conso_ex]:[Conso_ex]],Form_Autres_Usages[[BatID]:[BatID]],Q$6,Form_Autres_Usages[[Usage]:[Usage]],$C25)/1000 -> 0 | R25: =SUMIFS(Form_Autres_Usages[[Conso_pr_et1]:[Conso_pr_et1]],Form_Autres_Usages[[BatID]:[BatID]],R$6,Form_Autres_Usages[[Usage]:[Usage]],$C25)/1000 -> 0 | S25: =SUMIFS(Form_Autres_Usages[[Conso_pr_et2]:[Conso_pr_et2]],Form_Autres_Usages[[BatID]:[BatID]],S$6,Form_Autres_Usages[[Usage]:[Usage]],$C25)/1000 -> 0 | T25: =SUMIFS(Form_Autres_Usages[[Conso_pr_et3]:[Conso_pr_et3]],Form_Autres_Usages[[BatID]:[BatID]],T$6,Form_Autres_Usages[[Usage]:[Usage]],$C25)/1000 -> 0 | U25: 0 | W25: =SUMIFS(Form_Autres_Usages[[Conso_ex]:[Conso_ex]],Form_Autres_Usages[[BatID]:[BatID]],W$6,Form_Autres_Usages[[Usage]:[Usage]],$C25)/1000 -> 0 | X25: =SUMIFS(Form_Autres_Usages[[Conso_pr_et1]:[Conso_pr_et1]],Form_Autres_Usages[[BatID]:[BatID]],X$6,Form_Autres_Usages[[Usage]:[Usage]],$C25)/1000 -> 0 | Y25: =SUMIFS(Form_Autres_Usages[[Conso_pr_et2]:[Conso_pr_et2]],Form_Autres_Usages[[BatID]:[BatID]],Y$6,Form_Autres_Usages[[Usage]:[Usage]],$C25)/1000 -> 0 | Z25: =SUMIFS(Form_Autres_Usages[[Conso_pr_et3]:[Conso_pr_et3]],Form_Autres_Usages[[BatID]:[BatID]],Z$6,Form_Autres_Usages[[Usage]:[Usage]],$C25)/1000 -> 0 | AA25: 0 | AC25: =SUMIFS(Form_Autres_Usages[[Conso_ex]:[Conso_ex]],Form_Autres_Usages[[BatID]:[BatID]],AC$6,Form_Autres_Usages[[Usage]:[Usage]],$C25)/1000 -> 0 | AD25: =SUMIFS(Form_Autres_Usages[[Conso_pr_et1]:[Conso_pr_et1]],Form_Autres_Usages[[BatID]:[BatID]],AD$6,Form_Autres_Usages[[Usage]:[Usage]],$C25)/1000 -> 0 | AE25: =SUMIFS(Form_Autres_Usages[[Conso_pr_et2]:[Conso_pr_et2]],Form_Autres_Usages[[BatID]:[BatID]],AE$6,Form_Autres_Usages[[Usage]:[Usage]],$C25)/1000 -> 0 | AF25: =SUMIFS(Form_Autres_Usages[[Conso_pr_et3]:[Conso_pr_et3]],Form_Autres_Usages[[BatID]:[BatID]],AF$6,Form_Autres_Usages[[Usage]:[Usage]],$C25)/1000 -> 0 | AG25: 0 | AI25: =SUMIFS(Form_Autres_Usages[[Conso_ex]:[Conso_ex]],Form_Autres_Usages[[BatID]:[BatID]],AI$6,Form_Autres_Usages[[Usage]:[Usage]],$C25)/1000 -> 0 | AJ25: =SUMIFS(Form_Autres_Usages[[Conso_pr_et1]:[Conso_pr_et1]],Form_Autres_Usages[[BatID]:[BatID]],AJ$6,Form_Autres_Usages[[Usage]:[Usage]],$C25)/1000 -> 0 | AK25: =SUMIFS(Form_Autres_Usages[[Conso_pr_et2]:[Conso_pr_et2]],Form_Autres_Usages[[BatID]:[BatID]],AK$6,Form_Autres_Usages[[Usage]:[Usage]],$C25)/1000 -> 0 | AL25: =SUMIFS(Form_Autres_Usages[[Conso_pr_et3]:[Conso_pr_et3]],Form_Autres_Usages[[BatID]:[BatID]],AL$6,Form_Autres_Usages[[Usage]:[Usage]],$C25)/1000 -> 0 | AM25: 0 | AO25: =SUMIFS(Form_Autres_Usages[[Conso_ex]:[Conso_ex]],Form_Autres_Usages[[BatID]:[BatID]],AO$6,Form_Autres_Usages[[Usage]:[Usage]],$C25)/1000 -> 0 | AP25: =SUMIFS(Form_Autres_Usages[[Conso_pr_et1]:[Conso_pr_et1]],Form_Autres_Usages[[BatID]:[BatID]],AP$6,Form_Autres_Usages[[Usage]:[Usage]],$C25)/1000 -> 0 | AQ25: =SUMIFS(Form_Autres_Usages[[Conso_pr_et2]:[Conso_pr_et2]],Form_Autres_Usages[[BatID]:[BatID]],AQ$6,Form_Autres_Usages[[Usage]:[Usage]],$C25)/1000 -> 0 | AR25: =SUMIFS(Form_Autres_Usages[[Conso_pr_et3]:[Conso_pr_et3]],Form_Autres_Usages[[BatID]:[BatID]],AR$6,Form_Autres_Usages[[Usage]:[Usage]],$C25)/1000 -> 0 | AS25: 0 | AU25: =SUMIFS(Form_Autres_Usages[[Conso_ex]:[Conso_ex]],Form_Autres_Usages[[BatID]:[BatID]],AU$6,Form_Autres_Usages[[Usage]:[Usage]],$C25)/1000 -> 0 | AV25: =SUMIFS(Form_Autres_Usages[[Conso_pr_et1]:[Conso_pr_et1]],Form_Autres_Usages[[BatID]:[BatID]],AV$6,Form_Autres_Usages[[Usage]:[Usage]],$C25)/1000 -> 0 | AW25: =SUMIFS(Form_Autres_Usages[[Conso_pr_et2]:[Conso_pr_et2]],Form_Autres_Usages[[BatID]:[BatID]],AW$6,Form_Autres_Usages[[Usage]:[Usage]],$C25)/1000 -> 0 | AX25: =SUMIFS(Form_Autres_Usages[[Conso_pr_et3]:[Conso_pr_et3]],Form_Autres_Usages[[BatID]:[BatID]],AX$6,Form_Autres_Usages[[Usage]:[Usage]],$C25)/1000 -> 0 | AY25: 0 | BA25: =SUMIFS(Form_Autres_Usages[[Conso_ex]:[Conso_ex]],Form_Autres_Usages[[BatID]:[BatID]],BA$6,Form_Autres_Usages[[Usage]:[Usage]],$C25)/1000 -> 0 | BB25: =SUMIFS(Form_Autres_Usages[[Conso_pr_et1]:[Conso_pr_et1]],Form_Autres_Usages[[BatID]:[BatID]],BB$6,Form_Autres_Usages[[Usage]:[Usage]],$C25)/1000 -> 0 | BC25: =SUMIFS(Form_Autres_Usages[[Conso_pr_et2]:[Conso_pr_et2]],Form_Autres_Usages[[BatID]:[BatID]],BC$6,Form_Autres_Usages[[Usage]:[Usage]],$C25)/1000 -> 0 | BD25: =SUMIFS(Form_Autres_Usages[[Conso_pr_et3]:[Conso_pr_et3]],Form_Autres_Usages[[BatID]:[BatID]],BD$6,Form_Autres_Usages[[Usage]:[Usage]],$C25)/1000 -> 0 | BE25: 0 | BG25: =SUMIFS(Form_Autres_Usages[[Conso_ex]:[Conso_ex]],Form_Autres_Usages[[BatID]:[BatID]],BG$6,Form_Autres_Usages[[Usage]:[Usage]],$C25)/1000 -> 0 | BH25: =SUMIFS(Form_Autres_Usages[[Conso_pr_et1]:[Conso_pr_et1]],Form_Autres_Usages[[BatID]:[BatID]],BH$6,Form_Autres_Usages[[Usage]:[Usage]],$C25)/1000 -> 0 | BI25: =SUMIFS(Form_Autres_Usages[[Conso_pr_et2]:[Conso_pr_et2]],Form_Autres_Usages[[BatID]:[BatID]],BI$6,Form_Autres_Usages[[Usage]:[Usage]],$C25)/1000 -> 0 | BJ25: =SUMIFS(Form_Autres_Usages[[Conso_pr_et3]:[Conso_pr_et3]],Form_Autres_Usages[[BatID]:[BatID]],BJ$6,Form_Autres_Usages[[Usage]:[Usage]],$C25)/1000 -> 0 | BK25: 0 | BM25: =SUMIFS(Form_Autres_Usages[[Conso_ex]:[Conso_ex]],Form_Autres_Usages[[BatID]:[BatID]],BM$6,Form_Autres_Usages[[Usage]:[Usage]],$C25)/1000 -> 0 | BN25: =SUMIFS(Form_Autres_Usages[[Conso_pr_et1]:[Conso_pr_et1]],Form_Autres_Usages[[BatID]:[BatID]],BN$6,Form_Autres_Usages[[Usage]:[Usage]],$C25)/1000 -> 0 | BO25: =SUMIFS(Form_Autres_Usages[[Conso_pr_et2]:[Conso_pr_et2]],Form_Autres_Usages[[BatID]:[BatID]],BO$6,Form_Autres_Usages[[Usage]:[Usage]],$C25)/1000 -> 0 | BP25: =SUMIFS(Form_Autres_Usages[[Conso_pr_et3]:[Conso_pr_et3]],Form_Autres_Usages[[BatID]:[BatID]],BP$6,Form_Autres_Usages[[Usage]:[Usage]],$C25)/1000 -> 0 | BQ25: 0 | BS25: =SUMIFS(Form_Autres_Usages[[Conso_ex]:[Conso_ex]],Form_Autres_Usages[[BatID]:[BatID]],BS$6,Form_Autres_Usages[[Usage]:[Usage]],$C25)/1000 -> 0 | BT25: =SUMIFS(Form_Autres_Usages[[Conso_pr_et1]:[Conso_pr_et1]],Form_Autres_Usages[[BatID]:[BatID]],BT$6,Form_Autres_Usages[[Usage]:[Usage]],$C25)/1000 -> 0 | BU25: =SUMIFS(Form_Autres_Usages[[Conso_pr_et2]:[Conso_pr_et2]],Form_Autres_Usages[[BatID]:[BatID]],BU$6,Form_Autres_Usages[[Usage]:[Usage]],$C25)/1000 -> 0 | BV25: =SUMIFS(Form_Autres_Usages[[Conso_pr_et3]:[Conso_pr_et3]],Form_Autres_Usages[[BatID]:[BatID]],BV$6,Form_Autres_Usages[[Usage]:[Usage]],$C25)/1000 -> 0 | BW25: 0
C26: 6.AUX-POSTCH | F26: Autres usages - Auxiliaires postchauffe | G26: =SUMIFS($O26:$BX26,$O$7:$BX$7,G$7) -> 0 | H26: =SUMIFS($O26:$BX26,$O$7:$BX$7,H$7) -> 0 | I26: =SUMIFS($O26:$BX26,$O$7:$BX$7,I$7) -> 0 | J26: =SUMIFS($O26:$BX26,$O$7:$BX$7,J$7) -> 0 | K26: =SUMIFS($O26:$BX26,$O$7:$BX$7,K$7) -> 0 | Q26: =SUMIFS(Form_Autres_Usages[[Conso_ex]:[Conso_ex]],Form_Autres_Usages[[BatID]:[BatID]],Q$6,Form_Autres_Usages[[Usage]:[Usage]],$C26)/1000 -> 0 | R26: =SUMIFS(Form_Autres_Usages[[Conso_pr_et1]:[Conso_pr_et1]],Form_Autres_Usages[[BatID]:[BatID]],R$6,Form_Autres_Usages[[Usage]:[Usage]],$C26)/1000 -> 0 | S26: =SUMIFS(Form_Autres_Usages[[Conso_pr_et2]:[Conso_pr_et2]],Form_Autres_Usages[[BatID]:[BatID]],S$6,Form_Autres_Usages[[Usage]:[Usage]],$C26)/1000 -> 0 | T26: =SUMIFS(Form_Autres_Usages[[Conso_pr_et3]:[Conso_pr_et3]],Form_Autres_Usages[[BatID]:[BatID]],T$6,Form_Autres_Usages[[Usage]:[Usage]],$C26)/1000 -> 0 | U26: 0 | W26: =SUMIFS(Form_Autres_Usages[[Conso_ex]:[Conso_ex]],Form_Autres_Usages[[BatID]:[BatID]],W$6,Form_Autres_Usages[[Usage]:[Usage]],$C26)/1000 -> 0 | X26: =SUMIFS(Form_Autres_Usages[[Conso_pr_et1]:[Conso_pr_et1]],Form_Autres_Usages[[BatID]:[BatID]],X$6,Form_Autres_Usages[[Usage]:[Usage]],$C26)/1000 -> 0 | Y26: =SUMIFS(Form_Autres_Usages[[Conso_pr_et2]:[Conso_pr_et2]],Form_Autres_Usages[[BatID]:[BatID]],Y$6,Form_Autres_Usages[[Usage]:[Usage]],$C26)/1000 -> 0 | Z26: =SUMIFS(Form_Autres_Usages[[Conso_pr_et3]:[Conso_pr_et3]],Form_Autres_Usages[[BatID]:[BatID]],Z$6,Form_Autres_Usages[[Usage]:[Usage]],$C26)/1000 -> 0 | AA26: 0 | AC26: =SUMIFS(Form_Autres_Usages[[Conso_ex]:[Conso_ex]],Form_Autres_Usages[[BatID]:[BatID]],AC$6,Form_Autres_Usages[[Usage]:[Usage]],$C26)/1000 -> 0 | AD26: =SUMIFS(Form_Autres_Usages[[Conso_pr_et1]:[Conso_pr_et1]],Form_Autres_Usages[[BatID]:[BatID]],AD$6,Form_Autres_Usages[[Usage]:[Usage]],$C26)/1000 -> 0 | AE26: =SUMIFS(Form_Autres_Usages[[Conso_pr_et2]:[Conso_pr_et2]],Form_Autres_Usages[[BatID]:[BatID]],AE$6,Form_Autres_Usages[[Usage]:[Usage]],$C26)/1000 -> 0 | AF26: =SUMIFS(Form_Autres_Usages[[Conso_pr_et3]:[Conso_pr_et3]],Form_Autres_Usages[[BatID]:[BatID]],AF$6,Form_Autres_Usages[[Usage]:[Usage]],$C26)/1000 -> 0 | AG26: 0 | AI26: =SUMIFS(Form_Autres_Usages[[Conso_ex]:[Conso_ex]],Form_Autres_Usages[[BatID]:[BatID]],AI$6,Form_Autres_Usages[[Usage]:[Usage]],$C26)/1000 -> 0 | AJ26: =SUMIFS(Form_Autres_Usages[[Conso_pr_et1]:[Conso_pr_et1]],Form_Autres_Usages[[BatID]:[BatID]],AJ$6,Form_Autres_Usages[[Usage]:[Usage]],$C26)/1000 -> 0 | AK26: =SUMIFS(Form_Autres_Usages[[Conso_pr_et2]:[Conso_pr_et2]],Form_Autres_Usages[[BatID]:[BatID]],AK$6,Form_Autres_Usages[[Usage]:[Usage]],$C26)/1000 -> 0 | AL26: =SUMIFS(Form_Autres_Usages[[Conso_pr_et3]:[Conso_pr_et3]],Form_Autres_Usages[[BatID]:[BatID]],AL$6,Form_Autres_Usages[[Usage]:[Usage]],$C26)/1000 -> 0 | AM26: 0 | AO26: =SUMIFS(Form_Autres_Usages[[Conso_ex]:[Conso_ex]],Form_Autres_Usages[[BatID]:[BatID]],AO$6,Form_Autres_Usages[[Usage]:[Usage]],$C26)/1000 -> 0 | AP26: =SUMIFS(Form_Autres_Usages[[Conso_pr_et1]:[Conso_pr_et1]],Form_Autres_Usages[[BatID]:[BatID]],AP$6,Form_Autres_Usages[[Usage]:[Usage]],$C26)/1000 -> 0 | AQ26: =SUMIFS(Form_Autres_Usages[[Conso_pr_et2]:[Conso_pr_et2]],Form_Autres_Usages[[BatID]:[BatID]],AQ$6,Form_Autres_Usages[[Usage]:[Usage]],$C26)/1000 -> 0 | AR26: =SUMIFS(Form_Autres_Usages[[Conso_pr_et3]:[Conso_pr_et3]],Form_Autres_Usages[[BatID]:[BatID]],AR$6,Form_Autres_Usages[[Usage]:[Usage]],$C26)/1000 -> 0 | AS26: 0 | AU26: =SUMIFS(Form_Autres_Usages[[Conso_ex]:[Conso_ex]],Form_Autres_Usages[[BatID]:[BatID]],AU$6,Form_Autres_Usages[[Usage]:[Usage]],$C26)/1000 -> 0 | AV26: =SUMIFS(Form_Autres_Usages[[Conso_pr_et1]:[Conso_pr_et1]],Form_Autres_Usages[[BatID]:[BatID]],AV$6,Form_Autres_Usages[[Usage]:[Usage]],$C26)/1000 -> 0 | AW26: =SUMIFS(Form_Autres_Usages[[Conso_pr_et2]:[Conso_pr_et2]],Form_Autres_Usages[[BatID]:[BatID]],AW$6,Form_Autres_Usages[[Usage]:[Usage]],$C26)/1000 -> 0 | AX26: =SUMIFS(Form_Autres_Usages[[Conso_pr_et3]:[Conso_pr_et3]],Form_Autres_Usages[[BatID]:[BatID]],AX$6,Form_Autres_Usages[[Usage]:[Usage]],$C26)/1000 -> 0 | AY26: 0 | BA26: =SUMIFS(Form_Autres_Usages[[Conso_ex]:[Conso_ex]],Form_Autres_Usages[[BatID]:[BatID]],BA$6,Form_Autres_Usages[[Usage]:[Usage]],$C26)/1000 -> 0 | BB26: =SUMIFS(Form_Autres_Usages[[Conso_pr_et1]:[Conso_pr_et1]],Form_Autres_Usages[[BatID]:[BatID]],BB$6,Form_Autres_Usages[[Usage]:[Usage]],$C26)/1000 -> 0 | BC26: =SUMIFS(Form_Autres_Usages[[Conso_pr_et2]:[Conso_pr_et2]],Form_Autres_Usages[[BatID]:[BatID]],BC$6,Form_Autres_Usages[[Usage]:[Usage]],$C26)/1000 -> 0 | BD26: =SUMIFS(Form_Autres_Usages[[Conso_pr_et3]:[Conso_pr_et3]],Form_Autres_Usages[[BatID]:[BatID]],BD$6,Form_Autres_Usages[[Usage]:[Usage]],$C26)/1000 -> 0 | BE26: 0 | BG26: =SUMIFS(Form_Autres_Usages[[Conso_ex]:[Conso_ex]],Form_Autres_Usages[[BatID]:[BatID]],BG$6,Form_Autres_Usages[[Usage]:[Usage]],$C26)/1000 -> 0 | BH26: =SUMIFS(Form_Autres_Usages[[Conso_pr_et1]:[Conso_pr_et1]],Form_Autres_Usages[[BatID]:[BatID]],BH$6,Form_Autres_Usages[[Usage]:[Usage]],$C26)/1000 -> 0 | BI26: =SUMIFS(Form_Autres_Usages[[Conso_pr_et2]:[Conso_pr_et2]],Form_Autres_Usages[[BatID]:[BatID]],BI$6,Form_Autres_Usages[[Usage]:[Usage]],$C26)/1000 -> 0 | BJ26: =SUMIFS(Form_Autres_Usages[[Conso_pr_et3]:[Conso_pr_et3]],Form_Autres_Usages[[BatID]:[BatID]],BJ$6,Form_Autres_Usages[[Usage]:[Usage]],$C26)/1000 -> 0 | BK26: 0 | BM26: =SUMIFS(Form_Autres_Usages[[Conso_ex]:[Conso_ex]],Form_Autres_Usages[[BatID]:[BatID]],BM$6,Form_Autres_Usages[[Usage]:[Usage]],$C26)/1000 -> 0 | BN26: =SUMIFS(Form_Autres_Usages[[Conso_pr_et1]:[Conso_pr_et1]],Form_Autres_Usages[[BatID]:[BatID]],BN$6,Form_Autres_Usages[[Usage]:[Usage]],$C26)/1000 -> 0 | BO26: =SUMIFS(Form_Autres_Usages[[Conso_pr_et2]:[Conso_pr_et2]],Form_Autres_Usages[[BatID]:[BatID]],BO$6,Form_Autres_Usages[[Usage]:[Usage]],$C26)/1000 -> 0 | BP26: =SUMIFS(Form_Autres_Usages[[Conso_pr_et3]:[Conso_pr_et3]],Form_Autres_Usages[[BatID]:[BatID]],BP$6,Form_Autres_Usages[[Usage]:[Usage]],$C26)/1000 -> 0 | BQ26: 0 | BS26: =SUMIFS(Form_Autres_Usages[[Conso_ex]:[Conso_ex]],Form_Autres_Usages[[BatID]:[BatID]],BS$6,Form_Autres_Usages[[Usage]:[Usage]],$C26)/1000 -> 0 | BT26: =SUMIFS(Form_Autres_Usages[[Conso_pr_et1]:[Conso_pr_et1]],Form_Autres_Usages[[BatID]:[BatID]],BT$6,Form_Autres_Usages[[Usage]:[Usage]],$C26)/1000 -> 0 | BU26: =SUMIFS(Form_Autres_Usages[[Conso_pr_et2]:[Conso_pr_et2]],Form_Autres_Usages[[BatID]:[BatID]],BU$6,Form_Autres_Usages[[Usage]:[Usage]],$C26)/1000 -> 0 | BV26: =SUMIFS(Form_Autres_Usages[[Conso_pr_et3]:[Conso_pr_et3]],Form_Autres_Usages[[BatID]:[BatID]],BV$6,Form_Autres_Usages[[Usage]:[Usage]],$C26)/1000 -> 0 | BW26: 0
E27: 3. | F27: Eclairage | G27: =SUMIFS($O27:$BX27,$O$7:$BX$7,G$7) -> 17.3352 | H27: =SUMIFS($O27:$BX27,$O$7:$BX$7,H$7) -> 14.147 | I27: =SUMIFS($O27:$BX27,$O$7:$BX$7,I$7) -> 14.147 | J27: =SUMIFS($O27:$BX27,$O$7:$BX$7,J$7) -> 9.8891 | K27: =SUMIFS($O27:$BX27,$O$7:$BX$7,K$7) -> 11.54025 | Q27: =SUM(Q28:Q29) -> 7.5914 | R27: =SUM(R28:R29) -> 7.5914 | S27: =SUM(S28:S29) -> 7.5914 | T27: =SUM(T28:T29) -> 3.3335 | U27: =SUM(U28:U29) -> 4.27425 | W27: =SUM(W28:W29) -> 9.7438 | X27: =SUM(X28:X29) -> 6.5556 | Y27: =SUM(Y28:Y29) -> 6.5556 | Z27: =SUM(Z28:Z29) -> 6.5556 | AA27: =SUM(AA28:AA29) -> 7.266 | AC27: =SUM(AC28:AC29) -> 0 | AD27: =SUM(AD28:AD29) -> 0 | AE27: =SUM(AE28:AE29) -> 0 | AF27: =SUM(AF28:AF29) -> 0 | AG27: =SUM(AG28:AG29) -> 0 | AI27: =SUM(AI28:AI29) -> 0 | AJ27: =SUM(AJ28:AJ29) -> 0 | AK27: =SUM(AK28:AK29) -> 0 | AL27: =SUM(AL28:AL29) -> 0 | AM27: =SUM(AM28:AM29) -> 0 | AO27: =SUM(AO28:AO29) -> 0 | AP27: =SUM(AP28:AP29) -> 0 | AQ27: =SUM(AQ28:AQ29) -> 0 | AR27: =SUM(AR28:AR29) -> 0 | AS27: =SUM(AS28:AS29) -> 0 | AU27: =SUM(AU28:AU29) -> 0 | AV27: =SUM(AV28:AV29) -> 0 | AW27: =SUM(AW28:AW29) -> 0 | AX27: =SUM(AX28:AX29) -> 0 | AY27: =SUM(AY28:AY29) -> 0 | BA27: =SUM(BA28:BA29) -> 0 | BB27: =SUM(BB28:BB29) -> 0 | BC27: =SUM(BC28:BC29) -> 0 | BD27: =SUM(BD28:BD29) -> 0 | BE27: =SUM(BE28:BE29) -> 0 | BG27: =SUM(BG28:BG29) -> 0 | BH27: =SUM(BH28:BH29) -> 0 | BI27: =SUM(BI28:BI29) -> 0 | BJ27: =SUM(BJ28:BJ29) -> 0 | BK27: =SUM(BK28:BK29) -> 0 | BM27: =SUM(BM28:BM29) -> 0 | BN27: =SUM(BN28:BN29) -> 0 | BO27: =SUM(BO28:BO29) -> 0 | BP27: =SUM(BP28:BP29) -> 0 | BQ27: =SUM(BQ28:BQ29) -> 0 | BS27: =SUM(BS28:BS29) -> 0 | BT27: =SUM(BT28:BT29) -> 0 | BU27: =SUM(BU28:BU29) -> 0 | BV27: =SUM(BV28:BV29) -> 0 | BW27: =SUM(BW28:BW29) -> 0
F28: Eclairage | G28: =SUMIFS($O28:$BX28,$O$7:$BX$7,G$7) -> 17.3352 | H28: =SUMIFS($O28:$BX28,$O$7:$BX$7,H$7) -> 14.147 | I28: =SUMIFS($O28:$BX28,$O$7:$BX$7,I$7) -> 14.147 | J28: =SUMIFS($O28:$BX28,$O$7:$BX$7,J$7) -> 9.8891 | K28: =SUMIFS($O28:$BX28,$O$7:$BX$7,K$7) -> 11.54025 | Q28: =SUMIF(Form_Eclairage[ [BatID]:[BatID] ],Q$6,Form_Eclairage[ [Conso_ecl_ex]:[Conso_ecl_ex] ])/1000 -> 7.5914 | R28: =SUM(IF(Form_Eclairage[ [BatID]:[BatID] ]=R$6,Form_Eclairage[Conso_ecl_et1]),0)/1000 -> 7.5914 | S28: =SUM(IF(Form_Eclairage[ [BatID]:[BatID] ]=S$6,Form_Eclairage[Conso_ecl_et2]),0)/1000 -> 7.5914 | T28: =SUM(IF(Form_Eclairage[ [BatID]:[BatID] ]=T$6,Form_Eclairage[Conso_ecl_et3]),0)/1000 -> 3.3335 | U28: =SUM(IF(Form_Eclairage[ [BatID]:[BatID] ]=U$6,Form_Eclairage[Conso_ecl_MTD]),0)/1000 -> 4.27425 | W28: =SUMIF(Form_Eclairage[ [BatID]:[BatID] ],W$6,Form_Eclairage[ [Conso_ecl_ex]:[Conso_ecl_ex] ])/1000 -> 9.7438 | X28: =SUM(IF(Form_Eclairage[ [BatID]:[BatID] ]=X$6,Form_Eclairage[Conso_ecl_et1]),0)/1000 -> 6.5556 | Y28: =SUM(IF(Form_Eclairage[ [BatID]:[BatID] ]=Y$6,Form_Eclairage[Conso_ecl_et2]),0)/1000 -> 6.5556 | Z28: =SUM(IF(Form_Eclairage[ [BatID]:[BatID] ]=Z$6,Form_Eclairage[Conso_ecl_et3]),0)/1000 -> 6.5556 | AA28: =SUM(IF(Form_Eclairage[ [BatID]:[BatID] ]=AA$6,Form_Eclairage[Conso_ecl_MTD]),0)/1000 -> 7.266 | AC28: =SUMIF(Form_Eclairage[ [BatID]:[BatID] ],AC$6,Form_Eclairage[ [Conso_ecl_ex]:[Conso_ecl_ex] ])/1000 -> 0 | AD28: =SUM(IF(Form_Eclairage[ [BatID]:[BatID] ]=AD$6,Form_Eclairage[Conso_ecl_et1]),0)/1000 -> 0 | AE28: =SUM(IF(Form_Eclairage[ [BatID]:[BatID] ]=AE$6,Form_Eclairage[Conso_ecl_et2]),0)/1000 -> 0 | AF28: =SUM(IF(Form_Eclairage[ [BatID]:[BatID] ]=AF$6,Form_Eclairage[Conso_ecl_et3]),0)/1000 -> 0 | AG28: =SUM(IF(Form_Eclairage[ [BatID]:[BatID] ]=AG$6,Form_Eclairage[Conso_ecl_MTD]),0)/1000 -> 0 | AI28: =SUMIF(Form_Eclairage[ [BatID]:[BatID] ],AI$6,Form_Eclairage[ [Conso_ecl_ex]:[Conso_ecl_ex] ])/1000 -> 0 | AJ28: =SUM(IF(Form_Eclairage[ [BatID]:[BatID] ]=AJ$6,Form_Eclairage[Conso_ecl_et1]),0)/1000 -> 0 | AK28: =SUM(IF(Form_Eclairage[ [BatID]:[BatID] ]=AK$6,Form_Eclairage[Conso_ecl_et2]),0)/1000 -> 0 | AL28: =SUM(IF(Form_Eclairage[ [BatID]:[BatID] ]=AL$6,Form_Eclairage[Conso_ecl_et3]),0)/1000 -> 0 | AM28: =SUM(IF(Form_Eclairage[ [BatID]:[BatID] ]=AM$6,Form_Eclairage[Conso_ecl_MTD]),0)/1000 -> 0 | AO28: =SUMIF(Form_Eclairage[ [BatID]:[BatID] ],AO$6,Form_Eclairage[ [Conso_ecl_ex]:[Conso_ecl_ex] ])/1000 -> 0 | AP28: =SUM(IF(Form_Eclairage[ [BatID]:[BatID] ]=AP$6,Form_Eclairage[Conso_ecl_et1]),0)/1000 -> 0 | AQ28: =SUM(IF(Form_Eclairage[ [BatID]:[BatID] ]=AQ$6,Form_Eclairage[Conso_ecl_et2]),0)/1000 -> 0 | AR28: =SUM(IF(Form_Eclairage[ [BatID]:[BatID] ]=AR$6,Form_Eclairage[Conso_ecl_et3]),0)/1000 -> 0 | AS28: =SUM(IF(Form_Eclairage[ [BatID]:[BatID] ]=AS$6,Form_Eclairage[Conso_ecl_MTD]),0)/1000 -> 0 | AU28: =SUMIF(Form_Eclairage[ [BatID]:[BatID] ],AU$6,Form_Eclairage[ [Conso_ecl_ex]:[Conso_ecl_ex] ])/1000 -> 0 | AV28: =SUM(IF(Form_Eclairage[ [BatID]:[BatID] ]=AV$6,Form_Eclairage[Conso_ecl_et1]),0)/1000 -> 0 | AW28: =SUM(IF(Form_Eclairage[ [BatID]:[BatID] ]=AW$6,Form_Eclairage[Conso_ecl_et2]),0)/1000 -> 0 | AX28: =SUM(IF(Form_Eclairage[ [BatID]:[BatID] ]=AX$6,Form_Eclairage[Conso_ecl_et3]),0)/1000 -> 0 | AY28: =SUM(IF(Form_Eclairage[ [BatID]:[BatID] ]=AY$6,Form_Eclairage[Conso_ecl_MTD]),0)/1000 -> 0 | BA28: =SUMIF(Form_Eclairage[ [BatID]:[BatID] ],BA$6,Form_Eclairage[ [Conso_ecl_ex]:[Conso_ecl_ex] ])/1000 -> 0 | BB28: =SUM(IF(Form_Eclairage[ [BatID]:[BatID] ]=BB$6,Form_Eclairage[Conso_ecl_et1]),0)/1000 -> 0 | BC28: =SUM(IF(Form_Eclairage[ [BatID]:[BatID] ]=BC$6,Form_Eclairage[Conso_ecl_et2]),0)/1000 -> 0 | BD28: =SUM(IF(Form_Eclairage[ [BatID]:[BatID] ]=BD$6,Form_Eclairage[Conso_ecl_et3]),0)/1000 -> 0 | BE28: =SUM(IF(Form_Eclairage[ [BatID]:[BatID] ]=BE$6,Form_Eclairage[Conso_ecl_MTD]),0)/1000 -> 0 | BG28: =SUMIF(Form_Eclairage[ [BatID]:[BatID] ],BG$6,Form_Eclairage[ [Conso_ecl_ex]:[Conso_ecl_ex] ])/1000 -> 0 | BH28: =SUM(IF(Form_Eclairage[ [BatID]:[BatID] ]=BH$6,Form_Eclairage[Conso_ecl_et1]),0)/1000 -> 0 | BI28: =SUM(IF(Form_Eclairage[ [BatID]:[BatID] ]=BI$6,Form_Eclairage[Conso_ecl_et2]),0)/1000 -> 0 | BJ28: =SUM(IF(Form_Eclairage[ [BatID]:[BatID] ]=BJ$6,Form_Eclairage[Conso_ecl_et3]),0)/1000 -> 0 | BK28: =SUM(IF(Form_Eclairage[ [BatID]:[BatID] ]=BK$6,Form_Eclairage[Conso_ecl_MTD]),0)/1000 -> 0 | BM28: =SUMIF(Form_Eclairage[ [BatID]:[BatID] ],BM$6,Form_Eclairage[ [Conso_ecl_ex]:[Conso_ecl_ex] ])/1000 -> 0 | BN28: =SUM(IF(Form_Eclairage[ [BatID]:[BatID] ]=BN$6,Form_Eclairage[Conso_ecl_et1]),0)/1000 -> 0 | BO28: =SUM(IF(Form_Eclairage[ [BatID]:[BatID] ]=BO$6,Form_Eclairage[Conso_ecl_et2]),0)/1000 -> 0 | BP28: =SUM(IF(Form_Eclairage[ [BatID]:[BatID] ]=BP$6,Form_Eclairage[Conso_ecl_et3]),0)/1000 -> 0 | BQ28: =SUM(IF(Form_Eclairage[ [BatID]:[BatID] ]=BQ$6,Form_Eclairage[Conso_ecl_MTD]),0)/1000 -> 0 | BS28: =SUMIF(Form_Eclairage[ [BatID]:[BatID] ],BS$6,Form_Eclairage[ [Conso_ecl_ex]:[Conso_ecl_ex] ])/1000 -> 0 | BT28: =SUM(IF(Form_Eclairage[ [BatID]:[BatID] ]=BT$6,Form_Eclairage[Conso_ecl_et1]),0)/1000 -> 0 | BU28: =SUM(IF(Form_Eclairage[ [BatID]:[BatID] ]=BU$6,Form_Eclairage[Conso_ecl_et2]),0)/1000 -> 0 | BV28: =SUM(IF(Form_Eclairage[ [BatID]:[BatID] ]=BV$6,Form_Eclairage[Conso_ecl_et3]),0)/1000 -> 0 | BW28: =SUM(IF(Form_Eclairage[ [BatID]:[BatID] ]=BW$6,Form_Eclairage[Conso_ecl_MTD]),0)/1000 -> 0
C29: 3.ECL | F29: ="Autres usages - "&INDEX(Liste_Usages_Description,MATCH(C29,Liste_Usages,0)) -> Autres usages - Eclairage | G29: =SUMIFS($O29:$BX29,$O$7:$BX$7,G$7) -> 0 | H29: =SUMIFS($O29:$BX29,$O$7:$BX$7,H$7) -> 0 | I29: =SUMIFS($O29:$BX29,$O$7:$BX$7,I$7) -> 0 | J29: =SUMIFS($O29:$BX29,$O$7:$BX$7,J$7) -> 0 | K29: =SUMIFS($O29:$BX29,$O$7:$BX$7,K$7) -> 0 | Q29: =SUMIFS(Form_Autres_Usages[[Conso_ex]:[Conso_ex]],Form_Autres_Usages[[BatID]:[BatID]],Q$6,Form_Autres_Usages[[Usage]:[Usage]],$C29)/1000 -> 0 | R29: =SUMIFS(Form_Autres_Usages[[Conso_pr_et1]:[Conso_pr_et1]],Form_Autres_Usages[[BatID]:[BatID]],R$6,Form_Autres_Usages[[Usage]:[Usage]],$C29)/1000 -> 0 | S29: =SUMIFS(Form_Autres_Usages[[Conso_pr_et2]:[Conso_pr_et2]],Form_Autres_Usages[[BatID]:[BatID]],S$6,Form_Autres_Usages[[Usage]:[Usage]],$C29)/1000 -> 0 | T29: =SUMIFS(Form_Autres_Usages[[Conso_pr_et3]:[Conso_pr_et3]],Form_Autres_Usages[[BatID]:[BatID]],T$6,Form_Autres_Usages[[Usage]:[Usage]],$C29)/1000 -> 0 | U29: =T29 -> 0 | W29: =SUMIFS(Form_Autres_Usages[[Conso_ex]:[Conso_ex]],Form_Autres_Usages[[BatID]:[BatID]],W$6,Form_Autres_Usages[[Usage]:[Usage]],$C29)/1000 -> 0 | X29: =SUMIFS(Form_Autres_Usages[[Conso_pr_et1]:[Conso_pr_et1]],Form_Autres_Usages[[BatID]:[BatID]],X$6,Form_Autres_Usages[[Usage]:[Usage]],$C29)/1000 -> 0 | Y29: =SUMIFS(Form_Autres_Usages[[Conso_pr_et2]:[Conso_pr_et2]],Form_Autres_Usages[[BatID]:[BatID]],Y$6,Form_Autres_Usages[[Usage]:[Usage]],$C29)/1000 -> 0 | Z29: =SUMIFS(Form_Autres_Usages[[Conso_pr_et3]:[Conso_pr_et3]],Form_Autres_Usages[[BatID]:[BatID]],Z$6,Form_Autres_Usages[[Usage]:[Usage]],$C29)/1000 -> 0 | AA29: =Z29 -> 0 | AC29: =SUMIFS(Form_Autres_Usages[[Conso_ex]:[Conso_ex]],Form_Autres_Usages[[BatID]:[BatID]],AC$6,Form_Autres_Usages[[Usage]:[Usage]],$C29)/1000 -> 0 | AD29: =SUMIFS(Form_Autres_Usages[[Conso_pr_et1]:[Conso_pr_et1]],Form_Autres_Usages[[BatID]:[BatID]],AD$6,Form_Autres_Usages[[Usage]:[Usage]],$C29)/1000 -> 0 | AE29: =SUMIFS(Form_Autres_Usages[[Conso_pr_et2]:[Conso_pr_et2]],Form_Autres_Usages[[BatID]:[BatID]],AE$6,Form_Autres_Usages[[Usage]:[Usage]],$C29)/1000 -> 0 | AF29: =SUMIFS(Form_Autres_Usages[[Conso_pr_et3]:[Conso_pr_et3]],Form_Autres_Usages[[BatID]:[BatID]],AF$6,Form_Autres_Usages[[Usage]:[Usage]],$C29)/1000 -> 0 | AG29: =AF29 -> 0 | AI29: =SUMIFS(Form_Autres_Usages[[Conso_ex]:[Conso_ex]],Form_Autres_Usages[[BatID]:[BatID]],AI$6,Form_Autres_Usages[[Usage]:[Usage]],$C29)/1000 -> 0 | AJ29: =SUMIFS(Form_Autres_Usages[[Conso_pr_et1]:[Conso_pr_et1]],Form_Autres_Usages[[BatID]:[BatID]],AJ$6,Form_Autres_Usages[[Usage]:[Usage]],$C29)/1000 -> 0 | AK29: =SUMIFS(Form_Autres_Usages[[Conso_pr_et2]:[Conso_pr_et2]],Form_Autres_Usages[[BatID]:[BatID]],AK$6,Form_Autres_Usages[[Usage]:[Usage]],$C29)/1000 -> 0 | AL29: =SUMIFS(Form_Autres_Usages[[Conso_pr_et3]:[Conso_pr_et3]],Form_Autres_Usages[[BatID]:[BatID]],AL$6,Form_Autres_Usages[[Usage]:[Usage]],$C29)/1000 -> 0 | AM29: =AL29 -> 0 | AO29: =SUMIFS(Form_Autres_Usages[[Conso_ex]:[Conso_ex]],Form_Autres_Usages[[BatID]:[BatID]],AO$6,Form_Autres_Usages[[Usage]:[Usage]],$C29)/1000 -> 0 | AP29: =SUMIFS(Form_Autres_Usages[[Conso_pr_et1]:[Conso_pr_et1]],Form_Autres_Usages[[BatID]:[BatID]],AP$6,Form_Autres_Usages[[Usage]:[Usage]],$C29)/1000 -> 0 | AQ29: =SUMIFS(Form_Autres_Usages[[Conso_pr_et2]:[Conso_pr_et2]],Form_Autres_Usages[[BatID]:[BatID]],AQ$6,Form_Autres_Usages[[Usage]:[Usage]],$C29)/1000 -> 0 | AR29: =SUMIFS(Form_Autres_Usages[[Conso_pr_et3]:[Conso_pr_et3]],Form_Autres_Usages[[BatID]:[BatID]],AR$6,Form_Autres_Usages[[Usage]:[Usage]],$C29)/1000 -> 0 | AS29: =AR29 -> 0 | AU29: =SUMIFS(Form_Autres_Usages[[Conso_ex]:[Conso_ex]],Form_Autres_Usages[[BatID]:[BatID]],AU$6,Form_Autres_Usages[[Usage]:[Usage]],$C29)/1000 -> 0 | AV29: =SUMIFS(Form_Autres_Usages[[Conso_pr_et1]:[Conso_pr_et1]],Form_Autres_Usages[[BatID]:[BatID]],AV$6,Form_Autres_Usages[[Usage]:[Usage]],$C29)/1000 -> 0 | AW29: =SUMIFS(Form_Autres_Usages[[Conso_pr_et2]:[Conso_pr_et2]],Form_Autres_Usages[[BatID]:[BatID]],AW$6,Form_Autres_Usages[[Usage]:[Usage]],$C29)/1000 -> 0 | AX29: =SUMIFS(Form_Autres_Usages[[Conso_pr_et3]:[Conso_pr_et3]],Form_Autres_Usages[[BatID]:[BatID]],AX$6,Form_Autres_Usages[[Usage]:[Usage]],$C29)/1000 -> 0 | AY29: =AX29 -> 0 | BA29: =SUMIFS(Form_Autres_Usages[[Conso_ex]:[Conso_ex]],Form_Autres_Usages[[BatID]:[BatID]],BA$6,Form_Autres_Usages[[Usage]:[Usage]],$C29)/1000 -> 0 | BB29: =SUMIFS(Form_Autres_Usages[[Conso_pr_et1]:[Conso_pr_et1]],Form_Autres_Usages[[BatID]:[BatID]],BB$6,Form_Autres_Usages[[Usage]:[Usage]],$C29)/1000 -> 0 | BC29: =SUMIFS(Form_Autres_Usages[[Conso_pr_et2]:[Conso_pr_et2]],Form_Autres_Usages[[BatID]:[BatID]],BC$6,Form_Autres_Usages[[Usage]:[Usage]],$C29)/1000 -> 0 | BD29: =SUMIFS(Form_Autres_Usages[[Conso_pr_et3]:[Conso_pr_et3]],Form_Autres_Usages[[BatID]:[BatID]],BD$6,Form_Autres_Usages[[Usage]:[Usage]],$C29)/1000 -> 0 | BE29: =BD29 -> 0 | BG29: =SUMIFS(Form_Autres_Usages[[Conso_ex]:[Conso_ex]],Form_Autres_Usages[[BatID]:[BatID]],BG$6,Form_Autres_Usages[[Usage]:[Usage]],$C29)/1000 -> 0 | BH29: =SUMIFS(Form_Autres_Usages[[Conso_pr_et1]:[Conso_pr_et1]],Form_Autres_Usages[[BatID]:[BatID]],BH$6,Form_Autres_Usages[[Usage]:[Usage]],$C29)/1000 -> 0 | BI29: =SUMIFS(Form_Autres_Usages[[Conso_pr_et2]:[Conso_pr_et2]],Form_Autres_Usages[[BatID]:[BatID]],BI$6,Form_Autres_Usages[[Usage]:[Usage]],$C29)/1000 -> 0 | BJ29: =SUMIFS(Form_Autres_Usages[[Conso_pr_et3]:[Conso_pr_et3]],Form_Autres_Usages[[BatID]:[BatID]],BJ$6,Form_Autres_Usages[[Usage]:[Usage]],$C29)/1000 -> 0 | BK29: =BJ29 -> 0 | BM29: =SUMIFS(Form_Autres_Usages[[Conso_ex]:[Conso_ex]],Form_Autres_Usages[[BatID]:[BatID]],BM$6,Form_Autres_Usages[[Usage]:[Usage]],$C29)/1000 -> 0 | BN29: =SUMIFS(Form_Autres_Usages[[Conso_pr_et1]:[Conso_pr_et1]],Form_Autres_Usages[[BatID]:[BatID]],BN$6,Form_Autres_Usages[[Usage]:[Usage]],$C29)/1000 -> 0 | BO29: =SUMIFS(Form_Autres_Usages[[Conso_pr_et2]:[Conso_pr_et2]],Form_Autres_Usages[[BatID]:[BatID]],BO$6,Form_Autres_Usages[[Usage]:[Usage]],$C29)/1000 -> 0 | BP29: =SUMIFS(Form_Autres_Usages[[Conso_pr_et3]:[Conso_pr_et3]],Form_Autres_Usages[[BatID]:[BatID]],BP$6,Form_Autres_Usages[[Usage]:[Usage]],$C29)/1000 -> 0 | BQ29: =BP29 -> 0 | BS29: =SUMIFS(Form_Autres_Usages[[Conso_ex]:[Conso_ex]],Form_Autres_Usages[[BatID]:[BatID]],BS$6,Form_Autres_Usages[[Usage]:[Usage]],$C29)/1000 -> 0 | BT29: =SUMIFS(Form_Autres_Usages[[Conso_pr_et1]:[Conso_pr_et1]],Form_Autres_Usages[[BatID]:[BatID]],BT$6,Form_Autres_Usages[[Usage]:[Usage]],$C29)/1000 -> 0 | BU29: =SUMIFS(Form_Autres_Usages[[Conso_pr_et2]:[Conso_pr_et2]],Form_Autres_Usages[[BatID]:[BatID]],BU$6,Form_Autres_Usages[[Usage]:[Usage]],$C29)/1000 -> 0 | BV29: =SUMIFS(Form_Autres_Usages[[Conso_pr_et3]:[Conso_pr_et3]],Form_Autres_Usages[[BatID]:[BatID]],BV$6,Form_Autres_Usages[[Usage]:[Usage]],$C29)/1000 -> 0 | BW29: =BV29 -> 0
E30: 4. | F30: Refroidissement | G30: =SUMIFS($O30:$BX30,$O$7:$BX$7,G$7) -> 0 | H30: =SUMIFS($O30:$BX30,$O$7:$BX$7,H$7) -> 0 | I30: =SUMIFS($O30:$BX30,$O$7:$BX$7,I$7) -> 0 | J30: =SUMIFS($O30:$BX30,$O$7:$BX$7,J$7) -> 0 | K30: =SUMIFS($O30:$BX30,$O$7:$BX$7,K$7) -> 0 | Q30: =SUM(Q31) -> 0 | R30: =SUM(R31) -> 0 | S30: =SUM(S31) -> 0 | T30: =SUM(T31) -> 0 | U30: =SUM(U31) -> 0 | W30: =SUM(W31) -> 0 | X30: =SUM(X31) -> 0 | Y30: =SUM(Y31) -> 0 | Z30: =SUM(Z31) -> 0 | AA30: =SUM(AA31) -> 0 | AC30: =SUM(AC31) -> 0 | AD30: =SUM(AD31) -> 0 | AE30: =SUM(AE31) -> 0 | AF30: =SUM(AF31) -> 0 | AG30: =SUM(AG31) -> 0 | AI30: =SUM(AI31) -> 0 | AJ30: =SUM(AJ31) -> 0 | AK30: =SUM(AK31) -> 0 | AL30: =SUM(AL31) -> 0 | AM30: =SUM(AM31) -> 0 | AO30: =SUM(AO31) -> 0 | AP30: =SUM(AP31) -> 0 | AQ30: =SUM(AQ31) -> 0 | AR30: =SUM(AR31) -> 0 | AS30: =SUM(AS31) -> 0 | AU30: =SUM(AU31) -> 0 | AV30: =SUM(AV31) -> 0 | AW30: =SUM(AW31) -> 0 | AX30: =SUM(AX31) -> 0 | AY30: =SUM(AY31) -> 0 | BA30: =SUM(BA31) -> 0 | BB30: =SUM(BB31) -> 0 | BC30: =SUM(BC31) -> 0 | BD30: =SUM(BD31) -> 0 | BE30: =SUM(BE31) -> 0 | BG30: =SUM(BG31) -> 0 | BH30: =SUM(BH31) -> 0 | BI30: =SUM(BI31) -> 0 | BJ30: =SUM(BJ31) -> 0 | BK30: =SUM(BK31) -> 0 | BM30: =SUM(BM31) -> 0 | BN30: =SUM(BN31) -> 0 | BO30: =SUM(BO31) -> 0 | BP30: =SUM(BP31) -> 0 | BQ30: =SUM(BQ31) -> 0 | BS30: =SUM(BS31) -> 0 | BT30: =SUM(BT31) -> 0 | BU30: =SUM(BU31) -> 0 | BV30: =SUM(BV31) -> 0 | BW30: =SUM(BW31) -> 0
C31: 4.FRD | F31: ="Autres usages - "&INDEX(Liste_Usages_Description,MATCH(C31,Liste_Usages,0)) -> Autres usages - Refroidissement | G31: =SUMIFS($O31:$BX31,$O$7:$BX$7,G$7) -> 0 | H31: =SUMIFS($O31:$BX31,$O$7:$BX$7,H$7) -> 0 | I31: =SUMIFS($O31:$BX31,$O$7:$BX$7,I$7) -> 0 | J31: =SUMIFS($O31:$BX31,$O$7:$BX$7,J$7) -> 0 | K31: =SUMIFS($O31:$BX31,$O$7:$BX$7,K$7) -> 0 | Q31: =SUMIFS(Form_Autres_Usages[[Conso_ex]:[Conso_ex]],Form_Autres_Usages[[BatID]:[BatID]],Q$6,Form_Autres_Usages[[Usage]:[Usage]],$C30)/1000 -> 0 | R31: =SUMIFS(Form_Autres_Usages[[Conso_pr_et1]:[Conso_pr_et1]],Form_Autres_Usages[[BatID]:[BatID]],R$6,Form_Autres_Usages[[Usage]:[Usage]],$C30)/1000 -> 0 | S31: =SUMIFS(Form_Autres_Usages[[Conso_pr_et2]:[Conso_pr_et2]],Form_Autres_Usages[[BatID]:[BatID]],S$6,Form_Autres_Usages[[Usage]:[Usage]],$C30)/1000 -> 0 | T31: =SUMIFS(Form_Autres_Usages[[Conso_pr_et3]:[Conso_pr_et3]],Form_Autres_Usages[[BatID]:[BatID]],T$6,Form_Autres_Usages[[Usage]:[Usage]],$C30)/1000 -> 0 | U31: =T31 -> 0 | W31: =SUMIFS(Form_Autres_Usages[[Conso_ex]:[Conso_ex]],Form_Autres_Usages[[BatID]:[BatID]],W$6,Form_Autres_Usages[[Usage]:[Usage]],$C30)/1000 -> 0 | X31: =SUMIFS(Form_Autres_Usages[[Conso_pr_et1]:[Conso_pr_et1]],Form_Autres_Usages[[BatID]:[BatID]],X$6,Form_Autres_Usages[[Usage]:[Usage]],$C30)/1000 -> 0 | Y31: =SUMIFS(Form_Autres_Usages[[Conso_pr_et2]:[Conso_pr_et2]],Form_Autres_Usages[[BatID]:[BatID]],Y$6,Form_Autres_Usages[[Usage]:[Usage]],$C30)/1000 -> 0 | Z31: =SUMIFS(Form_Autres_Usages[[Conso_pr_et3]:[Conso_pr_et3]],Form_Autres_Usages[[BatID]:[BatID]],Z$6,Form_Autres_Usages[[Usage]:[Usage]],$C30)/1000 -> 0 | AA31: =Z31 -> 0 | AC31: =SUMIFS(Form_Autres_Usages[[Conso_ex]:[Conso_ex]],Form_Autres_Usages[[BatID]:[BatID]],AC$6,Form_Autres_Usages[[Usage]:[Usage]],$C30)/1000 -> 0 | AD31: =SUMIFS(Form_Autres_Usages[[Conso_pr_et1]:[Conso_pr_et1]],Form_Autres_Usages[[BatID]:[BatID]],AD$6,Form_Autres_Usages[[Usage]:[Usage]],$C30)/1000 -> 0 | AE31: =SUMIFS(Form_Autres_Usages[[Conso_pr_et2]:[Conso_pr_et2]],Form_Autres_Usages[[BatID]:[BatID]],AE$6,Form_Autres_Usages[[Usage]:[Usage]],$C30)/1000 -> 0 | AF31: =SUMIFS(Form_Autres_Usages[[Conso_pr_et3]:[Conso_pr_et3]],Form_Autres_Usages[[BatID]:[BatID]],AF$6,Form_Autres_Usages[[Usage]:[Usage]],$C30)/1000 -> 0 | AG31: =AF31 -> 0 | AI31: =SUMIFS(Form_Autres_Usages[[Conso_ex]:[Conso_ex]],Form_Autres_Usages[[BatID]:[BatID]],AI$6,Form_Autres_Usages[[Usage]:[Usage]],$C30)/1000 -> 0 | AJ31: =SUMIFS(Form_Autres_Usages[[Conso_pr_et1]:[Conso_pr_et1]],Form_Autres_Usages[[BatID]:[BatID]],AJ$6,Form_Autres_Usages[[Usage]:[Usage]],$C30)/1000 -> 0 | AK31: =SUMIFS(Form_Autres_Usages[[Conso_pr_et2]:[Conso_pr_et2]],Form_Autres_Usages[[BatID]:[BatID]],AK$6,Form_Autres_Usages[[Usage]:[Usage]],$C30)/1000 -> 0 | AL31: =SUMIFS(Form_Autres_Usages[[Conso_pr_et3]:[Conso_pr_et3]],Form_Autres_Usages[[BatID]:[BatID]],AL$6,Form_Autres_Usages[[Usage]:[Usage]],$C30)/1000 -> 0 | AM31: =AL31 -> 0 | AO31: =SUMIFS(Form_Autres_Usages[[Conso_ex]:[Conso_ex]],Form_Autres_Usages[[BatID]:[BatID]],AO$6,Form_Autres_Usages[[Usage]:[Usage]],$C30)/1000 -> 0 | AP31: =SUMIFS(Form_Autres_Usages[[Conso_pr_et1]:[Conso_pr_et1]],Form_Autres_Usages[[BatID]:[BatID]],AP$6,Form_Autres_Usages[[Usage]:[Usage]],$C30)/1000 -> 0 | AQ31: =SUMIFS(Form_Autres_Usages[[Conso_pr_et2]:[Conso_pr_et2]],Form_Autres_Usages[[BatID]:[BatID]],AQ$6,Form_Autres_Usages[[Usage]:[Usage]],$C30)/1000 -> 0 | AR31: =SUMIFS(Form_Autres_Usages[[Conso_pr_et3]:[Conso_pr_et3]],Form_Autres_Usages[[BatID]:[BatID]],AR$6,Form_Autres_Usages[[Usage]:[Usage]],$C30)/1000 -> 0 | AS31: =AR31 -> 0 | AU31: =SUMIFS(Form_Autres_Usages[[Conso_ex]:[Conso_ex]],Form_Autres_Usages[[BatID]:[BatID]],AU$6,Form_Autres_Usages[[Usage]:[Usage]],$C30)/1000 -> 0 | AV31: =SUMIFS(Form_Autres_Usages[[Conso_pr_et1]:[Conso_pr_et1]],Form_Autres_Usages[[BatID]:[BatID]],AV$6,Form_Autres_Usages[[Usage]:[Usage]],$C30)/1000 -> 0 | AW31: =SUMIFS(Form_Autres_Usages[[Conso_pr_et2]:[Conso_pr_et2]],Form_Autres_Usages[[BatID]:[BatID]],AW$6,Form_Autres_Usages[[Usage]:[Usage]],$C30)/1000 -> 0 | AX31: =SUMIFS(Form_Autres_Usages[[Conso_pr_et3]:[Conso_pr_et3]],Form_Autres_Usages[[BatID]:[BatID]],AX$6,Form_Autres_Usages[[Usage]:[Usage]],$C30)/1000 -> 0 | AY31: =AX31 -> 0 | BA31: =SUMIFS(Form_Autres_Usages[[Conso_ex]:[Conso_ex]],Form_Autres_Usages[[BatID]:[BatID]],BA$6,Form_Autres_Usages[[Usage]:[Usage]],$C30)/1000 -> 0 | BB31: =SUMIFS(Form_Autres_Usages[[Conso_pr_et1]:[Conso_pr_et1]],Form_Autres_Usages[[BatID]:[BatID]],BB$6,Form_Autres_Usages[[Usage]:[Usage]],$C30)/1000 -> 0 | BC31: =SUMIFS(Form_Autres_Usages[[Conso_pr_et2]:[Conso_pr_et2]],Form_Autres_Usages[[BatID]:[BatID]],BC$6,Form_Autres_Usages[[Usage]:[Usage]],$C30)/1000 -> 0 | BD31: =SUMIFS(Form_Autres_Usages[[Conso_pr_et3]:[Conso_pr_et3]],Form_Autres_Usages[[BatID]:[BatID]],BD$6,Form_Autres_Usages[[Usage]:[Usage]],$C30)/1000 -> 0 | BE31: =BD31 -> 0 | BG31: =SUMIFS(Form_Autres_Usages[[Conso_ex]:[Conso_ex]],Form_Autres_Usages[[BatID]:[BatID]],BG$6,Form_Autres_Usages[[Usage]:[Usage]],$C30)/1000 -> 0 | BH31: =SUMIFS(Form_Autres_Usages[[Conso_pr_et1]:[Conso_pr_et1]],Form_Autres_Usages[[BatID]:[BatID]],BH$6,Form_Autres_Usages[[Usage]:[Usage]],$C30)/1000 -> 0 | BI31: =SUMIFS(Form_Autres_Usages[[Conso_pr_et2]:[Conso_pr_et2]],Form_Autres_Usages[[BatID]:[BatID]],BI$6,Form_Autres_Usages[[Usage]:[Usage]],$C30)/1000 -> 0 | BJ31: =SUMIFS(Form_Autres_Usages[[Conso_pr_et3]:[Conso_pr_et3]],Form_Autres_Usages[[BatID]:[BatID]],BJ$6,Form_Autres_Usages[[Usage]:[Usage]],$C30)/1000 -> 0 | BK31: =BJ31 -> 0 | BM31: =SUMIFS(Form_Autres_Usages[[Conso_ex]:[Conso_ex]],Form_Autres_Usages[[BatID]:[BatID]],BM$6,Form_Autres_Usages[[Usage]:[Usage]],$C30)/1000 -> 0 | BN31: =SUMIFS(Form_Autres_Usages[[Conso_pr_et1]:[Conso_pr_et1]],Form_Autres_Usages[[BatID]:[BatID]],BN$6,Form_Autres_Usages[[Usage]:[Usage]],$C30)/1000 -> 0 | BO31: =SUMIFS(Form_Autres_Usages[[Conso_pr_et2]:[Conso_pr_et2]],Form_Autres_Usages[[BatID]:[BatID]],BO$6,Form_Autres_Usages[[Usage]:[Usage]],$C30)/1000 -> 0 | BP31: =SUMIFS(Form_Autres_Usages[[Conso_pr_et3]:[Conso_pr_et3]],Form_Autres_Usages[[BatID]:[BatID]],BP$6,Form_Autres_Usages[[Usage]:[Usage]],$C30)/1000 -> 0 | BQ31: =BP31 -> 0 | BS31: =SUMIFS(Form_Autres_Usages[[Conso_ex]:[Conso_ex]],Form_Autres_Usages[[BatID]:[BatID]],BS$6,Form_Autres_Usages[[Usage]:[Usage]],$C30)/1000 -> 0 | BT31: =SUMIFS(Form_Autres_Usages[[Conso_pr_et1]:[Conso_pr_et1]],Form_Autres_Usages[[BatID]:[BatID]],BT$6,Form_Autres_Usages[[Usage]:[Usage]],$C30)/1000 -> 0 | BU31: =SUMIFS(Form_Autres_Usages[[Conso_pr_et2]:[Conso_pr_et2]],Form_Autres_Usages[[BatID]:[BatID]],BU$6,Form_Autres_Usages[[Usage]:[Usage]],$C30)/1000 -> 0 | BV31: =SUMIFS(Form_Autres_Usages[[Conso_pr_et3]:[Conso_pr_et3]],Form_Autres_Usages[[BatID]:[BatID]],BV$6,Form_Autres_Usages[[Usage]:[Usage]],$C30)/1000 -> 0 | BW31: =BV31 -> 0
E32: 5. | F32: (Dés)Humidification | G32: =SUMIFS($O32:$BX32,$O$7:$BX$7,G$7) -> 0 | H32: =SUMIFS($O32:$BX32,$O$7:$BX$7,H$7) -> 0 | I32: =SUMIFS($O32:$BX32,$O$7:$BX$7,I$7) -> 0 | J32: =SUMIFS($O32:$BX32,$O$7:$BX$7,J$7) -> 0 | K32: =SUMIFS($O32:$BX32,$O$7:$BX$7,K$7) -> 0 | Q32: =SUM(Q33:Q35) -> 0 | R32: =SUM(R33:R35) -> 0 | S32: =SUM(S33:S35) -> 0 | T32: =SUM(T33:T35) -> 0 | U32: =SUM(U33:U35) -> 0 | W32: =SUM(W33:W35) -> 0 | X32: =SUM(X33:X35) -> 0 | Y32: =SUM(Y33:Y35) -> 0 | Z32: =SUM(Z33:Z35) -> 0 | AA32: =SUM(AA33:AA35) -> 0 | AC32: =SUM(AC33:AC35) -> 0 | AD32: =SUM(AD33:AD35) -> 0 | AE32: =SUM(AE33:AE35) -> 0 | AF32: =SUM(AF33:AF35) -> 0 | AG32: =SUM(AG33:AG35) -> 0 | AI32: =SUM(AI33:AI35) -> 0 | AJ32: =SUM(AJ33:AJ35) -> 0 | AK32: =SUM(AK33:AK35) -> 0 | AL32: =SUM(AL33:AL35) -> 0 | AM32: =SUM(AM33:AM35) -> 0 | AO32: =SUM(AO33:AO35) -> 0 | AP32: =SUM(AP33:AP35) -> 0 | AQ32: =SUM(AQ33:AQ35) -> 0 | AR32: =SUM(AR33:AR35) -> 0 | AS32: =SUM(AS33:AS35) -> 0 | AU32: =SUM(AU33:AU35) -> 0 | AV32: =SUM(AV33:AV35) -> 0 | AW32: =SUM(AW33:AW35) -> 0 | AX32: =SUM(AX33:AX35) -> 0 | AY32: =SUM(AY33:AY35) -> 0 | BA32: =SUM(BA33:BA35) -> 0 | BB32: =SUM(BB33:BB35) -> 0 | BC32: =SUM(BC33:BC35) -> 0 | BD32: =SUM(BD33:BD35) -> 0 | BE32: =SUM(BE33:BE35) -> 0 | BG32: =SUM(BG33:BG35) -> 0 | BH32: =SUM(BH33:BH35) -> 0 | BI32: =SUM(BI33:BI35) -> 0 | BJ32: =SUM(BJ33:BJ35) -> 0 | BK32: =SUM(BK33:BK35) -> 0 | BM32: =SUM(BM33:BM35) -> 0 | BN32: =SUM(BN33:BN35) -> 0 | BO32: =SUM(BO33:BO35) -> 0 | BP32: =SUM(BP33:BP35) -> 0 | BQ32: =SUM(BQ33:BQ35) -> 0 | BS32: =SUM(BS33:BS35) -> 0 | BT32: =SUM(BT33:BT35) -> 0 | BU32: =SUM(BU33:BU35) -> 0 | BV32: =SUM(BV33:BV35) -> 0 | BW32: =SUM(BW33:BW35) -> 0
C33: 5.HUM | F33: ="Autres usages - "&INDEX(Liste_Usages_Description,MATCH(C33,Liste_Usages,0)) -> Autres usages - Humidification | G33: =SUMIFS($O33:$BX33,$O$7:$BX$7,G$7) -> 0 | H33: =SUMIFS($O33:$BX33,$O$7:$BX$7,H$7) -> 0 | I33: =SUMIFS($O33:$BX33,$O$7:$BX$7,I$7) -> 0 | J33: =SUMIFS($O33:$BX33,$O$7:$BX$7,J$7) -> 0 | K33: =SUMIFS($O33:$BX33,$O$7:$BX$7,K$7) -> 0 | Q33: =SUMIFS(Form_Autres_Usages[[Conso_ex]:[Conso_ex]],Form_Autres_Usages[[BatID]:[BatID]],Q$6,Form_Autres_Usages[[Usage]:[Usage]],$C33)/1000 -> 0 | R33: =SUMIFS(Form_Autres_Usages[[Conso_pr_et1]:[Conso_pr_et1]],Form_Autres_Usages[[BatID]:[BatID]],R$6,Form_Autres_Usages[[Usage]:[Usage]],$C33)/1000 -> 0 | S33: =SUMIFS(Form_Autres_Usages[[Conso_pr_et2]:[Conso_pr_et2]],Form_Autres_Usages[[BatID]:[BatID]],S$6,Form_Autres_Usages[[Usage]:[Usage]],$C33)/1000 -> 0 | T33: =SUMIFS(Form_Autres_Usages[[Conso_pr_et3]:[Conso_pr_et3]],Form_Autres_Usages[[BatID]:[BatID]],T$6,Form_Autres_Usages[[Usage]:[Usage]],$C33)/1000 -> 0 | U33: =T33 -> 0 | W33: =SUMIFS(Form_Autres_Usages[[Conso_ex]:[Conso_ex]],Form_Autres_Usages[[BatID]:[BatID]],W$6,Form_Autres_Usages[[Usage]:[Usage]],$C33)/1000 -> 0 | X33: =SUMIFS(Form_Autres_Usages[[Conso_pr_et1]:[Conso_pr_et1]],Form_Autres_Usages[[BatID]:[BatID]],X$6,Form_Autres_Usages[[Usage]:[Usage]],$C33)/1000 -> 0 | Y33: =SUMIFS(Form_Autres_Usages[[Conso_pr_et2]:[Conso_pr_et2]],Form_Autres_Usages[[BatID]:[BatID]],Y$6,Form_Autres_Usages[[Usage]:[Usage]],$C33)/1000 -> 0 | Z33: =SUMIFS(Form_Autres_Usages[[Conso_pr_et3]:[Conso_pr_et3]],Form_Autres_Usages[[BatID]:[BatID]],Z$6,Form_Autres_Usages[[Usage]:[Usage]],$C33)/1000 -> 0 | AA33: =Z33 -> 0 | AC33: =SUMIFS(Form_Autres_Usages[[Conso_ex]:[Conso_ex]],Form_Autres_Usages[[BatID]:[BatID]],AC$6,Form_Autres_Usages[[Usage]:[Usage]],$C33)/1000 -> 0 | AD33: =SUMIFS(Form_Autres_Usages[[Conso_pr_et1]:[Conso_pr_et1]],Form_Autres_Usages[[BatID]:[BatID]],AD$6,Form_Autres_Usages[[Usage]:[Usage]],$C33)/1000 -> 0 | AE33: =SUMIFS(Form_Autres_Usages[[Conso_pr_et2]:[Conso_pr_et2]],Form_Autres_Usages[[BatID]:[BatID]],AE$6,Form_Autres_Usages[[Usage]:[Usage]],$C33)/1000 -> 0 | AF33: =SUMIFS(Form_Autres_Usages[[Conso_pr_et3]:[Conso_pr_et3]],Form_Autres_Usages[[BatID]:[BatID]],AF$6,Form_Autres_Usages[[Usage]:[Usage]],$C33)/1000 -> 0 | AG33: =AF33 -> 0 | AI33: =SUMIFS(Form_Autres_Usages[[Conso_ex]:[Conso_ex]],Form_Autres_Usages[[BatID]:[BatID]],AI$6,Form_Autres_Usages[[Usage]:[Usage]],$C33)/1000 -> 0 | AJ33: =SUMIFS(Form_Autres_Usages[[Conso_pr_et1]:[Conso_pr_et1]],Form_Autres_Usages[[BatID]:[BatID]],AJ$6,Form_Autres_Usages[[Usage]:[Usage]],$C33)/1000 -> 0 | AK33: =SUMIFS(Form_Autres_Usages[[Conso_pr_et2]:[Conso_pr_et2]],Form_Autres_Usages[[BatID]:[BatID]],AK$6,Form_Autres_Usages[[Usage]:[Usage]],$C33)/1000 -> 0 | AL33: =SUMIFS(Form_Autres_Usages[[Conso_pr_et3]:[Conso_pr_et3]],Form_Autres_Usages[[BatID]:[BatID]],AL$6,Form_Autres_Usages[[Usage]:[Usage]],$C33)/1000 -> 0 | AM33: =AL33 -> 0 | AO33: =SUMIFS(Form_Autres_Usages[[Conso_ex]:[Conso_ex]],Form_Autres_Usages[[BatID]:[BatID]],AO$6,Form_Autres_Usages[[Usage]:[Usage]],$C33)/1000 -> 0 | AP33: =SUMIFS(Form_Autres_Usages[[Conso_pr_et1]:[Conso_pr_et1]],Form_Autres_Usages[[BatID]:[BatID]],AP$6,Form_Autres_Usages[[Usage]:[Usage]],$C33)/1000 -> 0 | AQ33: =SUMIFS(Form_Autres_Usages[[Conso_pr_et2]:[Conso_pr_et2]],Form_Autres_Usages[[BatID]:[BatID]],AQ$6,Form_Autres_Usages[[Usage]:[Usage]],$C33)/1000 -> 0 | AR33: =SUMIFS(Form_Autres_Usages[[Conso_pr_et3]:[Conso_pr_et3]],Form_Autres_Usages[[BatID]:[BatID]],AR$6,Form_Autres_Usages[[Usage]:[Usage]],$C33)/1000 -> 0 | AS33: =AR33 -> 0 | AU33: =SUMIFS(Form_Autres_Usages[[Conso_ex]:[Conso_ex]],Form_Autres_Usages[[BatID]:[BatID]],AU$6,Form_Autres_Usages[[Usage]:[Usage]],$C33)/1000 -> 0 | AV33: =SUMIFS(Form_Autres_Usages[[Conso_pr_et1]:[Conso_pr_et1]],Form_Autres_Usages[[BatID]:[BatID]],AV$6,Form_Autres_Usages[[Usage]:[Usage]],$C33)/1000 -> 0 | AW33: =SUMIFS(Form_Autres_Usages[[Conso_pr_et2]:[Conso_pr_et2]],Form_Autres_Usages[[BatID]:[BatID]],AW$6,Form_Autres_Usages[[Usage]:[Usage]],$C33)/1000 -> 0 | AX33: =SUMIFS(Form_Autres_Usages[[Conso_pr_et3]:[Conso_pr_et3]],Form_Autres_Usages[[BatID]:[BatID]],AX$6,Form_Autres_Usages[[Usage]:[Usage]],$C33)/1000 -> 0 | AY33: =AX33 -> 0 | BA33: =SUMIFS(Form_Autres_Usages[[Conso_ex]:[Conso_ex]],Form_Autres_Usages[[BatID]:[BatID]],BA$6,Form_Autres_Usages[[Usage]:[Usage]],$C33)/1000 -> 0 | BB33: =SUMIFS(Form_Autres_Usages[[Conso_pr_et1]:[Conso_pr_et1]],Form_Autres_Usages[[BatID]:[BatID]],BB$6,Form_Autres_Usages[[Usage]:[Usage]],$C33)/1000 -> 0 | BC33: =SUMIFS(Form_Autres_Usages[[Conso_pr_et2]:[Conso_pr_et2]],Form_Autres_Usages[[BatID]:[BatID]],BC$6,Form_Autres_Usages[[Usage]:[Usage]],$C33)/1000 -> 0 | BD33: =SUMIFS(Form_Autres_Usages[[Conso_pr_et3]:[Conso_pr_et3]],Form_Autres_Usages[[BatID]:[BatID]],BD$6,Form_Autres_Usages[[Usage]:[Usage]],$C33)/1000 -> 0 | BE33: =BD33 -> 0 | BG33: =SUMIFS(Form_Autres_Usages[[Conso_ex]:[Conso_ex]],Form_Autres_Usages[[BatID]:[BatID]],BG$6,Form_Autres_Usages[[Usage]:[Usage]],$C33)/1000 -> 0 | BH33: =SUMIFS(Form_Autres_Usages[[Conso_pr_et1]:[Conso_pr_et1]],Form_Autres_Usages[[BatID]:[BatID]],BH$6,Form_Autres_Usages[[Usage]:[Usage]],$C33)/1000 -> 0 | BI33: =SUMIFS(Form_Autres_Usages[[Conso_pr_et2]:[Conso_pr_et2]],Form_Autres_Usages[[BatID]:[BatID]],BI$6,Form_Autres_Usages[[Usage]:[Usage]],$C33)/1000 -> 0 | BJ33: =SUMIFS(Form_Autres_Usages[[Conso_pr_et3]:[Conso_pr_et3]],Form_Autres_Usages[[BatID]:[BatID]],BJ$6,Form_Autres_Usages[[Usage]:[Usage]],$C33)/1000 -> 0 | BK33: =BJ33 -> 0 | BM33: =SUMIFS(Form_Autres_Usages[[Conso_ex]:[Conso_ex]],Form_Autres_Usages[[BatID]:[BatID]],BM$6,Form_Autres_Usages[[Usage]:[Usage]],$C33)/1000 -> 0 | BN33: =SUMIFS(Form_Autres_Usages[[Conso_pr_et1]:[Conso_pr_et1]],Form_Autres_Usages[[BatID]:[BatID]],BN$6,Form_Autres_Usages[[Usage]:[Usage]],$C33)/1000 -> 0 | BO33: =SUMIFS(Form_Autres_Usages[[Conso_pr_et2]:[Conso_pr_et2]],Form_Autres_Usages[[BatID]:[BatID]],BO$6,Form_Autres_Usages[[Usage]:[Usage]],$C33)/1000 -> 0 | BP33: =SUMIFS(Form_Autres_Usages[[Conso_pr_et3]:[Conso_pr_et3]],Form_Autres_Usages[[BatID]:[BatID]],BP$6,Form_Autres_Usages[[Usage]:[Usage]],$C33)/1000 -> 0 | BQ33: =BP33 -> 0 | BS33: =SUMIFS(Form_Autres_Usages[[Conso_ex]:[Conso_ex]],Form_Autres_Usages[[BatID]:[BatID]],BS$6,Form_Autres_Usages[[Usage]:[Usage]],$C33)/1000 -> 0 | BT33: =SUMIFS(Form_Autres_Usages[[Conso_pr_et1]:[Conso_pr_et1]],Form_Autres_Usages[[BatID]:[BatID]],BT$6,Form_Autres_Usages[[Usage]:[Usage]],$C33)/1000 -> 0 | BU33: =SUMIFS(Form_Autres_Usages[[Conso_pr_et2]:[Conso_pr_et2]],Form_Autres_Usages[[BatID]:[BatID]],BU$6,Form_Autres_Usages[[Usage]:[Usage]],$C33)/1000 -> 0 | BV33: =SUMIFS(Form_Autres_Usages[[Conso_pr_et3]:[Conso_pr_et3]],Form_Autres_Usages[[BatID]:[BatID]],BV$6,Form_Autres_Usages[[Usage]:[Usage]],$C33)/1000 -> 0 | BW33: =BV33 -> 0
C34: 5.DEHUM | F34: ="Autres usages - "&INDEX(Liste_Usages_Description,MATCH(C34,Liste_Usages,0)) -> Autres usages - Déshumidification | G34: =SUMIFS($O34:$BX34,$O$7:$BX$7,G$7) -> 0 | H34: =SUMIFS($O34:$BX34,$O$7:$BX$7,H$7) -> 0 | I34: =SUMIFS($O34:$BX34,$O$7:$BX$7,I$7) -> 0 | J34: =SUMIFS($O34:$BX34,$O$7:$BX$7,J$7) -> 0 | K34: =SUMIFS($O34:$BX34,$O$7:$BX$7,K$7) -> 0 | Q34: =SUMIFS(Form_Autres_Usages[[Conso_ex]:[Conso_ex]],Form_Autres_Usages[[BatID]:[BatID]],Q$6,Form_Autres_Usages[[Usage]:[Usage]],$C34)/1000 -> 0 | R34: =SUMIFS(Form_Autres_Usages[[Conso_pr_et1]:[Conso_pr_et1]],Form_Autres_Usages[[BatID]:[BatID]],R$6,Form_Autres_Usages[[Usage]:[Usage]],$C34)/1000 -> 0 | S34: =SUMIFS(Form_Autres_Usages[[Conso_pr_et2]:[Conso_pr_et2]],Form_Autres_Usages[[BatID]:[BatID]],S$6,Form_Autres_Usages[[Usage]:[Usage]],$C34)/1000 -> 0 | T34: =SUMIFS(Form_Autres_Usages[[Conso_pr_et3]:[Conso_pr_et3]],Form_Autres_Usages[[BatID]:[BatID]],T$6,Form_Autres_Usages[[Usage]:[Usage]],$C34)/1000 -> 0 | U34: =T34 -> 0 | W34: =SUMIFS(Form_Autres_Usages[[Conso_ex]:[Conso_ex]],Form_Autres_Usages[[BatID]:[BatID]],W$6,Form_Autres_Usages[[Usage]:[Usage]],$C34)/1000 -> 0 | X34: =SUMIFS(Form_Autres_Usages[[Conso_pr_et1]:[Conso_pr_et1]],Form_Autres_Usages[[BatID]:[BatID]],X$6,Form_Autres_Usages[[Usage]:[Usage]],$C34)/1000 -> 0 | Y34: =SUMIFS(Form_Autres_Usages[[Conso_pr_et2]:[Conso_pr_et2]],Form_Autres_Usages[[BatID]:[BatID]],Y$6,Form_Autres_Usages[[Usage]:[Usage]],$C34)/1000 -> 0 | Z34: =SUMIFS(Form_Autres_Usages[[Conso_pr_et3]:[Conso_pr_et3]],Form_Autres_Usages[[BatID]:[BatID]],Z$6,Form_Autres_Usages[[Usage]:[Usage]],$C34)/1000 -> 0 | AA34: =Z34 -> 0 | AC34: =SUMIFS(Form_Autres_Usages[[Conso_ex]:[Conso_ex]],Form_Autres_Usages[[BatID]:[BatID]],AC$6,Form_Autres_Usages[[Usage]:[Usage]],$C34)/1000 -> 0 | AD34: =SUMIFS(Form_Autres_Usages[[Conso_pr_et1]:[Conso_pr_et1]],Form_Autres_Usages[[BatID]:[BatID]],AD$6,Form_Autres_Usages[[Usage]:[Usage]],$C34)/1000 -> 0 | AE34: =SUMIFS(Form_Autres_Usages[[Conso_pr_et2]:[Conso_pr_et2]],Form_Autres_Usages[[BatID]:[BatID]],AE$6,Form_Autres_Usages[[Usage]:[Usage]],$C34)/1000 -> 0 | AF34: =SUMIFS(Form_Autres_Usages[[Conso_pr_et3]:[Conso_pr_et3]],Form_Autres_Usages[[BatID]:[BatID]],AF$6,Form_Autres_Usages[[Usage]:[Usage]],$C34)/1000 -> 0 | AG34: =AF34 -> 0 | AI34: =SUMIFS(Form_Autres_Usages[[Conso_ex]:[Conso_ex]],Form_Autres_Usages[[BatID]:[BatID]],AI$6,Form_Autres_Usages[[Usage]:[Usage]],$C34)/1000 -> 0 | AJ34: =SUMIFS(Form_Autres_Usages[[Conso_pr_et1]:[Conso_pr_et1]],Form_Autres_Usages[[BatID]:[BatID]],AJ$6,Form_Autres_Usages[[Usage]:[Usage]],$C34)/1000 -> 0 | AK34: =SUMIFS(Form_Autres_Usages[[Conso_pr_et2]:[Conso_pr_et2]],Form_Autres_Usages[[BatID]:[BatID]],AK$6,Form_Autres_Usages[[Usage]:[Usage]],$C34)/1000 -> 0 | AL34: =SUMIFS(Form_Autres_Usages[[Conso_pr_et3]:[Conso_pr_et3]],Form_Autres_Usages[[BatID]:[BatID]],AL$6,Form_Autres_Usages[[Usage]:[Usage]],$C34)/1000 -> 0 | AM34: =AL34 -> 0 | AO34: =SUMIFS(Form_Autres_Usages[[Conso_ex]:[Conso_ex]],Form_Autres_Usages[[BatID]:[BatID]],AO$6,Form_Autres_Usages[[Usage]:[Usage]],$C34)/1000 -> 0 | AP34: =SUMIFS(Form_Autres_Usages[[Conso_pr_et1]:[Conso_pr_et1]],Form_Autres_Usages[[BatID]:[BatID]],AP$6,Form_Autres_Usages[[Usage]:[Usage]],$C34)/1000 -> 0 | AQ34: =SUMIFS(Form_Autres_Usages[[Conso_pr_et2]:[Conso_pr_et2]],Form_Autres_Usages[[BatID]:[BatID]],AQ$6,Form_Autres_Usages[[Usage]:[Usage]],$C34)/1000 -> 0 | AR34: =SUMIFS(Form_Autres_Usages[[Conso_pr_et3]:[Conso_pr_et3]],Form_Autres_Usages[[BatID]:[BatID]],AR$6,Form_Autres_Usages[[Usage]:[Usage]],$C34)/1000 -> 0 | AS34: =AR34 -> 0 | AU34: =SUMIFS(Form_Autres_Usages[[Conso_ex]:[Conso_ex]],Form_Autres_Usages[[BatID]:[BatID]],AU$6,Form_Autres_Usages[[Usage]:[Usage]],$C34)/1000 -> 0 | AV34: =SUMIFS(Form_Autres_Usages[[Conso_pr_et1]:[Conso_pr_et1]],Form_Autres_Usages[[BatID]:[BatID]],AV$6,Form_Autres_Usages[[Usage]:[Usage]],$C34)/1000 -> 0 | AW34: =SUMIFS(Form_Autres_Usages[[Conso_pr_et2]:[Conso_pr_et2]],Form_Autres_Usages[[BatID]:[BatID]],AW$6,Form_Autres_Usages[[Usage]:[Usage]],$C34)/1000 -> 0 | AX34: =SUMIFS(Form_Autres_Usages[[Conso_pr_et3]:[Conso_pr_et3]],Form_Autres_Usages[[BatID]:[BatID]],AX$6,Form_Autres_Usages[[Usage]:[Usage]],$C34)/1000 -> 0 | AY34: =AX34 -> 0 | BA34: =SUMIFS(Form_Autres_Usages[[Conso_ex]:[Conso_ex]],Form_Autres_Usages[[BatID]:[BatID]],BA$6,Form_Autres_Usages[[Usage]:[Usage]],$C34)/1000 -> 0 | BB34: =SUMIFS(Form_Autres_Usages[[Conso_pr_et1]:[Conso_pr_et1]],Form_Autres_Usages[[BatID]:[BatID]],BB$6,Form_Autres_Usages[[Usage]:[Usage]],$C34)/1000 -> 0 | BC34: =SUMIFS(Form_Autres_Usages[[Conso_pr_et2]:[Conso_pr_et2]],Form_Autres_Usages[[BatID]:[BatID]],BC$6,Form_Autres_Usages[[Usage]:[Usage]],$C34)/1000 -> 0 | BD34: =SUMIFS(Form_Autres_Usages[[Conso_pr_et3]:[Conso_pr_et3]],Form_Autres_Usages[[BatID]:[BatID]],BD$6,Form_Autres_Usages[[Usage]:[Usage]],$C34)/1000 -> 0 | BE34: =BD34 -> 0 | BG34: =SUMIFS(Form_Autres_Usages[[Conso_ex]:[Conso_ex]],Form_Autres_Usages[[BatID]:[BatID]],BG$6,Form_Autres_Usages[[Usage]:[Usage]],$C34)/1000 -> 0 | BH34: =SUMIFS(Form_Autres_Usages[[Conso_pr_et1]:[Conso_pr_et1]],Form_Autres_Usages[[BatID]:[BatID]],BH$6,Form_Autres_Usages[[Usage]:[Usage]],$C34)/1000 -> 0 | BI34: =SUMIFS(Form_Autres_Usages[[Conso_pr_et2]:[Conso_pr_et2]],Form_Autres_Usages[[BatID]:[BatID]],BI$6,Form_Autres_Usages[[Usage]:[Usage]],$C34)/1000 -> 0 | BJ34: =SUMIFS(Form_Autres_Usages[[Conso_pr_et3]:[Conso_pr_et3]],Form_Autres_Usages[[BatID]:[BatID]],BJ$6,Form_Autres_Usages[[Usage]:[Usage]],$C34)/1000 -> 0 | BK34: =BJ34 -> 0 | BM34: =SUMIFS(Form_Autres_Usages[[Conso_ex]:[Conso_ex]],Form_Autres_Usages[[BatID]:[BatID]],BM$6,Form_Autres_Usages[[Usage]:[Usage]],$C34)/1000 -> 0 | BN34: =SUMIFS(Form_Autres_Usages[[Conso_pr_et1]:[Conso_pr_et1]],Form_Autres_Usages[[BatID]:[BatID]],BN$6,Form_Autres_Usages[[Usage]:[Usage]],$C34)/1000 -> 0 | BO34: =SUMIFS(Form_Autres_Usages[[Conso_pr_et2]:[Conso_pr_et2]],Form_Autres_Usages[[BatID]:[BatID]],BO$6,Form_Autres_Usages[[Usage]:[Usage]],$C34)/1000 -> 0 | BP34: =SUMIFS(Form_Autres_Usages[[Conso_pr_et3]:[Conso_pr_et3]],Form_Autres_Usages[[BatID]:[BatID]],BP$6,Form_Autres_Usages[[Usage]:[Usage]],$C34)/1000 -> 0 | BQ34: =BP34 -> 0 | BS34: =SUMIFS(Form_Autres_Usages[[Conso_ex]:[Conso_ex]],Form_Autres_Usages[[BatID]:[BatID]],BS$6,Form_Autres_Usages[[Usage]:[Usage]],$C34)/1000 -> 0 | BT34: =SUMIFS(Form_Autres_Usages[[Conso_pr_et1]:[Conso_pr_et1]],Form_Autres_Usages[[BatID]:[BatID]],BT$6,Form_Autres_Usages[[Usage]:[Usage]],$C34)/1000 -> 0 | BU34: =SUMIFS(Form_Autres_Usages[[Conso_pr_et2]:[Conso_pr_et2]],Form_Autres_Usages[[BatID]:[BatID]],BU$6,Form_Autres_Usages[[Usage]:[Usage]],$C34)/1000 -> 0 | BV34: =SUMIFS(Form_Autres_Usages[[Conso_pr_et3]:[Conso_pr_et3]],Form_Autres_Usages[[BatID]:[BatID]],BV$6,Form_Autres_Usages[[Usage]:[Usage]],$C34)/1000 -> 0 | BW34: =BV34 -> 0
C35: 5.POSTCH | F35: ="Autres usages - "&INDEX(Liste_Usages_Description,MATCH(C35,Liste_Usages,0)) -> Autres usages - Postchauffe | G35: =SUMIFS($O35:$BX35,$O$7:$BX$7,G$7) -> 0 | H35: =SUMIFS($O35:$BX35,$O$7:$BX$7,H$7) -> 0 | I35: =SUMIFS($O35:$BX35,$O$7:$BX$7,I$7) -> 0 | J35: =SUMIFS($O35:$BX35,$O$7:$BX$7,J$7) -> 0 | K35: =SUMIFS($O35:$BX35,$O$7:$BX$7,K$7) -> 0 | Q35: =SUMIFS(Form_Autres_Usages[[Conso_ex]:[Conso_ex]],Form_Autres_Usages[[BatID]:[BatID]],Q$6,Form_Autres_Usages[[Usage]:[Usage]],$C35)/1000 -> 0 | R35: =SUMIFS(Form_Autres_Usages[[Conso_pr_et1]:[Conso_pr_et1]],Form_Autres_Usages[[BatID]:[BatID]],R$6,Form_Autres_Usages[[Usage]:[Usage]],$C35)/1000 -> 0 | S35: =SUMIFS(Form_Autres_Usages[[Conso_pr_et2]:[Conso_pr_et2]],Form_Autres_Usages[[BatID]:[BatID]],S$6,Form_Autres_Usages[[Usage]:[Usage]],$C35)/1000 -> 0 | T35: =SUMIFS(Form_Autres_Usages[[Conso_pr_et3]:[Conso_pr_et3]],Form_Autres_Usages[[BatID]:[BatID]],T$6,Form_Autres_Usages[[Usage]:[Usage]],$C35)/1000 -> 0 | U35: =T35 -> 0 | W35: =SUMIFS(Form_Autres_Usages[[Conso_ex]:[Conso_ex]],Form_Autres_Usages[[BatID]:[BatID]],W$6,Form_Autres_Usages[[Usage]:[Usage]],$C35)/1000 -> 0 | X35: =SUMIFS(Form_Autres_Usages[[Conso_pr_et1]:[Conso_pr_et1]],Form_Autres_Usages[[BatID]:[BatID]],X$6,Form_Autres_Usages[[Usage]:[Usage]],$C35)/1000 -> 0 | Y35: =SUMIFS(Form_Autres_Usages[[Conso_pr_et2]:[Conso_pr_et2]],Form_Autres_Usages[[BatID]:[BatID]],Y$6,Form_Autres_Usages[[Usage]:[Usage]],$C35)/1000 -> 0 | Z35: =SUMIFS(Form_Autres_Usages[[Conso_pr_et3]:[Conso_pr_et3]],Form_Autres_Usages[[BatID]:[BatID]],Z$6,Form_Autres_Usages[[Usage]:[Usage]],$C35)/1000 -> 0 | AA35: =Z35 -> 0 | AC35: =SUMIFS(Form_Autres_Usages[[Conso_ex]:[Conso_ex]],Form_Autres_Usages[[BatID]:[BatID]],AC$6,Form_Autres_Usages[[Usage]:[Usage]],$C35)/1000 -> 0 | AD35: =SUMIFS(Form_Autres_Usages[[Conso_pr_et1]:[Conso_pr_et1]],Form_Autres_Usages[[BatID]:[BatID]],AD$6,Form_Autres_Usages[[Usage]:[Usage]],$C35)/1000 -> 0 | AE35: =SUMIFS(Form_Autres_Usages[[Conso_pr_et2]:[Conso_pr_et2]],Form_Autres_Usages[[BatID]:[BatID]],AE$6,Form_Autres_Usages[[Usage]:[Usage]],$C35)/1000 -> 0 | AF35: =SUMIFS(Form_Autres_Usages[[Conso_pr_et3]:[Conso_pr_et3]],Form_Autres_Usages[[BatID]:[BatID]],AF$6,Form_Autres_Usages[[Usage]:[Usage]],$C35)/1000 -> 0 | AG35: =AF35 -> 0 | AI35: =SUMIFS(Form_Autres_Usages[[Conso_ex]:[Conso_ex]],Form_Autres_Usages[[BatID]:[BatID]],AI$6,Form_Autres_Usages[[Usage]:[Usage]],$C35)/1000 -> 0 | AJ35: =SUMIFS(Form_Autres_Usages[[Conso_pr_et1]:[Conso_pr_et1]],Form_Autres_Usages[[BatID]:[BatID]],AJ$6,Form_Autres_Usages[[Usage]:[Usage]],$C35)/1000 -> 0 | AK35: =SUMIFS(Form_Autres_Usages[[Conso_pr_et2]:[Conso_pr_et2]],Form_Autres_Usages[[BatID]:[BatID]],AK$6,Form_Autres_Usages[[Usage]:[Usage]],$C35)/1000 -> 0 | AL35: =SUMIFS(Form_Autres_Usages[[Conso_pr_et3]:[Conso_pr_et3]],Form_Autres_Usages[[BatID]:[BatID]],AL$6,Form_Autres_Usages[[Usage]:[Usage]],$C35)/1000 -> 0 | AM35: =AL35 -> 0 | AO35: =SUMIFS(Form_Autres_Usages[[Conso_ex]:[Conso_ex]],Form_Autres_Usages[[BatID]:[BatID]],AO$6,Form_Autres_Usages[[Usage]:[Usage]],$C35)/1000 -> 0 | AP35: =SUMIFS(Form_Autres_Usages[[Conso_pr_et1]:[Conso_pr_et1]],Form_Autres_Usages[[BatID]:[BatID]],AP$6,Form_Autres_Usages[[Usage]:[Usage]],$C35)/1000 -> 0 | AQ35: =SUMIFS(Form_Autres_Usages[[Conso_pr_et2]:[Conso_pr_et2]],Form_Autres_Usages[[BatID]:[BatID]],AQ$6,Form_Autres_Usages[[Usage]:[Usage]],$C35)/1000 -> 0 | AR35: =SUMIFS(Form_Autres_Usages[[Conso_pr_et3]:[Conso_pr_et3]],Form_Autres_Usages[[BatID]:[BatID]],AR$6,Form_Autres_Usages[[Usage]:[Usage]],$C35)/1000 -> 0 | AS35: =AR35 -> 0 | AU35: =SUMIFS(Form_Autres_Usages[[Conso_ex]:[Conso_ex]],Form_Autres_Usages[[BatID]:[BatID]],AU$6,Form_Autres_Usages[[Usage]:[Usage]],$C35)/1000 -> 0 | AV35: =SUMIFS(Form_Autres_Usages[[Conso_pr_et1]:[Conso_pr_et1]],Form_Autres_Usages[[BatID]:[BatID]],AV$6,Form_Autres_Usages[[Usage]:[Usage]],$C35)/1000 -> 0 | AW35: =SUMIFS(Form_Autres_Usages[[Conso_pr_et2]:[Conso_pr_et2]],Form_Autres_Usages[[BatID]:[BatID]],AW$6,Form_Autres_Usages[[Usage]:[Usage]],$C35)/1000 -> 0 | AX35: =SUMIFS(Form_Autres_Usages[[Conso_pr_et3]:[Conso_pr_et3]],Form_Autres_Usages[[BatID]:[BatID]],AX$6,Form_Autres_Usages[[Usage]:[Usage]],$C35)/1000 -> 0 | AY35: =AX35 -> 0 | BA35: =SUMIFS(Form_Autres_Usages[[Conso_ex]:[Conso_ex]],Form_Autres_Usages[[BatID]:[BatID]],BA$6,Form_Autres_Usages[[Usage]:[Usage]],$C35)/1000 -> 0 | BB35: =SUMIFS(Form_Autres_Usages[[Conso_pr_et1]:[Conso_pr_et1]],Form_Autres_Usages[[BatID]:[BatID]],BB$6,Form_Autres_Usages[[Usage]:[Usage]],$C35)/1000 -> 0 | BC35: =SUMIFS(Form_Autres_Usages[[Conso_pr_et2]:[Conso_pr_et2]],Form_Autres_Usages[[BatID]:[BatID]],BC$6,Form_Autres_Usages[[Usage]:[Usage]],$C35)/1000 -> 0 | BD35: =SUMIFS(Form_Autres_Usages[[Conso_pr_et3]:[Conso_pr_et3]],Form_Autres_Usages[[BatID]:[BatID]],BD$6,Form_Autres_Usages[[Usage]:[Usage]],$C35)/1000 -> 0 | BE35: =BD35 -> 0 | BG35: =SUMIFS(Form_Autres_Usages[[Conso_ex]:[Conso_ex]],Form_Autres_Usages[[BatID]:[BatID]],BG$6,Form_Autres_Usages[[Usage]:[Usage]],$C35)/1000 -> 0 | BH35: =SUMIFS(Form_Autres_Usages[[Conso_pr_et1]:[Conso_pr_et1]],Form_Autres_Usages[[BatID]:[BatID]],BH$6,Form_Autres_Usages[[Usage]:[Usage]],$C35)/1000 -> 0 | BI35: =SUMIFS(Form_Autres_Usages[[Conso_pr_et2]:[Conso_pr_et2]],Form_Autres_Usages[[BatID]:[BatID]],BI$6,Form_Autres_Usages[[Usage]:[Usage]],$C35)/1000 -> 0 | BJ35: =SUMIFS(Form_Autres_Usages[[Conso_pr_et3]:[Conso_pr_et3]],Form_Autres_Usages[[BatID]:[BatID]],BJ$6,Form_Autres_Usages[[Usage]:[Usage]],$C35)/1000 -> 0 | BK35: =BJ35 -> 0 | BM35: =SUMIFS(Form_Autres_Usages[[Conso_ex]:[Conso_ex]],Form_Autres_Usages[[BatID]:[BatID]],BM$6,Form_Autres_Usages[[Usage]:[Usage]],$C35)/1000 -> 0 | BN35: =SUMIFS(Form_Autres_Usages[[Conso_pr_et1]:[Conso_pr_et1]],Form_Autres_Usages[[BatID]:[BatID]],BN$6,Form_Autres_Usages[[Usage]:[Usage]],$C35)/1000 -> 0 | BO35: =SUMIFS(Form_Autres_Usages[[Conso_pr_et2]:[Conso_pr_et2]],Form_Autres_Usages[[BatID]:[BatID]],BO$6,Form_Autres_Usages[[Usage]:[Usage]],$C35)/1000 -> 0 | BP35: =SUMIFS(Form_Autres_Usages[[Conso_pr_et3]:[Conso_pr_et3]],Form_Autres_Usages[[BatID]:[BatID]],BP$6,Form_Autres_Usages[[Usage]:[Usage]],$C35)/1000 -> 0 | BQ35: =BP35 -> 0 | BS35: =SUMIFS(Form_Autres_Usages[[Conso_ex]:[Conso_ex]],Form_Autres_Usages[[BatID]:[BatID]],BS$6,Form_Autres_Usages[[Usage]:[Usage]],$C35)/1000 -> 0 | BT35: =SUMIFS(Form_Autres_Usages[[Conso_pr_et1]:[Conso_pr_et1]],Form_Autres_Usages[[BatID]:[BatID]],BT$6,Form_Autres_Usages[[Usage]:[Usage]],$C35)/1000 -> 0 | BU35: =SUMIFS(Form_Autres_Usages[[Conso_pr_et2]:[Conso_pr_et2]],Form_Autres_Usages[[BatID]:[BatID]],BU$6,Form_Autres_Usages[[Usage]:[Usage]],$C35)/1000 -> 0 | BV35: =SUMIFS(Form_Autres_Usages[[Conso_pr_et3]:[Conso_pr_et3]],Form_Autres_Usages[[BatID]:[BatID]],BV$6,Form_Autres_Usages[[Usage]:[Usage]],$C35)/1000 -> 0 | BW35: =BV35 -> 0
E36: 6. | F36: ECS | G36: =SUMIFS($O36:$BX36,$O$7:$BX$7,G$7) -> 23.84028409 | H36: =SUMIFS($O36:$BX36,$O$7:$BX$7,H$7) -> 23.84028409 | I36: =SUMIFS($O36:$BX36,$O$7:$BX$7,I$7) -> 23.84028409 | J36: =SUMIFS($O36:$BX36,$O$7:$BX$7,J$7) -> 23.22028409 | K36: =SUMIFS($O36:$BX36,$O$7:$BX$7,K$7) -> 18.519425 | Q36: =SUM(Q37:Q39) -> 23.84028409 | R36: =SUM(R37:R39) -> 23.84028409 | S36: =SUM(S37:S39) -> 23.84028409 | T36: =SUM(T37:T39) -> 23.22028409 | U36: =SUM(U37:U39) -> 18.519425 | W36: =SUM(W37:W39) -> 0 | X36: =SUM(X37:X39) -> 0 | Y36: =SUM(Y37:Y39) -> 0 | Z36: =SUM(Z37:Z39) -> 0 | AA36: =SUM(AA37:AA39) -> 0 | AC36: =SUM(AC37:AC39) -> 0 | AD36: =SUM(AD37:AD39) -> 0 | AE36: =SUM(AE37:AE39) -> 0 | AF36: =SUM(AF37:AF39) -> 0 | AG36: =SUM(AG37:AG39) -> 0 | AI36: =SUM(AI37:AI39) -> 0 | AJ36: =SUM(AJ37:AJ39) -> 0 | AK36: =SUM(AK37:AK39) -> 0 | AL36: =SUM(AL37:AL39) -> 0 | AM36: =SUM(AM37:AM39) -> 0 | AO36: =SUM(AO37:AO39) -> 0 | AP36: =SUM(AP37:AP39) -> 0 | AQ36: =SUM(AQ37:AQ39) -> 0 | AR36: =SUM(AR37:AR39) -> 0 | AS36: =SUM(AS37:AS39) -> 0 | AU36: =SUM(AU37:AU39) -> 0 | AV36: =SUM(AV37:AV39) -> 0 | AW36: =SUM(AW37:AW39) -> 0 | AX36: =SUM(AX37:AX39) -> 0 | AY36: =SUM(AY37:AY39) -> 0 | BA36: =SUM(BA37:BA39) -> 0 | BB36: =SUM(BB37:BB39) -> 0 | BC36: =SUM(BC37:BC39) -> 0 | BD36: =SUM(BD37:BD39) -> 0 | BE36: =SUM(BE37:BE39) -> 0 | BG36: =SUM(BG37:BG39) -> 0 | BH36: =SUM(BH37:BH39) -> 0 | BI36: =SUM(BI37:BI39) -> 0 | BJ36: =SUM(BJ37:BJ39) -> 0 | BK36: =SUM(BK37:BK39) -> 0 | BM36: =SUM(BM37:BM39) -> 0 | BN36: =SUM(BN37:BN39) -> 0 | BO36: =SUM(BO37:BO39) -> 0 | BP36: =SUM(BP37:BP39) -> 0 | BQ36: =SUM(BQ37:BQ39) -> 0 | BS36: =SUM(BS37:BS39) -> 0 | BT36: =SUM(BT37:BT39) -> 0 | BU36: =SUM(BU37:BU39) -> 0 | BV36: =SUM(BV37:BV39) -> 0 | BW36: =SUM(BW37:BW39) -> 0
F37: Besoin Net ECS | G37: =SUMIFS($O37:$BX37,$O$7:$BX$7,G$7) -> 17.899425 | H37: =SUMIFS($O37:$BX37,$O$7:$BX$7,H$7) -> 17.899425 | I37: =SUMIFS($O37:$BX37,$O$7:$BX$7,I$7) -> 17.899425 | J37: =SUMIFS($O37:$BX37,$O$7:$BX$7,J$7) -> 17.899425 | K37: =SUMIFS($O37:$BX37,$O$7:$BX$7,K$7) -> 17.899425 | Q37: =Q464 -> 17.899425 | R37: =R464 -> 17.899425 | S37: =S464 -> 17.899425 | T37: =T464 -> 17.899425 | U37: =U464 -> 17.899425 | W37: =W464 -> 0 | X37: =X464 -> 0 | Y37: =Y464 -> 0 | Z37: =Z464 -> 0 | AA37: =AA464 -> 0 | AC37: =AC464 -> 0 | AD37: =AD464 -> 0 | AE37: =AE464 -> 0 | AF37: =AF464 -> 0 | AG37: =AG464 -> 0 | AI37: =AI464 -> 0 | AJ37: =AJ464 -> 0 | AK37: =AK464 -> 0 | AL37: =AL464 -> 0 | AM37: =AM464 -> 0 | AO37: =AO464 -> 0 | AP37: =AP464 -> 0 | AQ37: =AQ464 -> 0 | AR37: =AR464 -> 0 | AS37: =AS464 -> 0 | AU37: =AU464 -> 0 | AV37: =AV464 -> 0 | AW37: =AW464 -> 0 | AX37: =AX464 -> 0 | AY37: =AY464 -> 0 | BA37: =BA464 -> 0 | BB37: =BB464 -> 0 | BC37: =BC464 -> 0 | BD37: =BD464 -> 0 | BE37: =BE464 -> 0 | BG37: =BG464 -> 0 | BH37: =BH464 -> 0 | BI37: =BI464 -> 0 | BJ37: =BJ464 -> 0 | BK37: =BK464 -> 0 | BM37: =BM464 -> 0 | BN37: =BN464 -> 0 | BO37: =BO464 -> 0 | BP37: =BP464 -> 0 | BQ37: =BQ464 -> 0 | BS37: =BS464 -> 0 | BT37: =BT464 -> 0 | BU37: =BU464 -> 0 | BV37: =BV464 -> 0 | BW37: =BW464 -> 0
F38: Pertes système ECS | G38: =SUMIFS($O38:$BX38,$O$7:$BX$7,G$7) -> 4.700859091 | H38: =SUMIFS($O38:$BX38,$O$7:$BX$7,H$7) -> 4.700859091 | I38: =SUMIFS($O38:$BX38,$O$7:$BX$7,I$7) -> 4.700859091 | J38: =SUMIFS($O38:$BX38,$O$7:$BX$7,J$7) -> 4.700859091 | K38: =SUMIFS($O38:$BX38,$O$7:$BX$7,K$7) -> 0 | Q38: =Q468 -> 4.700859091 | R38: =R468 -> 4.700859091 | S38: =S468 -> 4.700859091 | T38: =T468 -> 4.700859091 | U38: =U468 -> 0 | W38: =W468 -> 0 | X38: =X468 -> 0 | Y38: =Y468 -> 0 | Z38: =Z468 -> 0 | AA38: =AA468 -> 0 | AC38: =AC468 -> 0 | AD38: =AD468 -> 0 | AE38: =AE468 -> 0 | AF38: =AF468 -> 0 | AG38: =AG468 -> 0 | AI38: =AI468 -> 0 | AJ38: =AJ468 -> 0 | AK38: =AK468 -> 0 | AL38: =AL468 -> 0 | AM38: =AM468 -> 0 | AO38: =AO468 -> 0 | AP38: =AP468 -> 0 | AQ38: =AQ468 -> 0 | AR38: =AR468 -> 0 | AS38: =AS468 -> 0 | AU38: =AU468 -> 0 | AV38: =AV468 -> 0 | AW38: =AW468 -> 0 | AX38: =AX468 -> 0 | AY38: =AY468 -> 0 | BA38: =BA468 -> 0 | BB38: =BB468 -> 0 | BC38: =BC468 -> 0 | BD38: =BD468 -> 0 | BE38: =BE468 -> 0 | BG38: =BG468 -> 0 | BH38: =BH468 -> 0 | BI38: =BI468 -> 0 | BJ38: =BJ468 -> 0 | BK38: =BK468 -> 0 | BM38: =BM468 -> 0 | BN38: =BN468 -> 0 | BO38: =BO468 -> 0 | BP38: =BP468 -> 0 | BQ38: =BQ468 -> 0 | BS38: =BS468 -> 0 | BT38: =BT468 -> 0 | BU38: =BU468 -> 0 | BV38: =BV468 -> 0 | BW38: =BW468 -> 0
C39: 2.ECS | F39: ="Autres usages - "&INDEX(Liste_Usages_Description,MATCH(C39,Liste_Usages,0)) -> Autres usages - Eau chaude sanitaire | G39: =SUMIFS($O39:$BX39,$O$7:$BX$7,G$7) -> 1.24 | H39: =SUMIFS($O39:$BX39,$O$7:$BX$7,H$7) -> 1.24 | I39: =SUMIFS($O39:$BX39,$O$7:$BX$7,I$7) -> 1.24 | J39: =SUMIFS($O39:$BX39,$O$7:$BX$7,J$7) -> 0.62 | K39: =SUMIFS($O39:$BX39,$O$7:$BX$7,K$7) -> 0.62 | Q39: =SUMIFS(Form_Autres_Usages[[Conso_ex]:[Conso_ex]],Form_Autres_Usages[[BatID]:[BatID]],Q$6,Form_Autres_Usages[[Usage]:[Usage]],$C39)/1000 -> 1.24 | R39: =SUMIFS(Form_Autres_Usages[[Conso_pr_et1]:[Conso_pr_et1]],Form_Autres_Usages[[BatID]:[BatID]],R$6,Form_Autres_Usages[[Usage]:[Usage]],$C39)/1000 -> 1.24 | S39: =SUMIFS(Form_Autres_Usages[[Conso_pr_et2]:[Conso_pr_et2]],Form_Autres_Usages[[BatID]:[BatID]],S$6,Form_Autres_Usages[[Usage]:[Usage]],$C39)/1000 -> 1.24 | T39: =SUMIFS(Form_Autres_Usages[[Conso_pr_et3]:[Conso_pr_et3]],Form_Autres_Usages[[BatID]:[BatID]],T$6,Form_Autres_Usages[[Usage]:[Usage]],$C39)/1000 -> 0.62 | U39: =T39 -> 0.62 | W39: =SUMIFS(Form_Autres_Usages[[Conso_ex]:[Conso_ex]],Form_Autres_Usages[[BatID]:[BatID]],W$6,Form_Autres_Usages[[Usage]:[Usage]],$C39)/1000 -> 0 | X39: =SUMIFS(Form_Autres_Usages[[Conso_pr_et1]:[Conso_pr_et1]],Form_Autres_Usages[[BatID]:[BatID]],X$6,Form_Autres_Usages[[Usage]:[Usage]],$C39)/1000 -> 0 | Y39: =SUMIFS(Form_Autres_Usages[[Conso_pr_et2]:[Conso_pr_et2]],Form_Autres_Usages[[BatID]:[BatID]],Y$6,Form_Autres_Usages[[Usage]:[Usage]],$C39)/1000 -> 0 | Z39: =SUMIFS(Form_Autres_Usages[[Conso_pr_et3]:[Conso_pr_et3]],Form_Autres_Usages[[BatID]:[BatID]],Z$6,Form_Autres_Usages[[Usage]:[Usage]],$C39)/1000 -> 0 | AA39: =Z39 -> 0 | AC39: =SUMIFS(Form_Autres_Usages[[Conso_ex]:[Conso_ex]],Form_Autres_Usages[[BatID]:[BatID]],AC$6,Form_Autres_Usages[[Usage]:[Usage]],$C39)/1000 -> 0 | AD39: =SUMIFS(Form_Autres_Usages[[Conso_pr_et1]:[Conso_pr_et1]],Form_Autres_Usages[[BatID]:[BatID]],AD$6,Form_Autres_Usages[[Usage]:[Usage]],$C39)/1000 -> 0 | AE39: =SUMIFS(Form_Autres_Usages[[Conso_pr_et2]:[Conso_pr_et2]],Form_Autres_Usages[[BatID]:[BatID]],AE$6,Form_Autres_Usages[[Usage]:[Usage]],$C39)/1000 -> 0 | AF39: =SUMIFS(Form_Autres_Usages[[Conso_pr_et3]:[Conso_pr_et3]],Form_Autres_Usages[[BatID]:[BatID]],AF$6,Form_Autres_Usages[[Usage]:[Usage]],$C39)/1000 -> 0 | AG39: =AF39 -> 0 | AI39: =SUMIFS(Form_Autres_Usages[[Conso_ex]:[Conso_ex]],Form_Autres_Usages[[BatID]:[BatID]],AI$6,Form_Autres_Usages[[Usage]:[Usage]],$C39)/1000 -> 0 | AJ39: =SUMIFS(Form_Autres_Usages[[Conso_pr_et1]:[Conso_pr_et1]],Form_Autres_Usages[[BatID]:[BatID]],AJ$6,Form_Autres_Usages[[Usage]:[Usage]],$C39)/1000 -> 0 | AK39: =SUMIFS(Form_Autres_Usages[[Conso_pr_et2]:[Conso_pr_et2]],Form_Autres_Usages[[BatID]:[BatID]],AK$6,Form_Autres_Usages[[Usage]:[Usage]],$C39)/1000 -> 0 | AL39: =SUMIFS(Form_Autres_Usages[[Conso_pr_et3]:[Conso_pr_et3]],Form_Autres_Usages[[BatID]:[BatID]],AL$6,Form_Autres_Usages[[Usage]:[Usage]],$C39)/1000 -> 0 | AM39: =AL39 -> 0 | AO39: =SUMIFS(Form_Autres_Usages[[Conso_ex]:[Conso_ex]],Form_Autres_Usages[[BatID]:[BatID]],AO$6,Form_Autres_Usages[[Usage]:[Usage]],$C39)/1000 -> 0 | AP39: =SUMIFS(Form_Autres_Usages[[Conso_pr_et1]:[Conso_pr_et1]],Form_Autres_Usages[[BatID]:[BatID]],AP$6,Form_Autres_Usages[[Usage]:[Usage]],$C39)/1000 -> 0 | AQ39: =SUMIFS(Form_Autres_Usages[[Conso_pr_et2]:[Conso_pr_et2]],Form_Autres_Usages[[BatID]:[BatID]],AQ$6,Form_Autres_Usages[[Usage]:[Usage]],$C39)/1000 -> 0 | AR39: =SUMIFS(Form_Autres_Usages[[Conso_pr_et3]:[Conso_pr_et3]],Form_Autres_Usages[[BatID]:[BatID]],AR$6,Form_Autres_Usages[[Usage]:[Usage]],$C39)/1000 -> 0 | AS39: =AR39 -> 0 | AU39: =SUMIFS(Form_Autres_Usages[[Conso_ex]:[Conso_ex]],Form_Autres_Usages[[BatID]:[BatID]],AU$6,Form_Autres_Usages[[Usage]:[Usage]],$C39)/1000 -> 0 | AV39: =SUMIFS(Form_Autres_Usages[[Conso_pr_et1]:[Conso_pr_et1]],Form_Autres_Usages[[BatID]:[BatID]],AV$6,Form_Autres_Usages[[Usage]:[Usage]],$C39)/1000 -> 0 | AW39: =SUMIFS(Form_Autres_Usages[[Conso_pr_et2]:[Conso_pr_et2]],Form_Autres_Usages[[BatID]:[BatID]],AW$6,Form_Autres_Usages[[Usage]:[Usage]],$C39)/1000 -> 0 | AX39: =SUMIFS(Form_Autres_Usages[[Conso_pr_et3]:[Conso_pr_et3]],Form_Autres_Usages[[BatID]:[BatID]],AX$6,Form_Autres_Usages[[Usage]:[Usage]],$C39)/1000 -> 0 | AY39: =AX39 -> 0 | BA39: =SUMIFS(Form_Autres_Usages[[Conso_ex]:[Conso_ex]],Form_Autres_Usages[[BatID]:[BatID]],BA$6,Form_Autres_Usages[[Usage]:[Usage]],$C39)/1000 -> 0 | BB39: =SUMIFS(Form_Autres_Usages[[Conso_pr_et1]:[Conso_pr_et1]],Form_Autres_Usages[[BatID]:[BatID]],BB$6,Form_Autres_Usages[[Usage]:[Usage]],$C39)/1000 -> 0 | BC39: =SUMIFS(Form_Autres_Usages[[Conso_pr_et2]:[Conso_pr_et2]],Form_Autres_Usages[[BatID]:[BatID]],BC$6,Form_Autres_Usages[[Usage]:[Usage]],$C39)/1000 -> 0 | BD39: =SUMIFS(Form_Autres_Usages[[Conso_pr_et3]:[Conso_pr_et3]],Form_Autres_Usages[[BatID]:[BatID]],BD$6,Form_Autres_Usages[[Usage]:[Usage]],$C39)/1000 -> 0 | BE39: =BD39 -> 0 | BG39: =SUMIFS(Form_Autres_Usages[[Conso_ex]:[Conso_ex]],Form_Autres_Usages[[BatID]:[BatID]],BG$6,Form_Autres_Usages[[Usage]:[Usage]],$C39)/1000 -> 0 | BH39: =SUMIFS(Form_Autres_Usages[[Conso_pr_et1]:[Conso_pr_et1]],Form_Autres_Usages[[BatID]:[BatID]],BH$6,Form_Autres_Usages[[Usage]:[Usage]],$C39)/1000 -> 0 | BI39: =SUMIFS(Form_Autres_Usages[[Conso_pr_et2]:[Conso_pr_et2]],Form_Autres_Usages[[BatID]:[BatID]],BI$6,Form_Autres_Usages[[Usage]:[Usage]],$C39)/1000 -> 0 | BJ39: =SUMIFS(Form_Autres_Usages[[Conso_pr_et3]:[Conso_pr_et3]],Form_Autres_Usages[[BatID]:[BatID]],BJ$6,Form_Autres_Usages[[Usage]:[Usage]],$C39)/1000 -> 0 | BK39: =BJ39 -> 0 | BM39: =SUMIFS(Form_Autres_Usages[[Conso_ex]:[Conso_ex]],Form_Autres_Usages[[BatID]:[BatID]],BM$6,Form_Autres_Usages[[Usage]:[Usage]],$C39)/1000 -> 0 | BN39: =SUMIFS(Form_Autres_Usages[[Conso_pr_et1]:[Conso_pr_et1]],Form_Autres_Usages[[BatID]:[BatID]],BN$6,Form_Autres_Usages[[Usage]:[Usage]],$C39)/1000 -> 0 | BO39: =SUMIFS(Form_Autres_Usages[[Conso_pr_et2]:[Conso_pr_et2]],Form_Autres_Usages[[BatID]:[BatID]],BO$6,Form_Autres_Usages[[Usage]:[Usage]],$C39)/1000 -> 0 | BP39: =SUMIFS(Form_Autres_Usages[[Conso_pr_et3]:[Conso_pr_et3]],Form_Autres_Usages[[BatID]:[BatID]],BP$6,Form_Autres_Usages[[Usage]:[Usage]],$C39)/1000 -> 0 | BQ39: =BP39 -> 0 | BS39: =SUMIFS(Form_Autres_Usages[[Conso_ex]:[Conso_ex]],Form_Autres_Usages[[BatID]:[BatID]],BS$6,Form_Autres_Usages[[Usage]:[Usage]],$C39)/1000 -> 0 | BT39: =SUMIFS(Form_Autres_Usages[[Conso_pr_et1]:[Conso_pr_et1]],Form_Autres_Usages[[BatID]:[BatID]],BT$6,Form_Autres_Usages[[Usage]:[Usage]],$C39)/1000 -> 0 | BU39: =SUMIFS(Form_Autres_Usages[[Conso_pr_et2]:[Conso_pr_et2]],Form_Autres_Usages[[BatID]:[BatID]],BU$6,Form_Autres_Usages[[Usage]:[Usage]],$C39)/1000 -> 0 | BV39: =SUMIFS(Form_Autres_Usages[[Conso_pr_et3]:[Conso_pr_et3]],Form_Autres_Usages[[BatID]:[BatID]],BV$6,Form_Autres_Usages[[Usage]:[Usage]],$C39)/1000 -> 0 | BW39: =BV39 -> 0
E40: 7. | F40: Autres Usages | G40: =SUMIFS($O40:$BX40,$O$7:$BX$7,G$7) -> 4.38 | H40: =SUMIFS($O40:$BX40,$O$7:$BX$7,H$7) -> 4.38 | I40: =SUMIFS($O40:$BX40,$O$7:$BX$7,I$7) -> 4.38 | J40: =SUMIFS($O40:$BX40,$O$7:$BX$7,J$7) -> 4.38 | K40: =SUMIFS($O40:$BX40,$O$7:$BX$7,K$7) -> 4.38 | Q40: =SUM(Q41:Q60) -> 0 | R40: =SUM(R41:R60) -> 0 | S40: =SUM(S41:S60) -> 0 | T40: =SUM(T41:T60) -> 0 | U40: =SUM(U41:U60) -> 0 | W40: =SUM(W41:W60) -> 4.38 | X40: =SUM(X41:X60) -> 4.38 | Y40: =SUM(Y41:Y60) -> 4.38 | Z40: =SUM(Z41:Z60) -> 4.38 | AA40: =SUM(AA41:AA60) -> 4.38 | AC40: =SUM(AC41:AC60) -> 0 | AD40: =SUM(AD41:AD60) -> 0 | AE40: =SUM(AE41:AE60) -> 0 | AF40: =SUM(AF41:AF60) -> 0 | AG40: =SUM(AG41:AG60) -> 0 | AI40: =SUM(AI41:AI60) -> 0 | AJ40: =SUM(AJ41:AJ60) -> 0 | AK40: =SUM(AK41:AK60) -> 0 | AL40: =SUM(AL41:AL60) -> 0 | AM40: =SUM(AM41:AM60) -> 0 | AO40: =SUM(AO41:AO60) -> 0 | AP40: =SUM(AP41:AP60) -> 0 | AQ40: =SUM(AQ41:AQ60) -> 0 | AR40: =SUM(AR41:AR60) -> 0 | AS40: =SUM(AS41:AS60) -> 0 | AU40: =SUM(AU41:AU60) -> 0 | AV40: =SUM(AV41:AV60) -> 0 | AW40: =SUM(AW41:AW60) -> 0 | AX40: =SUM(AX41:AX60) -> 0 | AY40: =SUM(AY41:AY60) -> 0 | BA40: =SUM(BA41:BA60) -> 0 | BB40: =SUM(BB41:BB60) -> 0 | BC40: =SUM(BC41:BC60) -> 0 | BD40: =SUM(BD41:BD60) -> 0 | BE40: =SUM(BE41:BE60) -> 0 | BG40: =SUM(BG41:BG60) -> 0 | BH40: =SUM(BH41:BH60) -> 0 | BI40: =SUM(BI41:BI60) -> 0 | BJ40: =SUM(BJ41:BJ60) -> 0 | BK40: =SUM(BK41:BK60) -> 0 | BM40: =SUM(BM41:BM60) -> 0 | BN40: =SUM(BN41:BN60) -> 0 | BO40: =SUM(BO41:BO60) -> 0 | BP40: =SUM(BP41:BP60) -> 0 | BQ40: =SUM(BQ41:BQ60) -> 0 | BS40: =SUM(BS41:BS60) -> 0 | BT40: =SUM(BT41:BT60) -> 0 | BU40: =SUM(BU41:BU60) -> 0 | BV40: =SUM(BV41:BV60) -> 0 | BW40: =SUM(BW41:BW60) -> 0
C41: 7.AUT-1 | F41: ="Autres usages - "&INDEX(Liste_Usages_Description,MATCH(C41,Liste_Usages,0)) -> Autres usages - Server IT | G41: =SUMIFS($O41:$BX41,$O$7:$BX$7,G$7) -> 4.38 | H41: =SUMIFS($O41:$BX41,$O$7:$BX$7,H$7) -> 4.38 | I41: =SUMIFS($O41:$BX41,$O$7:$BX$7,I$7) -> 4.38 | J41: =SUMIFS($O41:$BX41,$O$7:$BX$7,J$7) -> 4.38 | K41: =SUMIFS($O41:$BX41,$O$7:$BX$7,K$7) -> 4.38 | Q41: =SUMIFS(Form_Autres_Usages[[Conso_ex]:[Conso_ex]],Form_Autres_Usages[[BatID]:[BatID]],Q$6,Form_Autres_Usages[[Usage]:[Usage]],$C41)/1000 -> 0 | R41: =SUMIFS(Form_Autres_Usages[[Conso_pr_et1]:[Conso_pr_et1]],Form_Autres_Usages[[BatID]:[BatID]],R$6,Form_Autres_Usages[[Usage]:[Usage]],$C41)/1000 -> 0 | S41: =SUMIFS(Form_Autres_Usages[[Conso_pr_et2]:[Conso_pr_et2]],Form_Autres_Usages[[BatID]:[BatID]],S$6,Form_Autres_Usages[[Usage]:[Usage]],$C41)/1000 -> 0 | T41: =SUMIFS(Form_Autres_Usages[[Conso_pr_et3]:[Conso_pr_et3]],Form_Autres_Usages[[BatID]:[BatID]],T$6,Form_Autres_Usages[[Usage]:[Usage]],$C41)/1000 -> 0 | U41: =T41 -> 0 | W41: =SUMIFS(Form_Autres_Usages[[Conso_ex]:[Conso_ex]],Form_Autres_Usages[[BatID]:[BatID]],W$6,Form_Autres_Usages[[Usage]:[Usage]],$C41)/1000 -> 4.38 | X41: =SUMIFS(Form_Autres_Usages[[Conso_pr_et1]:[Conso_pr_et1]],Form_Autres_Usages[[BatID]:[BatID]],X$6,Form_Autres_Usages[[Usage]:[Usage]],$C41)/1000 -> 4.38 | Y41: =SUMIFS(Form_Autres_Usages[[Conso_pr_et2]:[Conso_pr_et2]],Form_Autres_Usages[[BatID]:[BatID]],Y$6,Form_Autres_Usages[[Usage]:[Usage]],$C41)/1000 -> 4.38 | Z41: =SUMIFS(Form_Autres_Usages[[Conso_pr_et3]:[Conso_pr_et3]],Form_Autres_Usages[[BatID]:[BatID]],Z$6,Form_Autres_Usages[[Usage]:[Usage]],$C41)/1000 -> 4.38 | AA41: =Z41 -> 4.38 | AC41: =SUMIFS(Form_Autres_Usages[[Conso_ex]:[Conso_ex]],Form_Autres_Usages[[BatID]:[BatID]],AC$6,Form_Autres_Usages[[Usage]:[Usage]],$C41)/1000 -> 0 | AD41: =SUMIFS(Form_Autres_Usages[[Conso_pr_et1]:[Conso_pr_et1]],Form_Autres_Usages[[BatID]:[BatID]],AD$6,Form_Autres_Usages[[Usage]:[Usage]],$C41)/1000 -> 0 | AE41: =SUMIFS(Form_Autres_Usages[[Conso_pr_et2]:[Conso_pr_et2]],Form_Autres_Usages[[BatID]:[BatID]],AE$6,Form_Autres_Usages[[Usage]:[Usage]],$C41)/1000 -> 0 | AF41: =SUMIFS(Form_Autres_Usages[[Conso_pr_et3]:[Conso_pr_et3]],Form_Autres_Usages[[BatID]:[BatID]],AF$6,Form_Autres_Usages[[Usage]:[Usage]],$C41)/1000 -> 0 | AG41: =AF41 -> 0 | AI41: =SUMIFS(Form_Autres_Usages[[Conso_ex]:[Conso_ex]],Form_Autres_Usages[[BatID]:[BatID]],AI$6,Form_Autres_Usages[[Usage]:[Usage]],$C41)/1000 -> 0 | AJ41: =SUMIFS(Form_Autres_Usages[[Conso_pr_et1]:[Conso_pr_et1]],Form_Autres_Usages[[BatID]:[BatID]],AJ$6,Form_Autres_Usages[[Usage]:[Usage]],$C41)/1000 -> 0 | AK41: =SUMIFS(Form_Autres_Usages[[Conso_pr_et2]:[Conso_pr_et2]],Form_Autres_Usages[[BatID]:[BatID]],AK$6,Form_Autres_Usages[[Usage]:[Usage]],$C41)/1000 -> 0 | AL41: =SUMIFS(Form_Autres_Usages[[Conso_pr_et3]:[Conso_pr_et3]],Form_Autres_Usages[[BatID]:[BatID]],AL$6,Form_Autres_Usages[[Usage]:[Usage]],$C41)/1000 -> 0 | AM41: =AL41 -> 0 | AO41: =SUMIFS(Form_Autres_Usages[[Conso_ex]:[Conso_ex]],Form_Autres_Usages[[BatID]:[BatID]],AO$6,Form_Autres_Usages[[Usage]:[Usage]],$C41)/1000 -> 0 | AP41: =SUMIFS(Form_Autres_Usages[[Conso_pr_et1]:[Conso_pr_et1]],Form_Autres_Usages[[BatID]:[BatID]],AP$6,Form_Autres_Usages[[Usage]:[Usage]],$C41)/1000 -> 0 | AQ41: =SUMIFS(Form_Autres_Usages[[Conso_pr_et2]:[Conso_pr_et2]],Form_Autres_Usages[[BatID]:[BatID]],AQ$6,Form_Autres_Usages[[Usage]:[Usage]],$C41)/1000 -> 0 | AR41: =SUMIFS(Form_Autres_Usages[[Conso_pr_et3]:[Conso_pr_et3]],Form_Autres_Usages[[BatID]:[BatID]],AR$6,Form_Autres_Usages[[Usage]:[Usage]],$C41)/1000 -> 0 | AS41: =AR41 -> 0 | AU41: =SUMIFS(Form_Autres_Usages[[Conso_ex]:[Conso_ex]],Form_Autres_Usages[[BatID]:[BatID]],AU$6,Form_Autres_Usages[[Usage]:[Usage]],$C41)/1000 -> 0 | AV41: =SUMIFS(Form_Autres_Usages[[Conso_pr_et1]:[Conso_pr_et1]],Form_Autres_Usages[[BatID]:[BatID]],AV$6,Form_Autres_Usages[[Usage]:[Usage]],$C41)/1000 -> 0 | AW41: =SUMIFS(Form_Autres_Usages[[Conso_pr_et2]:[Conso_pr_et2]],Form_Autres_Usages[[BatID]:[BatID]],AW$6,Form_Autres_Usages[[Usage]:[Usage]],$C41)/1000 -> 0 | AX41: =SUMIFS(Form_Autres_Usages[[Conso_pr_et3]:[Conso_pr_et3]],Form_Autres_Usages[[BatID]:[BatID]],AX$6,Form_Autres_Usages[[Usage]:[Usage]],$C41)/1000 -> 0 | AY41: =AX41 -> 0 | BA41: =SUMIFS(Form_Autres_Usages[[Conso_ex]:[Conso_ex]],Form_Autres_Usages[[BatID]:[BatID]],BA$6,Form_Autres_Usages[[Usage]:[Usage]],$C41)/1000 -> 0 | BB41: =SUMIFS(Form_Autres_Usages[[Conso_pr_et1]:[Conso_pr_et1]],Form_Autres_Usages[[BatID]:[BatID]],BB$6,Form_Autres_Usages[[Usage]:[Usage]],$C41)/1000 -> 0 | BC41: =SUMIFS(Form_Autres_Usages[[Conso_pr_et2]:[Conso_pr_et2]],Form_Autres_Usages[[BatID]:[BatID]],BC$6,Form_Autres_Usages[[Usage]:[Usage]],$C41)/1000 -> 0 | BD41: =SUMIFS(Form_Autres_Usages[[Conso_pr_et3]:[Conso_pr_et3]],Form_Autres_Usages[[BatID]:[BatID]],BD$6,Form_Autres_Usages[[Usage]:[Usage]],$C41)/1000 -> 0 | BE41: =BD41 -> 0 | BG41: =SUMIFS(Form_Autres_Usages[[Conso_ex]:[Conso_ex]],Form_Autres_Usages[[BatID]:[BatID]],BG$6,Form_Autres_Usages[[Usage]:[Usage]],$C41)/1000 -> 0 | BH41: =SUMIFS(Form_Autres_Usages[[Conso_pr_et1]:[Conso_pr_et1]],Form_Autres_Usages[[BatID]:[BatID]],BH$6,Form_Autres_Usages[[Usage]:[Usage]],$C41)/1000 -> 0 | BI41: =SUMIFS(Form_Autres_Usages[[Conso_pr_et2]:[Conso_pr_et2]],Form_Autres_Usages[[BatID]:[BatID]],BI$6,Form_Autres_Usages[[Usage]:[Usage]],$C41)/1000 -> 0 | BJ41: =SUMIFS(Form_Autres_Usages[[Conso_pr_et3]:[Conso_pr_et3]],Form_Autres_Usages[[BatID]:[BatID]],BJ$6,Form_Autres_Usages[[Usage]:[Usage]],$C41)/1000 -> 0 | BK41: =BJ41 -> 0 | BM41: =SUMIFS(Form_Autres_Usages[[Conso_ex]:[Conso_ex]],Form_Autres_Usages[[BatID]:[BatID]],BM$6,Form_Autres_Usages[[Usage]:[Usage]],$C41)/1000 -> 0 | BN41: =SUMIFS(Form_Autres_Usages[[Conso_pr_et1]:[Conso_pr_et1]],Form_Autres_Usages[[BatID]:[BatID]],BN$6,Form_Autres_Usages[[Usage]:[Usage]],$C41)/1000 -> 0 | BO41: =SUMIFS(Form_Autres_Usages[[Conso_pr_et2]:[Conso_pr_et2]],Form_Autres_Usages[[BatID]:[BatID]],BO$6,Form_Autres_Usages[[Usage]:[Usage]],$C41)/1000 -> 0 | BP41: =SUMIFS(Form_Autres_Usages[[Conso_pr_et3]:[Conso_pr_et3]],Form_Autres_Usages[[BatID]:[BatID]],BP$6,Form_Autres_Usages[[Usage]:[Usage]],$C41)/1000 -> 0 | BQ41: =BP41 -> 0 | BS41: =SUMIFS(Form_Autres_Usages[[Conso_ex]:[Conso_ex]],Form_Autres_Usages[[BatID]:[BatID]],BS$6,Form_Autres_Usages[[Usage]:[Usage]],$C41)/1000 -> 0 | BT41: =SUMIFS(Form_Autres_Usages[[Conso_pr_et1]:[Conso_pr_et1]],Form_Autres_Usages[[BatID]:[BatID]],BT$6,Form_Autres_Usages[[Usage]:[Usage]],$C41)/1000 -> 0 | BU41: =SUMIFS(Form_Autres_Usages[[Conso_pr_et2]:[Conso_pr_et2]],Form_Autres_Usages[[BatID]:[BatID]],BU$6,Form_Autres_Usages[[Usage]:[Usage]],$C41)/1000 -> 0 | BV41: =SUMIFS(Form_Autres_Usages[[Conso_pr_et3]:[Conso_pr_et3]],Form_Autres_Usages[[BatID]:[BatID]],BV$6,Form_Autres_Usages[[Usage]:[Usage]],$C41)/1000 -> 0 | BW41: =BV41 -> 0
C42: 7.AUT-2 | F42: Autres usages - | G42: =SUMIFS($O42:$BX42,$O$7:$BX$7,G$7) -> 0 | H42: =SUMIFS($O42:$BX42,$O$7:$BX$7,H$7) -> 0 | I42: =SUMIFS($O42:$BX42,$O$7:$BX$7,I$7) -> 0 | J42: =SUMIFS($O42:$BX42,$O$7:$BX$7,J$7) -> 0 | K42: =SUMIFS($O42:$BX42,$O$7:$BX$7,K$7) -> 0 | Q42: =SUMIFS(Form_Autres_Usages[[Conso_ex]:[Conso_ex]],Form_Autres_Usages[[BatID]:[BatID]],Q$6,Form_Autres_Usages[[Usage]:[Usage]],$C42)/1000 -> 0 | R42: =SUMIFS(Form_Autres_Usages[[Conso_pr_et1]:[Conso_pr_et1]],Form_Autres_Usages[[BatID]:[BatID]],R$6,Form_Autres_Usages[[Usage]:[Usage]],$C42)/1000 -> 0 | S42: =SUMIFS(Form_Autres_Usages[[Conso_pr_et2]:[Conso_pr_et2]],Form_Autres_Usages[[BatID]:[BatID]],S$6,Form_Autres_Usages[[Usage]:[Usage]],$C42)/1000 -> 0 | T42: =SUMIFS(Form_Autres_Usages[[Conso_pr_et3]:[Conso_pr_et3]],Form_Autres_Usages[[BatID]:[BatID]],T$6,Form_Autres_Usages[[Usage]:[Usage]],$C42)/1000 -> 0 | U42: 0 | W42: =SUMIFS(Form_Autres_Usages[[Conso_ex]:[Conso_ex]],Form_Autres_Usages[[BatID]:[BatID]],W$6,Form_Autres_Usages[[Usage]:[Usage]],$C42)/1000 -> 0 | X42: =SUMIFS(Form_Autres_Usages[[Conso_pr_et1]:[Conso_pr_et1]],Form_Autres_Usages[[BatID]:[BatID]],X$6,Form_Autres_Usages[[Usage]:[Usage]],$C42)/1000 -> 0 | Y42: =SUMIFS(Form_Autres_Usages[[Conso_pr_et2]:[Conso_pr_et2]],Form_Autres_Usages[[BatID]:[BatID]],Y$6,Form_Autres_Usages[[Usage]:[Usage]],$C42)/1000 -> 0 | Z42: =SUMIFS(Form_Autres_Usages[[Conso_pr_et3]:[Conso_pr_et3]],Form_Autres_Usages[[BatID]:[BatID]],Z$6,Form_Autres_Usages[[Usage]:[Usage]],$C42)/1000 -> 0 | AA42: 0 | AC42: =SUMIFS(Form_Autres_Usages[[Conso_ex]:[Conso_ex]],Form_Autres_Usages[[BatID]:[BatID]],AC$6,Form_Autres_Usages[[Usage]:[Usage]],$C42)/1000 -> 0 | AD42: =SUMIFS(Form_Autres_Usages[[Conso_pr_et1]:[Conso_pr_et1]],Form_Autres_Usages[[BatID]:[BatID]],AD$6,Form_Autres_Usages[[Usage]:[Usage]],$C42)/1000 -> 0 | AE42: =SUMIFS(Form_Autres_Usages[[Conso_pr_et2]:[Conso_pr_et2]],Form_Autres_Usages[[BatID]:[BatID]],AE$6,Form_Autres_Usages[[Usage]:[Usage]],$C42)/1000 -> 0 | AF42: =SUMIFS(Form_Autres_Usages[[Conso_pr_et3]:[Conso_pr_et3]],Form_Autres_Usages[[BatID]:[BatID]],AF$6,Form_Autres_Usages[[Usage]:[Usage]],$C42)/1000 -> 0 | AG42: 0 | AI42: =SUMIFS(Form_Autres_Usages[[Conso_ex]:[Conso_ex]],Form_Autres_Usages[[BatID]:[BatID]],AI$6,Form_Autres_Usages[[Usage]:[Usage]],$C42)/1000 -> 0 | AJ42: =SUMIFS(Form_Autres_Usages[[Conso_pr_et1]:[Conso_pr_et1]],Form_Autres_Usages[[BatID]:[BatID]],AJ$6,Form_Autres_Usages[[Usage]:[Usage]],$C42)/1000 -> 0 | AK42: =SUMIFS(Form_Autres_Usages[[Conso_pr_et2]:[Conso_pr_et2]],Form_Autres_Usages[[BatID]:[BatID]],AK$6,Form_Autres_Usages[[Usage]:[Usage]],$C42)/1000 -> 0 | AL42: =SUMIFS(Form_Autres_Usages[[Conso_pr_et3]:[Conso_pr_et3]],Form_Autres_Usages[[BatID]:[BatID]],AL$6,Form_Autres_Usages[[Usage]:[Usage]],$C42)/1000 -> 0 | AM42: 0 | AO42: =SUMIFS(Form_Autres_Usages[[Conso_ex]:[Conso_ex]],Form_Autres_Usages[[BatID]:[BatID]],AO$6,Form_Autres_Usages[[Usage]:[Usage]],$C42)/1000 -> 0 | AP42: =SUMIFS(Form_Autres_Usages[[Conso_pr_et1]:[Conso_pr_et1]],Form_Autres_Usages[[BatID]:[BatID]],AP$6,Form_Autres_Usages[[Usage]:[Usage]],$C42)/1000 -> 0 | AQ42: =SUMIFS(Form_Autres_Usages[[Conso_pr_et2]:[Conso_pr_et2]],Form_Autres_Usages[[BatID]:[BatID]],AQ$6,Form_Autres_Usages[[Usage]:[Usage]],$C42)/1000 -> 0 | AR42: =SUMIFS(Form_Autres_Usages[[Conso_pr_et3]:[Conso_pr_et3]],Form_Autres_Usages[[BatID]:[BatID]],AR$6,Form_Autres_Usages[[Usage]:[Usage]],$C42)/1000 -> 0 | AS42: 0 | AU42: =SUMIFS(Form_Autres_Usages[[Conso_ex]:[Conso_ex]],Form_Autres_Usages[[BatID]:[BatID]],AU$6,Form_Autres_Usages[[Usage]:[Usage]],$C42)/1000 -> 0 | AV42: =SUMIFS(Form_Autres_Usages[[Conso_pr_et1]:[Conso_pr_et1]],Form_Autres_Usages[[BatID]:[BatID]],AV$6,Form_Autres_Usages[[Usage]:[Usage]],$C42)/1000 -> 0 | AW42: =SUMIFS(Form_Autres_Usages[[Conso_pr_et2]:[Conso_pr_et2]],Form_Autres_Usages[[BatID]:[BatID]],AW$6,Form_Autres_Usages[[Usage]:[Usage]],$C42)/1000 -> 0 | AX42: =SUMIFS(Form_Autres_Usages[[Conso_pr_et3]:[Conso_pr_et3]],Form_Autres_Usages[[BatID]:[BatID]],AX$6,Form_Autres_Usages[[Usage]:[Usage]],$C42)/1000 -> 0 | AY42: 0 | BA42: =SUMIFS(Form_Autres_Usages[[Conso_ex]:[Conso_ex]],Form_Autres_Usages[[BatID]:[BatID]],BA$6,Form_Autres_Usages[[Usage]:[Usage]],$C42)/1000 -> 0 | BB42: =SUMIFS(Form_Autres_Usages[[Conso_pr_et1]:[Conso_pr_et1]],Form_Autres_Usages[[BatID]:[BatID]],BB$6,Form_Autres_Usages[[Usage]:[Usage]],$C42)/1000 -> 0 | BC42: =SUMIFS(Form_Autres_Usages[[Conso_pr_et2]:[Conso_pr_et2]],Form_Autres_Usages[[BatID]:[BatID]],BC$6,Form_Autres_Usages[[Usage]:[Usage]],$C42)/1000 -> 0 | BD42: =SUMIFS(Form_Autres_Usages[[Conso_pr_et3]:[Conso_pr_et3]],Form_Autres_Usages[[BatID]:[BatID]],BD$6,Form_Autres_Usages[[Usage]:[Usage]],$C42)/1000 -> 0 | BE42: 0 | BG42: =SUMIFS(Form_Autres_Usages[[Conso_ex]:[Conso_ex]],Form_Autres_Usages[[BatID]:[BatID]],BG$6,Form_Autres_Usages[[Usage]:[Usage]],$C42)/1000 -> 0 | BH42: =SUMIFS(Form_Autres_Usages[[Conso_pr_et1]:[Conso_pr_et1]],Form_Autres_Usages[[BatID]:[BatID]],BH$6,Form_Autres_Usages[[Usage]:[Usage]],$C42)/1000 -> 0 | BI42: =SUMIFS(Form_Autres_Usages[[Conso_pr_et2]:[Conso_pr_et2]],Form_Autres_Usages[[BatID]:[BatID]],BI$6,Form_Autres_Usages[[Usage]:[Usage]],$C42)/1000 -> 0 | BJ42: =SUMIFS(Form_Autres_Usages[[Conso_pr_et3]:[Conso_pr_et3]],Form_Autres_Usages[[BatID]:[BatID]],BJ$6,Form_Autres_Usages[[Usage]:[Usage]],$C42)/1000 -> 0 | BK42: 0 | BM42: =SUMIFS(Form_Autres_Usages[[Conso_ex]:[Conso_ex]],Form_Autres_Usages[[BatID]:[BatID]],BM$6,Form_Autres_Usages[[Usage]:[Usage]],$C42)/1000 -> 0 | BN42: =SUMIFS(Form_Autres_Usages[[Conso_pr_et1]:[Conso_pr_et1]],Form_Autres_Usages[[BatID]:[BatID]],BN$6,Form_Autres_Usages[[Usage]:[Usage]],$C42)/1000 -> 0 | BO42: =SUMIFS(Form_Autres_Usages[[Conso_pr_et2]:[Conso_pr_et2]],Form_Autres_Usages[[BatID]:[BatID]],BO$6,Form_Autres_Usages[[Usage]:[Usage]],$C42)/1000 -> 0 | BP42: =SUMIFS(Form_Autres_Usages[[Conso_pr_et3]:[Conso_pr_et3]],Form_Autres_Usages[[BatID]:[BatID]],BP$6,Form_Autres_Usages[[Usage]:[Usage]],$C42)/1000 -> 0 | BQ42: 0 | BS42: =SUMIFS(Form_Autres_Usages[[Conso_ex]:[Conso_ex]],Form_Autres_Usages[[BatID]:[BatID]],BS$6,Form_Autres_Usages[[Usage]:[Usage]],$C42)/1000 -> 0 | BT42: =SUMIFS(Form_Autres_Usages[[Conso_pr_et1]:[Conso_pr_et1]],Form_Autres_Usages[[BatID]:[BatID]],BT$6,Form_Autres_Usages[[Usage]:[Usage]],$C42)/1000 -> 0 | BU42: =SUMIFS(Form_Autres_Usages[[Conso_pr_et2]:[Conso_pr_et2]],Form_Autres_Usages[[BatID]:[BatID]],BU$6,Form_Autres_Usages[[Usage]:[Usage]],$C42)/1000 -> 0 | BV42: =SUMIFS(Form_Autres_Usages[[Conso_pr_et3]:[Conso_pr_et3]],Form_Autres_Usages[[BatID]:[BatID]],BV$6,Form_Autres_Usages[[Usage]:[Usage]],$C42)/1000 -> 0 | BW42: 0
C43: 7.AUT-3 | F43: Autres usages - | G43: =SUMIFS($O43:$BX43,$O$7:$BX$7,G$7) -> 0 | H43: =SUMIFS($O43:$BX43,$O$7:$BX$7,H$7) -> 0 | I43: =SUMIFS($O43:$BX43,$O$7:$BX$7,I$7) -> 0 | J43: =SUMIFS($O43:$BX43,$O$7:$BX$7,J$7) -> 0 | K43: =SUMIFS($O43:$BX43,$O$7:$BX$7,K$7) -> 0 | Q43: =SUMIFS(Form_Autres_Usages[[Conso_ex]:[Conso_ex]],Form_Autres_Usages[[BatID]:[BatID]],Q$6,Form_Autres_Usages[[Usage]:[Usage]],$C43)/1000 -> 0 | R43: =SUMIFS(Form_Autres_Usages[[Conso_pr_et1]:[Conso_pr_et1]],Form_Autres_Usages[[BatID]:[BatID]],R$6,Form_Autres_Usages[[Usage]:[Usage]],$C43)/1000 -> 0 | S43: =SUMIFS(Form_Autres_Usages[[Conso_pr_et2]:[Conso_pr_et2]],Form_Autres_Usages[[BatID]:[BatID]],S$6,Form_Autres_Usages[[Usage]:[Usage]],$C43)/1000 -> 0 | T43: =SUMIFS(Form_Autres_Usages[[Conso_pr_et3]:[Conso_pr_et3]],Form_Autres_Usages[[BatID]:[BatID]],T$6,Form_Autres_Usages[[Usage]:[Usage]],$C43)/1000 -> 0 | U43: 0 | W43: =SUMIFS(Form_Autres_Usages[[Conso_ex]:[Conso_ex]],Form_Autres_Usages[[BatID]:[BatID]],W$6,Form_Autres_Usages[[Usage]:[Usage]],$C43)/1000 -> 0 | X43: =SUMIFS(Form_Autres_Usages[[Conso_pr_et1]:[Conso_pr_et1]],Form_Autres_Usages[[BatID]:[BatID]],X$6,Form_Autres_Usages[[Usage]:[Usage]],$C43)/1000 -> 0 | Y43: =SUMIFS(Form_Autres_Usages[[Conso_pr_et2]:[Conso_pr_et2]],Form_Autres_Usages[[BatID]:[BatID]],Y$6,Form_Autres_Usages[[Usage]:[Usage]],$C43)/1000 -> 0 | Z43: =SUMIFS(Form_Autres_Usages[[Conso_pr_et3]:[Conso_pr_et3]],Form_Autres_Usages[[BatID]:[BatID]],Z$6,Form_Autres_Usages[[Usage]:[Usage]],$C43)/1000 -> 0 | AA43: 0 | AC43: =SUMIFS(Form_Autres_Usages[[Conso_ex]:[Conso_ex]],Form_Autres_Usages[[BatID]:[BatID]],AC$6,Form_Autres_Usages[[Usage]:[Usage]],$C43)/1000 -> 0 | AD43: =SUMIFS(Form_Autres_Usages[[Conso_pr_et1]:[Conso_pr_et1]],Form_Autres_Usages[[BatID]:[BatID]],AD$6,Form_Autres_Usages[[Usage]:[Usage]],$C43)/1000 -> 0 | AE43: =SUMIFS(Form_Autres_Usages[[Conso_pr_et2]:[Conso_pr_et2]],Form_Autres_Usages[[BatID]:[BatID]],AE$6,Form_Autres_Usages[[Usage]:[Usage]],$C43)/1000 -> 0 | AF43: =SUMIFS(Form_Autres_Usages[[Conso_pr_et3]:[Conso_pr_et3]],Form_Autres_Usages[[BatID]:[BatID]],AF$6,Form_Autres_Usages[[Usage]:[Usage]],$C43)/1000 -> 0 | AG43: 0 | AI43: =SUMIFS(Form_Autres_Usages[[Conso_ex]:[Conso_ex]],Form_Autres_Usages[[BatID]:[BatID]],AI$6,Form_Autres_Usages[[Usage]:[Usage]],$C43)/1000 -> 0 | AJ43: =SUMIFS(Form_Autres_Usages[[Conso_pr_et1]:[Conso_pr_et1]],Form_Autres_Usages[[BatID]:[BatID]],AJ$6,Form_Autres_Usages[[Usage]:[Usage]],$C43)/1000 -> 0 | AK43: =SUMIFS(Form_Autres_Usages[[Conso_pr_et2]:[Conso_pr_et2]],Form_Autres_Usages[[BatID]:[BatID]],AK$6,Form_Autres_Usages[[Usage]:[Usage]],$C43)/1000 -> 0 | AL43: =SUMIFS(Form_Autres_Usages[[Conso_pr_et3]:[Conso_pr_et3]],Form_Autres_Usages[[BatID]:[BatID]],AL$6,Form_Autres_Usages[[Usage]:[Usage]],$C43)/1000 -> 0 | AM43: 0 | AO43: =SUMIFS(Form_Autres_Usages[[Conso_ex]:[Conso_ex]],Form_Autres_Usages[[BatID]:[BatID]],AO$6,Form_Autres_Usages[[Usage]:[Usage]],$C43)/1000 -> 0 | AP43: =SUMIFS(Form_Autres_Usages[[Conso_pr_et1]:[Conso_pr_et1]],Form_Autres_Usages[[BatID]:[BatID]],AP$6,Form_Autres_Usages[[Usage]:[Usage]],$C43)/1000 -> 0 | AQ43: =SUMIFS(Form_Autres_Usages[[Conso_pr_et2]:[Conso_pr_et2]],Form_Autres_Usages[[BatID]:[BatID]],AQ$6,Form_Autres_Usages[[Usage]:[Usage]],$C43)/1000 -> 0 | AR43: =SUMIFS(Form_Autres_Usages[[Conso_pr_et3]:[Conso_pr_et3]],Form_Autres_Usages[[BatID]:[BatID]],AR$6,Form_Autres_Usages[[Usage]:[Usage]],$C43)/1000 -> 0 | AS43: 0 | AU43: =SUMIFS(Form_Autres_Usages[[Conso_ex]:[Conso_ex]],Form_Autres_Usages[[BatID]:[BatID]],AU$6,Form_Autres_Usages[[Usage]:[Usage]],$C43)/1000 -> 0 | AV43: =SUMIFS(Form_Autres_Usages[[Conso_pr_et1]:[Conso_pr_et1]],Form_Autres_Usages[[BatID]:[BatID]],AV$6,Form_Autres_Usages[[Usage]:[Usage]],$C43)/1000 -> 0 | AW43: =SUMIFS(Form_Autres_Usages[[Conso_pr_et2]:[Conso_pr_et2]],Form_Autres_Usages[[BatID]:[BatID]],AW$6,Form_Autres_Usages[[Usage]:[Usage]],$C43)/1000 -> 0 | AX43: =SUMIFS(Form_Autres_Usages[[Conso_pr_et3]:[Conso_pr_et3]],Form_Autres_Usages[[BatID]:[BatID]],AX$6,Form_Autres_Usages[[Usage]:[Usage]],$C43)/1000 -> 0 | AY43: 0 | BA43: =SUMIFS(Form_Autres_Usages[[Conso_ex]:[Conso_ex]],Form_Autres_Usages[[BatID]:[BatID]],BA$6,Form_Autres_Usages[[Usage]:[Usage]],$C43)/1000 -> 0 | BB43: =SUMIFS(Form_Autres_Usages[[Conso_pr_et1]:[Conso_pr_et1]],Form_Autres_Usages[[BatID]:[BatID]],BB$6,Form_Autres_Usages[[Usage]:[Usage]],$C43)/1000 -> 0 | BC43: =SUMIFS(Form_Autres_Usages[[Conso_pr_et2]:[Conso_pr_et2]],Form_Autres_Usages[[BatID]:[BatID]],BC$6,Form_Autres_Usages[[Usage]:[Usage]],$C43)/1000 -> 0 | BD43: =SUMIFS(Form_Autres_Usages[[Conso_pr_et3]:[Conso_pr_et3]],Form_Autres_Usages[[BatID]:[BatID]],BD$6,Form_Autres_Usages[[Usage]:[Usage]],$C43)/1000 -> 0 | BE43: 0 | BG43: =SUMIFS(Form_Autres_Usages[[Conso_ex]:[Conso_ex]],Form_Autres_Usages[[BatID]:[BatID]],BG$6,Form_Autres_Usages[[Usage]:[Usage]],$C43)/1000 -> 0 | BH43: =SUMIFS(Form_Autres_Usages[[Conso_pr_et1]:[Conso_pr_et1]],Form_Autres_Usages[[BatID]:[BatID]],BH$6,Form_Autres_Usages[[Usage]:[Usage]],$C43)/1000 -> 0 | BI43: =SUMIFS(Form_Autres_Usages[[Conso_pr_et2]:[Conso_pr_et2]],Form_Autres_Usages[[BatID]:[BatID]],BI$6,Form_Autres_Usages[[Usage]:[Usage]],$C43)/1000 -> 0 | BJ43: =SUMIFS(Form_Autres_Usages[[Conso_pr_et3]:[Conso_pr_et3]],Form_Autres_Usages[[BatID]:[BatID]],BJ$6,Form_Autres_Usages[[Usage]:[Usage]],$C43)/1000 -> 0 | BK43: 0 | BM43: =SUMIFS(Form_Autres_Usages[[Conso_ex]:[Conso_ex]],Form_Autres_Usages[[BatID]:[BatID]],BM$6,Form_Autres_Usages[[Usage]:[Usage]],$C43)/1000 -> 0 | BN43: =SUMIFS(Form_Autres_Usages[[Conso_pr_et1]:[Conso_pr_et1]],Form_Autres_Usages[[BatID]:[BatID]],BN$6,Form_Autres_Usages[[Usage]:[Usage]],$C43)/1000 -> 0 | BO43: =SUMIFS(Form_Autres_Usages[[Conso_pr_et2]:[Conso_pr_et2]],Form_Autres_Usages[[BatID]:[BatID]],BO$6,Form_Autres_Usages[[Usage]:[Usage]],$C43)/1000 -> 0 | BP43: =SUMIFS(Form_Autres_Usages[[Conso_pr_et3]:[Conso_pr_et3]],Form_Autres_Usages[[BatID]:[BatID]],BP$6,Form_Autres_Usages[[Usage]:[Usage]],$C43)/1000 -> 0 | BQ43: 0 | BS43: =SUMIFS(Form_Autres_Usages[[Conso_ex]:[Conso_ex]],Form_Autres_Usages[[BatID]:[BatID]],BS$6,Form_Autres_Usages[[Usage]:[Usage]],$C43)/1000 -> 0 | BT43: =SUMIFS(Form_Autres_Usages[[Conso_pr_et1]:[Conso_pr_et1]],Form_Autres_Usages[[BatID]:[BatID]],BT$6,Form_Autres_Usages[[Usage]:[Usage]],$C43)/1000 -> 0 | BU43: =SUMIFS(Form_Autres_Usages[[Conso_pr_et2]:[Conso_pr_et2]],Form_Autres_Usages[[BatID]:[BatID]],BU$6,Form_Autres_Usages[[Usage]:[Usage]],$C43)/1000 -> 0 | BV43: =SUMIFS(Form_Autres_Usages[[Conso_pr_et3]:[Conso_pr_et3]],Form_Autres_Usages[[BatID]:[BatID]],BV$6,Form_Autres_Usages[[Usage]:[Usage]],$C43)/1000 -> 0 | BW43: 0
C44: 7.AUT-4 | F44: Autres usages - | G44: =SUMIFS($O44:$BX44,$O$7:$BX$7,G$7) -> 0 | H44: =SUMIFS($O44:$BX44,$O$7:$BX$7,H$7) -> 0 | I44: =SUMIFS($O44:$BX44,$O$7:$BX$7,I$7) -> 0 | J44: =SUMIFS($O44:$BX44,$O$7:$BX$7,J$7) -> 0 | K44: =SUMIFS($O44:$BX44,$O$7:$BX$7,K$7) -> 0 | Q44: =SUMIFS(Form_Autres_Usages[[Conso_ex]:[Conso_ex]],Form_Autres_Usages[[BatID]:[BatID]],Q$6,Form_Autres_Usages[[Usage]:[Usage]],$C44)/1000 -> 0 | R44: =SUMIFS(Form_Autres_Usages[[Conso_pr_et1]:[Conso_pr_et1]],Form_Autres_Usages[[BatID]:[BatID]],R$6,Form_Autres_Usages[[Usage]:[Usage]],$C44)/1000 -> 0 | S44: =SUMIFS(Form_Autres_Usages[[Conso_pr_et2]:[Conso_pr_et2]],Form_Autres_Usages[[BatID]:[BatID]],S$6,Form_Autres_Usages[[Usage]:[Usage]],$C44)/1000 -> 0 | T44: =SUMIFS(Form_Autres_Usages[[Conso_pr_et3]:[Conso_pr_et3]],Form_Autres_Usages[[BatID]:[BatID]],T$6,Form_Autres_Usages[[Usage]:[Usage]],$C44)/1000 -> 0 | U44: 0 | W44: =SUMIFS(Form_Autres_Usages[[Conso_ex]:[Conso_ex]],Form_Autres_Usages[[BatID]:[BatID]],W$6,Form_Autres_Usages[[Usage]:[Usage]],$C44)/1000 -> 0 | X44: =SUMIFS(Form_Autres_Usages[[Conso_pr_et1]:[Conso_pr_et1]],Form_Autres_Usages[[BatID]:[BatID]],X$6,Form_Autres_Usages[[Usage]:[Usage]],$C44)/1000 -> 0 | Y44: =SUMIFS(Form_Autres_Usages[[Conso_pr_et2]:[Conso_pr_et2]],Form_Autres_Usages[[BatID]:[BatID]],Y$6,Form_Autres_Usages[[Usage]:[Usage]],$C44)/1000 -> 0 | Z44: =SUMIFS(Form_Autres_Usages[[Conso_pr_et3]:[Conso_pr_et3]],Form_Autres_Usages[[BatID]:[BatID]],Z$6,Form_Autres_Usages[[Usage]:[Usage]],$C44)/1000 -> 0 | AA44: 0 | AC44: =SUMIFS(Form_Autres_Usages[[Conso_ex]:[Conso_ex]],Form_Autres_Usages[[BatID]:[BatID]],AC$6,Form_Autres_Usages[[Usage]:[Usage]],$C44)/1000 -> 0 | AD44: =SUMIFS(Form_Autres_Usages[[Conso_pr_et1]:[Conso_pr_et1]],Form_Autres_Usages[[BatID]:[BatID]],AD$6,Form_Autres_Usages[[Usage]:[Usage]],$C44)/1000 -> 0 | AE44: =SUMIFS(Form_Autres_Usages[[Conso_pr_et2]:[Conso_pr_et2]],Form_Autres_Usages[[BatID]:[BatID]],AE$6,Form_Autres_Usages[[Usage]:[Usage]],$C44)/1000 -> 0 | AF44: =SUMIFS(Form_Autres_Usages[[Conso_pr_et3]:[Conso_pr_et3]],Form_Autres_Usages[[BatID]:[BatID]],AF$6,Form_Autres_Usages[[Usage]:[Usage]],$C44)/1000 -> 0 | AG44: 0 | AI44: =SUMIFS(Form_Autres_Usages[[Conso_ex]:[Conso_ex]],Form_Autres_Usages[[BatID]:[BatID]],AI$6,Form_Autres_Usages[[Usage]:[Usage]],$C44)/1000 -> 0 | AJ44: =SUMIFS(Form_Autres_Usages[[Conso_pr_et1]:[Conso_pr_et1]],Form_Autres_Usages[[BatID]:[BatID]],AJ$6,Form_Autres_Usages[[Usage]:[Usage]],$C44)/1000 -> 0 | AK44: =SUMIFS(Form_Autres_Usages[[Conso_pr_et2]:[Conso_pr_et2]],Form_Autres_Usages[[BatID]:[BatID]],AK$6,Form_Autres_Usages[[Usage]:[Usage]],$C44)/1000 -> 0 | AL44: =SUMIFS(Form_Autres_Usages[[Conso_pr_et3]:[Conso_pr_et3]],Form_Autres_Usages[[BatID]:[BatID]],AL$6,Form_Autres_Usages[[Usage]:[Usage]],$C44)/1000 -> 0 | AM44: 0 | AO44: =SUMIFS(Form_Autres_Usages[[Conso_ex]:[Conso_ex]],Form_Autres_Usages[[BatID]:[BatID]],AO$6,Form_Autres_Usages[[Usage]:[Usage]],$C44)/1000 -> 0 | AP44: =SUMIFS(Form_Autres_Usages[[Conso_pr_et1]:[Conso_pr_et1]],Form_Autres_Usages[[BatID]:[BatID]],AP$6,Form_Autres_Usages[[Usage]:[Usage]],$C44)/1000 -> 0 | AQ44: =SUMIFS(Form_Autres_Usages[[Conso_pr_et2]:[Conso_pr_et2]],Form_Autres_Usages[[BatID]:[BatID]],AQ$6,Form_Autres_Usages[[Usage]:[Usage]],$C44)/1000 -> 0 | AR44: =SUMIFS(Form_Autres_Usages[[Conso_pr_et3]:[Conso_pr_et3]],Form_Autres_Usages[[BatID]:[BatID]],AR$6,Form_Autres_Usages[[Usage]:[Usage]],$C44)/1000 -> 0 | AS44: 0 | AU44: =SUMIFS(Form_Autres_Usages[[Conso_ex]:[Conso_ex]],Form_Autres_Usages[[BatID]:[BatID]],AU$6,Form_Autres_Usages[[Usage]:[Usage]],$C44)/1000 -> 0 | AV44: =SUMIFS(Form_Autres_Usages[[Conso_pr_et1]:[Conso_pr_et1]],Form_Autres_Usages[[BatID]:[BatID]],AV$6,Form_Autres_Usages[[Usage]:[Usage]],$C44)/1000 -> 0 | AW44: =SUMIFS(Form_Autres_Usages[[Conso_pr_et2]:[Conso_pr_et2]],Form_Autres_Usages[[BatID]:[BatID]],AW$6,Form_Autres_Usages[[Usage]:[Usage]],$C44)/1000 -> 0 | AX44: =SUMIFS(Form_Autres_Usages[[Conso_pr_et3]:[Conso_pr_et3]],Form_Autres_Usages[[BatID]:[BatID]],AX$6,Form_Autres_Usages[[Usage]:[Usage]],$C44)/1000 -> 0 | AY44: 0 | BA44: =SUMIFS(Form_Autres_Usages[[Conso_ex]:[Conso_ex]],Form_Autres_Usages[[BatID]:[BatID]],BA$6,Form_Autres_Usages[[Usage]:[Usage]],$C44)/1000 -> 0 | BB44: =SUMIFS(Form_Autres_Usages[[Conso_pr_et1]:[Conso_pr_et1]],Form_Autres_Usages[[BatID]:[BatID]],BB$6,Form_Autres_Usages[[Usage]:[Usage]],$C44)/1000 -> 0 | BC44: =SUMIFS(Form_Autres_Usages[[Conso_pr_et2]:[Conso_pr_et2]],Form_Autres_Usages[[BatID]:[BatID]],BC$6,Form_Autres_Usages[[Usage]:[Usage]],$C44)/1000 -> 0 | BD44: =SUMIFS(Form_Autres_Usages[[Conso_pr_et3]:[Conso_pr_et3]],Form_Autres_Usages[[BatID]:[BatID]],BD$6,Form_Autres_Usages[[Usage]:[Usage]],$C44)/1000 -> 0 | BE44: 0 | BG44: =SUMIFS(Form_Autres_Usages[[Conso_ex]:[Conso_ex]],Form_Autres_Usages[[BatID]:[BatID]],BG$6,Form_Autres_Usages[[Usage]:[Usage]],$C44)/1000 -> 0 | BH44: =SUMIFS(Form_Autres_Usages[[Conso_pr_et1]:[Conso_pr_et1]],Form_Autres_Usages[[BatID]:[BatID]],BH$6,Form_Autres_Usages[[Usage]:[Usage]],$C44)/1000 -> 0 | BI44: =SUMIFS(Form_Autres_Usages[[Conso_pr_et2]:[Conso_pr_et2]],Form_Autres_Usages[[BatID]:[BatID]],BI$6,Form_Autres_Usages[[Usage]:[Usage]],$C44)/1000 -> 0 | BJ44: =SUMIFS(Form_Autres_Usages[[Conso_pr_et3]:[Conso_pr_et3]],Form_Autres_Usages[[BatID]:[BatID]],BJ$6,Form_Autres_Usages[[Usage]:[Usage]],$C44)/1000 -> 0 | BK44: 0 | BM44: =SUMIFS(Form_Autres_Usages[[Conso_ex]:[Conso_ex]],Form_Autres_Usages[[BatID]:[BatID]],BM$6,Form_Autres_Usages[[Usage]:[Usage]],$C44)/1000 -> 0 | BN44: =SUMIFS(Form_Autres_Usages[[Conso_pr_et1]:[Conso_pr_et1]],Form_Autres_Usages[[BatID]:[BatID]],BN$6,Form_Autres_Usages[[Usage]:[Usage]],$C44)/1000 -> 0 | BO44: =SUMIFS(Form_Autres_Usages[[Conso_pr_et2]:[Conso_pr_et2]],Form_Autres_Usages[[BatID]:[BatID]],BO$6,Form_Autres_Usages[[Usage]:[Usage]],$C44)/1000 -> 0 | BP44: =SUMIFS(Form_Autres_Usages[[Conso_pr_et3]:[Conso_pr_et3]],Form_Autres_Usages[[BatID]:[BatID]],BP$6,Form_Autres_Usages[[Usage]:[Usage]],$C44)/1000 -> 0 | BQ44: 0 | BS44: =SUMIFS(Form_Autres_Usages[[Conso_ex]:[Conso_ex]],Form_Autres_Usages[[BatID]:[BatID]],BS$6,Form_Autres_Usages[[Usage]:[Usage]],$C44)/1000 -> 0 | BT44: =SUMIFS(Form_Autres_Usages[[Conso_pr_et1]:[Conso_pr_et1]],Form_Autres_Usages[[BatID]:[BatID]],BT$6,Form_Autres_Usages[[Usage]:[Usage]],$C44)/1000 -> 0 | BU44: =SUMIFS(Form_Autres_Usages[[Conso_pr_et2]:[Conso_pr_et2]],Form_Autres_Usages[[BatID]:[BatID]],BU$6,Form_Autres_Usages[[Usage]:[Usage]],$C44)/1000 -> 0 | BV44: =SUMIFS(Form_Autres_Usages[[Conso_pr_et3]:[Conso_pr_et3]],Form_Autres_Usages[[BatID]:[BatID]],BV$6,Form_Autres_Usages[[Usage]:[Usage]],$C44)/1000 -> 0 | BW44: 0
C45: 7.AUT-5 | F45: Autres usages - | G45: =SUMIFS($O45:$BX45,$O$7:$BX$7,G$7) -> 0 | H45: =SUMIFS($O45:$BX45,$O$7:$BX$7,H$7) -> 0 | I45: =SUMIFS($O45:$BX45,$O$7:$BX$7,I$7) -> 0 | J45: =SUMIFS($O45:$BX45,$O$7:$BX$7,J$7) -> 0 | K45: =SUMIFS($O45:$BX45,$O$7:$BX$7,K$7) -> 0 | Q45: =SUMIFS(Form_Autres_Usages[[Conso_ex]:[Conso_ex]],Form_Autres_Usages[[BatID]:[BatID]],Q$6,Form_Autres_Usages[[Usage]:[Usage]],$C45)/1000 -> 0 | R45: =SUMIFS(Form_Autres_Usages[[Conso_pr_et1]:[Conso_pr_et1]],Form_Autres_Usages[[BatID]:[BatID]],R$6,Form_Autres_Usages[[Usage]:[Usage]],$C45)/1000 -> 0 | S45: =SUMIFS(Form_Autres_Usages[[Conso_pr_et2]:[Conso_pr_et2]],Form_Autres_Usages[[BatID]:[BatID]],S$6,Form_Autres_Usages[[Usage]:[Usage]],$C45)/1000 -> 0 | T45: =SUMIFS(Form_Autres_Usages[[Conso_pr_et3]:[Conso_pr_et3]],Form_Autres_Usages[[BatID]:[BatID]],T$6,Form_Autres_Usages[[Usage]:[Usage]],$C45)/1000 -> 0 | U45: 0 | W45: =SUMIFS(Form_Autres_Usages[[Conso_ex]:[Conso_ex]],Form_Autres_Usages[[BatID]:[BatID]],W$6,Form_Autres_Usages[[Usage]:[Usage]],$C45)/1000 -> 0 | X45: =SUMIFS(Form_Autres_Usages[[Conso_pr_et1]:[Conso_pr_et1]],Form_Autres_Usages[[BatID]:[BatID]],X$6,Form_Autres_Usages[[Usage]:[Usage]],$C45)/1000 -> 0 | Y45: =SUMIFS(Form_Autres_Usages[[Conso_pr_et2]:[Conso_pr_et2]],Form_Autres_Usages[[BatID]:[BatID]],Y$6,Form_Autres_Usages[[Usage]:[Usage]],$C45)/1000 -> 0 | Z45: =SUMIFS(Form_Autres_Usages[[Conso_pr_et3]:[Conso_pr_et3]],Form_Autres_Usages[[BatID]:[BatID]],Z$6,Form_Autres_Usages[[Usage]:[Usage]],$C45)/1000 -> 0 | AA45: 0 | AC45: =SUMIFS(Form_Autres_Usages[[Conso_ex]:[Conso_ex]],Form_Autres_Usages[[BatID]:[BatID]],AC$6,Form_Autres_Usages[[Usage]:[Usage]],$C45)/1000 -> 0 | AD45: =SUMIFS(Form_Autres_Usages[[Conso_pr_et1]:[Conso_pr_et1]],Form_Autres_Usages[[BatID]:[BatID]],AD$6,Form_Autres_Usages[[Usage]:[Usage]],$C45)/1000 -> 0 | AE45: =SUMIFS(Form_Autres_Usages[[Conso_pr_et2]:[Conso_pr_et2]],Form_Autres_Usages[[BatID]:[BatID]],AE$6,Form_Autres_Usages[[Usage]:[Usage]],$C45)/1000 -> 0 | AF45: =SUMIFS(Form_Autres_Usages[[Conso_pr_et3]:[Conso_pr_et3]],Form_Autres_Usages[[BatID]:[BatID]],AF$6,Form_Autres_Usages[[Usage]:[Usage]],$C45)/1000 -> 0 | AG45: 0 | AI45: =SUMIFS(Form_Autres_Usages[[Conso_ex]:[Conso_ex]],Form_Autres_Usages[[BatID]:[BatID]],AI$6,Form_Autres_Usages[[Usage]:[Usage]],$C45)/1000 -> 0 | AJ45: =SUMIFS(Form_Autres_Usages[[Conso_pr_et1]:[Conso_pr_et1]],Form_Autres_Usages[[BatID]:[BatID]],AJ$6,Form_Autres_Usages[[Usage]:[Usage]],$C45)/1000 -> 0 | AK45: =SUMIFS(Form_Autres_Usages[[Conso_pr_et2]:[Conso_pr_et2]],Form_Autres_Usages[[BatID]:[BatID]],AK$6,Form_Autres_Usages[[Usage]:[Usage]],$C45)/1000 -> 0 | AL45: =SUMIFS(Form_Autres_Usages[[Conso_pr_et3]:[Conso_pr_et3]],Form_Autres_Usages[[BatID]:[BatID]],AL$6,Form_Autres_Usages[[Usage]:[Usage]],$C45)/1000 -> 0 | AM45: 0 | AO45: =SUMIFS(Form_Autres_Usages[[Conso_ex]:[Conso_ex]],Form_Autres_Usages[[BatID]:[BatID]],AO$6,Form_Autres_Usages[[Usage]:[Usage]],$C45)/1000 -> 0 | AP45: =SUMIFS(Form_Autres_Usages[[Conso_pr_et1]:[Conso_pr_et1]],Form_Autres_Usages[[BatID]:[BatID]],AP$6,Form_Autres_Usages[[Usage]:[Usage]],$C45)/1000 -> 0 | AQ45: =SUMIFS(Form_Autres_Usages[[Conso_pr_et2]:[Conso_pr_et2]],Form_Autres_Usages[[BatID]:[BatID]],AQ$6,Form_Autres_Usages[[Usage]:[Usage]],$C45)/1000 -> 0 | AR45: =SUMIFS(Form_Autres_Usages[[Conso_pr_et3]:[Conso_pr_et3]],Form_Autres_Usages[[BatID]:[BatID]],AR$6,Form_Autres_Usages[[Usage]:[Usage]],$C45)/1000 -> 0 | AS45: 0 | AU45: =SUMIFS(Form_Autres_Usages[[Conso_ex]:[Conso_ex]],Form_Autres_Usages[[BatID]:[BatID]],AU$6,Form_Autres_Usages[[Usage]:[Usage]],$C45)/1000 -> 0 | AV45: =SUMIFS(Form_Autres_Usages[[Conso_pr_et1]:[Conso_pr_et1]],Form_Autres_Usages[[BatID]:[BatID]],AV$6,Form_Autres_Usages[[Usage]:[Usage]],$C45)/1000 -> 0 | AW45: =SUMIFS(Form_Autres_Usages[[Conso_pr_et2]:[Conso_pr_et2]],Form_Autres_Usages[[BatID]:[BatID]],AW$6,Form_Autres_Usages[[Usage]:[Usage]],$C45)/1000 -> 0 | AX45: =SUMIFS(Form_Autres_Usages[[Conso_pr_et3]:[Conso_pr_et3]],Form_Autres_Usages[[BatID]:[BatID]],AX$6,Form_Autres_Usages[[Usage]:[Usage]],$C45)/1000 -> 0 | AY45: 0 | BA45: =SUMIFS(Form_Autres_Usages[[Conso_ex]:[Conso_ex]],Form_Autres_Usages[[BatID]:[BatID]],BA$6,Form_Autres_Usages[[Usage]:[Usage]],$C45)/1000 -> 0 | BB45: =SUMIFS(Form_Autres_Usages[[Conso_pr_et1]:[Conso_pr_et1]],Form_Autres_Usages[[BatID]:[BatID]],BB$6,Form_Autres_Usages[[Usage]:[Usage]],$C45)/1000 -> 0 | BC45: =SUMIFS(Form_Autres_Usages[[Conso_pr_et2]:[Conso_pr_et2]],Form_Autres_Usages[[BatID]:[BatID]],BC$6,Form_Autres_Usages[[Usage]:[Usage]],$C45)/1000 -> 0 | BD45: =SUMIFS(Form_Autres_Usages[[Conso_pr_et3]:[Conso_pr_et3]],Form_Autres_Usages[[BatID]:[BatID]],BD$6,Form_Autres_Usages[[Usage]:[Usage]],$C45)/1000 -> 0 | BE45: 0 | BG45: =SUMIFS(Form_Autres_Usages[[Conso_ex]:[Conso_ex]],Form_Autres_Usages[[BatID]:[BatID]],BG$6,Form_Autres_Usages[[Usage]:[Usage]],$C45)/1000 -> 0 | BH45: =SUMIFS(Form_Autres_Usages[[Conso_pr_et1]:[Conso_pr_et1]],Form_Autres_Usages[[BatID]:[BatID]],BH$6,Form_Autres_Usages[[Usage]:[Usage]],$C45)/1000 -> 0 | BI45: =SUMIFS(Form_Autres_Usages[[Conso_pr_et2]:[Conso_pr_et2]],Form_Autres_Usages[[BatID]:[BatID]],BI$6,Form_Autres_Usages[[Usage]:[Usage]],$C45)/1000 -> 0 | BJ45: =SUMIFS(Form_Autres_Usages[[Conso_pr_et3]:[Conso_pr_et3]],Form_Autres_Usages[[BatID]:[BatID]],BJ$6,Form_Autres_Usages[[Usage]:[Usage]],$C45)/1000 -> 0 | BK45: 0 | BM45: =SUMIFS(Form_Autres_Usages[[Conso_ex]:[Conso_ex]],Form_Autres_Usages[[BatID]:[BatID]],BM$6,Form_Autres_Usages[[Usage]:[Usage]],$C45)/1000 -> 0 | BN45: =SUMIFS(Form_Autres_Usages[[Conso_pr_et1]:[Conso_pr_et1]],Form_Autres_Usages[[BatID]:[BatID]],BN$6,Form_Autres_Usages[[Usage]:[Usage]],$C45)/1000 -> 0 | BO45: =SUMIFS(Form_Autres_Usages[[Conso_pr_et2]:[Conso_pr_et2]],Form_Autres_Usages[[BatID]:[BatID]],BO$6,Form_Autres_Usages[[Usage]:[Usage]],$C45)/1000 -> 0 | BP45: =SUMIFS(Form_Autres_Usages[[Conso_pr_et3]:[Conso_pr_et3]],Form_Autres_Usages[[BatID]:[BatID]],BP$6,Form_Autres_Usages[[Usage]:[Usage]],$C45)/1000 -> 0 | BQ45: 0 | BS45: =SUMIFS(Form_Autres_Usages[[Conso_ex]:[Conso_ex]],Form_Autres_Usages[[BatID]:[BatID]],BS$6,Form_Autres_Usages[[Usage]:[Usage]],$C45)/1000 -> 0 | BT45: =SUMIFS(Form_Autres_Usages[[Conso_pr_et1]:[Conso_pr_et1]],Form_Autres_Usages[[BatID]:[BatID]],BT$6,Form_Autres_Usages[[Usage]:[Usage]],$C45)/1000 -> 0 | BU45: =SUMIFS(Form_Autres_Usages[[Conso_pr_et2]:[Conso_pr_et2]],Form_Autres_Usages[[BatID]:[BatID]],BU$6,Form_Autres_Usages[[Usage]:[Usage]],$C45)/1000 -> 0 | BV45: =SUMIFS(Form_Autres_Usages[[Conso_pr_et3]:[Conso_pr_et3]],Form_Autres_Usages[[BatID]:[BatID]],BV$6,Form_Autres_Usages[[Usage]:[Usage]],$C45)/1000 -> 0 | BW45: 0
C46: 7.AUT-6 | F46: Autres usages - | G46: =SUMIFS($O46:$BX46,$O$7:$BX$7,G$7) -> 0 | H46: =SUMIFS($O46:$BX46,$O$7:$BX$7,H$7) -> 0 | I46: =SUMIFS($O46:$BX46,$O$7:$BX$7,I$7) -> 0 | J46: =SUMIFS($O46:$BX46,$O$7:$BX$7,J$7) -> 0 | K46: =SUMIFS($O46:$BX46,$O$7:$BX$7,K$7) -> 0 | Q46: =SUMIFS(Form_Autres_Usages[[Conso_ex]:[Conso_ex]],Form_Autres_Usages[[BatID]:[BatID]],Q$6,Form_Autres_Usages[[Usage]:[Usage]],$C46)/1000 -> 0 | R46: =SUMIFS(Form_Autres_Usages[[Conso_pr_et1]:[Conso_pr_et1]],Form_Autres_Usages[[BatID]:[BatID]],R$6,Form_Autres_Usages[[Usage]:[Usage]],$C46)/1000 -> 0 | S46: =SUMIFS(Form_Autres_Usages[[Conso_pr_et2]:[Conso_pr_et2]],Form_Autres_Usages[[BatID]:[BatID]],S$6,Form_Autres_Usages[[Usage]:[Usage]],$C46)/1000 -> 0 | T46: =SUMIFS(Form_Autres_Usages[[Conso_pr_et3]:[Conso_pr_et3]],Form_Autres_Usages[[BatID]:[BatID]],T$6,Form_Autres_Usages[[Usage]:[Usage]],$C46)/1000 -> 0 | U46: 0 | W46: =SUMIFS(Form_Autres_Usages[[Conso_ex]:[Conso_ex]],Form_Autres_Usages[[BatID]:[BatID]],W$6,Form_Autres_Usages[[Usage]:[Usage]],$C46)/1000 -> 0 | X46: =SUMIFS(Form_Autres_Usages[[Conso_pr_et1]:[Conso_pr_et1]],Form_Autres_Usages[[BatID]:[BatID]],X$6,Form_Autres_Usages[[Usage]:[Usage]],$C46)/1000 -> 0 | Y46: =SUMIFS(Form_Autres_Usages[[Conso_pr_et2]:[Conso_pr_et2]],Form_Autres_Usages[[BatID]:[BatID]],Y$6,Form_Autres_Usages[[Usage]:[Usage]],$C46)/1000 -> 0 | Z46: =SUMIFS(Form_Autres_Usages[[Conso_pr_et3]:[Conso_pr_et3]],Form_Autres_Usages[[BatID]:[BatID]],Z$6,Form_Autres_Usages[[Usage]:[Usage]],$C46)/1000 -> 0 | AA46: 0 | AC46: =SUMIFS(Form_Autres_Usages[[Conso_ex]:[Conso_ex]],Form_Autres_Usages[[BatID]:[BatID]],AC$6,Form_Autres_Usages[[Usage]:[Usage]],$C46)/1000 -> 0 | AD46: =SUMIFS(Form_Autres_Usages[[Conso_pr_et1]:[Conso_pr_et1]],Form_Autres_Usages[[BatID]:[BatID]],AD$6,Form_Autres_Usages[[Usage]:[Usage]],$C46)/1000 -> 0 | AE46: =SUMIFS(Form_Autres_Usages[[Conso_pr_et2]:[Conso_pr_et2]],Form_Autres_Usages[[BatID]:[BatID]],AE$6,Form_Autres_Usages[[Usage]:[Usage]],$C46)/1000 -> 0 | AF46: =SUMIFS(Form_Autres_Usages[[Conso_pr_et3]:[Conso_pr_et3]],Form_Autres_Usages[[BatID]:[BatID]],AF$6,Form_Autres_Usages[[Usage]:[Usage]],$C46)/1000 -> 0 | AG46: 0 | AI46: =SUMIFS(Form_Autres_Usages[[Conso_ex]:[Conso_ex]],Form_Autres_Usages[[BatID]:[BatID]],AI$6,Form_Autres_Usages[[Usage]:[Usage]],$C46)/1000 -> 0 | AJ46: =SUMIFS(Form_Autres_Usages[[Conso_pr_et1]:[Conso_pr_et1]],Form_Autres_Usages[[BatID]:[BatID]],AJ$6,Form_Autres_Usages[[Usage]:[Usage]],$C46)/1000 -> 0 | AK46: =SUMIFS(Form_Autres_Usages[[Conso_pr_et2]:[Conso_pr_et2]],Form_Autres_Usages[[BatID]:[BatID]],AK$6,Form_Autres_Usages[[Usage]:[Usage]],$C46)/1000 -> 0 | AL46: =SUMIFS(Form_Autres_Usages[[Conso_pr_et3]:[Conso_pr_et3]],Form_Autres_Usages[[BatID]:[BatID]],AL$6,Form_Autres_Usages[[Usage]:[Usage]],$C46)/1000 -> 0 | AM46: 0 | AO46: =SUMIFS(Form_Autres_Usages[[Conso_ex]:[Conso_ex]],Form_Autres_Usages[[BatID]:[BatID]],AO$6,Form_Autres_Usages[[Usage]:[Usage]],$C46)/1000 -> 0 | AP46: =SUMIFS(Form_Autres_Usages[[Conso_pr_et1]:[Conso_pr_et1]],Form_Autres_Usages[[BatID]:[BatID]],AP$6,Form_Autres_Usages[[Usage]:[Usage]],$C46)/1000 -> 0 | AQ46: =SUMIFS(Form_Autres_Usages[[Conso_pr_et2]:[Conso_pr_et2]],Form_Autres_Usages[[BatID]:[BatID]],AQ$6,Form_Autres_Usages[[Usage]:[Usage]],$C46)/1000 -> 0 | AR46: =SUMIFS(Form_Autres_Usages[[Conso_pr_et3]:[Conso_pr_et3]],Form_Autres_Usages[[BatID]:[BatID]],AR$6,Form_Autres_Usages[[Usage]:[Usage]],$C46)/1000 -> 0 | AS46: 0 | AU46: =SUMIFS(Form_Autres_Usages[[Conso_ex]:[Conso_ex]],Form_Autres_Usages[[BatID]:[BatID]],AU$6,Form_Autres_Usages[[Usage]:[Usage]],$C46)/1000 -> 0 | AV46: =SUMIFS(Form_Autres_Usages[[Conso_pr_et1]:[Conso_pr_et1]],Form_Autres_Usages[[BatID]:[BatID]],AV$6,Form_Autres_Usages[[Usage]:[Usage]],$C46)/1000 -> 0 | AW46: =SUMIFS(Form_Autres_Usages[[Conso_pr_et2]:[Conso_pr_et2]],Form_Autres_Usages[[BatID]:[BatID]],AW$6,Form_Autres_Usages[[Usage]:[Usage]],$C46)/1000 -> 0 | AX46: =SUMIFS(Form_Autres_Usages[[Conso_pr_et3]:[Conso_pr_et3]],Form_Autres_Usages[[BatID]:[BatID]],AX$6,Form_Autres_Usages[[Usage]:[Usage]],$C46)/1000 -> 0 | AY46: 0 | BA46: =SUMIFS(Form_Autres_Usages[[Conso_ex]:[Conso_ex]],Form_Autres_Usages[[BatID]:[BatID]],BA$6,Form_Autres_Usages[[Usage]:[Usage]],$C46)/1000 -> 0 | BB46: =SUMIFS(Form_Autres_Usages[[Conso_pr_et1]:[Conso_pr_et1]],Form_Autres_Usages[[BatID]:[BatID]],BB$6,Form_Autres_Usages[[Usage]:[Usage]],$C46)/1000 -> 0 | BC46: =SUMIFS(Form_Autres_Usages[[Conso_pr_et2]:[Conso_pr_et2]],Form_Autres_Usages[[BatID]:[BatID]],BC$6,Form_Autres_Usages[[Usage]:[Usage]],$C46)/1000 -> 0 | BD46: =SUMIFS(Form_Autres_Usages[[Conso_pr_et3]:[Conso_pr_et3]],Form_Autres_Usages[[BatID]:[BatID]],BD$6,Form_Autres_Usages[[Usage]:[Usage]],$C46)/1000 -> 0 | BE46: 0 | BG46: =SUMIFS(Form_Autres_Usages[[Conso_ex]:[Conso_ex]],Form_Autres_Usages[[BatID]:[BatID]],BG$6,Form_Autres_Usages[[Usage]:[Usage]],$C46)/1000 -> 0 | BH46: =SUMIFS(Form_Autres_Usages[[Conso_pr_et1]:[Conso_pr_et1]],Form_Autres_Usages[[BatID]:[BatID]],BH$6,Form_Autres_Usages[[Usage]:[Usage]],$C46)/1000 -> 0 | BI46: =SUMIFS(Form_Autres_Usages[[Conso_pr_et2]:[Conso_pr_et2]],Form_Autres_Usages[[BatID]:[BatID]],BI$6,Form_Autres_Usages[[Usage]:[Usage]],$C46)/1000 -> 0 | BJ46: =SUMIFS(Form_Autres_Usages[[Conso_pr_et3]:[Conso_pr_et3]],Form_Autres_Usages[[BatID]:[BatID]],BJ$6,Form_Autres_Usages[[Usage]:[Usage]],$C46)/1000 -> 0 | BK46: 0 | BM46: =SUMIFS(Form_Autres_Usages[[Conso_ex]:[Conso_ex]],Form_Autres_Usages[[BatID]:[BatID]],BM$6,Form_Autres_Usages[[Usage]:[Usage]],$C46)/1000 -> 0 | BN46: =SUMIFS(Form_Autres_Usages[[Conso_pr_et1]:[Conso_pr_et1]],Form_Autres_Usages[[BatID]:[BatID]],BN$6,Form_Autres_Usages[[Usage]:[Usage]],$C46)/1000 -> 0 | BO46: =SUMIFS(Form_Autres_Usages[[Conso_pr_et2]:[Conso_pr_et2]],Form_Autres_Usages[[BatID]:[BatID]],BO$6,Form_Autres_Usages[[Usage]:[Usage]],$C46)/1000 -> 0 | BP46: =SUMIFS(Form_Autres_Usages[[Conso_pr_et3]:[Conso_pr_et3]],Form_Autres_Usages[[BatID]:[BatID]],BP$6,Form_Autres_Usages[[Usage]:[Usage]],$C46)/1000 -> 0 | BQ46: 0 | BS46: =SUMIFS(Form_Autres_Usages[[Conso_ex]:[Conso_ex]],Form_Autres_Usages[[BatID]:[BatID]],BS$6,Form_Autres_Usages[[Usage]:[Usage]],$C46)/1000 -> 0 | BT46: =SUMIFS(Form_Autres_Usages[[Conso_pr_et1]:[Conso_pr_et1]],Form_Autres_Usages[[BatID]:[BatID]],BT$6,Form_Autres_Usages[[Usage]:[Usage]],$C46)/1000 -> 0 | BU46: =SUMIFS(Form_Autres_Usages[[Conso_pr_et2]:[Conso_pr_et2]],Form_Autres_Usages[[BatID]:[BatID]],BU$6,Form_Autres_Usages[[Usage]:[Usage]],$C46)/1000 -> 0 | BV46: =SUMIFS(Form_Autres_Usages[[Conso_pr_et3]:[Conso_pr_et3]],Form_Autres_Usages[[BatID]:[BatID]],BV$6,Form_Autres_Usages[[Usage]:[Usage]],$C46)/1000 -> 0 | BW46: 0
C47: 7.AUT-7 | F47: Autres usages - | G47: =SUMIFS($O47:$BX47,$O$7:$BX$7,G$7) -> 0 | H47: =SUMIFS($O47:$BX47,$O$7:$BX$7,H$7) -> 0 | I47: =SUMIFS($O47:$BX47,$O$7:$BX$7,I$7) -> 0 | J47: =SUMIFS($O47:$BX47,$O$7:$BX$7,J$7) -> 0 | K47: =SUMIFS($O47:$BX47,$O$7:$BX$7,K$7) -> 0 | Q47: =SUMIFS(Form_Autres_Usages[[Conso_ex]:[Conso_ex]],Form_Autres_Usages[[BatID]:[BatID]],Q$6,Form_Autres_Usages[[Usage]:[Usage]],$C47)/1000 -> 0 | R47: =SUMIFS(Form_Autres_Usages[[Conso_pr_et1]:[Conso_pr_et1]],Form_Autres_Usages[[BatID]:[BatID]],R$6,Form_Autres_Usages[[Usage]:[Usage]],$C47)/1000 -> 0 | S47: =SUMIFS(Form_Autres_Usages[[Conso_pr_et2]:[Conso_pr_et2]],Form_Autres_Usages[[BatID]:[BatID]],S$6,Form_Autres_Usages[[Usage]:[Usage]],$C47)/1000 -> 0 | T47: =SUMIFS(Form_Autres_Usages[[Conso_pr_et3]:[Conso_pr_et3]],Form_Autres_Usages[[BatID]:[BatID]],T$6,Form_Autres_Usages[[Usage]:[Usage]],$C47)/1000 -> 0 | U47: 0 | W47: =SUMIFS(Form_Autres_Usages[[Conso_ex]:[Conso_ex]],Form_Autres_Usages[[BatID]:[BatID]],W$6,Form_Autres_Usages[[Usage]:[Usage]],$C47)/1000 -> 0 | X47: =SUMIFS(Form_Autres_Usages[[Conso_pr_et1]:[Conso_pr_et1]],Form_Autres_Usages[[BatID]:[BatID]],X$6,Form_Autres_Usages[[Usage]:[Usage]],$C47)/1000 -> 0 | Y47: =SUMIFS(Form_Autres_Usages[[Conso_pr_et2]:[Conso_pr_et2]],Form_Autres_Usages[[BatID]:[BatID]],Y$6,Form_Autres_Usages[[Usage]:[Usage]],$C47)/1000 -> 0 | Z47: =SUMIFS(Form_Autres_Usages[[Conso_pr_et3]:[Conso_pr_et3]],Form_Autres_Usages[[BatID]:[BatID]],Z$6,Form_Autres_Usages[[Usage]:[Usage]],$C47)/1000 -> 0 | AA47: 0 | AC47: =SUMIFS(Form_Autres_Usages[[Conso_ex]:[Conso_ex]],Form_Autres_Usages[[BatID]:[BatID]],AC$6,Form_Autres_Usages[[Usage]:[Usage]],$C47)/1000 -> 0 | AD47: =SUMIFS(Form_Autres_Usages[[Conso_pr_et1]:[Conso_pr_et1]],Form_Autres_Usages[[BatID]:[BatID]],AD$6,Form_Autres_Usages[[Usage]:[Usage]],$C47)/1000 -> 0 | AE47: =SUMIFS(Form_Autres_Usages[[Conso_pr_et2]:[Conso_pr_et2]],Form_Autres_Usages[[BatID]:[BatID]],AE$6,Form_Autres_Usages[[Usage]:[Usage]],$C47)/1000 -> 0 | AF47: =SUMIFS(Form_Autres_Usages[[Conso_pr_et3]:[Conso_pr_et3]],Form_Autres_Usages[[BatID]:[BatID]],AF$6,Form_Autres_Usages[[Usage]:[Usage]],$C47)/1000 -> 0 | AG47: 0 | AI47: =SUMIFS(Form_Autres_Usages[[Conso_ex]:[Conso_ex]],Form_Autres_Usages[[BatID]:[BatID]],AI$6,Form_Autres_Usages[[Usage]:[Usage]],$C47)/1000 -> 0 | AJ47: =SUMIFS(Form_Autres_Usages[[Conso_pr_et1]:[Conso_pr_et1]],Form_Autres_Usages[[BatID]:[BatID]],AJ$6,Form_Autres_Usages[[Usage]:[Usage]],$C47)/1000 -> 0 | AK47: =SUMIFS(Form_Autres_Usages[[Conso_pr_et2]:[Conso_pr_et2]],Form_Autres_Usages[[BatID]:[BatID]],AK$6,Form_Autres_Usages[[Usage]:[Usage]],$C47)/1000 -> 0 | AL47: =SUMIFS(Form_Autres_Usages[[Conso_pr_et3]:[Conso_pr_et3]],Form_Autres_Usages[[BatID]:[BatID]],AL$6,Form_Autres_Usages[[Usage]:[Usage]],$C47)/1000 -> 0 | AM47: 0 | AO47: =SUMIFS(Form_Autres_Usages[[Conso_ex]:[Conso_ex]],Form_Autres_Usages[[BatID]:[BatID]],AO$6,Form_Autres_Usages[[Usage]:[Usage]],$C47)/1000 -> 0 | AP47: =SUMIFS(Form_Autres_Usages[[Conso_pr_et1]:[Conso_pr_et1]],Form_Autres_Usages[[BatID]:[BatID]],AP$6,Form_Autres_Usages[[Usage]:[Usage]],$C47)/1000 -> 0 | AQ47: =SUMIFS(Form_Autres_Usages[[Conso_pr_et2]:[Conso_pr_et2]],Form_Autres_Usages[[BatID]:[BatID]],AQ$6,Form_Autres_Usages[[Usage]:[Usage]],$C47)/1000 -> 0 | AR47: =SUMIFS(Form_Autres_Usages[[Conso_pr_et3]:[Conso_pr_et3]],Form_Autres_Usages[[BatID]:[BatID]],AR$6,Form_Autres_Usages[[Usage]:[Usage]],$C47)/1000 -> 0 | AS47: 0 | AU47: =SUMIFS(Form_Autres_Usages[[Conso_ex]:[Conso_ex]],Form_Autres_Usages[[BatID]:[BatID]],AU$6,Form_Autres_Usages[[Usage]:[Usage]],$C47)/1000 -> 0 | AV47: =SUMIFS(Form_Autres_Usages[[Conso_pr_et1]:[Conso_pr_et1]],Form_Autres_Usages[[BatID]:[BatID]],AV$6,Form_Autres_Usages[[Usage]:[Usage]],$C47)/1000 -> 0 | AW47: =SUMIFS(Form_Autres_Usages[[Conso_pr_et2]:[Conso_pr_et2]],Form_Autres_Usages[[BatID]:[BatID]],AW$6,Form_Autres_Usages[[Usage]:[Usage]],$C47)/1000 -> 0 | AX47: =SUMIFS(Form_Autres_Usages[[Conso_pr_et3]:[Conso_pr_et3]],Form_Autres_Usages[[BatID]:[BatID]],AX$6,Form_Autres_Usages[[Usage]:[Usage]],$C47)/1000 -> 0 | AY47: 0 | BA47: =SUMIFS(Form_Autres_Usages[[Conso_ex]:[Conso_ex]],Form_Autres_Usages[[BatID]:[BatID]],BA$6,Form_Autres_Usages[[Usage]:[Usage]],$C47)/1000 -> 0 | BB47: =SUMIFS(Form_Autres_Usages[[Conso_pr_et1]:[Conso_pr_et1]],Form_Autres_Usages[[BatID]:[BatID]],BB$6,Form_Autres_Usages[[Usage]:[Usage]],$C47)/1000 -> 0 | BC47: =SUMIFS(Form_Autres_Usages[[Conso_pr_et2]:[Conso_pr_et2]],Form_Autres_Usages[[BatID]:[BatID]],BC$6,Form_Autres_Usages[[Usage]:[Usage]],$C47)/1000 -> 0 | BD47: =SUMIFS(Form_Autres_Usages[[Conso_pr_et3]:[Conso_pr_et3]],Form_Autres_Usages[[BatID]:[BatID]],BD$6,Form_Autres_Usages[[Usage]:[Usage]],$C47)/1000 -> 0 | BE47: 0 | BG47: =SUMIFS(Form_Autres_Usages[[Conso_ex]:[Conso_ex]],Form_Autres_Usages[[BatID]:[BatID]],BG$6,Form_Autres_Usages[[Usage]:[Usage]],$C47)/1000 -> 0 | BH47: =SUMIFS(Form_Autres_Usages[[Conso_pr_et1]:[Conso_pr_et1]],Form_Autres_Usages[[BatID]:[BatID]],BH$6,Form_Autres_Usages[[Usage]:[Usage]],$C47)/1000 -> 0 | BI47: =SUMIFS(Form_Autres_Usages[[Conso_pr_et2]:[Conso_pr_et2]],Form_Autres_Usages[[BatID]:[BatID]],BI$6,Form_Autres_Usages[[Usage]:[Usage]],$C47)/1000 -> 0 | BJ47: =SUMIFS(Form_Autres_Usages[[Conso_pr_et3]:[Conso_pr_et3]],Form_Autres_Usages[[BatID]:[BatID]],BJ$6,Form_Autres_Usages[[Usage]:[Usage]],$C47)/1000 -> 0 | BK47: 0 | BM47: =SUMIFS(Form_Autres_Usages[[Conso_ex]:[Conso_ex]],Form_Autres_Usages[[BatID]:[BatID]],BM$6,Form_Autres_Usages[[Usage]:[Usage]],$C47)/1000 -> 0 | BN47: =SUMIFS(Form_Autres_Usages[[Conso_pr_et1]:[Conso_pr_et1]],Form_Autres_Usages[[BatID]:[BatID]],BN$6,Form_Autres_Usages[[Usage]:[Usage]],$C47)/1000 -> 0 | BO47: =SUMIFS(Form_Autres_Usages[[Conso_pr_et2]:[Conso_pr_et2]],Form_Autres_Usages[[BatID]:[BatID]],BO$6,Form_Autres_Usages[[Usage]:[Usage]],$C47)/1000 -> 0 | BP47: =SUMIFS(Form_Autres_Usages[[Conso_pr_et3]:[Conso_pr_et3]],Form_Autres_Usages[[BatID]:[BatID]],BP$6,Form_Autres_Usages[[Usage]:[Usage]],$C47)/1000 -> 0 | BQ47: 0 | BS47: =SUMIFS(Form_Autres_Usages[[Conso_ex]:[Conso_ex]],Form_Autres_Usages[[BatID]:[BatID]],BS$6,Form_Autres_Usages[[Usage]:[Usage]],$C47)/1000 -> 0 | BT47: =SUMIFS(Form_Autres_Usages[[Conso_pr_et1]:[Conso_pr_et1]],Form_Autres_Usages[[BatID]:[BatID]],BT$6,Form_Autres_Usages[[Usage]:[Usage]],$C47)/1000 -> 0 | BU47: =SUMIFS(Form_Autres_Usages[[Conso_pr_et2]:[Conso_pr_et2]],Form_Autres_Usages[[BatID]:[BatID]],BU$6,Form_Autres_Usages[[Usage]:[Usage]],$C47)/1000 -> 0 | BV47: =SUMIFS(Form_Autres_Usages[[Conso_pr_et3]:[Conso_pr_et3]],Form_Autres_Usages[[BatID]:[BatID]],BV$6,Form_Autres_Usages[[Usage]:[Usage]],$C47)/1000 -> 0 | BW47: 0
C48: 7.AUT-8 | F48: Autres usages - | G48: =SUMIFS($O48:$BX48,$O$7:$BX$7,G$7) -> 0 | H48: =SUMIFS($O48:$BX48,$O$7:$BX$7,H$7) -> 0 | I48: =SUMIFS($O48:$BX48,$O$7:$BX$7,I$7) -> 0 | J48: =SUMIFS($O48:$BX48,$O$7:$BX$7,J$7) -> 0 | K48: =SUMIFS($O48:$BX48,$O$7:$BX$7,K$7) -> 0 | Q48: =SUMIFS(Form_Autres_Usages[[Conso_ex]:[Conso_ex]],Form_Autres_Usages[[BatID]:[BatID]],Q$6,Form_Autres_Usages[[Usage]:[Usage]],$C48)/1000 -> 0 | R48: =SUMIFS(Form_Autres_Usages[[Conso_pr_et1]:[Conso_pr_et1]],Form_Autres_Usages[[BatID]:[BatID]],R$6,Form_Autres_Usages[[Usage]:[Usage]],$C48)/1000 -> 0 | S48: =SUMIFS(Form_Autres_Usages[[Conso_pr_et2]:[Conso_pr_et2]],Form_Autres_Usages[[BatID]:[BatID]],S$6,Form_Autres_Usages[[Usage]:[Usage]],$C48)/1000 -> 0 | T48: =SUMIFS(Form_Autres_Usages[[Conso_pr_et3]:[Conso_pr_et3]],Form_Autres_Usages[[BatID]:[BatID]],T$6,Form_Autres_Usages[[Usage]:[Usage]],$C48)/1000 -> 0 | U48: 0 | W48: =SUMIFS(Form_Autres_Usages[[Conso_ex]:[Conso_ex]],Form_Autres_Usages[[BatID]:[BatID]],W$6,Form_Autres_Usages[[Usage]:[Usage]],$C48)/1000 -> 0 | X48: =SUMIFS(Form_Autres_Usages[[Conso_pr_et1]:[Conso_pr_et1]],Form_Autres_Usages[[BatID]:[BatID]],X$6,Form_Autres_Usages[[Usage]:[Usage]],$C48)/1000 -> 0 | Y48: =SUMIFS(Form_Autres_Usages[[Conso_pr_et2]:[Conso_pr_et2]],Form_Autres_Usages[[BatID]:[BatID]],Y$6,Form_Autres_Usages[[Usage]:[Usage]],$C48)/1000 -> 0 | Z48: =SUMIFS(Form_Autres_Usages[[Conso_pr_et3]:[Conso_pr_et3]],Form_Autres_Usages[[BatID]:[BatID]],Z$6,Form_Autres_Usages[[Usage]:[Usage]],$C48)/1000 -> 0 | AA48: 0 | AC48: =SUMIFS(Form_Autres_Usages[[Conso_ex]:[Conso_ex]],Form_Autres_Usages[[BatID]:[BatID]],AC$6,Form_Autres_Usages[[Usage]:[Usage]],$C48)/1000 -> 0 | AD48: =SUMIFS(Form_Autres_Usages[[Conso_pr_et1]:[Conso_pr_et1]],Form_Autres_Usages[[BatID]:[BatID]],AD$6,Form_Autres_Usages[[Usage]:[Usage]],$C48)/1000 -> 0 | AE48: =SUMIFS(Form_Autres_Usages[[Conso_pr_et2]:[Conso_pr_et2]],Form_Autres_Usages[[BatID]:[BatID]],AE$6,Form_Autres_Usages[[Usage]:[Usage]],$C48)/1000 -> 0 | AF48: =SUMIFS(Form_Autres_Usages[[Conso_pr_et3]:[Conso_pr_et3]],Form_Autres_Usages[[BatID]:[BatID]],AF$6,Form_Autres_Usages[[Usage]:[Usage]],$C48)/1000 -> 0 | AG48: 0 | AI48: =SUMIFS(Form_Autres_Usages[[Conso_ex]:[Conso_ex]],Form_Autres_Usages[[BatID]:[BatID]],AI$6,Form_Autres_Usages[[Usage]:[Usage]],$C48)/1000 -> 0 | AJ48: =SUMIFS(Form_Autres_Usages[[Conso_pr_et1]:[Conso_pr_et1]],Form_Autres_Usages[[BatID]:[BatID]],AJ$6,Form_Autres_Usages[[Usage]:[Usage]],$C48)/1000 -> 0 | AK48: =SUMIFS(Form_Autres_Usages[[Conso_pr_et2]:[Conso_pr_et2]],Form_Autres_Usages[[BatID]:[BatID]],AK$6,Form_Autres_Usages[[Usage]:[Usage]],$C48)/1000 -> 0 | AL48: =SUMIFS(Form_Autres_Usages[[Conso_pr_et3]:[Conso_pr_et3]],Form_Autres_Usages[[BatID]:[BatID]],AL$6,Form_Autres_Usages[[Usage]:[Usage]],$C48)/1000 -> 0 | AM48: 0 | AO48: =SUMIFS(Form_Autres_Usages[[Conso_ex]:[Conso_ex]],Form_Autres_Usages[[BatID]:[BatID]],AO$6,Form_Autres_Usages[[Usage]:[Usage]],$C48)/1000 -> 0 | AP48: =SUMIFS(Form_Autres_Usages[[Conso_pr_et1]:[Conso_pr_et1]],Form_Autres_Usages[[BatID]:[BatID]],AP$6,Form_Autres_Usages[[Usage]:[Usage]],$C48)/1000 -> 0 | AQ48: =SUMIFS(Form_Autres_Usages[[Conso_pr_et2]:[Conso_pr_et2]],Form_Autres_Usages[[BatID]:[BatID]],AQ$6,Form_Autres_Usages[[Usage]:[Usage]],$C48)/1000 -> 0 | AR48: =SUMIFS(Form_Autres_Usages[[Conso_pr_et3]:[Conso_pr_et3]],Form_Autres_Usages[[BatID]:[BatID]],AR$6,Form_Autres_Usages[[Usage]:[Usage]],$C48)/1000 -> 0 | AS48: 0 | AU48: =SUMIFS(Form_Autres_Usages[[Conso_ex]:[Conso_ex]],Form_Autres_Usages[[BatID]:[BatID]],AU$6,Form_Autres_Usages[[Usage]:[Usage]],$C48)/1000 -> 0 | AV48: =SUMIFS(Form_Autres_Usages[[Conso_pr_et1]:[Conso_pr_et1]],Form_Autres_Usages[[BatID]:[BatID]],AV$6,Form_Autres_Usages[[Usage]:[Usage]],$C48)/1000 -> 0 | AW48: =SUMIFS(Form_Autres_Usages[[Conso_pr_et2]:[Conso_pr_et2]],Form_Autres_Usages[[BatID]:[BatID]],AW$6,Form_Autres_Usages[[Usage]:[Usage]],$C48)/1000 -> 0 | AX48: =SUMIFS(Form_Autres_Usages[[Conso_pr_et3]:[Conso_pr_et3]],Form_Autres_Usages[[BatID]:[BatID]],AX$6,Form_Autres_Usages[[Usage]:[Usage]],$C48)/1000 -> 0 | AY48: 0 | BA48: =SUMIFS(Form_Autres_Usages[[Conso_ex]:[Conso_ex]],Form_Autres_Usages[[BatID]:[BatID]],BA$6,Form_Autres_Usages[[Usage]:[Usage]],$C48)/1000 -> 0 | BB48: =SUMIFS(Form_Autres_Usages[[Conso_pr_et1]:[Conso_pr_et1]],Form_Autres_Usages[[BatID]:[BatID]],BB$6,Form_Autres_Usages[[Usage]:[Usage]],$C48)/1000 -> 0 | BC48: =SUMIFS(Form_Autres_Usages[[Conso_pr_et2]:[Conso_pr_et2]],Form_Autres_Usages[[BatID]:[BatID]],BC$6,Form_Autres_Usages[[Usage]:[Usage]],$C48)/1000 -> 0 | BD48: =SUMIFS(Form_Autres_Usages[[Conso_pr_et3]:[Conso_pr_et3]],Form_Autres_Usages[[BatID]:[BatID]],BD$6,Form_Autres_Usages[[Usage]:[Usage]],$C48)/1000 -> 0 | BE48: 0 | BG48: =SUMIFS(Form_Autres_Usages[[Conso_ex]:[Conso_ex]],Form_Autres_Usages[[BatID]:[BatID]],BG$6,Form_Autres_Usages[[Usage]:[Usage]],$C48)/1000 -> 0 | BH48: =SUMIFS(Form_Autres_Usages[[Conso_pr_et1]:[Conso_pr_et1]],Form_Autres_Usages[[BatID]:[BatID]],BH$6,Form_Autres_Usages[[Usage]:[Usage]],$C48)/1000 -> 0 | BI48: =SUMIFS(Form_Autres_Usages[[Conso_pr_et2]:[Conso_pr_et2]],Form_Autres_Usages[[BatID]:[BatID]],BI$6,Form_Autres_Usages[[Usage]:[Usage]],$C48)/1000 -> 0 | BJ48: =SUMIFS(Form_Autres_Usages[[Conso_pr_et3]:[Conso_pr_et3]],Form_Autres_Usages[[BatID]:[BatID]],BJ$6,Form_Autres_Usages[[Usage]:[Usage]],$C48)/1000 -> 0 | BK48: 0 | BM48: =SUMIFS(Form_Autres_Usages[[Conso_ex]:[Conso_ex]],Form_Autres_Usages[[BatID]:[BatID]],BM$6,Form_Autres_Usages[[Usage]:[Usage]],$C48)/1000 -> 0 | BN48: =SUMIFS(Form_Autres_Usages[[Conso_pr_et1]:[Conso_pr_et1]],Form_Autres_Usages[[BatID]:[BatID]],BN$6,Form_Autres_Usages[[Usage]:[Usage]],$C48)/1000 -> 0 | BO48: =SUMIFS(Form_Autres_Usages[[Conso_pr_et2]:[Conso_pr_et2]],Form_Autres_Usages[[BatID]:[BatID]],BO$6,Form_Autres_Usages[[Usage]:[Usage]],$C48)/1000 -> 0 | BP48: =SUMIFS(Form_Autres_Usages[[Conso_pr_et3]:[Conso_pr_et3]],Form_Autres_Usages[[BatID]:[BatID]],BP$6,Form_Autres_Usages[[Usage]:[Usage]],$C48)/1000 -> 0 | BQ48: 0 | BS48: =SUMIFS(Form_Autres_Usages[[Conso_ex]:[Conso_ex]],Form_Autres_Usages[[BatID]:[BatID]],BS$6,Form_Autres_Usages[[Usage]:[Usage]],$C48)/1000 -> 0 | BT48: =SUMIFS(Form_Autres_Usages[[Conso_pr_et1]:[Conso_pr_et1]],Form_Autres_Usages[[BatID]:[BatID]],BT$6,Form_Autres_Usages[[Usage]:[Usage]],$C48)/1000 -> 0 | BU48: =SUMIFS(Form_Autres_Usages[[Conso_pr_et2]:[Conso_pr_et2]],Form_Autres_Usages[[BatID]:[BatID]],BU$6,Form_Autres_Usages[[Usage]:[Usage]],$C48)/1000 -> 0 | BV48: =SUMIFS(Form_Autres_Usages[[Conso_pr_et3]:[Conso_pr_et3]],Form_Autres_Usages[[BatID]:[BatID]],BV$6,Form_Autres_Usages[[Usage]:[Usage]],$C48)/1000 -> 0 | BW48: 0
C49: 7.AUT-9 | F49: Autres usages - | G49: =SUMIFS($O49:$BX49,$O$7:$BX$7,G$7) -> 0 | H49: =SUMIFS($O49:$BX49,$O$7:$BX$7,H$7) -> 0 | I49: =SUMIFS($O49:$BX49,$O$7:$BX$7,I$7) -> 0 | J49: =SUMIFS($O49:$BX49,$O$7:$BX$7,J$7) -> 0 | K49: =SUMIFS($O49:$BX49,$O$7:$BX$7,K$7) -> 0 | Q49: =SUMIFS(Form_Autres_Usages[[Conso_ex]:[Conso_ex]],Form_Autres_Usages[[BatID]:[BatID]],Q$6,Form_Autres_Usages[[Usage]:[Usage]],$C49)/1000 -> 0 | R49: =SUMIFS(Form_Autres_Usages[[Conso_pr_et1]:[Conso_pr_et1]],Form_Autres_Usages[[BatID]:[BatID]],R$6,Form_Autres_Usages[[Usage]:[Usage]],$C49)/1000 -> 0 | S49: =SUMIFS(Form_Autres_Usages[[Conso_pr_et2]:[Conso_pr_et2]],Form_Autres_Usages[[BatID]:[BatID]],S$6,Form_Autres_Usages[[Usage]:[Usage]],$C49)/1000 -> 0 | T49: =SUMIFS(Form_Autres_Usages[[Conso_pr_et3]:[Conso_pr_et3]],Form_Autres_Usages[[BatID]:[BatID]],T$6,Form_Autres_Usages[[Usage]:[Usage]],$C49)/1000 -> 0 | U49: 0 | W49: =SUMIFS(Form_Autres_Usages[[Conso_ex]:[Conso_ex]],Form_Autres_Usages[[BatID]:[BatID]],W$6,Form_Autres_Usages[[Usage]:[Usage]],$C49)/1000 -> 0 | X49: =SUMIFS(Form_Autres_Usages[[Conso_pr_et1]:[Conso_pr_et1]],Form_Autres_Usages[[BatID]:[BatID]],X$6,Form_Autres_Usages[[Usage]:[Usage]],$C49)/1000 -> 0 | Y49: =SUMIFS(Form_Autres_Usages[[Conso_pr_et2]:[Conso_pr_et2]],Form_Autres_Usages[[BatID]:[BatID]],Y$6,Form_Autres_Usages[[Usage]:[Usage]],$C49)/1000 -> 0 | Z49: =SUMIFS(Form_Autres_Usages[[Conso_pr_et3]:[Conso_pr_et3]],Form_Autres_Usages[[BatID]:[BatID]],Z$6,Form_Autres_Usages[[Usage]:[Usage]],$C49)/1000 -> 0 | AA49: 0 | AC49: =SUMIFS(Form_Autres_Usages[[Conso_ex]:[Conso_ex]],Form_Autres_Usages[[BatID]:[BatID]],AC$6,Form_Autres_Usages[[Usage]:[Usage]],$C49)/1000 -> 0 | AD49: =SUMIFS(Form_Autres_Usages[[Conso_pr_et1]:[Conso_pr_et1]],Form_Autres_Usages[[BatID]:[BatID]],AD$6,Form_Autres_Usages[[Usage]:[Usage]],$C49)/1000 -> 0 | AE49: =SUMIFS(Form_Autres_Usages[[Conso_pr_et2]:[Conso_pr_et2]],Form_Autres_Usages[[BatID]:[BatID]],AE$6,Form_Autres_Usages[[Usage]:[Usage]],$C49)/1000 -> 0 | AF49: =SUMIFS(Form_Autres_Usages[[Conso_pr_et3]:[Conso_pr_et3]],Form_Autres_Usages[[BatID]:[BatID]],AF$6,Form_Autres_Usages[[Usage]:[Usage]],$C49)/1000 -> 0 | AG49: 0 | AI49: =SUMIFS(Form_Autres_Usages[[Conso_ex]:[Conso_ex]],Form_Autres_Usages[[BatID]:[BatID]],AI$6,Form_Autres_Usages[[Usage]:[Usage]],$C49)/1000 -> 0 | AJ49: =SUMIFS(Form_Autres_Usages[[Conso_pr_et1]:[Conso_pr_et1]],Form_Autres_Usages[[BatID]:[BatID]],AJ$6,Form_Autres_Usages[[Usage]:[Usage]],$C49)/1000 -> 0 | AK49: =SUMIFS(Form_Autres_Usages[[Conso_pr_et2]:[Conso_pr_et2]],Form_Autres_Usages[[BatID]:[BatID]],AK$6,Form_Autres_Usages[[Usage]:[Usage]],$C49)/1000 -> 0 | AL49: =SUMIFS(Form_Autres_Usages[[Conso_pr_et3]:[Conso_pr_et3]],Form_Autres_Usages[[BatID]:[BatID]],AL$6,Form_Autres_Usages[[Usage]:[Usage]],$C49)/1000 -> 0 | AM49: 0 | AO49: =SUMIFS(Form_Autres_Usages[[Conso_ex]:[Conso_ex]],Form_Autres_Usages[[BatID]:[BatID]],AO$6,Form_Autres_Usages[[Usage]:[Usage]],$C49)/1000 -> 0 | AP49: =SUMIFS(Form_Autres_Usages[[Conso_pr_et1]:[Conso_pr_et1]],Form_Autres_Usages[[BatID]:[BatID]],AP$6,Form_Autres_Usages[[Usage]:[Usage]],$C49)/1000 -> 0 | AQ49: =SUMIFS(Form_Autres_Usages[[Conso_pr_et2]:[Conso_pr_et2]],Form_Autres_Usages[[BatID]:[BatID]],AQ$6,Form_Autres_Usages[[Usage]:[Usage]],$C49)/1000 -> 0 | AR49: =SUMIFS(Form_Autres_Usages[[Conso_pr_et3]:[Conso_pr_et3]],Form_Autres_Usages[[BatID]:[BatID]],AR$6,Form_Autres_Usages[[Usage]:[Usage]],$C49)/1000 -> 0 | AS49: 0 | AU49: =SUMIFS(Form_Autres_Usages[[Conso_ex]:[Conso_ex]],Form_Autres_Usages[[BatID]:[BatID]],AU$6,Form_Autres_Usages[[Usage]:[Usage]],$C49)/1000 -> 0 | AV49: =SUMIFS(Form_Autres_Usages[[Conso_pr_et1]:[Conso_pr_et1]],Form_Autres_Usages[[BatID]:[BatID]],AV$6,Form_Autres_Usages[[Usage]:[Usage]],$C49)/1000 -> 0 | AW49: =SUMIFS(Form_Autres_Usages[[Conso_pr_et2]:[Conso_pr_et2]],Form_Autres_Usages[[BatID]:[BatID]],AW$6,Form_Autres_Usages[[Usage]:[Usage]],$C49)/1000 -> 0 | AX49: =SUMIFS(Form_Autres_Usages[[Conso_pr_et3]:[Conso_pr_et3]],Form_Autres_Usages[[BatID]:[BatID]],AX$6,Form_Autres_Usages[[Usage]:[Usage]],$C49)/1000 -> 0 | AY49: 0 | BA49: =SUMIFS(Form_Autres_Usages[[Conso_ex]:[Conso_ex]],Form_Autres_Usages[[BatID]:[BatID]],BA$6,Form_Autres_Usages[[Usage]:[Usage]],$C49)/1000 -> 0 | BB49: =SUMIFS(Form_Autres_Usages[[Conso_pr_et1]:[Conso_pr_et1]],Form_Autres_Usages[[BatID]:[BatID]],BB$6,Form_Autres_Usages[[Usage]:[Usage]],$C49)/1000 -> 0 | BC49: =SUMIFS(Form_Autres_Usages[[Conso_pr_et2]:[Conso_pr_et2]],Form_Autres_Usages[[BatID]:[BatID]],BC$6,Form_Autres_Usages[[Usage]:[Usage]],$C49)/1000 -> 0 | BD49: =SUMIFS(Form_Autres_Usages[[Conso_pr_et3]:[Conso_pr_et3]],Form_Autres_Usages[[BatID]:[BatID]],BD$6,Form_Autres_Usages[[Usage]:[Usage]],$C49)/1000 -> 0 | BE49: 0 | BG49: =SUMIFS(Form_Autres_Usages[[Conso_ex]:[Conso_ex]],Form_Autres_Usages[[BatID]:[BatID]],BG$6,Form_Autres_Usages[[Usage]:[Usage]],$C49)/1000 -> 0 | BH49: =SUMIFS(Form_Autres_Usages[[Conso_pr_et1]:[Conso_pr_et1]],Form_Autres_Usages[[BatID]:[BatID]],BH$6,Form_Autres_Usages[[Usage]:[Usage]],$C49)/1000 -> 0 | BI49: =SUMIFS(Form_Autres_Usages[[Conso_pr_et2]:[Conso_pr_et2]],Form_Autres_Usages[[BatID]:[BatID]],BI$6,Form_Autres_Usages[[Usage]:[Usage]],$C49)/1000 -> 0 | BJ49: =SUMIFS(Form_Autres_Usages[[Conso_pr_et3]:[Conso_pr_et3]],Form_Autres_Usages[[BatID]:[BatID]],BJ$6,Form_Autres_Usages[[Usage]:[Usage]],$C49)/1000 -> 0 | BK49: 0 | BM49: =SUMIFS(Form_Autres_Usages[[Conso_ex]:[Conso_ex]],Form_Autres_Usages[[BatID]:[BatID]],BM$6,Form_Autres_Usages[[Usage]:[Usage]],$C49)/1000 -> 0 | BN49: =SUMIFS(Form_Autres_Usages[[Conso_pr_et1]:[Conso_pr_et1]],Form_Autres_Usages[[BatID]:[BatID]],BN$6,Form_Autres_Usages[[Usage]:[Usage]],$C49)/1000 -> 0 | BO49: =SUMIFS(Form_Autres_Usages[[Conso_pr_et2]:[Conso_pr_et2]],Form_Autres_Usages[[BatID]:[BatID]],BO$6,Form_Autres_Usages[[Usage]:[Usage]],$C49)/1000 -> 0 | BP49: =SUMIFS(Form_Autres_Usages[[Conso_pr_et3]:[Conso_pr_et3]],Form_Autres_Usages[[BatID]:[BatID]],BP$6,Form_Autres_Usages[[Usage]:[Usage]],$C49)/1000 -> 0 | BQ49: 0 | BS49: =SUMIFS(Form_Autres_Usages[[Conso_ex]:[Conso_ex]],Form_Autres_Usages[[BatID]:[BatID]],BS$6,Form_Autres_Usages[[Usage]:[Usage]],$C49)/1000 -> 0 | BT49: =SUMIFS(Form_Autres_Usages[[Conso_pr_et1]:[Conso_pr_et1]],Form_Autres_Usages[[BatID]:[BatID]],BT$6,Form_Autres_Usages[[Usage]:[Usage]],$C49)/1000 -> 0 | BU49: =SUMIFS(Form_Autres_Usages[[Conso_pr_et2]:[Conso_pr_et2]],Form_Autres_Usages[[BatID]:[BatID]],BU$6,Form_Autres_Usages[[Usage]:[Usage]],$C49)/1000 -> 0 | BV49: =SUMIFS(Form_Autres_Usages[[Conso_pr_et3]:[Conso_pr_et3]],Form_Autres_Usages[[BatID]:[BatID]],BV$6,Form_Autres_Usages[[Usage]:[Usage]],$C49)/1000 -> 0 | BW49: 0
C50: 7.AUT-10 | F50: Autres usages - | G50: =SUMIFS($O50:$BX50,$O$7:$BX$7,G$7) -> 0 | H50: =SUMIFS($O50:$BX50,$O$7:$BX$7,H$7) -> 0 | I50: =SUMIFS($O50:$BX50,$O$7:$BX$7,I$7) -> 0 | J50: =SUMIFS($O50:$BX50,$O$7:$BX$7,J$7) -> 0 | K50: =SUMIFS($O50:$BX50,$O$7:$BX$7,K$7) -> 0 | Q50: =SUMIFS(Form_Autres_Usages[[Conso_ex]:[Conso_ex]],Form_Autres_Usages[[BatID]:[BatID]],Q$6,Form_Autres_Usages[[Usage]:[Usage]],$C50)/1000 -> 0 | R50: =SUMIFS(Form_Autres_Usages[[Conso_pr_et1]:[Conso_pr_et1]],Form_Autres_Usages[[BatID]:[BatID]],R$6,Form_Autres_Usages[[Usage]:[Usage]],$C50)/1000 -> 0 | S50: =SUMIFS(Form_Autres_Usages[[Conso_pr_et2]:[Conso_pr_et2]],Form_Autres_Usages[[BatID]:[BatID]],S$6,Form_Autres_Usages[[Usage]:[Usage]],$C50)/1000 -> 0 | T50: =SUMIFS(Form_Autres_Usages[[Conso_pr_et3]:[Conso_pr_et3]],Form_Autres_Usages[[BatID]:[BatID]],T$6,Form_Autres_Usages[[Usage]:[Usage]],$C50)/1000 -> 0 | U50: 0 | W50: =SUMIFS(Form_Autres_Usages[[Conso_ex]:[Conso_ex]],Form_Autres_Usages[[BatID]:[BatID]],W$6,Form_Autres_Usages[[Usage]:[Usage]],$C50)/1000 -> 0 | X50: =SUMIFS(Form_Autres_Usages[[Conso_pr_et1]:[Conso_pr_et1]],Form_Autres_Usages[[BatID]:[BatID]],X$6,Form_Autres_Usages[[Usage]:[Usage]],$C50)/1000 -> 0 | Y50: =SUMIFS(Form_Autres_Usages[[Conso_pr_et2]:[Conso_pr_et2]],Form_Autres_Usages[[BatID]:[BatID]],Y$6,Form_Autres_Usages[[Usage]:[Usage]],$C50)/1000 -> 0 | Z50: =SUMIFS(Form_Autres_Usages[[Conso_pr_et3]:[Conso_pr_et3]],Form_Autres_Usages[[BatID]:[BatID]],Z$6,Form_Autres_Usages[[Usage]:[Usage]],$C50)/1000 -> 0 | AA50: 0 | AC50: =SUMIFS(Form_Autres_Usages[[Conso_ex]:[Conso_ex]],Form_Autres_Usages[[BatID]:[BatID]],AC$6,Form_Autres_Usages[[Usage]:[Usage]],$C50)/1000 -> 0 | AD50: =SUMIFS(Form_Autres_Usages[[Conso_pr_et1]:[Conso_pr_et1]],Form_Autres_Usages[[BatID]:[BatID]],AD$6,Form_Autres_Usages[[Usage]:[Usage]],$C50)/1000 -> 0 | AE50: =SUMIFS(Form_Autres_Usages[[Conso_pr_et2]:[Conso_pr_et2]],Form_Autres_Usages[[BatID]:[BatID]],AE$6,Form_Autres_Usages[[Usage]:[Usage]],$C50)/1000 -> 0 | AF50: =SUMIFS(Form_Autres_Usages[[Conso_pr_et3]:[Conso_pr_et3]],Form_Autres_Usages[[BatID]:[BatID]],AF$6,Form_Autres_Usages[[Usage]:[Usage]],$C50)/1000 -> 0 | AG50: 0 | AI50: =SUMIFS(Form_Autres_Usages[[Conso_ex]:[Conso_ex]],Form_Autres_Usages[[BatID]:[BatID]],AI$6,Form_Autres_Usages[[Usage]:[Usage]],$C50)/1000 -> 0 | AJ50: =SUMIFS(Form_Autres_Usages[[Conso_pr_et1]:[Conso_pr_et1]],Form_Autres_Usages[[BatID]:[BatID]],AJ$6,Form_Autres_Usages[[Usage]:[Usage]],$C50)/1000 -> 0 | AK50: =SUMIFS(Form_Autres_Usages[[Conso_pr_et2]:[Conso_pr_et2]],Form_Autres_Usages[[BatID]:[BatID]],AK$6,Form_Autres_Usages[[Usage]:[Usage]],$C50)/1000 -> 0 | AL50: =SUMIFS(Form_Autres_Usages[[Conso_pr_et3]:[Conso_pr_et3]],Form_Autres_Usages[[BatID]:[BatID]],AL$6,Form_Autres_Usages[[Usage]:[Usage]],$C50)/1000 -> 0 | AM50: 0 | AO50: =SUMIFS(Form_Autres_Usages[[Conso_ex]:[Conso_ex]],Form_Autres_Usages[[BatID]:[BatID]],AO$6,Form_Autres_Usages[[Usage]:[Usage]],$C50)/1000 -> 0 | AP50: =SUMIFS(Form_Autres_Usages[[Conso_pr_et1]:[Conso_pr_et1]],Form_Autres_Usages[[BatID]:[BatID]],AP$6,Form_Autres_Usages[[Usage]:[Usage]],$C50)/1000 -> 0 | AQ50: =SUMIFS(Form_Autres_Usages[[Conso_pr_et2]:[Conso_pr_et2]],Form_Autres_Usages[[BatID]:[BatID]],AQ$6,Form_Autres_Usages[[Usage]:[Usage]],$C50)/1000 -> 0 | AR50: =SUMIFS(Form_Autres_Usages[[Conso_pr_et3]:[Conso_pr_et3]],Form_Autres_Usages[[BatID]:[BatID]],AR$6,Form_Autres_Usages[[Usage]:[Usage]],$C50)/1000 -> 0 | AS50: 0 | AU50: =SUMIFS(Form_Autres_Usages[[Conso_ex]:[Conso_ex]],Form_Autres_Usages[[BatID]:[BatID]],AU$6,Form_Autres_Usages[[Usage]:[Usage]],$C50)/1000 -> 0 | AV50: =SUMIFS(Form_Autres_Usages[[Conso_pr_et1]:[Conso_pr_et1]],Form_Autres_Usages[[BatID]:[BatID]],AV$6,Form_Autres_Usages[[Usage]:[Usage]],$C50)/1000 -> 0 | AW50: =SUMIFS(Form_Autres_Usages[[Conso_pr_et2]:[Conso_pr_et2]],Form_Autres_Usages[[BatID]:[BatID]],AW$6,Form_Autres_Usages[[Usage]:[Usage]],$C50)/1000 -> 0 | AX50: =SUMIFS(Form_Autres_Usages[[Conso_pr_et3]:[Conso_pr_et3]],Form_Autres_Usages[[BatID]:[BatID]],AX$6,Form_Autres_Usages[[Usage]:[Usage]],$C50)/1000 -> 0 | AY50: 0 | BA50: =SUMIFS(Form_Autres_Usages[[Conso_ex]:[Conso_ex]],Form_Autres_Usages[[BatID]:[BatID]],BA$6,Form_Autres_Usages[[Usage]:[Usage]],$C50)/1000 -> 0 | BB50: =SUMIFS(Form_Autres_Usages[[Conso_pr_et1]:[Conso_pr_et1]],Form_Autres_Usages[[BatID]:[BatID]],BB$6,Form_Autres_Usages[[Usage]:[Usage]],$C50)/1000 -> 0 | BC50: =SUMIFS(Form_Autres_Usages[[Conso_pr_et2]:[Conso_pr_et2]],Form_Autres_Usages[[BatID]:[BatID]],BC$6,Form_Autres_Usages[[Usage]:[Usage]],$C50)/1000 -> 0 | BD50: =SUMIFS(Form_Autres_Usages[[Conso_pr_et3]:[Conso_pr_et3]],Form_Autres_Usages[[BatID]:[BatID]],BD$6,Form_Autres_Usages[[Usage]:[Usage]],$C50)/1000 -> 0 | BE50: 0 | BG50: =SUMIFS(Form_Autres_Usages[[Conso_ex]:[Conso_ex]],Form_Autres_Usages[[BatID]:[BatID]],BG$6,Form_Autres_Usages[[Usage]:[Usage]],$C50)/1000 -> 0 | BH50: =SUMIFS(Form_Autres_Usages[[Conso_pr_et1]:[Conso_pr_et1]],Form_Autres_Usages[[BatID]:[BatID]],BH$6,Form_Autres_Usages[[Usage]:[Usage]],$C50)/1000 -> 0 | BI50: =SUMIFS(Form_Autres_Usages[[Conso_pr_et2]:[Conso_pr_et2]],Form_Autres_Usages[[BatID]:[BatID]],BI$6,Form_Autres_Usages[[Usage]:[Usage]],$C50)/1000 -> 0 | BJ50: =SUMIFS(Form_Autres_Usages[[Conso_pr_et3]:[Conso_pr_et3]],Form_Autres_Usages[[BatID]:[BatID]],BJ$6,Form_Autres_Usages[[Usage]:[Usage]],$C50)/1000 -> 0 | BK50: 0 | BM50: =SUMIFS(Form_Autres_Usages[[Conso_ex]:[Conso_ex]],Form_Autres_Usages[[BatID]:[BatID]],BM$6,Form_Autres_Usages[[Usage]:[Usage]],$C50)/1000 -> 0 | BN50: =SUMIFS(Form_Autres_Usages[[Conso_pr_et1]:[Conso_pr_et1]],Form_Autres_Usages[[BatID]:[BatID]],BN$6,Form_Autres_Usages[[Usage]:[Usage]],$C50)/1000 -> 0 | BO50: =SUMIFS(Form_Autres_Usages[[Conso_pr_et2]:[Conso_pr_et2]],Form_Autres_Usages[[BatID]:[BatID]],BO$6,Form_Autres_Usages[[Usage]:[Usage]],$C50)/1000 -> 0 | BP50: =SUMIFS(Form_Autres_Usages[[Conso_pr_et3]:[Conso_pr_et3]],Form_Autres_Usages[[BatID]:[BatID]],BP$6,Form_Autres_Usages[[Usage]:[Usage]],$C50)/1000 -> 0 | BQ50: 0 | BS50: =SUMIFS(Form_Autres_Usages[[Conso_ex]:[Conso_ex]],Form_Autres_Usages[[BatID]:[BatID]],BS$6,Form_Autres_Usages[[Usage]:[Usage]],$C50)/1000 -> 0 | BT50: =SUMIFS(Form_Autres_Usages[[Conso_pr_et1]:[Conso_pr_et1]],Form_Autres_Usages[[BatID]:[BatID]],BT$6,Form_Autres_Usages[[Usage]:[Usage]],$C50)/1000 -> 0 | BU50: =SUMIFS(Form_Autres_Usages[[Conso_pr_et2]:[Conso_pr_et2]],Form_Autres_Usages[[BatID]:[BatID]],BU$6,Form_Autres_Usages[[Usage]:[Usage]],$C50)/1000 -> 0 | BV50: =SUMIFS(Form_Autres_Usages[[Conso_pr_et3]:[Conso_pr_et3]],Form_Autres_Usages[[BatID]:[BatID]],BV$6,Form_Autres_Usages[[Usage]:[Usage]],$C50)/1000 -> 0 | BW50: 0
C51: 7.AUT-11 | F51: Autres usages - | G51: =SUMIFS($O51:$BX51,$O$7:$BX$7,G$7) -> 0 | H51: =SUMIFS($O51:$BX51,$O$7:$BX$7,H$7) -> 0 | I51: =SUMIFS($O51:$BX51,$O$7:$BX$7,I$7) -> 0 | J51: =SUMIFS($O51:$BX51,$O$7:$BX$7,J$7) -> 0 | K51: =SUMIFS($O51:$BX51,$O$7:$BX$7,K$7) -> 0 | Q51: =SUMIFS(Form_Autres_Usages[[Conso_ex]:[Conso_ex]],Form_Autres_Usages[[BatID]:[BatID]],Q$6,Form_Autres_Usages[[Usage]:[Usage]],$C51)/1000 -> 0 | R51: =SUMIFS(Form_Autres_Usages[[Conso_pr_et1]:[Conso_pr_et1]],Form_Autres_Usages[[BatID]:[BatID]],R$6,Form_Autres_Usages[[Usage]:[Usage]],$C51)/1000 -> 0 | S51: =SUMIFS(Form_Autres_Usages[[Conso_pr_et2]:[Conso_pr_et2]],Form_Autres_Usages[[BatID]:[BatID]],S$6,Form_Autres_Usages[[Usage]:[Usage]],$C51)/1000 -> 0 | T51: =SUMIFS(Form_Autres_Usages[[Conso_pr_et3]:[Conso_pr_et3]],Form_Autres_Usages[[BatID]:[BatID]],T$6,Form_Autres_Usages[[Usage]:[Usage]],$C51)/1000 -> 0 | U51: 0 | W51: =SUMIFS(Form_Autres_Usages[[Conso_ex]:[Conso_ex]],Form_Autres_Usages[[BatID]:[BatID]],W$6,Form_Autres_Usages[[Usage]:[Usage]],$C51)/1000 -> 0 | X51: =SUMIFS(Form_Autres_Usages[[Conso_pr_et1]:[Conso_pr_et1]],Form_Autres_Usages[[BatID]:[BatID]],X$6,Form_Autres_Usages[[Usage]:[Usage]],$C51)/1000 -> 0 | Y51: =SUMIFS(Form_Autres_Usages[[Conso_pr_et2]:[Conso_pr_et2]],Form_Autres_Usages[[BatID]:[BatID]],Y$6,Form_Autres_Usages[[Usage]:[Usage]],$C51)/1000 -> 0 | Z51: =SUMIFS(Form_Autres_Usages[[Conso_pr_et3]:[Conso_pr_et3]],Form_Autres_Usages[[BatID]:[BatID]],Z$6,Form_Autres_Usages[[Usage]:[Usage]],$C51)/1000 -> 0 | AA51: 0 | AC51: =SUMIFS(Form_Autres_Usages[[Conso_ex]:[Conso_ex]],Form_Autres_Usages[[BatID]:[BatID]],AC$6,Form_Autres_Usages[[Usage]:[Usage]],$C51)/1000 -> 0 | AD51: =SUMIFS(Form_Autres_Usages[[Conso_pr_et1]:[Conso_pr_et1]],Form_Autres_Usages[[BatID]:[BatID]],AD$6,Form_Autres_Usages[[Usage]:[Usage]],$C51)/1000 -> 0 | AE51: =SUMIFS(Form_Autres_Usages[[Conso_pr_et2]:[Conso_pr_et2]],Form_Autres_Usages[[BatID]:[BatID]],AE$6,Form_Autres_Usages[[Usage]:[Usage]],$C51)/1000 -> 0 | AF51: =SUMIFS(Form_Autres_Usages[[Conso_pr_et3]:[Conso_pr_et3]],Form_Autres_Usages[[BatID]:[BatID]],AF$6,Form_Autres_Usages[[Usage]:[Usage]],$C51)/1000 -> 0 | AG51: 0 | AI51: =SUMIFS(Form_Autres_Usages[[Conso_ex]:[Conso_ex]],Form_Autres_Usages[[BatID]:[BatID]],AI$6,Form_Autres_Usages[[Usage]:[Usage]],$C51)/1000 -> 0 | AJ51: =SUMIFS(Form_Autres_Usages[[Conso_pr_et1]:[Conso_pr_et1]],Form_Autres_Usages[[BatID]:[BatID]],AJ$6,Form_Autres_Usages[[Usage]:[Usage]],$C51)/1000 -> 0 | AK51: =SUMIFS(Form_Autres_Usages[[Conso_pr_et2]:[Conso_pr_et2]],Form_Autres_Usages[[BatID]:[BatID]],AK$6,Form_Autres_Usages[[Usage]:[Usage]],$C51)/1000 -> 0 | AL51: =SUMIFS(Form_Autres_Usages[[Conso_pr_et3]:[Conso_pr_et3]],Form_Autres_Usages[[BatID]:[BatID]],AL$6,Form_Autres_Usages[[Usage]:[Usage]],$C51)/1000 -> 0 | AM51: 0 | AO51: =SUMIFS(Form_Autres_Usages[[Conso_ex]:[Conso_ex]],Form_Autres_Usages[[BatID]:[BatID]],AO$6,Form_Autres_Usages[[Usage]:[Usage]],$C51)/1000 -> 0 | AP51: =SUMIFS(Form_Autres_Usages[[Conso_pr_et1]:[Conso_pr_et1]],Form_Autres_Usages[[BatID]:[BatID]],AP$6,Form_Autres_Usages[[Usage]:[Usage]],$C51)/1000 -> 0 | AQ51: =SUMIFS(Form_Autres_Usages[[Conso_pr_et2]:[Conso_pr_et2]],Form_Autres_Usages[[BatID]:[BatID]],AQ$6,Form_Autres_Usages[[Usage]:[Usage]],$C51)/1000 -> 0 | AR51: =SUMIFS(Form_Autres_Usages[[Conso_pr_et3]:[Conso_pr_et3]],Form_Autres_Usages[[BatID]:[BatID]],AR$6,Form_Autres_Usages[[Usage]:[Usage]],$C51)/1000 -> 0 | AS51: 0 | AU51: =SUMIFS(Form_Autres_Usages[[Conso_ex]:[Conso_ex]],Form_Autres_Usages[[BatID]:[BatID]],AU$6,Form_Autres_Usages[[Usage]:[Usage]],$C51)/1000 -> 0 | AV51: =SUMIFS(Form_Autres_Usages[[Conso_pr_et1]:[Conso_pr_et1]],Form_Autres_Usages[[BatID]:[BatID]],AV$6,Form_Autres_Usages[[Usage]:[Usage]],$C51)/1000 -> 0 | AW51: =SUMIFS(Form_Autres_Usages[[Conso_pr_et2]:[Conso_pr_et2]],Form_Autres_Usages[[BatID]:[BatID]],AW$6,Form_Autres_Usages[[Usage]:[Usage]],$C51)/1000 -> 0 | AX51: =SUMIFS(Form_Autres_Usages[[Conso_pr_et3]:[Conso_pr_et3]],Form_Autres_Usages[[BatID]:[BatID]],AX$6,Form_Autres_Usages[[Usage]:[Usage]],$C51)/1000 -> 0 | AY51: 0 | BA51: =SUMIFS(Form_Autres_Usages[[Conso_ex]:[Conso_ex]],Form_Autres_Usages[[BatID]:[BatID]],BA$6,Form_Autres_Usages[[Usage]:[Usage]],$C51)/1000 -> 0 | BB51: =SUMIFS(Form_Autres_Usages[[Conso_pr_et1]:[Conso_pr_et1]],Form_Autres_Usages[[BatID]:[BatID]],BB$6,Form_Autres_Usages[[Usage]:[Usage]],$C51)/1000 -> 0 | BC51: =SUMIFS(Form_Autres_Usages[[Conso_pr_et2]:[Conso_pr_et2]],Form_Autres_Usages[[BatID]:[BatID]],BC$6,Form_Autres_Usages[[Usage]:[Usage]],$C51)/1000 -> 0 | BD51: =SUMIFS(Form_Autres_Usages[[Conso_pr_et3]:[Conso_pr_et3]],Form_Autres_Usages[[BatID]:[BatID]],BD$6,Form_Autres_Usages[[Usage]:[Usage]],$C51)/1000 -> 0 | BE51: 0 | BG51: =SUMIFS(Form_Autres_Usages[[Conso_ex]:[Conso_ex]],Form_Autres_Usages[[BatID]:[BatID]],BG$6,Form_Autres_Usages[[Usage]:[Usage]],$C51)/1000 -> 0 | BH51: =SUMIFS(Form_Autres_Usages[[Conso_pr_et1]:[Conso_pr_et1]],Form_Autres_Usages[[BatID]:[BatID]],BH$6,Form_Autres_Usages[[Usage]:[Usage]],$C51)/1000 -> 0 | BI51: =SUMIFS(Form_Autres_Usages[[Conso_pr_et2]:[Conso_pr_et2]],Form_Autres_Usages[[BatID]:[BatID]],BI$6,Form_Autres_Usages[[Usage]:[Usage]],$C51)/1000 -> 0 | BJ51: =SUMIFS(Form_Autres_Usages[[Conso_pr_et3]:[Conso_pr_et3]],Form_Autres_Usages[[BatID]:[BatID]],BJ$6,Form_Autres_Usages[[Usage]:[Usage]],$C51)/1000 -> 0 | BK51: 0 | BM51: =SUMIFS(Form_Autres_Usages[[Conso_ex]:[Conso_ex]],Form_Autres_Usages[[BatID]:[BatID]],BM$6,Form_Autres_Usages[[Usage]:[Usage]],$C51)/1000 -> 0 | BN51: =SUMIFS(Form_Autres_Usages[[Conso_pr_et1]:[Conso_pr_et1]],Form_Autres_Usages[[BatID]:[BatID]],BN$6,Form_Autres_Usages[[Usage]:[Usage]],$C51)/1000 -> 0 | BO51: =SUMIFS(Form_Autres_Usages[[Conso_pr_et2]:[Conso_pr_et2]],Form_Autres_Usages[[BatID]:[BatID]],BO$6,Form_Autres_Usages[[Usage]:[Usage]],$C51)/1000 -> 0 | BP51: =SUMIFS(Form_Autres_Usages[[Conso_pr_et3]:[Conso_pr_et3]],Form_Autres_Usages[[BatID]:[BatID]],BP$6,Form_Autres_Usages[[Usage]:[Usage]],$C51)/1000 -> 0 | BQ51: 0 | BS51: =SUMIFS(Form_Autres_Usages[[Conso_ex]:[Conso_ex]],Form_Autres_Usages[[BatID]:[BatID]],BS$6,Form_Autres_Usages[[Usage]:[Usage]],$C51)/1000 -> 0 | BT51: =SUMIFS(Form_Autres_Usages[[Conso_pr_et1]:[Conso_pr_et1]],Form_Autres_Usages[[BatID]:[BatID]],BT$6,Form_Autres_Usages[[Usage]:[Usage]],$C51)/1000 -> 0 | BU51: =SUMIFS(Form_Autres_Usages[[Conso_pr_et2]:[Conso_pr_et2]],Form_Autres_Usages[[BatID]:[BatID]],BU$6,Form_Autres_Usages[[Usage]:[Usage]],$C51)/1000 -> 0 | BV51: =SUMIFS(Form_Autres_Usages[[Conso_pr_et3]:[Conso_pr_et3]],Form_Autres_Usages[[BatID]:[BatID]],BV$6,Form_Autres_Usages[[Usage]:[Usage]],$C51)/1000 -> 0 | BW51: 0
C52: 7.AUT-12 | F52: Autres usages - | G52: =SUMIFS($O52:$BX52,$O$7:$BX$7,G$7) -> 0 | H52: =SUMIFS($O52:$BX52,$O$7:$BX$7,H$7) -> 0 | I52: =SUMIFS($O52:$BX52,$O$7:$BX$7,I$7) -> 0 | J52: =SUMIFS($O52:$BX52,$O$7:$BX$7,J$7) -> 0 | K52: =SUMIFS($O52:$BX52,$O$7:$BX$7,K$7) -> 0 | Q52: =SUMIFS(Form_Autres_Usages[[Conso_ex]:[Conso_ex]],Form_Autres_Usages[[BatID]:[BatID]],Q$6,Form_Autres_Usages[[Usage]:[Usage]],$C52)/1000 -> 0 | R52: =SUMIFS(Form_Autres_Usages[[Conso_pr_et1]:[Conso_pr_et1]],Form_Autres_Usages[[BatID]:[BatID]],R$6,Form_Autres_Usages[[Usage]:[Usage]],$C52)/1000 -> 0 | S52: =SUMIFS(Form_Autres_Usages[[Conso_pr_et2]:[Conso_pr_et2]],Form_Autres_Usages[[BatID]:[BatID]],S$6,Form_Autres_Usages[[Usage]:[Usage]],$C52)/1000 -> 0 | T52: =SUMIFS(Form_Autres_Usages[[Conso_pr_et3]:[Conso_pr_et3]],Form_Autres_Usages[[BatID]:[BatID]],T$6,Form_Autres_Usages[[Usage]:[Usage]],$C52)/1000 -> 0 | U52: 0 | W52: =SUMIFS(Form_Autres_Usages[[Conso_ex]:[Conso_ex]],Form_Autres_Usages[[BatID]:[BatID]],W$6,Form_Autres_Usages[[Usage]:[Usage]],$C52)/1000 -> 0 | X52: =SUMIFS(Form_Autres_Usages[[Conso_pr_et1]:[Conso_pr_et1]],Form_Autres_Usages[[BatID]:[BatID]],X$6,Form_Autres_Usages[[Usage]:[Usage]],$C52)/1000 -> 0 | Y52: =SUMIFS(Form_Autres_Usages[[Conso_pr_et2]:[Conso_pr_et2]],Form_Autres_Usages[[BatID]:[BatID]],Y$6,Form_Autres_Usages[[Usage]:[Usage]],$C52)/1000 -> 0 | Z52: =SUMIFS(Form_Autres_Usages[[Conso_pr_et3]:[Conso_pr_et3]],Form_Autres_Usages[[BatID]:[BatID]],Z$6,Form_Autres_Usages[[Usage]:[Usage]],$C52)/1000 -> 0 | AA52: 0 | AC52: =SUMIFS(Form_Autres_Usages[[Conso_ex]:[Conso_ex]],Form_Autres_Usages[[BatID]:[BatID]],AC$6,Form_Autres_Usages[[Usage]:[Usage]],$C52)/1000 -> 0 | AD52: =SUMIFS(Form_Autres_Usages[[Conso_pr_et1]:[Conso_pr_et1]],Form_Autres_Usages[[BatID]:[BatID]],AD$6,Form_Autres_Usages[[Usage]:[Usage]],$C52)/1000 -> 0 | AE52: =SUMIFS(Form_Autres_Usages[[Conso_pr_et2]:[Conso_pr_et2]],Form_Autres_Usages[[BatID]:[BatID]],AE$6,Form_Autres_Usages[[Usage]:[Usage]],$C52)/1000 -> 0 | AF52: =SUMIFS(Form_Autres_Usages[[Conso_pr_et3]:[Conso_pr_et3]],Form_Autres_Usages[[BatID]:[BatID]],AF$6,Form_Autres_Usages[[Usage]:[Usage]],$C52)/1000 -> 0 | AG52: 0 | AI52: =SUMIFS(Form_Autres_Usages[[Conso_ex]:[Conso_ex]],Form_Autres_Usages[[BatID]:[BatID]],AI$6,Form_Autres_Usages[[Usage]:[Usage]],$C52)/1000 -> 0 | AJ52: =SUMIFS(Form_Autres_Usages[[Conso_pr_et1]:[Conso_pr_et1]],Form_Autres_Usages[[BatID]:[BatID]],AJ$6,Form_Autres_Usages[[Usage]:[Usage]],$C52)/1000 -> 0 | AK52: =SUMIFS(Form_Autres_Usages[[Conso_pr_et2]:[Conso_pr_et2]],Form_Autres_Usages[[BatID]:[BatID]],AK$6,Form_Autres_Usages[[Usage]:[Usage]],$C52)/1000 -> 0 | AL52: =SUMIFS(Form_Autres_Usages[[Conso_pr_et3]:[Conso_pr_et3]],Form_Autres_Usages[[BatID]:[BatID]],AL$6,Form_Autres_Usages[[Usage]:[Usage]],$C52)/1000 -> 0 | AM52: 0 | AO52: =SUMIFS(Form_Autres_Usages[[Conso_ex]:[Conso_ex]],Form_Autres_Usages[[BatID]:[BatID]],AO$6,Form_Autres_Usages[[Usage]:[Usage]],$C52)/1000 -> 0 | AP52: =SUMIFS(Form_Autres_Usages[[Conso_pr_et1]:[Conso_pr_et1]],Form_Autres_Usages[[BatID]:[BatID]],AP$6,Form_Autres_Usages[[Usage]:[Usage]],$C52)/1000 -> 0 | AQ52: =SUMIFS(Form_Autres_Usages[[Conso_pr_et2]:[Conso_pr_et2]],Form_Autres_Usages[[BatID]:[BatID]],AQ$6,Form_Autres_Usages[[Usage]:[Usage]],$C52)/1000 -> 0 | AR52: =SUMIFS(Form_Autres_Usages[[Conso_pr_et3]:[Conso_pr_et3]],Form_Autres_Usages[[BatID]:[BatID]],AR$6,Form_Autres_Usages[[Usage]:[Usage]],$C52)/1000 -> 0 | AS52: 0 | AU52: =SUMIFS(Form_Autres_Usages[[Conso_ex]:[Conso_ex]],Form_Autres_Usages[[BatID]:[BatID]],AU$6,Form_Autres_Usages[[Usage]:[Usage]],$C52)/1000 -> 0 | AV52: =SUMIFS(Form_Autres_Usages[[Conso_pr_et1]:[Conso_pr_et1]],Form_Autres_Usages[[BatID]:[BatID]],AV$6,Form_Autres_Usages[[Usage]:[Usage]],$C52)/1000 -> 0 | AW52: =SUMIFS(Form_Autres_Usages[[Conso_pr_et2]:[Conso_pr_et2]],Form_Autres_Usages[[BatID]:[BatID]],AW$6,Form_Autres_Usages[[Usage]:[Usage]],$C52)/1000 -> 0 | AX52: =SUMIFS(Form_Autres_Usages[[Conso_pr_et3]:[Conso_pr_et3]],Form_Autres_Usages[[BatID]:[BatID]],AX$6,Form_Autres_Usages[[Usage]:[Usage]],$C52)/1000 -> 0 | AY52: 0 | BA52: =SUMIFS(Form_Autres_Usages[[Conso_ex]:[Conso_ex]],Form_Autres_Usages[[BatID]:[BatID]],BA$6,Form_Autres_Usages[[Usage]:[Usage]],$C52)/1000 -> 0 | BB52: =SUMIFS(Form_Autres_Usages[[Conso_pr_et1]:[Conso_pr_et1]],Form_Autres_Usages[[BatID]:[BatID]],BB$6,Form_Autres_Usages[[Usage]:[Usage]],$C52)/1000 -> 0 | BC52: =SUMIFS(Form_Autres_Usages[[Conso_pr_et2]:[Conso_pr_et2]],Form_Autres_Usages[[BatID]:[BatID]],BC$6,Form_Autres_Usages[[Usage]:[Usage]],$C52)/1000 -> 0 | BD52: =SUMIFS(Form_Autres_Usages[[Conso_pr_et3]:[Conso_pr_et3]],Form_Autres_Usages[[BatID]:[BatID]],BD$6,Form_Autres_Usages[[Usage]:[Usage]],$C52)/1000 -> 0 | BE52: 0 | BG52: =SUMIFS(Form_Autres_Usages[[Conso_ex]:[Conso_ex]],Form_Autres_Usages[[BatID]:[BatID]],BG$6,Form_Autres_Usages[[Usage]:[Usage]],$C52)/1000 -> 0 | BH52: =SUMIFS(Form_Autres_Usages[[Conso_pr_et1]:[Conso_pr_et1]],Form_Autres_Usages[[BatID]:[BatID]],BH$6,Form_Autres_Usages[[Usage]:[Usage]],$C52)/1000 -> 0 | BI52: =SUMIFS(Form_Autres_Usages[[Conso_pr_et2]:[Conso_pr_et2]],Form_Autres_Usages[[BatID]:[BatID]],BI$6,Form_Autres_Usages[[Usage]:[Usage]],$C52)/1000 -> 0 | BJ52: =SUMIFS(Form_Autres_Usages[[Conso_pr_et3]:[Conso_pr_et3]],Form_Autres_Usages[[BatID]:[BatID]],BJ$6,Form_Autres_Usages[[Usage]:[Usage]],$C52)/1000 -> 0 | BK52: 0 | BM52: =SUMIFS(Form_Autres_Usages[[Conso_ex]:[Conso_ex]],Form_Autres_Usages[[BatID]:[BatID]],BM$6,Form_Autres_Usages[[Usage]:[Usage]],$C52)/1000 -> 0 | BN52: =SUMIFS(Form_Autres_Usages[[Conso_pr_et1]:[Conso_pr_et1]],Form_Autres_Usages[[BatID]:[BatID]],BN$6,Form_Autres_Usages[[Usage]:[Usage]],$C52)/1000 -> 0 | BO52: =SUMIFS(Form_Autres_Usages[[Conso_pr_et2]:[Conso_pr_et2]],Form_Autres_Usages[[BatID]:[BatID]],BO$6,Form_Autres_Usages[[Usage]:[Usage]],$C52)/1000 -> 0 | BP52: =SUMIFS(Form_Autres_Usages[[Conso_pr_et3]:[Conso_pr_et3]],Form_Autres_Usages[[BatID]:[BatID]],BP$6,Form_Autres_Usages[[Usage]:[Usage]],$C52)/1000 -> 0 | BQ52: 0 | BS52: =SUMIFS(Form_Autres_Usages[[Conso_ex]:[Conso_ex]],Form_Autres_Usages[[BatID]:[BatID]],BS$6,Form_Autres_Usages[[Usage]:[Usage]],$C52)/1000 -> 0 | BT52: =SUMIFS(Form_Autres_Usages[[Conso_pr_et1]:[Conso_pr_et1]],Form_Autres_Usages[[BatID]:[BatID]],BT$6,Form_Autres_Usages[[Usage]:[Usage]],$C52)/1000 -> 0 | BU52: =SUMIFS(Form_Autres_Usages[[Conso_pr_et2]:[Conso_pr_et2]],Form_Autres_Usages[[BatID]:[BatID]],BU$6,Form_Autres_Usages[[Usage]:[Usage]],$C52)/1000 -> 0 | BV52: =SUMIFS(Form_Autres_Usages[[Conso_pr_et3]:[Conso_pr_et3]],Form_Autres_Usages[[BatID]:[BatID]],BV$6,Form_Autres_Usages[[Usage]:[Usage]],$C52)/1000 -> 0 | BW52: 0
C53: 7.AUT-13 | F53: Autres usages - | G53: =SUMIFS($O53:$BX53,$O$7:$BX$7,G$7) -> 0 | H53: =SUMIFS($O53:$BX53,$O$7:$BX$7,H$7) -> 0 | I53: =SUMIFS($O53:$BX53,$O$7:$BX$7,I$7) -> 0 | J53: =SUMIFS($O53:$BX53,$O$7:$BX$7,J$7) -> 0 | K53: =SUMIFS($O53:$BX53,$O$7:$BX$7,K$7) -> 0 | Q53: =SUMIFS(Form_Autres_Usages[[Conso_ex]:[Conso_ex]],Form_Autres_Usages[[BatID]:[BatID]],Q$6,Form_Autres_Usages[[Usage]:[Usage]],$C53)/1000 -> 0 | R53: =SUMIFS(Form_Autres_Usages[[Conso_pr_et1]:[Conso_pr_et1]],Form_Autres_Usages[[BatID]:[BatID]],R$6,Form_Autres_Usages[[Usage]:[Usage]],$C53)/1000 -> 0 | S53: =SUMIFS(Form_Autres_Usages[[Conso_pr_et2]:[Conso_pr_et2]],Form_Autres_Usages[[BatID]:[BatID]],S$6,Form_Autres_Usages[[Usage]:[Usage]],$C53)/1000 -> 0 | T53: =SUMIFS(Form_Autres_Usages[[Conso_pr_et3]:[Conso_pr_et3]],Form_Autres_Usages[[BatID]:[BatID]],T$6,Form_Autres_Usages[[Usage]:[Usage]],$C53)/1000 -> 0 | U53: 0 | W53: =SUMIFS(Form_Autres_Usages[[Conso_ex]:[Conso_ex]],Form_Autres_Usages[[BatID]:[BatID]],W$6,Form_Autres_Usages[[Usage]:[Usage]],$C53)/1000 -> 0 | X53: =SUMIFS(Form_Autres_Usages[[Conso_pr_et1]:[Conso_pr_et1]],Form_Autres_Usages[[BatID]:[BatID]],X$6,Form_Autres_Usages[[Usage]:[Usage]],$C53)/1000 -> 0 | Y53: =SUMIFS(Form_Autres_Usages[[Conso_pr_et2]:[Conso_pr_et2]],Form_Autres_Usages[[BatID]:[BatID]],Y$6,Form_Autres_Usages[[Usage]:[Usage]],$C53)/1000 -> 0 | Z53: =SUMIFS(Form_Autres_Usages[[Conso_pr_et3]:[Conso_pr_et3]],Form_Autres_Usages[[BatID]:[BatID]],Z$6,Form_Autres_Usages[[Usage]:[Usage]],$C53)/1000 -> 0 | AA53: 0 | AC53: =SUMIFS(Form_Autres_Usages[[Conso_ex]:[Conso_ex]],Form_Autres_Usages[[BatID]:[BatID]],AC$6,Form_Autres_Usages[[Usage]:[Usage]],$C53)/1000 -> 0 | AD53: =SUMIFS(Form_Autres_Usages[[Conso_pr_et1]:[Conso_pr_et1]],Form_Autres_Usages[[BatID]:[BatID]],AD$6,Form_Autres_Usages[[Usage]:[Usage]],$C53)/1000 -> 0 | AE53: =SUMIFS(Form_Autres_Usages[[Conso_pr_et2]:[Conso_pr_et2]],Form_Autres_Usages[[BatID]:[BatID]],AE$6,Form_Autres_Usages[[Usage]:[Usage]],$C53)/1000 -> 0 | AF53: =SUMIFS(Form_Autres_Usages[[Conso_pr_et3]:[Conso_pr_et3]],Form_Autres_Usages[[BatID]:[BatID]],AF$6,Form_Autres_Usages[[Usage]:[Usage]],$C53)/1000 -> 0 | AG53: 0 | AI53: =SUMIFS(Form_Autres_Usages[[Conso_ex]:[Conso_ex]],Form_Autres_Usages[[BatID]:[BatID]],AI$6,Form_Autres_Usages[[Usage]:[Usage]],$C53)/1000 -> 0 | AJ53: =SUMIFS(Form_Autres_Usages[[Conso_pr_et1]:[Conso_pr_et1]],Form_Autres_Usages[[BatID]:[BatID]],AJ$6,Form_Autres_Usages[[Usage]:[Usage]],$C53)/1000 -> 0 | AK53: =SUMIFS(Form_Autres_Usages[[Conso_pr_et2]:[Conso_pr_et2]],Form_Autres_Usages[[BatID]:[BatID]],AK$6,Form_Autres_Usages[[Usage]:[Usage]],$C53)/1000 -> 0 | AL53: =SUMIFS(Form_Autres_Usages[[Conso_pr_et3]:[Conso_pr_et3]],Form_Autres_Usages[[BatID]:[BatID]],AL$6,Form_Autres_Usages[[Usage]:[Usage]],$C53)/1000 -> 0 | AM53: 0 | AO53: =SUMIFS(Form_Autres_Usages[[Conso_ex]:[Conso_ex]],Form_Autres_Usages[[BatID]:[BatID]],AO$6,Form_Autres_Usages[[Usage]:[Usage]],$C53)/1000 -> 0 | AP53: =SUMIFS(Form_Autres_Usages[[Conso_pr_et1]:[Conso_pr_et1]],Form_Autres_Usages[[BatID]:[BatID]],AP$6,Form_Autres_Usages[[Usage]:[Usage]],$C53)/1000 -> 0 | AQ53: =SUMIFS(Form_Autres_Usages[[Conso_pr_et2]:[Conso_pr_et2]],Form_Autres_Usages[[BatID]:[BatID]],AQ$6,Form_Autres_Usages[[Usage]:[Usage]],$C53)/1000 -> 0 | AR53: =SUMIFS(Form_Autres_Usages[[Conso_pr_et3]:[Conso_pr_et3]],Form_Autres_Usages[[BatID]:[BatID]],AR$6,Form_Autres_Usages[[Usage]:[Usage]],$C53)/1000 -> 0 | AS53: 0 | AU53: =SUMIFS(Form_Autres_Usages[[Conso_ex]:[Conso_ex]],Form_Autres_Usages[[BatID]:[BatID]],AU$6,Form_Autres_Usages[[Usage]:[Usage]],$C53)/1000 -> 0 | AV53: =SUMIFS(Form_Autres_Usages[[Conso_pr_et1]:[Conso_pr_et1]],Form_Autres_Usages[[BatID]:[BatID]],AV$6,Form_Autres_Usages[[Usage]:[Usage]],$C53)/1000 -> 0 | AW53: =SUMIFS(Form_Autres_Usages[[Conso_pr_et2]:[Conso_pr_et2]],Form_Autres_Usages[[BatID]:[BatID]],AW$6,Form_Autres_Usages[[Usage]:[Usage]],$C53)/1000 -> 0 | AX53: =SUMIFS(Form_Autres_Usages[[Conso_pr_et3]:[Conso_pr_et3]],Form_Autres_Usages[[BatID]:[BatID]],AX$6,Form_Autres_Usages[[Usage]:[Usage]],$C53)/1000 -> 0 | AY53: 0 | BA53: =SUMIFS(Form_Autres_Usages[[Conso_ex]:[Conso_ex]],Form_Autres_Usages[[BatID]:[BatID]],BA$6,Form_Autres_Usages[[Usage]:[Usage]],$C53)/1000 -> 0 | BB53: =SUMIFS(Form_Autres_Usages[[Conso_pr_et1]:[Conso_pr_et1]],Form_Autres_Usages[[BatID]:[BatID]],BB$6,Form_Autres_Usages[[Usage]:[Usage]],$C53)/1000 -> 0 | BC53: =SUMIFS(Form_Autres_Usages[[Conso_pr_et2]:[Conso_pr_et2]],Form_Autres_Usages[[BatID]:[BatID]],BC$6,Form_Autres_Usages[[Usage]:[Usage]],$C53)/1000 -> 0 | BD53: =SUMIFS(Form_Autres_Usages[[Conso_pr_et3]:[Conso_pr_et3]],Form_Autres_Usages[[BatID]:[BatID]],BD$6,Form_Autres_Usages[[Usage]:[Usage]],$C53)/1000 -> 0 | BE53: 0 | BG53: =SUMIFS(Form_Autres_Usages[[Conso_ex]:[Conso_ex]],Form_Autres_Usages[[BatID]:[BatID]],BG$6,Form_Autres_Usages[[Usage]:[Usage]],$C53)/1000 -> 0 | BH53: =SUMIFS(Form_Autres_Usages[[Conso_pr_et1]:[Conso_pr_et1]],Form_Autres_Usages[[BatID]:[BatID]],BH$6,Form_Autres_Usages[[Usage]:[Usage]],$C53)/1000 -> 0 | BI53: =SUMIFS(Form_Autres_Usages[[Conso_pr_et2]:[Conso_pr_et2]],Form_Autres_Usages[[BatID]:[BatID]],BI$6,Form_Autres_Usages[[Usage]:[Usage]],$C53)/1000 -> 0 | BJ53: =SUMIFS(Form_Autres_Usages[[Conso_pr_et3]:[Conso_pr_et3]],Form_Autres_Usages[[BatID]:[BatID]],BJ$6,Form_Autres_Usages[[Usage]:[Usage]],$C53)/1000 -> 0 | BK53: 0 | BM53: =SUMIFS(Form_Autres_Usages[[Conso_ex]:[Conso_ex]],Form_Autres_Usages[[BatID]:[BatID]],BM$6,Form_Autres_Usages[[Usage]:[Usage]],$C53)/1000 -> 0 | BN53: =SUMIFS(Form_Autres_Usages[[Conso_pr_et1]:[Conso_pr_et1]],Form_Autres_Usages[[BatID]:[BatID]],BN$6,Form_Autres_Usages[[Usage]:[Usage]],$C53)/1000 -> 0 | BO53: =SUMIFS(Form_Autres_Usages[[Conso_pr_et2]:[Conso_pr_et2]],Form_Autres_Usages[[BatID]:[BatID]],BO$6,Form_Autres_Usages[[Usage]:[Usage]],$C53)/1000 -> 0 | BP53: =SUMIFS(Form_Autres_Usages[[Conso_pr_et3]:[Conso_pr_et3]],Form_Autres_Usages[[BatID]:[BatID]],BP$6,Form_Autres_Usages[[Usage]:[Usage]],$C53)/1000 -> 0 | BQ53: 0 | BS53: =SUMIFS(Form_Autres_Usages[[Conso_ex]:[Conso_ex]],Form_Autres_Usages[[BatID]:[BatID]],BS$6,Form_Autres_Usages[[Usage]:[Usage]],$C53)/1000 -> 0 | BT53: =SUMIFS(Form_Autres_Usages[[Conso_pr_et1]:[Conso_pr_et1]],Form_Autres_Usages[[BatID]:[BatID]],BT$6,Form_Autres_Usages[[Usage]:[Usage]],$C53)/1000 -> 0 | BU53: =SUMIFS(Form_Autres_Usages[[Conso_pr_et2]:[Conso_pr_et2]],Form_Autres_Usages[[BatID]:[BatID]],BU$6,Form_Autres_Usages[[Usage]:[Usage]],$C53)/1000 -> 0 | BV53: =SUMIFS(Form_Autres_Usages[[Conso_pr_et3]:[Conso_pr_et3]],Form_Autres_Usages[[BatID]:[BatID]],BV$6,Form_Autres_Usages[[Usage]:[Usage]],$C53)/1000 -> 0 | BW53: 0
C54: 7.AUT-14 | F54: Autres usages - | G54: =SUMIFS($O54:$BX54,$O$7:$BX$7,G$7) -> 0 | H54: =SUMIFS($O54:$BX54,$O$7:$BX$7,H$7) -> 0 | I54: =SUMIFS($O54:$BX54,$O$7:$BX$7,I$7) -> 0 | J54: =SUMIFS($O54:$BX54,$O$7:$BX$7,J$7) -> 0 | K54: =SUMIFS($O54:$BX54,$O$7:$BX$7,K$7) -> 0 | Q54: =SUMIFS(Form_Autres_Usages[[Conso_ex]:[Conso_ex]],Form_Autres_Usages[[BatID]:[BatID]],Q$6,Form_Autres_Usages[[Usage]:[Usage]],$C54)/1000 -> 0 | R54: =SUMIFS(Form_Autres_Usages[[Conso_pr_et1]:[Conso_pr_et1]],Form_Autres_Usages[[BatID]:[BatID]],R$6,Form_Autres_Usages[[Usage]:[Usage]],$C54)/1000 -> 0 | S54: =SUMIFS(Form_Autres_Usages[[Conso_pr_et2]:[Conso_pr_et2]],Form_Autres_Usages[[BatID]:[BatID]],S$6,Form_Autres_Usages[[Usage]:[Usage]],$C54)/1000 -> 0 | T54: =SUMIFS(Form_Autres_Usages[[Conso_pr_et3]:[Conso_pr_et3]],Form_Autres_Usages[[BatID]:[BatID]],T$6,Form_Autres_Usages[[Usage]:[Usage]],$C54)/1000 -> 0 | U54: 0 | W54: =SUMIFS(Form_Autres_Usages[[Conso_ex]:[Conso_ex]],Form_Autres_Usages[[BatID]:[BatID]],W$6,Form_Autres_Usages[[Usage]:[Usage]],$C54)/1000 -> 0 | X54: =SUMIFS(Form_Autres_Usages[[Conso_pr_et1]:[Conso_pr_et1]],Form_Autres_Usages[[BatID]:[BatID]],X$6,Form_Autres_Usages[[Usage]:[Usage]],$C54)/1000 -> 0 | Y54: =SUMIFS(Form_Autres_Usages[[Conso_pr_et2]:[Conso_pr_et2]],Form_Autres_Usages[[BatID]:[BatID]],Y$6,Form_Autres_Usages[[Usage]:[Usage]],$C54)/1000 -> 0 | Z54: =SUMIFS(Form_Autres_Usages[[Conso_pr_et3]:[Conso_pr_et3]],Form_Autres_Usages[[BatID]:[BatID]],Z$6,Form_Autres_Usages[[Usage]:[Usage]],$C54)/1000 -> 0 | AA54: 0 | AC54: =SUMIFS(Form_Autres_Usages[[Conso_ex]:[Conso_ex]],Form_Autres_Usages[[BatID]:[BatID]],AC$6,Form_Autres_Usages[[Usage]:[Usage]],$C54)/1000 -> 0 | AD54: =SUMIFS(Form_Autres_Usages[[Conso_pr_et1]:[Conso_pr_et1]],Form_Autres_Usages[[BatID]:[BatID]],AD$6,Form_Autres_Usages[[Usage]:[Usage]],$C54)/1000 -> 0 | AE54: =SUMIFS(Form_Autres_Usages[[Conso_pr_et2]:[Conso_pr_et2]],Form_Autres_Usages[[BatID]:[BatID]],AE$6,Form_Autres_Usages[[Usage]:[Usage]],$C54)/1000 -> 0 | AF54: =SUMIFS(Form_Autres_Usages[[Conso_pr_et3]:[Conso_pr_et3]],Form_Autres_Usages[[BatID]:[BatID]],AF$6,Form_Autres_Usages[[Usage]:[Usage]],$C54)/1000 -> 0 | AG54: 0 | AI54: =SUMIFS(Form_Autres_Usages[[Conso_ex]:[Conso_ex]],Form_Autres_Usages[[BatID]:[BatID]],AI$6,Form_Autres_Usages[[Usage]:[Usage]],$C54)/1000 -> 0 | AJ54: =SUMIFS(Form_Autres_Usages[[Conso_pr_et1]:[Conso_pr_et1]],Form_Autres_Usages[[BatID]:[BatID]],AJ$6,Form_Autres_Usages[[Usage]:[Usage]],$C54)/1000 -> 0 | AK54: =SUMIFS(Form_Autres_Usages[[Conso_pr_et2]:[Conso_pr_et2]],Form_Autres_Usages[[BatID]:[BatID]],AK$6,Form_Autres_Usages[[Usage]:[Usage]],$C54)/1000 -> 0 | AL54: =SUMIFS(Form_Autres_Usages[[Conso_pr_et3]:[Conso_pr_et3]],Form_Autres_Usages[[BatID]:[BatID]],AL$6,Form_Autres_Usages[[Usage]:[Usage]],$C54)/1000 -> 0 | AM54: 0 | AO54: =SUMIFS(Form_Autres_Usages[[Conso_ex]:[Conso_ex]],Form_Autres_Usages[[BatID]:[BatID]],AO$6,Form_Autres_Usages[[Usage]:[Usage]],$C54)/1000 -> 0 | AP54: =SUMIFS(Form_Autres_Usages[[Conso_pr_et1]:[Conso_pr_et1]],Form_Autres_Usages[[BatID]:[BatID]],AP$6,Form_Autres_Usages[[Usage]:[Usage]],$C54)/1000 -> 0 | AQ54: =SUMIFS(Form_Autres_Usages[[Conso_pr_et2]:[Conso_pr_et2]],Form_Autres_Usages[[BatID]:[BatID]],AQ$6,Form_Autres_Usages[[Usage]:[Usage]],$C54)/1000 -> 0 | AR54: =SUMIFS(Form_Autres_Usages[[Conso_pr_et3]:[Conso_pr_et3]],Form_Autres_Usages[[BatID]:[BatID]],AR$6,Form_Autres_Usages[[Usage]:[Usage]],$C54)/1000 -> 0 | AS54: 0 | AU54: =SUMIFS(Form_Autres_Usages[[Conso_ex]:[Conso_ex]],Form_Autres_Usages[[BatID]:[BatID]],AU$6,Form_Autres_Usages[[Usage]:[Usage]],$C54)/1000 -> 0 | AV54: =SUMIFS(Form_Autres_Usages[[Conso_pr_et1]:[Conso_pr_et1]],Form_Autres_Usages[[BatID]:[BatID]],AV$6,Form_Autres_Usages[[Usage]:[Usage]],$C54)/1000 -> 0 | AW54: =SUMIFS(Form_Autres_Usages[[Conso_pr_et2]:[Conso_pr_et2]],Form_Autres_Usages[[BatID]:[BatID]],AW$6,Form_Autres_Usages[[Usage]:[Usage]],$C54)/1000 -> 0 | AX54: =SUMIFS(Form_Autres_Usages[[Conso_pr_et3]:[Conso_pr_et3]],Form_Autres_Usages[[BatID]:[BatID]],AX$6,Form_Autres_Usages[[Usage]:[Usage]],$C54)/1000 -> 0 | AY54: 0 | BA54: =SUMIFS(Form_Autres_Usages[[Conso_ex]:[Conso_ex]],Form_Autres_Usages[[BatID]:[BatID]],BA$6,Form_Autres_Usages[[Usage]:[Usage]],$C54)/1000 -> 0 | BB54: =SUMIFS(Form_Autres_Usages[[Conso_pr_et1]:[Conso_pr_et1]],Form_Autres_Usages[[BatID]:[BatID]],BB$6,Form_Autres_Usages[[Usage]:[Usage]],$C54)/1000 -> 0 | BC54: =SUMIFS(Form_Autres_Usages[[Conso_pr_et2]:[Conso_pr_et2]],Form_Autres_Usages[[BatID]:[BatID]],BC$6,Form_Autres_Usages[[Usage]:[Usage]],$C54)/1000 -> 0 | BD54: =SUMIFS(Form_Autres_Usages[[Conso_pr_et3]:[Conso_pr_et3]],Form_Autres_Usages[[BatID]:[BatID]],BD$6,Form_Autres_Usages[[Usage]:[Usage]],$C54)/1000 -> 0 | BE54: 0 | BG54: =SUMIFS(Form_Autres_Usages[[Conso_ex]:[Conso_ex]],Form_Autres_Usages[[BatID]:[BatID]],BG$6,Form_Autres_Usages[[Usage]:[Usage]],$C54)/1000 -> 0 | BH54: =SUMIFS(Form_Autres_Usages[[Conso_pr_et1]:[Conso_pr_et1]],Form_Autres_Usages[[BatID]:[BatID]],BH$6,Form_Autres_Usages[[Usage]:[Usage]],$C54)/1000 -> 0 | BI54: =SUMIFS(Form_Autres_Usages[[Conso_pr_et2]:[Conso_pr_et2]],Form_Autres_Usages[[BatID]:[BatID]],BI$6,Form_Autres_Usages[[Usage]:[Usage]],$C54)/1000 -> 0 | BJ54: =SUMIFS(Form_Autres_Usages[[Conso_pr_et3]:[Conso_pr_et3]],Form_Autres_Usages[[BatID]:[BatID]],BJ$6,Form_Autres_Usages[[Usage]:[Usage]],$C54)/1000 -> 0 | BK54: 0 | BM54: =SUMIFS(Form_Autres_Usages[[Conso_ex]:[Conso_ex]],Form_Autres_Usages[[BatID]:[BatID]],BM$6,Form_Autres_Usages[[Usage]:[Usage]],$C54)/1000 -> 0 | BN54: =SUMIFS(Form_Autres_Usages[[Conso_pr_et1]:[Conso_pr_et1]],Form_Autres_Usages[[BatID]:[BatID]],BN$6,Form_Autres_Usages[[Usage]:[Usage]],$C54)/1000 -> 0 | BO54: =SUMIFS(Form_Autres_Usages[[Conso_pr_et2]:[Conso_pr_et2]],Form_Autres_Usages[[BatID]:[BatID]],BO$6,Form_Autres_Usages[[Usage]:[Usage]],$C54)/1000 -> 0 | BP54: =SUMIFS(Form_Autres_Usages[[Conso_pr_et3]:[Conso_pr_et3]],Form_Autres_Usages[[BatID]:[BatID]],BP$6,Form_Autres_Usages[[Usage]:[Usage]],$C54)/1000 -> 0 | BQ54: 0 | BS54: =SUMIFS(Form_Autres_Usages[[Conso_ex]:[Conso_ex]],Form_Autres_Usages[[BatID]:[BatID]],BS$6,Form_Autres_Usages[[Usage]:[Usage]],$C54)/1000 -> 0 | BT54: =SUMIFS(Form_Autres_Usages[[Conso_pr_et1]:[Conso_pr_et1]],Form_Autres_Usages[[BatID]:[BatID]],BT$6,Form_Autres_Usages[[Usage]:[Usage]],$C54)/1000 -> 0 | BU54: =SUMIFS(Form_Autres_Usages[[Conso_pr_et2]:[Conso_pr_et2]],Form_Autres_Usages[[BatID]:[BatID]],BU$6,Form_Autres_Usages[[Usage]:[Usage]],$C54)/1000 -> 0 | BV54: =SUMIFS(Form_Autres_Usages[[Conso_pr_et3]:[Conso_pr_et3]],Form_Autres_Usages[[BatID]:[BatID]],BV$6,Form_Autres_Usages[[Usage]:[Usage]],$C54)/1000 -> 0 | BW54: 0
C55: 7.AUT-15 | F55: Autres usages - | G55: =SUMIFS($O55:$BX55,$O$7:$BX$7,G$7) -> 0 | H55: =SUMIFS($O55:$BX55,$O$7:$BX$7,H$7) -> 0 | I55: =SUMIFS($O55:$BX55,$O$7:$BX$7,I$7) -> 0 | J55: =SUMIFS($O55:$BX55,$O$7:$BX$7,J$7) -> 0 | K55: =SUMIFS($O55:$BX55,$O$7:$BX$7,K$7) -> 0 | Q55: =SUMIFS(Form_Autres_Usages[[Conso_ex]:[Conso_ex]],Form_Autres_Usages[[BatID]:[BatID]],Q$6,Form_Autres_Usages[[Usage]:[Usage]],$C55)/1000 -> 0 | R55: =SUMIFS(Form_Autres_Usages[[Conso_pr_et1]:[Conso_pr_et1]],Form_Autres_Usages[[BatID]:[BatID]],R$6,Form_Autres_Usages[[Usage]:[Usage]],$C55)/1000 -> 0 | S55: =SUMIFS(Form_Autres_Usages[[Conso_pr_et2]:[Conso_pr_et2]],Form_Autres_Usages[[BatID]:[BatID]],S$6,Form_Autres_Usages[[Usage]:[Usage]],$C55)/1000 -> 0 | T55: =SUMIFS(Form_Autres_Usages[[Conso_pr_et3]:[Conso_pr_et3]],Form_Autres_Usages[[BatID]:[BatID]],T$6,Form_Autres_Usages[[Usage]:[Usage]],$C55)/1000 -> 0 | U55: 0 | W55: =SUMIFS(Form_Autres_Usages[[Conso_ex]:[Conso_ex]],Form_Autres_Usages[[BatID]:[BatID]],W$6,Form_Autres_Usages[[Usage]:[Usage]],$C55)/1000 -> 0 | X55: =SUMIFS(Form_Autres_Usages[[Conso_pr_et1]:[Conso_pr_et1]],Form_Autres_Usages[[BatID]:[BatID]],X$6,Form_Autres_Usages[[Usage]:[Usage]],$C55)/1000 -> 0 | Y55: =SUMIFS(Form_Autres_Usages[[Conso_pr_et2]:[Conso_pr_et2]],Form_Autres_Usages[[BatID]:[BatID]],Y$6,Form_Autres_Usages[[Usage]:[Usage]],$C55)/1000 -> 0 | Z55: =SUMIFS(Form_Autres_Usages[[Conso_pr_et3]:[Conso_pr_et3]],Form_Autres_Usages[[BatID]:[BatID]],Z$6,Form_Autres_Usages[[Usage]:[Usage]],$C55)/1000 -> 0 | AA55: 0 | AC55: =SUMIFS(Form_Autres_Usages[[Conso_ex]:[Conso_ex]],Form_Autres_Usages[[BatID]:[BatID]],AC$6,Form_Autres_Usages[[Usage]:[Usage]],$C55)/1000 -> 0 | AD55: =SUMIFS(Form_Autres_Usages[[Conso_pr_et1]:[Conso_pr_et1]],Form_Autres_Usages[[BatID]:[BatID]],AD$6,Form_Autres_Usages[[Usage]:[Usage]],$C55)/1000 -> 0 | AE55: =SUMIFS(Form_Autres_Usages[[Conso_pr_et2]:[Conso_pr_et2]],Form_Autres_Usages[[BatID]:[BatID]],AE$6,Form_Autres_Usages[[Usage]:[Usage]],$C55)/1000 -> 0 | AF55: =SUMIFS(Form_Autres_Usages[[Conso_pr_et3]:[Conso_pr_et3]],Form_Autres_Usages[[BatID]:[BatID]],AF$6,Form_Autres_Usages[[Usage]:[Usage]],$C55)/1000 -> 0 | AG55: 0 | AI55: =SUMIFS(Form_Autres_Usages[[Conso_ex]:[Conso_ex]],Form_Autres_Usages[[BatID]:[BatID]],AI$6,Form_Autres_Usages[[Usage]:[Usage]],$C55)/1000 -> 0 | AJ55: =SUMIFS(Form_Autres_Usages[[Conso_pr_et1]:[Conso_pr_et1]],Form_Autres_Usages[[BatID]:[BatID]],AJ$6,Form_Autres_Usages[[Usage]:[Usage]],$C55)/1000 -> 0 | AK55: =SUMIFS(Form_Autres_Usages[[Conso_pr_et2]:[Conso_pr_et2]],Form_Autres_Usages[[BatID]:[BatID]],AK$6,Form_Autres_Usages[[Usage]:[Usage]],$C55)/1000 -> 0 | AL55: =SUMIFS(Form_Autres_Usages[[Conso_pr_et3]:[Conso_pr_et3]],Form_Autres_Usages[[BatID]:[BatID]],AL$6,Form_Autres_Usages[[Usage]:[Usage]],$C55)/1000 -> 0 | AM55: 0 | AO55: =SUMIFS(Form_Autres_Usages[[Conso_ex]:[Conso_ex]],Form_Autres_Usages[[BatID]:[BatID]],AO$6,Form_Autres_Usages[[Usage]:[Usage]],$C55)/1000 -> 0 | AP55: =SUMIFS(Form_Autres_Usages[[Conso_pr_et1]:[Conso_pr_et1]],Form_Autres_Usages[[BatID]:[BatID]],AP$6,Form_Autres_Usages[[Usage]:[Usage]],$C55)/1000 -> 0 | AQ55: =SUMIFS(Form_Autres_Usages[[Conso_pr_et2]:[Conso_pr_et2]],Form_Autres_Usages[[BatID]:[BatID]],AQ$6,Form_Autres_Usages[[Usage]:[Usage]],$C55)/1000 -> 0 | AR55: =SUMIFS(Form_Autres_Usages[[Conso_pr_et3]:[Conso_pr_et3]],Form_Autres_Usages[[BatID]:[BatID]],AR$6,Form_Autres_Usages[[Usage]:[Usage]],$C55)/1000 -> 0 | AS55: 0 | AU55: =SUMIFS(Form_Autres_Usages[[Conso_ex]:[Conso_ex]],Form_Autres_Usages[[BatID]:[BatID]],AU$6,Form_Autres_Usages[[Usage]:[Usage]],$C55)/1000 -> 0 | AV55: =SUMIFS(Form_Autres_Usages[[Conso_pr_et1]:[Conso_pr_et1]],Form_Autres_Usages[[BatID]:[BatID]],AV$6,Form_Autres_Usages[[Usage]:[Usage]],$C55)/1000 -> 0 | AW55: =SUMIFS(Form_Autres_Usages[[Conso_pr_et2]:[Conso_pr_et2]],Form_Autres_Usages[[BatID]:[BatID]],AW$6,Form_Autres_Usages[[Usage]:[Usage]],$C55)/1000 -> 0 | AX55: =SUMIFS(Form_Autres_Usages[[Conso_pr_et3]:[Conso_pr_et3]],Form_Autres_Usages[[BatID]:[BatID]],AX$6,Form_Autres_Usages[[Usage]:[Usage]],$C55)/1000 -> 0 | AY55: 0 | BA55: =SUMIFS(Form_Autres_Usages[[Conso_ex]:[Conso_ex]],Form_Autres_Usages[[BatID]:[BatID]],BA$6,Form_Autres_Usages[[Usage]:[Usage]],$C55)/1000 -> 0 | BB55: =SUMIFS(Form_Autres_Usages[[Conso_pr_et1]:[Conso_pr_et1]],Form_Autres_Usages[[BatID]:[BatID]],BB$6,Form_Autres_Usages[[Usage]:[Usage]],$C55)/1000 -> 0 | BC55: =SUMIFS(Form_Autres_Usages[[Conso_pr_et2]:[Conso_pr_et2]],Form_Autres_Usages[[BatID]:[BatID]],BC$6,Form_Autres_Usages[[Usage]:[Usage]],$C55)/1000 -> 0 | BD55: =SUMIFS(Form_Autres_Usages[[Conso_pr_et3]:[Conso_pr_et3]],Form_Autres_Usages[[BatID]:[BatID]],BD$6,Form_Autres_Usages[[Usage]:[Usage]],$C55)/1000 -> 0 | BE55: 0 | BG55: =SUMIFS(Form_Autres_Usages[[Conso_ex]:[Conso_ex]],Form_Autres_Usages[[BatID]:[BatID]],BG$6,Form_Autres_Usages[[Usage]:[Usage]],$C55)/1000 -> 0 | BH55: =SUMIFS(Form_Autres_Usages[[Conso_pr_et1]:[Conso_pr_et1]],Form_Autres_Usages[[BatID]:[BatID]],BH$6,Form_Autres_Usages[[Usage]:[Usage]],$C55)/1000 -> 0 | BI55: =SUMIFS(Form_Autres_Usages[[Conso_pr_et2]:[Conso_pr_et2]],Form_Autres_Usages[[BatID]:[BatID]],BI$6,Form_Autres_Usages[[Usage]:[Usage]],$C55)/1000 -> 0 | BJ55: =SUMIFS(Form_Autres_Usages[[Conso_pr_et3]:[Conso_pr_et3]],Form_Autres_Usages[[BatID]:[BatID]],BJ$6,Form_Autres_Usages[[Usage]:[Usage]],$C55)/1000 -> 0 | BK55: 0 | BM55: =SUMIFS(Form_Autres_Usages[[Conso_ex]:[Conso_ex]],Form_Autres_Usages[[BatID]:[BatID]],BM$6,Form_Autres_Usages[[Usage]:[Usage]],$C55)/1000 -> 0 | BN55: =SUMIFS(Form_Autres_Usages[[Conso_pr_et1]:[Conso_pr_et1]],Form_Autres_Usages[[BatID]:[BatID]],BN$6,Form_Autres_Usages[[Usage]:[Usage]],$C55)/1000 -> 0 | BO55: =SUMIFS(Form_Autres_Usages[[Conso_pr_et2]:[Conso_pr_et2]],Form_Autres_Usages[[BatID]:[BatID]],BO$6,Form_Autres_Usages[[Usage]:[Usage]],$C55)/1000 -> 0 | BP55: =SUMIFS(Form_Autres_Usages[[Conso_pr_et3]:[Conso_pr_et3]],Form_Autres_Usages[[BatID]:[BatID]],BP$6,Form_Autres_Usages[[Usage]:[Usage]],$C55)/1000 -> 0 | BQ55: 0 | BS55: =SUMIFS(Form_Autres_Usages[[Conso_ex]:[Conso_ex]],Form_Autres_Usages[[BatID]:[BatID]],BS$6,Form_Autres_Usages[[Usage]:[Usage]],$C55)/1000 -> 0 | BT55: =SUMIFS(Form_Autres_Usages[[Conso_pr_et1]:[Conso_pr_et1]],Form_Autres_Usages[[BatID]:[BatID]],BT$6,Form_Autres_Usages[[Usage]:[Usage]],$C55)/1000 -> 0 | BU55: =SUMIFS(Form_Autres_Usages[[Conso_pr_et2]:[Conso_pr_et2]],Form_Autres_Usages[[BatID]:[BatID]],BU$6,Form_Autres_Usages[[Usage]:[Usage]],$C55)/1000 -> 0 | BV55: =SUMIFS(Form_Autres_Usages[[Conso_pr_et3]:[Conso_pr_et3]],Form_Autres_Usages[[BatID]:[BatID]],BV$6,Form_Autres_Usages[[Usage]:[Usage]],$C55)/1000 -> 0 | BW55: 0
C56: 7.AUT-16 | F56: Autres usages - | G56: =SUMIFS($O56:$BX56,$O$7:$BX$7,G$7) -> 0 | H56: =SUMIFS($O56:$BX56,$O$7:$BX$7,H$7) -> 0 | I56: =SUMIFS($O56:$BX56,$O$7:$BX$7,I$7) -> 0 | J56: =SUMIFS($O56:$BX56,$O$7:$BX$7,J$7) -> 0 | K56: =SUMIFS($O56:$BX56,$O$7:$BX$7,K$7) -> 0 | Q56: =SUMIFS(Form_Autres_Usages[[Conso_ex]:[Conso_ex]],Form_Autres_Usages[[BatID]:[BatID]],Q$6,Form_Autres_Usages[[Usage]:[Usage]],$C56)/1000 -> 0 | R56: =SUMIFS(Form_Autres_Usages[[Conso_pr_et1]:[Conso_pr_et1]],Form_Autres_Usages[[BatID]:[BatID]],R$6,Form_Autres_Usages[[Usage]:[Usage]],$C56)/1000 -> 0 | S56: =SUMIFS(Form_Autres_Usages[[Conso_pr_et2]:[Conso_pr_et2]],Form_Autres_Usages[[BatID]:[BatID]],S$6,Form_Autres_Usages[[Usage]:[Usage]],$C56)/1000 -> 0 | T56: =SUMIFS(Form_Autres_Usages[[Conso_pr_et3]:[Conso_pr_et3]],Form_Autres_Usages[[BatID]:[BatID]],T$6,Form_Autres_Usages[[Usage]:[Usage]],$C56)/1000 -> 0 | U56: 0 | W56: =SUMIFS(Form_Autres_Usages[[Conso_ex]:[Conso_ex]],Form_Autres_Usages[[BatID]:[BatID]],W$6,Form_Autres_Usages[[Usage]:[Usage]],$C56)/1000 -> 0 | X56: =SUMIFS(Form_Autres_Usages[[Conso_pr_et1]:[Conso_pr_et1]],Form_Autres_Usages[[BatID]:[BatID]],X$6,Form_Autres_Usages[[Usage]:[Usage]],$C56)/1000 -> 0 | Y56: =SUMIFS(Form_Autres_Usages[[Conso_pr_et2]:[Conso_pr_et2]],Form_Autres_Usages[[BatID]:[BatID]],Y$6,Form_Autres_Usages[[Usage]:[Usage]],$C56)/1000 -> 0 | Z56: =SUMIFS(Form_Autres_Usages[[Conso_pr_et3]:[Conso_pr_et3]],Form_Autres_Usages[[BatID]:[BatID]],Z$6,Form_Autres_Usages[[Usage]:[Usage]],$C56)/1000 -> 0 | AA56: 0 | AC56: =SUMIFS(Form_Autres_Usages[[Conso_ex]:[Conso_ex]],Form_Autres_Usages[[BatID]:[BatID]],AC$6,Form_Autres_Usages[[Usage]:[Usage]],$C56)/1000 -> 0 | AD56: =SUMIFS(Form_Autres_Usages[[Conso_pr_et1]:[Conso_pr_et1]],Form_Autres_Usages[[BatID]:[BatID]],AD$6,Form_Autres_Usages[[Usage]:[Usage]],$C56)/1000 -> 0 | AE56: =SUMIFS(Form_Autres_Usages[[Conso_pr_et2]:[Conso_pr_et2]],Form_Autres_Usages[[BatID]:[BatID]],AE$6,Form_Autres_Usages[[Usage]:[Usage]],$C56)/1000 -> 0 | AF56: =SUMIFS(Form_Autres_Usages[[Conso_pr_et3]:[Conso_pr_et3]],Form_Autres_Usages[[BatID]:[BatID]],AF$6,Form_Autres_Usages[[Usage]:[Usage]],$C56)/1000 -> 0 | AG56: 0 | AI56: =SUMIFS(Form_Autres_Usages[[Conso_ex]:[Conso_ex]],Form_Autres_Usages[[BatID]:[BatID]],AI$6,Form_Autres_Usages[[Usage]:[Usage]],$C56)/1000 -> 0 | AJ56: =SUMIFS(Form_Autres_Usages[[Conso_pr_et1]:[Conso_pr_et1]],Form_Autres_Usages[[BatID]:[BatID]],AJ$6,Form_Autres_Usages[[Usage]:[Usage]],$C56)/1000 -> 0 | AK56: =SUMIFS(Form_Autres_Usages[[Conso_pr_et2]:[Conso_pr_et2]],Form_Autres_Usages[[BatID]:[BatID]],AK$6,Form_Autres_Usages[[Usage]:[Usage]],$C56)/1000 -> 0 | AL56: =SUMIFS(Form_Autres_Usages[[Conso_pr_et3]:[Conso_pr_et3]],Form_Autres_Usages[[BatID]:[BatID]],AL$6,Form_Autres_Usages[[Usage]:[Usage]],$C56)/1000 -> 0 | AM56: 0 | AO56: =SUMIFS(Form_Autres_Usages[[Conso_ex]:[Conso_ex]],Form_Autres_Usages[[BatID]:[BatID]],AO$6,Form_Autres_Usages[[Usage]:[Usage]],$C56)/1000 -> 0 | AP56: =SUMIFS(Form_Autres_Usages[[Conso_pr_et1]:[Conso_pr_et1]],Form_Autres_Usages[[BatID]:[BatID]],AP$6,Form_Autres_Usages[[Usage]:[Usage]],$C56)/1000 -> 0 | AQ56: =SUMIFS(Form_Autres_Usages[[Conso_pr_et2]:[Conso_pr_et2]],Form_Autres_Usages[[BatID]:[BatID]],AQ$6,Form_Autres_Usages[[Usage]:[Usage]],$C56)/1000 -> 0 | AR56: =SUMIFS(Form_Autres_Usages[[Conso_pr_et3]:[Conso_pr_et3]],Form_Autres_Usages[[BatID]:[BatID]],AR$6,Form_Autres_Usages[[Usage]:[Usage]],$C56)/1000 -> 0 | AS56: 0 | AU56: =SUMIFS(Form_Autres_Usages[[Conso_ex]:[Conso_ex]],Form_Autres_Usages[[BatID]:[BatID]],AU$6,Form_Autres_Usages[[Usage]:[Usage]],$C56)/1000 -> 0 | AV56: =SUMIFS(Form_Autres_Usages[[Conso_pr_et1]:[Conso_pr_et1]],Form_Autres_Usages[[BatID]:[BatID]],AV$6,Form_Autres_Usages[[Usage]:[Usage]],$C56)/1000 -> 0 | AW56: =SUMIFS(Form_Autres_Usages[[Conso_pr_et2]:[Conso_pr_et2]],Form_Autres_Usages[[BatID]:[BatID]],AW$6,Form_Autres_Usages[[Usage]:[Usage]],$C56)/1000 -> 0 | AX56: =SUMIFS(Form_Autres_Usages[[Conso_pr_et3]:[Conso_pr_et3]],Form_Autres_Usages[[BatID]:[BatID]],AX$6,Form_Autres_Usages[[Usage]:[Usage]],$C56)/1000 -> 0 | AY56: 0 | BA56: =SUMIFS(Form_Autres_Usages[[Conso_ex]:[Conso_ex]],Form_Autres_Usages[[BatID]:[BatID]],BA$6,Form_Autres_Usages[[Usage]:[Usage]],$C56)/1000 -> 0 | BB56: =SUMIFS(Form_Autres_Usages[[Conso_pr_et1]:[Conso_pr_et1]],Form_Autres_Usages[[BatID]:[BatID]],BB$6,Form_Autres_Usages[[Usage]:[Usage]],$C56)/1000 -> 0 | BC56: =SUMIFS(Form_Autres_Usages[[Conso_pr_et2]:[Conso_pr_et2]],Form_Autres_Usages[[BatID]:[BatID]],BC$6,Form_Autres_Usages[[Usage]:[Usage]],$C56)/1000 -> 0 | BD56: =SUMIFS(Form_Autres_Usages[[Conso_pr_et3]:[Conso_pr_et3]],Form_Autres_Usages[[BatID]:[BatID]],BD$6,Form_Autres_Usages[[Usage]:[Usage]],$C56)/1000 -> 0 | BE56: 0 | BG56: =SUMIFS(Form_Autres_Usages[[Conso_ex]:[Conso_ex]],Form_Autres_Usages[[BatID]:[BatID]],BG$6,Form_Autres_Usages[[Usage]:[Usage]],$C56)/1000 -> 0 | BH56: =SUMIFS(Form_Autres_Usages[[Conso_pr_et1]:[Conso_pr_et1]],Form_Autres_Usages[[BatID]:[BatID]],BH$6,Form_Autres_Usages[[Usage]:[Usage]],$C56)/1000 -> 0 | BI56: =SUMIFS(Form_Autres_Usages[[Conso_pr_et2]:[Conso_pr_et2]],Form_Autres_Usages[[BatID]:[BatID]],BI$6,Form_Autres_Usages[[Usage]:[Usage]],$C56)/1000 -> 0 | BJ56: =SUMIFS(Form_Autres_Usages[[Conso_pr_et3]:[Conso_pr_et3]],Form_Autres_Usages[[BatID]:[BatID]],BJ$6,Form_Autres_Usages[[Usage]:[Usage]],$C56)/1000 -> 0 | BK56: 0 | BM56: =SUMIFS(Form_Autres_Usages[[Conso_ex]:[Conso_ex]],Form_Autres_Usages[[BatID]:[BatID]],BM$6,Form_Autres_Usages[[Usage]:[Usage]],$C56)/1000 -> 0 | BN56: =SUMIFS(Form_Autres_Usages[[Conso_pr_et1]:[Conso_pr_et1]],Form_Autres_Usages[[BatID]:[BatID]],BN$6,Form_Autres_Usages[[Usage]:[Usage]],$C56)/1000 -> 0 | BO56: =SUMIFS(Form_Autres_Usages[[Conso_pr_et2]:[Conso_pr_et2]],Form_Autres_Usages[[BatID]:[BatID]],BO$6,Form_Autres_Usages[[Usage]:[Usage]],$C56)/1000 -> 0 | BP56: =SUMIFS(Form_Autres_Usages[[Conso_pr_et3]:[Conso_pr_et3]],Form_Autres_Usages[[BatID]:[BatID]],BP$6,Form_Autres_Usages[[Usage]:[Usage]],$C56)/1000 -> 0 | BQ56: 0 | BS56: =SUMIFS(Form_Autres_Usages[[Conso_ex]:[Conso_ex]],Form_Autres_Usages[[BatID]:[BatID]],BS$6,Form_Autres_Usages[[Usage]:[Usage]],$C56)/1000 -> 0 | BT56: =SUMIFS(Form_Autres_Usages[[Conso_pr_et1]:[Conso_pr_et1]],Form_Autres_Usages[[BatID]:[BatID]],BT$6,Form_Autres_Usages[[Usage]:[Usage]],$C56)/1000 -> 0 | BU56: =SUMIFS(Form_Autres_Usages[[Conso_pr_et2]:[Conso_pr_et2]],Form_Autres_Usages[[BatID]:[BatID]],BU$6,Form_Autres_Usages[[Usage]:[Usage]],$C56)/1000 -> 0 | BV56: =SUMIFS(Form_Autres_Usages[[Conso_pr_et3]:[Conso_pr_et3]],Form_Autres_Usages[[BatID]:[BatID]],BV$6,Form_Autres_Usages[[Usage]:[Usage]],$C56)/1000 -> 0 | BW56: 0
C57: 7.AUT-17 | F57: Autres usages - | G57: =SUMIFS($O57:$BX57,$O$7:$BX$7,G$7) -> 0 | H57: =SUMIFS($O57:$BX57,$O$7:$BX$7,H$7) -> 0 | I57: =SUMIFS($O57:$BX57,$O$7:$BX$7,I$7) -> 0 | J57: =SUMIFS($O57:$BX57,$O$7:$BX$7,J$7) -> 0 | K57: =SUMIFS($O57:$BX57,$O$7:$BX$7,K$7) -> 0 | Q57: =SUMIFS(Form_Autres_Usages[[Conso_ex]:[Conso_ex]],Form_Autres_Usages[[BatID]:[BatID]],Q$6,Form_Autres_Usages[[Usage]:[Usage]],$C57)/1000 -> 0 | R57: =SUMIFS(Form_Autres_Usages[[Conso_pr_et1]:[Conso_pr_et1]],Form_Autres_Usages[[BatID]:[BatID]],R$6,Form_Autres_Usages[[Usage]:[Usage]],$C57)/1000 -> 0 | S57: =SUMIFS(Form_Autres_Usages[[Conso_pr_et2]:[Conso_pr_et2]],Form_Autres_Usages[[BatID]:[BatID]],S$6,Form_Autres_Usages[[Usage]:[Usage]],$C57)/1000 -> 0 | T57: =SUMIFS(Form_Autres_Usages[[Conso_pr_et3]:[Conso_pr_et3]],Form_Autres_Usages[[BatID]:[BatID]],T$6,Form_Autres_Usages[[Usage]:[Usage]],$C57)/1000 -> 0 | U57: 0 | W57: =SUMIFS(Form_Autres_Usages[[Conso_ex]:[Conso_ex]],Form_Autres_Usages[[BatID]:[BatID]],W$6,Form_Autres_Usages[[Usage]:[Usage]],$C57)/1000 -> 0 | X57: =SUMIFS(Form_Autres_Usages[[Conso_pr_et1]:[Conso_pr_et1]],Form_Autres_Usages[[BatID]:[BatID]],X$6,Form_Autres_Usages[[Usage]:[Usage]],$C57)/1000 -> 0 | Y57: =SUMIFS(Form_Autres_Usages[[Conso_pr_et2]:[Conso_pr_et2]],Form_Autres_Usages[[BatID]:[BatID]],Y$6,Form_Autres_Usages[[Usage]:[Usage]],$C57)/1000 -> 0 | Z57: =SUMIFS(Form_Autres_Usages[[Conso_pr_et3]:[Conso_pr_et3]],Form_Autres_Usages[[BatID]:[BatID]],Z$6,Form_Autres_Usages[[Usage]:[Usage]],$C57)/1000 -> 0 | AA57: 0 | AC57: =SUMIFS(Form_Autres_Usages[[Conso_ex]:[Conso_ex]],Form_Autres_Usages[[BatID]:[BatID]],AC$6,Form_Autres_Usages[[Usage]:[Usage]],$C57)/1000 -> 0 | AD57: =SUMIFS(Form_Autres_Usages[[Conso_pr_et1]:[Conso_pr_et1]],Form_Autres_Usages[[BatID]:[BatID]],AD$6,Form_Autres_Usages[[Usage]:[Usage]],$C57)/1000 -> 0 | AE57: =SUMIFS(Form_Autres_Usages[[Conso_pr_et2]:[Conso_pr_et2]],Form_Autres_Usages[[BatID]:[BatID]],AE$6,Form_Autres_Usages[[Usage]:[Usage]],$C57)/1000 -> 0 | AF57: =SUMIFS(Form_Autres_Usages[[Conso_pr_et3]:[Conso_pr_et3]],Form_Autres_Usages[[BatID]:[BatID]],AF$6,Form_Autres_Usages[[Usage]:[Usage]],$C57)/1000 -> 0 | AG57: 0 | AI57: =SUMIFS(Form_Autres_Usages[[Conso_ex]:[Conso_ex]],Form_Autres_Usages[[BatID]:[BatID]],AI$6,Form_Autres_Usages[[Usage]:[Usage]],$C57)/1000 -> 0 | AJ57: =SUMIFS(Form_Autres_Usages[[Conso_pr_et1]:[Conso_pr_et1]],Form_Autres_Usages[[BatID]:[BatID]],AJ$6,Form_Autres_Usages[[Usage]:[Usage]],$C57)/1000 -> 0 | AK57: =SUMIFS(Form_Autres_Usages[[Conso_pr_et2]:[Conso_pr_et2]],Form_Autres_Usages[[BatID]:[BatID]],AK$6,Form_Autres_Usages[[Usage]:[Usage]],$C57)/1000 -> 0 | AL57: =SUMIFS(Form_Autres_Usages[[Conso_pr_et3]:[Conso_pr_et3]],Form_Autres_Usages[[BatID]:[BatID]],AL$6,Form_Autres_Usages[[Usage]:[Usage]],$C57)/1000 -> 0 | AM57: 0 | AO57: =SUMIFS(Form_Autres_Usages[[Conso_ex]:[Conso_ex]],Form_Autres_Usages[[BatID]:[BatID]],AO$6,Form_Autres_Usages[[Usage]:[Usage]],$C57)/1000 -> 0 | AP57: =SUMIFS(Form_Autres_Usages[[Conso_pr_et1]:[Conso_pr_et1]],Form_Autres_Usages[[BatID]:[BatID]],AP$6,Form_Autres_Usages[[Usage]:[Usage]],$C57)/1000 -> 0 | AQ57: =SUMIFS(Form_Autres_Usages[[Conso_pr_et2]:[Conso_pr_et2]],Form_Autres_Usages[[BatID]:[BatID]],AQ$6,Form_Autres_Usages[[Usage]:[Usage]],$C57)/1000 -> 0 | AR57: =SUMIFS(Form_Autres_Usages[[Conso_pr_et3]:[Conso_pr_et3]],Form_Autres_Usages[[BatID]:[BatID]],AR$6,Form_Autres_Usages[[Usage]:[Usage]],$C57)/1000 -> 0 | AS57: 0 | AU57: =SUMIFS(Form_Autres_Usages[[Conso_ex]:[Conso_ex]],Form_Autres_Usages[[BatID]:[BatID]],AU$6,Form_Autres_Usages[[Usage]:[Usage]],$C57)/1000 -> 0 | AV57: =SUMIFS(Form_Autres_Usages[[Conso_pr_et1]:[Conso_pr_et1]],Form_Autres_Usages[[BatID]:[BatID]],AV$6,Form_Autres_Usages[[Usage]:[Usage]],$C57)/1000 -> 0 | AW57: =SUMIFS(Form_Autres_Usages[[Conso_pr_et2]:[Conso_pr_et2]],Form_Autres_Usages[[BatID]:[BatID]],AW$6,Form_Autres_Usages[[Usage]:[Usage]],$C57)/1000 -> 0 | AX57: =SUMIFS(Form_Autres_Usages[[Conso_pr_et3]:[Conso_pr_et3]],Form_Autres_Usages[[BatID]:[BatID]],AX$6,Form_Autres_Usages[[Usage]:[Usage]],$C57)/1000 -> 0 | AY57: 0 | BA57: =SUMIFS(Form_Autres_Usages[[Conso_ex]:[Conso_ex]],Form_Autres_Usages[[BatID]:[BatID]],BA$6,Form_Autres_Usages[[Usage]:[Usage]],$C57)/1000 -> 0 | BB57: =SUMIFS(Form_Autres_Usages[[Conso_pr_et1]:[Conso_pr_et1]],Form_Autres_Usages[[BatID]:[BatID]],BB$6,Form_Autres_Usages[[Usage]:[Usage]],$C57)/1000 -> 0 | BC57: =SUMIFS(Form_Autres_Usages[[Conso_pr_et2]:[Conso_pr_et2]],Form_Autres_Usages[[BatID]:[BatID]],BC$6,Form_Autres_Usages[[Usage]:[Usage]],$C57)/1000 -> 0 | BD57: =SUMIFS(Form_Autres_Usages[[Conso_pr_et3]:[Conso_pr_et3]],Form_Autres_Usages[[BatID]:[BatID]],BD$6,Form_Autres_Usages[[Usage]:[Usage]],$C57)/1000 -> 0 | BE57: 0 | BG57: =SUMIFS(Form_Autres_Usages[[Conso_ex]:[Conso_ex]],Form_Autres_Usages[[BatID]:[BatID]],BG$6,Form_Autres_Usages[[Usage]:[Usage]],$C57)/1000 -> 0 | BH57: =SUMIFS(Form_Autres_Usages[[Conso_pr_et1]:[Conso_pr_et1]],Form_Autres_Usages[[BatID]:[BatID]],BH$6,Form_Autres_Usages[[Usage]:[Usage]],$C57)/1000 -> 0 | BI57: =SUMIFS(Form_Autres_Usages[[Conso_pr_et2]:[Conso_pr_et2]],Form_Autres_Usages[[BatID]:[BatID]],BI$6,Form_Autres_Usages[[Usage]:[Usage]],$C57)/1000 -> 0 | BJ57: =SUMIFS(Form_Autres_Usages[[Conso_pr_et3]:[Conso_pr_et3]],Form_Autres_Usages[[BatID]:[BatID]],BJ$6,Form_Autres_Usages[[Usage]:[Usage]],$C57)/1000 -> 0 | BK57: 0 | BM57: =SUMIFS(Form_Autres_Usages[[Conso_ex]:[Conso_ex]],Form_Autres_Usages[[BatID]:[BatID]],BM$6,Form_Autres_Usages[[Usage]:[Usage]],$C57)/1000 -> 0 | BN57: =SUMIFS(Form_Autres_Usages[[Conso_pr_et1]:[Conso_pr_et1]],Form_Autres_Usages[[BatID]:[BatID]],BN$6,Form_Autres_Usages[[Usage]:[Usage]],$C57)/1000 -> 0 | BO57: =SUMIFS(Form_Autres_Usages[[Conso_pr_et2]:[Conso_pr_et2]],Form_Autres_Usages[[BatID]:[BatID]],BO$6,Form_Autres_Usages[[Usage]:[Usage]],$C57)/1000 -> 0 | BP57: =SUMIFS(Form_Autres_Usages[[Conso_pr_et3]:[Conso_pr_et3]],Form_Autres_Usages[[BatID]:[BatID]],BP$6,Form_Autres_Usages[[Usage]:[Usage]],$C57)/1000 -> 0 | BQ57: 0 | BS57: =SUMIFS(Form_Autres_Usages[[Conso_ex]:[Conso_ex]],Form_Autres_Usages[[BatID]:[BatID]],BS$6,Form_Autres_Usages[[Usage]:[Usage]],$C57)/1000 -> 0 | BT57: =SUMIFS(Form_Autres_Usages[[Conso_pr_et1]:[Conso_pr_et1]],Form_Autres_Usages[[BatID]:[BatID]],BT$6,Form_Autres_Usages[[Usage]:[Usage]],$C57)/1000 -> 0 | BU57: =SUMIFS(Form_Autres_Usages[[Conso_pr_et2]:[Conso_pr_et2]],Form_Autres_Usages[[BatID]:[BatID]],BU$6,Form_Autres_Usages[[Usage]:[Usage]],$C57)/1000 -> 0 | BV57: =SUMIFS(Form_Autres_Usages[[Conso_pr_et3]:[Conso_pr_et3]],Form_Autres_Usages[[BatID]:[BatID]],BV$6,Form_Autres_Usages[[Usage]:[Usage]],$C57)/1000 -> 0 | BW57: 0
C58: 7.AUT-18 | F58: Autres usages - | G58: =SUMIFS($O58:$BX58,$O$7:$BX$7,G$7) -> 0 | H58: =SUMIFS($O58:$BX58,$O$7:$BX$7,H$7) -> 0 | I58: =SUMIFS($O58:$BX58,$O$7:$BX$7,I$7) -> 0 | J58: =SUMIFS($O58:$BX58,$O$7:$BX$7,J$7) -> 0 | K58: =SUMIFS($O58:$BX58,$O$7:$BX$7,K$7) -> 0 | Q58: =SUMIFS(Form_Autres_Usages[[Conso_ex]:[Conso_ex]],Form_Autres_Usages[[BatID]:[BatID]],Q$6,Form_Autres_Usages[[Usage]:[Usage]],$C58)/1000 -> 0 | R58: =SUMIFS(Form_Autres_Usages[[Conso_pr_et1]:[Conso_pr_et1]],Form_Autres_Usages[[BatID]:[BatID]],R$6,Form_Autres_Usages[[Usage]:[Usage]],$C58)/1000 -> 0 | S58: =SUMIFS(Form_Autres_Usages[[Conso_pr_et2]:[Conso_pr_et2]],Form_Autres_Usages[[BatID]:[BatID]],S$6,Form_Autres_Usages[[Usage]:[Usage]],$C58)/1000 -> 0 | T58: =SUMIFS(Form_Autres_Usages[[Conso_pr_et3]:[Conso_pr_et3]],Form_Autres_Usages[[BatID]:[BatID]],T$6,Form_Autres_Usages[[Usage]:[Usage]],$C58)/1000 -> 0 | U58: 0 | W58: =SUMIFS(Form_Autres_Usages[[Conso_ex]:[Conso_ex]],Form_Autres_Usages[[BatID]:[BatID]],W$6,Form_Autres_Usages[[Usage]:[Usage]],$C58)/1000 -> 0 | X58: =SUMIFS(Form_Autres_Usages[[Conso_pr_et1]:[Conso_pr_et1]],Form_Autres_Usages[[BatID]:[BatID]],X$6,Form_Autres_Usages[[Usage]:[Usage]],$C58)/1000 -> 0 | Y58: =SUMIFS(Form_Autres_Usages[[Conso_pr_et2]:[Conso_pr_et2]],Form_Autres_Usages[[BatID]:[BatID]],Y$6,Form_Autres_Usages[[Usage]:[Usage]],$C58)/1000 -> 0 | Z58: =SUMIFS(Form_Autres_Usages[[Conso_pr_et3]:[Conso_pr_et3]],Form_Autres_Usages[[BatID]:[BatID]],Z$6,Form_Autres_Usages[[Usage]:[Usage]],$C58)/1000 -> 0 | AA58: 0 | AC58: =SUMIFS(Form_Autres_Usages[[Conso_ex]:[Conso_ex]],Form_Autres_Usages[[BatID]:[BatID]],AC$6,Form_Autres_Usages[[Usage]:[Usage]],$C58)/1000 -> 0 | AD58: =SUMIFS(Form_Autres_Usages[[Conso_pr_et1]:[Conso_pr_et1]],Form_Autres_Usages[[BatID]:[BatID]],AD$6,Form_Autres_Usages[[Usage]:[Usage]],$C58)/1000 -> 0 | AE58: =SUMIFS(Form_Autres_Usages[[Conso_pr_et2]:[Conso_pr_et2]],Form_Autres_Usages[[BatID]:[BatID]],AE$6,Form_Autres_Usages[[Usage]:[Usage]],$C58)/1000 -> 0 | AF58: =SUMIFS(Form_Autres_Usages[[Conso_pr_et3]:[Conso_pr_et3]],Form_Autres_Usages[[BatID]:[BatID]],AF$6,Form_Autres_Usages[[Usage]:[Usage]],$C58)/1000 -> 0 | AG58: 0 | AI58: =SUMIFS(Form_Autres_Usages[[Conso_ex]:[Conso_ex]],Form_Autres_Usages[[BatID]:[BatID]],AI$6,Form_Autres_Usages[[Usage]:[Usage]],$C58)/1000 -> 0 | AJ58: =SUMIFS(Form_Autres_Usages[[Conso_pr_et1]:[Conso_pr_et1]],Form_Autres_Usages[[BatID]:[BatID]],AJ$6,Form_Autres_Usages[[Usage]:[Usage]],$C58)/1000 -> 0 | AK58: =SUMIFS(Form_Autres_Usages[[Conso_pr_et2]:[Conso_pr_et2]],Form_Autres_Usages[[BatID]:[BatID]],AK$6,Form_Autres_Usages[[Usage]:[Usage]],$C58)/1000 -> 0 | AL58: =SUMIFS(Form_Autres_Usages[[Conso_pr_et3]:[Conso_pr_et3]],Form_Autres_Usages[[BatID]:[BatID]],AL$6,Form_Autres_Usages[[Usage]:[Usage]],$C58)/1000 -> 0 | AM58: 0 | AO58: =SUMIFS(Form_Autres_Usages[[Conso_ex]:[Conso_ex]],Form_Autres_Usages[[BatID]:[BatID]],AO$6,Form_Autres_Usages[[Usage]:[Usage]],$C58)/1000 -> 0 | AP58: =SUMIFS(Form_Autres_Usages[[Conso_pr_et1]:[Conso_pr_et1]],Form_Autres_Usages[[BatID]:[BatID]],AP$6,Form_Autres_Usages[[Usage]:[Usage]],$C58)/1000 -> 0 | AQ58: =SUMIFS(Form_Autres_Usages[[Conso_pr_et2]:[Conso_pr_et2]],Form_Autres_Usages[[BatID]:[BatID]],AQ$6,Form_Autres_Usages[[Usage]:[Usage]],$C58)/1000 -> 0 | AR58: =SUMIFS(Form_Autres_Usages[[Conso_pr_et3]:[Conso_pr_et3]],Form_Autres_Usages[[BatID]:[BatID]],AR$6,Form_Autres_Usages[[Usage]:[Usage]],$C58)/1000 -> 0 | AS58: 0 | AU58: =SUMIFS(Form_Autres_Usages[[Conso_ex]:[Conso_ex]],Form_Autres_Usages[[BatID]:[BatID]],AU$6,Form_Autres_Usages[[Usage]:[Usage]],$C58)/1000 -> 0 | AV58: =SUMIFS(Form_Autres_Usages[[Conso_pr_et1]:[Conso_pr_et1]],Form_Autres_Usages[[BatID]:[BatID]],AV$6,Form_Autres_Usages[[Usage]:[Usage]],$C58)/1000 -> 0 | AW58: =SUMIFS(Form_Autres_Usages[[Conso_pr_et2]:[Conso_pr_et2]],Form_Autres_Usages[[BatID]:[BatID]],AW$6,Form_Autres_Usages[[Usage]:[Usage]],$C58)/1000 -> 0 | AX58: =SUMIFS(Form_Autres_Usages[[Conso_pr_et3]:[Conso_pr_et3]],Form_Autres_Usages[[BatID]:[BatID]],AX$6,Form_Autres_Usages[[Usage]:[Usage]],$C58)/1000 -> 0 | AY58: 0 | BA58: =SUMIFS(Form_Autres_Usages[[Conso_ex]:[Conso_ex]],Form_Autres_Usages[[BatID]:[BatID]],BA$6,Form_Autres_Usages[[Usage]:[Usage]],$C58)/1000 -> 0 | BB58: =SUMIFS(Form_Autres_Usages[[Conso_pr_et1]:[Conso_pr_et1]],Form_Autres_Usages[[BatID]:[BatID]],BB$6,Form_Autres_Usages[[Usage]:[Usage]],$C58)/1000 -> 0 | BC58: =SUMIFS(Form_Autres_Usages[[Conso_pr_et2]:[Conso_pr_et2]],Form_Autres_Usages[[BatID]:[BatID]],BC$6,Form_Autres_Usages[[Usage]:[Usage]],$C58)/1000 -> 0 | BD58: =SUMIFS(Form_Autres_Usages[[Conso_pr_et3]:[Conso_pr_et3]],Form_Autres_Usages[[BatID]:[BatID]],BD$6,Form_Autres_Usages[[Usage]:[Usage]],$C58)/1000 -> 0 | BE58: 0 | BG58: =SUMIFS(Form_Autres_Usages[[Conso_ex]:[Conso_ex]],Form_Autres_Usages[[BatID]:[BatID]],BG$6,Form_Autres_Usages[[Usage]:[Usage]],$C58)/1000 -> 0 | BH58: =SUMIFS(Form_Autres_Usages[[Conso_pr_et1]:[Conso_pr_et1]],Form_Autres_Usages[[BatID]:[BatID]],BH$6,Form_Autres_Usages[[Usage]:[Usage]],$C58)/1000 -> 0 | BI58: =SUMIFS(Form_Autres_Usages[[Conso_pr_et2]:[Conso_pr_et2]],Form_Autres_Usages[[BatID]:[BatID]],BI$6,Form_Autres_Usages[[Usage]:[Usage]],$C58)/1000 -> 0 | BJ58: =SUMIFS(Form_Autres_Usages[[Conso_pr_et3]:[Conso_pr_et3]],Form_Autres_Usages[[BatID]:[BatID]],BJ$6,Form_Autres_Usages[[Usage]:[Usage]],$C58)/1000 -> 0 | BK58: 0 | BM58: =SUMIFS(Form_Autres_Usages[[Conso_ex]:[Conso_ex]],Form_Autres_Usages[[BatID]:[BatID]],BM$6,Form_Autres_Usages[[Usage]:[Usage]],$C58)/1000 -> 0 | BN58: =SUMIFS(Form_Autres_Usages[[Conso_pr_et1]:[Conso_pr_et1]],Form_Autres_Usages[[BatID]:[BatID]],BN$6,Form_Autres_Usages[[Usage]:[Usage]],$C58)/1000 -> 0 | BO58: =SUMIFS(Form_Autres_Usages[[Conso_pr_et2]:[Conso_pr_et2]],Form_Autres_Usages[[BatID]:[BatID]],BO$6,Form_Autres_Usages[[Usage]:[Usage]],$C58)/1000 -> 0 | BP58: =SUMIFS(Form_Autres_Usages[[Conso_pr_et3]:[Conso_pr_et3]],Form_Autres_Usages[[BatID]:[BatID]],BP$6,Form_Autres_Usages[[Usage]:[Usage]],$C58)/1000 -> 0 | BQ58: 0 | BS58: =SUMIFS(Form_Autres_Usages[[Conso_ex]:[Conso_ex]],Form_Autres_Usages[[BatID]:[BatID]],BS$6,Form_Autres_Usages[[Usage]:[Usage]],$C58)/1000 -> 0 | BT58: =SUMIFS(Form_Autres_Usages[[Conso_pr_et1]:[Conso_pr_et1]],Form_Autres_Usages[[BatID]:[BatID]],BT$6,Form_Autres_Usages[[Usage]:[Usage]],$C58)/1000 -> 0 | BU58: =SUMIFS(Form_Autres_Usages[[Conso_pr_et2]:[Conso_pr_et2]],Form_Autres_Usages[[BatID]:[BatID]],BU$6,Form_Autres_Usages[[Usage]:[Usage]],$C58)/1000 -> 0 | BV58: =SUMIFS(Form_Autres_Usages[[Conso_pr_et3]:[Conso_pr_et3]],Form_Autres_Usages[[BatID]:[BatID]],BV$6,Form_Autres_Usages[[Usage]:[Usage]],$C58)/1000 -> 0 | BW58: 0
C59: 7.AUT-19 | F59: Autres usages - | G59: =SUMIFS($O59:$BX59,$O$7:$BX$7,G$7) -> 0 | H59: =SUMIFS($O59:$BX59,$O$7:$BX$7,H$7) -> 0 | I59: =SUMIFS($O59:$BX59,$O$7:$BX$7,I$7) -> 0 | J59: =SUMIFS($O59:$BX59,$O$7:$BX$7,J$7) -> 0 | K59: =SUMIFS($O59:$BX59,$O$7:$BX$7,K$7) -> 0 | Q59: =SUMIFS(Form_Autres_Usages[[Conso_ex]:[Conso_ex]],Form_Autres_Usages[[BatID]:[BatID]],Q$6,Form_Autres_Usages[[Usage]:[Usage]],$C59)/1000 -> 0 | R59: =SUMIFS(Form_Autres_Usages[[Conso_pr_et1]:[Conso_pr_et1]],Form_Autres_Usages[[BatID]:[BatID]],R$6,Form_Autres_Usages[[Usage]:[Usage]],$C59)/1000 -> 0 | S59: =SUMIFS(Form_Autres_Usages[[Conso_pr_et2]:[Conso_pr_et2]],Form_Autres_Usages[[BatID]:[BatID]],S$6,Form_Autres_Usages[[Usage]:[Usage]],$C59)/1000 -> 0 | T59: =SUMIFS(Form_Autres_Usages[[Conso_pr_et3]:[Conso_pr_et3]],Form_Autres_Usages[[BatID]:[BatID]],T$6,Form_Autres_Usages[[Usage]:[Usage]],$C59)/1000 -> 0 | U59: 0 | W59: =SUMIFS(Form_Autres_Usages[[Conso_ex]:[Conso_ex]],Form_Autres_Usages[[BatID]:[BatID]],W$6,Form_Autres_Usages[[Usage]:[Usage]],$C59)/1000 -> 0 | X59: =SUMIFS(Form_Autres_Usages[[Conso_pr_et1]:[Conso_pr_et1]],Form_Autres_Usages[[BatID]:[BatID]],X$6,Form_Autres_Usages[[Usage]:[Usage]],$C59)/1000 -> 0 | Y59: =SUMIFS(Form_Autres_Usages[[Conso_pr_et2]:[Conso_pr_et2]],Form_Autres_Usages[[BatID]:[BatID]],Y$6,Form_Autres_Usages[[Usage]:[Usage]],$C59)/1000 -> 0 | Z59: =SUMIFS(Form_Autres_Usages[[Conso_pr_et3]:[Conso_pr_et3]],Form_Autres_Usages[[BatID]:[BatID]],Z$6,Form_Autres_Usages[[Usage]:[Usage]],$C59)/1000 -> 0 | AA59: 0 | AC59: =SUMIFS(Form_Autres_Usages[[Conso_ex]:[Conso_ex]],Form_Autres_Usages[[BatID]:[BatID]],AC$6,Form_Autres_Usages[[Usage]:[Usage]],$C59)/1000 -> 0 | AD59: =SUMIFS(Form_Autres_Usages[[Conso_pr_et1]:[Conso_pr_et1]],Form_Autres_Usages[[BatID]:[BatID]],AD$6,Form_Autres_Usages[[Usage]:[Usage]],$C59)/1000 -> 0 | AE59: =SUMIFS(Form_Autres_Usages[[Conso_pr_et2]:[Conso_pr_et2]],Form_Autres_Usages[[BatID]:[BatID]],AE$6,Form_Autres_Usages[[Usage]:[Usage]],$C59)/1000 -> 0 | AF59: =SUMIFS(Form_Autres_Usages[[Conso_pr_et3]:[Conso_pr_et3]],Form_Autres_Usages[[BatID]:[BatID]],AF$6,Form_Autres_Usages[[Usage]:[Usage]],$C59)/1000 -> 0 | AG59: 0 | AI59: =SUMIFS(Form_Autres_Usages[[Conso_ex]:[Conso_ex]],Form_Autres_Usages[[BatID]:[BatID]],AI$6,Form_Autres_Usages[[Usage]:[Usage]],$C59)/1000 -> 0 | AJ59: =SUMIFS(Form_Autres_Usages[[Conso_pr_et1]:[Conso_pr_et1]],Form_Autres_Usages[[BatID]:[BatID]],AJ$6,Form_Autres_Usages[[Usage]:[Usage]],$C59)/1000 -> 0 | AK59: =SUMIFS(Form_Autres_Usages[[Conso_pr_et2]:[Conso_pr_et2]],Form_Autres_Usages[[BatID]:[BatID]],AK$6,Form_Autres_Usages[[Usage]:[Usage]],$C59)/1000 -> 0 | AL59: =SUMIFS(Form_Autres_Usages[[Conso_pr_et3]:[Conso_pr_et3]],Form_Autres_Usages[[BatID]:[BatID]],AL$6,Form_Autres_Usages[[Usage]:[Usage]],$C59)/1000 -> 0 | AM59: 0 | AO59: =SUMIFS(Form_Autres_Usages[[Conso_ex]:[Conso_ex]],Form_Autres_Usages[[BatID]:[BatID]],AO$6,Form_Autres_Usages[[Usage]:[Usage]],$C59)/1000 -> 0 | AP59: =SUMIFS(Form_Autres_Usages[[Conso_pr_et1]:[Conso_pr_et1]],Form_Autres_Usages[[BatID]:[BatID]],AP$6,Form_Autres_Usages[[Usage]:[Usage]],$C59)/1000 -> 0 | AQ59: =SUMIFS(Form_Autres_Usages[[Conso_pr_et2]:[Conso_pr_et2]],Form_Autres_Usages[[BatID]:[BatID]],AQ$6,Form_Autres_Usages[[Usage]:[Usage]],$C59)/1000 -> 0 | AR59: =SUMIFS(Form_Autres_Usages[[Conso_pr_et3]:[Conso_pr_et3]],Form_Autres_Usages[[BatID]:[BatID]],AR$6,Form_Autres_Usages[[Usage]:[Usage]],$C59)/1000 -> 0 | AS59: 0 | AU59: =SUMIFS(Form_Autres_Usages[[Conso_ex]:[Conso_ex]],Form_Autres_Usages[[BatID]:[BatID]],AU$6,Form_Autres_Usages[[Usage]:[Usage]],$C59)/1000 -> 0 | AV59: =SUMIFS(Form_Autres_Usages[[Conso_pr_et1]:[Conso_pr_et1]],Form_Autres_Usages[[BatID]:[BatID]],AV$6,Form_Autres_Usages[[Usage]:[Usage]],$C59)/1000 -> 0 | AW59: =SUMIFS(Form_Autres_Usages[[Conso_pr_et2]:[Conso_pr_et2]],Form_Autres_Usages[[BatID]:[BatID]],AW$6,Form_Autres_Usages[[Usage]:[Usage]],$C59)/1000 -> 0 | AX59: =SUMIFS(Form_Autres_Usages[[Conso_pr_et3]:[Conso_pr_et3]],Form_Autres_Usages[[BatID]:[BatID]],AX$6,Form_Autres_Usages[[Usage]:[Usage]],$C59)/1000 -> 0 | AY59: 0 | BA59: =SUMIFS(Form_Autres_Usages[[Conso_ex]:[Conso_ex]],Form_Autres_Usages[[BatID]:[BatID]],BA$6,Form_Autres_Usages[[Usage]:[Usage]],$C59)/1000 -> 0 | BB59: =SUMIFS(Form_Autres_Usages[[Conso_pr_et1]:[Conso_pr_et1]],Form_Autres_Usages[[BatID]:[BatID]],BB$6,Form_Autres_Usages[[Usage]:[Usage]],$C59)/1000 -> 0 | BC59: =SUMIFS(Form_Autres_Usages[[Conso_pr_et2]:[Conso_pr_et2]],Form_Autres_Usages[[BatID]:[BatID]],BC$6,Form_Autres_Usages[[Usage]:[Usage]],$C59)/1000 -> 0 | BD59: =SUMIFS(Form_Autres_Usages[[Conso_pr_et3]:[Conso_pr_et3]],Form_Autres_Usages[[BatID]:[BatID]],BD$6,Form_Autres_Usages[[Usage]:[Usage]],$C59)/1000 -> 0 | BE59: 0 | BG59: =SUMIFS(Form_Autres_Usages[[Conso_ex]:[Conso_ex]],Form_Autres_Usages[[BatID]:[BatID]],BG$6,Form_Autres_Usages[[Usage]:[Usage]],$C59)/1000 -> 0 | BH59: =SUMIFS(Form_Autres_Usages[[Conso_pr_et1]:[Conso_pr_et1]],Form_Autres_Usages[[BatID]:[BatID]],BH$6,Form_Autres_Usages[[Usage]:[Usage]],$C59)/1000 -> 0 | BI59: =SUMIFS(Form_Autres_Usages[[Conso_pr_et2]:[Conso_pr_et2]],Form_Autres_Usages[[BatID]:[BatID]],BI$6,Form_Autres_Usages[[Usage]:[Usage]],$C59)/1000 -> 0 | BJ59: =SUMIFS(Form_Autres_Usages[[Conso_pr_et3]:[Conso_pr_et3]],Form_Autres_Usages[[BatID]:[BatID]],BJ$6,Form_Autres_Usages[[Usage]:[Usage]],$C59)/1000 -> 0 | BK59: 0 | BM59: =SUMIFS(Form_Autres_Usages[[Conso_ex]:[Conso_ex]],Form_Autres_Usages[[BatID]:[BatID]],BM$6,Form_Autres_Usages[[Usage]:[Usage]],$C59)/1000 -> 0 | BN59: =SUMIFS(Form_Autres_Usages[[Conso_pr_et1]:[Conso_pr_et1]],Form_Autres_Usages[[BatID]:[BatID]],BN$6,Form_Autres_Usages[[Usage]:[Usage]],$C59)/1000 -> 0 | BO59: =SUMIFS(Form_Autres_Usages[[Conso_pr_et2]:[Conso_pr_et2]],Form_Autres_Usages[[BatID]:[BatID]],BO$6,Form_Autres_Usages[[Usage]:[Usage]],$C59)/1000 -> 0 | BP59: =SUMIFS(Form_Autres_Usages[[Conso_pr_et3]:[Conso_pr_et3]],Form_Autres_Usages[[BatID]:[BatID]],BP$6,Form_Autres_Usages[[Usage]:[Usage]],$C59)/1000 -> 0 | BQ59: 0 | BS59: =SUMIFS(Form_Autres_Usages[[Conso_ex]:[Conso_ex]],Form_Autres_Usages[[BatID]:[BatID]],BS$6,Form_Autres_Usages[[Usage]:[Usage]],$C59)/1000 -> 0 | BT59: =SUMIFS(Form_Autres_Usages[[Conso_pr_et1]:[Conso_pr_et1]],Form_Autres_Usages[[BatID]:[BatID]],BT$6,Form_Autres_Usages[[Usage]:[Usage]],$C59)/1000 -> 0 | BU59: =SUMIFS(Form_Autres_Usages[[Conso_pr_et2]:[Conso_pr_et2]],Form_Autres_Usages[[BatID]:[BatID]],BU$6,Form_Autres_Usages[[Usage]:[Usage]],$C59)/1000 -> 0 | BV59: =SUMIFS(Form_Autres_Usages[[Conso_pr_et3]:[Conso_pr_et3]],Form_Autres_Usages[[BatID]:[BatID]],BV$6,Form_Autres_Usages[[Usage]:[Usage]],$C59)/1000 -> 0 | BW59: 0
C60: 7.AUT-20 | F60: Autres usages - | G60: =SUMIFS($O60:$BX60,$O$7:$BX$7,G$7) -> 0 | H60: =SUMIFS($O60:$BX60,$O$7:$BX$7,H$7) -> 0 | I60: =SUMIFS($O60:$BX60,$O$7:$BX$7,I$7) -> 0 | J60: =SUMIFS($O60:$BX60,$O$7:$BX$7,J$7) -> 0 | K60: =SUMIFS($O60:$BX60,$O$7:$BX$7,K$7) -> 0 | Q60: =SUMIFS(Form_Autres_Usages[[Conso_ex]:[Conso_ex]],Form_Autres_Usages[[BatID]:[BatID]],Q$6,Form_Autres_Usages[[Usage]:[Usage]],$C60)/1000 -> 0 | R60: =SUMIFS(Form_Autres_Usages[[Conso_pr_et1]:[Conso_pr_et1]],Form_Autres_Usages[[BatID]:[BatID]],R$6,Form_Autres_Usages[[Usage]:[Usage]],$C60)/1000 -> 0 | S60: =SUMIFS(Form_Autres_Usages[[Conso_pr_et2]:[Conso_pr_et2]],Form_Autres_Usages[[BatID]:[BatID]],S$6,Form_Autres_Usages[[Usage]:[Usage]],$C60)/1000 -> 0 | T60: =SUMIFS(Form_Autres_Usages[[Conso_pr_et3]:[Conso_pr_et3]],Form_Autres_Usages[[BatID]:[BatID]],T$6,Form_Autres_Usages[[Usage]:[Usage]],$C60)/1000 -> 0 | U60: 0 | W60: =SUMIFS(Form_Autres_Usages[[Conso_ex]:[Conso_ex]],Form_Autres_Usages[[BatID]:[BatID]],W$6,Form_Autres_Usages[[Usage]:[Usage]],$C60)/1000 -> 0 | X60: =SUMIFS(Form_Autres_Usages[[Conso_pr_et1]:[Conso_pr_et1]],Form_Autres_Usages[[BatID]:[BatID]],X$6,Form_Autres_Usages[[Usage]:[Usage]],$C60)/1000 -> 0 | Y60: =SUMIFS(Form_Autres_Usages[[Conso_pr_et2]:[Conso_pr_et2]],Form_Autres_Usages[[BatID]:[BatID]],Y$6,Form_Autres_Usages[[Usage]:[Usage]],$C60)/1000 -> 0 | Z60: =SUMIFS(Form_Autres_Usages[[Conso_pr_et3]:[Conso_pr_et3]],Form_Autres_Usages[[BatID]:[BatID]],Z$6,Form_Autres_Usages[[Usage]:[Usage]],$C60)/1000 -> 0 | AA60: 0 | AC60: =SUMIFS(Form_Autres_Usages[[Conso_ex]:[Conso_ex]],Form_Autres_Usages[[BatID]:[BatID]],AC$6,Form_Autres_Usages[[Usage]:[Usage]],$C60)/1000 -> 0 | AD60: =SUMIFS(Form_Autres_Usages[[Conso_pr_et1]:[Conso_pr_et1]],Form_Autres_Usages[[BatID]:[BatID]],AD$6,Form_Autres_Usages[[Usage]:[Usage]],$C60)/1000 -> 0 | AE60: =SUMIFS(Form_Autres_Usages[[Conso_pr_et2]:[Conso_pr_et2]],Form_Autres_Usages[[BatID]:[BatID]],AE$6,Form_Autres_Usages[[Usage]:[Usage]],$C60)/1000 -> 0 | AF60: =SUMIFS(Form_Autres_Usages[[Conso_pr_et3]:[Conso_pr_et3]],Form_Autres_Usages[[BatID]:[BatID]],AF$6,Form_Autres_Usages[[Usage]:[Usage]],$C60)/1000 -> 0 | AG60: 0 | AI60: =SUMIFS(Form_Autres_Usages[[Conso_ex]:[Conso_ex]],Form_Autres_Usages[[BatID]:[BatID]],AI$6,Form_Autres_Usages[[Usage]:[Usage]],$C60)/1000 -> 0 | AJ60: =SUMIFS(Form_Autres_Usages[[Conso_pr_et1]:[Conso_pr_et1]],Form_Autres_Usages[[BatID]:[BatID]],AJ$6,Form_Autres_Usages[[Usage]:[Usage]],$C60)/1000 -> 0 | AK60: =SUMIFS(Form_Autres_Usages[[Conso_pr_et2]:[Conso_pr_et2]],Form_Autres_Usages[[BatID]:[BatID]],AK$6,Form_Autres_Usages[[Usage]:[Usage]],$C60)/1000 -> 0 | AL60: =SUMIFS(Form_Autres_Usages[[Conso_pr_et3]:[Conso_pr_et3]],Form_Autres_Usages[[BatID]:[BatID]],AL$6,Form_Autres_Usages[[Usage]:[Usage]],$C60)/1000 -> 0 | AM60: 0 | AO60: =SUMIFS(Form_Autres_Usages[[Conso_ex]:[Conso_ex]],Form_Autres_Usages[[BatID]:[BatID]],AO$6,Form_Autres_Usages[[Usage]:[Usage]],$C60)/1000 -> 0 | AP60: =SUMIFS(Form_Autres_Usages[[Conso_pr_et1]:[Conso_pr_et1]],Form_Autres_Usages[[BatID]:[BatID]],AP$6,Form_Autres_Usages[[Usage]:[Usage]],$C60)/1000 -> 0 | AQ60: =SUMIFS(Form_Autres_Usages[[Conso_pr_et2]:[Conso_pr_et2]],Form_Autres_Usages[[BatID]:[BatID]],AQ$6,Form_Autres_Usages[[Usage]:[Usage]],$C60)/1000 -> 0 | AR60: =SUMIFS(Form_Autres_Usages[[Conso_pr_et3]:[Conso_pr_et3]],Form_Autres_Usages[[BatID]:[BatID]],AR$6,Form_Autres_Usages[[Usage]:[Usage]],$C60)/1000 -> 0 | AS60: 0 | AU60: =SUMIFS(Form_Autres_Usages[[Conso_ex]:[Conso_ex]],Form_Autres_Usages[[BatID]:[BatID]],AU$6,Form_Autres_Usages[[Usage]:[Usage]],$C60)/1000 -> 0 | AV60: =SUMIFS(Form_Autres_Usages[[Conso_pr_et1]:[Conso_pr_et1]],Form_Autres_Usages[[BatID]:[BatID]],AV$6,Form_Autres_Usages[[Usage]:[Usage]],$C60)/1000 -> 0 | AW60: =SUMIFS(Form_Autres_Usages[[Conso_pr_et2]:[Conso_pr_et2]],Form_Autres_Usages[[BatID]:[BatID]],AW$6,Form_Autres_Usages[[Usage]:[Usage]],$C60)/1000 -> 0 | AX60: =SUMIFS(Form_Autres_Usages[[Conso_pr_et3]:[Conso_pr_et3]],Form_Autres_Usages[[BatID]:[BatID]],AX$6,Form_Autres_Usages[[Usage]:[Usage]],$C60)/1000 -> 0 | AY60: 0 | BA60: =SUMIFS(Form_Autres_Usages[[Conso_ex]:[Conso_ex]],Form_Autres_Usages[[BatID]:[BatID]],BA$6,Form_Autres_Usages[[Usage]:[Usage]],$C60)/1000 -> 0 | BB60: =SUMIFS(Form_Autres_Usages[[Conso_pr_et1]:[Conso_pr_et1]],Form_Autres_Usages[[BatID]:[BatID]],BB$6,Form_Autres_Usages[[Usage]:[Usage]],$C60)/1000 -> 0 | BC60: =SUMIFS(Form_Autres_Usages[[Conso_pr_et2]:[Conso_pr_et2]],Form_Autres_Usages[[BatID]:[BatID]],BC$6,Form_Autres_Usages[[Usage]:[Usage]],$C60)/1000 -> 0 | BD60: =SUMIFS(Form_Autres_Usages[[Conso_pr_et3]:[Conso_pr_et3]],Form_Autres_Usages[[BatID]:[BatID]],BD$6,Form_Autres_Usages[[Usage]:[Usage]],$C60)/1000 -> 0 | BE60: 0 | BG60: =SUMIFS(Form_Autres_Usages[[Conso_ex]:[Conso_ex]],Form_Autres_Usages[[BatID]:[BatID]],BG$6,Form_Autres_Usages[[Usage]:[Usage]],$C60)/1000 -> 0 | BH60: =SUMIFS(Form_Autres_Usages[[Conso_pr_et1]:[Conso_pr_et1]],Form_Autres_Usages[[BatID]:[BatID]],BH$6,Form_Autres_Usages[[Usage]:[Usage]],$C60)/1000 -> 0 | BI60: =SUMIFS(Form_Autres_Usages[[Conso_pr_et2]:[Conso_pr_et2]],Form_Autres_Usages[[BatID]:[BatID]],BI$6,Form_Autres_Usages[[Usage]:[Usage]],$C60)/1000 -> 0 | BJ60: =SUMIFS(Form_Autres_Usages[[Conso_pr_et3]:[Conso_pr_et3]],Form_Autres_Usages[[BatID]:[BatID]],BJ$6,Form_Autres_Usages[[Usage]:[Usage]],$C60)/1000 -> 0 | BK60: 0 | BM60: =SUMIFS(Form_Autres_Usages[[Conso_ex]:[Conso_ex]],Form_Autres_Usages[[BatID]:[BatID]],BM$6,Form_Autres_Usages[[Usage]:[Usage]],$C60)/1000 -> 0 | BN60: =SUMIFS(Form_Autres_Usages[[Conso_pr_et1]:[Conso_pr_et1]],Form_Autres_Usages[[BatID]:[BatID]],BN$6,Form_Autres_Usages[[Usage]:[Usage]],$C60)/1000 -> 0 | BO60: =SUMIFS(Form_Autres_Usages[[Conso_pr_et2]:[Conso_pr_et2]],Form_Autres_Usages[[BatID]:[BatID]],BO$6,Form_Autres_Usages[[Usage]:[Usage]],$C60)/1000 -> 0 | BP60: =SUMIFS(Form_Autres_Usages[[Conso_pr_et3]:[Conso_pr_et3]],Form_Autres_Usages[[BatID]:[BatID]],BP$6,Form_Autres_Usages[[Usage]:[Usage]],$C60)/1000 -> 0 | BQ60: 0 | BS60: =SUMIFS(Form_Autres_Usages[[Conso_ex]:[Conso_ex]],Form_Autres_Usages[[BatID]:[BatID]],BS$6,Form_Autres_Usages[[Usage]:[Usage]],$C60)/1000 -> 0 | BT60: =SUMIFS(Form_Autres_Usages[[Conso_pr_et1]:[Conso_pr_et1]],Form_Autres_Usages[[BatID]:[BatID]],BT$6,Form_Autres_Usages[[Usage]:[Usage]],$C60)/1000 -> 0 | BU60: =SUMIFS(Form_Autres_Usages[[Conso_pr_et2]:[Conso_pr_et2]],Form_Autres_Usages[[BatID]:[BatID]],BU$6,Form_Autres_Usages[[Usage]:[Usage]],$C60)/1000 -> 0 | BV60: =SUMIFS(Form_Autres_Usages[[Conso_pr_et3]:[Conso_pr_et3]],Form_Autres_Usages[[BatID]:[BatID]],BV$6,Form_Autres_Usages[[Usage]:[Usage]],$C60)/1000 -> 0 | BW60: 0
F62: TOTAL APRES TRAVAUX [MWh/an] | G62: =SUMIFS($O62:$BX62,$O$7:$BX$7,G$7) -> 324.0479003 | H62: =SUMIFS($O62:$BX62,$O$7:$BX$7,H$7) -> 224.3510746 | I62: =SUMIFS($O62:$BX62,$O$7:$BX$7,I$7) -> 243.5737686 | J62: =SUMIFS($O62:$BX62,$O$7:$BX$7,J$7) -> 218.109903 | K62: =SUMIFS($O62:$BX62,$O$7:$BX$7,K$7) -> 96.669696 | Q62: =Q9+Q17+Q27+Q30+Q32+Q36+Q40 -> 113.4952225 | R62: =R9+R17+R27+R30+R32+R36+R40 -> 44.16600686 | S62: =S9+S17+S27+S30+S32+S36+S40 -> 63.38870085 | T62: =T9+T17+T27+T30+T32+T36+T40 -> 58.51080085 | U62: =U9+U17+U27+U30+U32+U36+U40 -> 51.41737646 | W62: =W9+W17+W27+W30+W32+W36+W40 -> 210.5526778 | X62: =X9+X17+X27+X30+X32+X36+X40 -> 180.1850677 | Y62: =Y9+Y17+Y27+Y30+Y32+Y36+Y40 -> 180.1850677 | Z62: =Z9+Z17+Z27+Z30+Z32+Z36+Z40 -> 159.5991021 | AA62: =AA9+AA17+AA27+AA30+AA32+AA36+AA40 -> 45.25231955 | AC62: =AC9+AC17+AC27+AC30+AC32+AC36+AC40 -> 0 | AD62: =AD9+AD17+AD27+AD30+AD32+AD36+AD40 -> 0 | AE62: =AE9+AE17+AE27+AE30+AE32+AE36+AE40 -> 0 | AF62: =AF9+AF17+AF27+AF30+AF32+AF36+AF40 -> 0 | AG62: =AG9+AG17+AG27+AG30+AG32+AG36+AG40 -> 0 | AI62: =AI9+AI17+AI27+AI30+AI32+AI36+AI40 -> 0 | AJ62: =AJ9+AJ17+AJ27+AJ30+AJ32+AJ36+AJ40 -> 0 | AK62: =AK9+AK17+AK27+AK30+AK32+AK36+AK40 -> 0 | AL62: =AL9+AL17+AL27+AL30+AL32+AL36+AL40 -> 0 | AM62: =AM9+AM17+AM27+AM30+AM32+AM36+AM40 -> 0 | AO62: =AO9+AO17+AO27+AO30+AO32+AO36+AO40 -> 0 | AP62: =AP9+AP17+AP27+AP30+AP32+AP36+AP40 -> 0 | AQ62: =AQ9+AQ17+AQ27+AQ30+AQ32+AQ36+AQ40 -> 0 | AR62: =AR9+AR17+AR27+AR30+AR32+AR36+AR40 -> 0 | AS62: =AS9+AS17+AS27+AS30+AS32+AS36+AS40 -> 0 | AU62: =AU9+AU17+AU27+AU30+AU32+AU36+AU40 -> 0 | AV62: =AV9+AV17+AV27+AV30+AV32+AV36+AV40 -> 0 | AW62: =AW9+AW17+AW27+AW30+AW32+AW36+AW40 -> 0 | AX62: =AX9+AX17+AX27+AX30+AX32+AX36+AX40 -> 0 | AY62: =AY9+AY17+AY27+AY30+AY32+AY36+AY40 -> 0 | BA62: =BA9+BA17+BA27+BA30+BA32+BA36+BA40 -> 0 | BB62: =BB9+BB17+BB27+BB30+BB32+BB36+BB40 -> 0 | BC62: =BC9+BC17+BC27+BC30+BC32+BC36+BC40 -> 0 | BD62: =BD9+BD17+BD27+BD30+BD32+BD36+BD40 -> 0 | BE62: =BE9+BE17+BE27+BE30+BE32+BE36+BE40 -> 0 | BG62: =BG9+BG17+BG27+BG30+BG32+BG36+BG40 -> 0 | BH62: =BH9+BH17+BH27+BH30+BH32+BH36+BH40 -> 0 | BI62: =BI9+BI17+BI27+BI30+BI32+BI36+BI40 -> 0 | BJ62: =BJ9+BJ17+BJ27+BJ30+BJ32+BJ36+BJ40 -> 0 | BK62: =BK9+BK17+BK27+BK30+BK32+BK36+BK40 -> 0 | BM62: =BM9+BM17+BM27+BM30+BM32+BM36+BM40 -> 0 | BN62: =BN9+BN17+BN27+BN30+BN32+BN36+BN40 -> 0 | BO62: =BO9+BO17+BO27+BO30+BO32+BO36+BO40 -> 0 | BP62: =BP9+BP17+BP27+BP30+BP32+BP36+BP40 -> 0 | BQ62: =BQ9+BQ17+BQ27+BQ30+BQ32+BQ36+BQ40 -> 0 | BS62: =BS9+BS17+BS27+BS30+BS32+BS36+BS40 -> 0 | BT62: =BT9+BT17+BT27+BT30+BT32+BT36+BT40 -> 0 | BU62: =BU9+BU17+BU27+BU30+BU32+BU36+BU40 -> 0 | BV62: =BV9+BV17+BV27+BV30+BV32+BV36+BV40 -> 0 | BW62: =BW9+BW17+BW27+BW30+BW32+BW36+BW40 -> 0
F63: TOTAL AVANT TRAVAUX - SIT. MODIFIEE [MWh/an] | G63: =SUMIFS($O63:$BX63,$O$7:$BX$7,G$7) -> 0 | H63: =SUMIFS($O63:$BX63,$O$7:$BX$7,H$7) -> 324.1285704 | I63: =SUMIFS($O63:$BX63,$O$7:$BX$7,I$7) -> 347.0415866 | J63: =SUMIFS($O63:$BX63,$O$7:$BX$7,J$7) -> 346.4215866 | K63: =SUMIFS($O63:$BX63,$O$7:$BX$7,K$7) -> 0 | Q63: =Q511 -> 0 | R63: =R511 -> 113.57378 | S63: =S511 -> 136.4867962 | T63: =T511 -> 135.8667962 | U63: =U511 -> 0 | W63: =W511 -> 0 | X63: =X511 -> 210.5547904 | Y63: =Y511 -> 210.5547904 | Z63: =Z511 -> 210.5547904 | AA63: =AA511 -> 0 | AC63: =AC511 -> 0 | AD63: =AD511 -> 0 | AE63: =AE511 -> 0 | AF63: =AF511 -> 0 | AG63: =AG511 -> 0 | AI63: =AI511 -> 0 | AJ63: =AJ511 -> 0 | AK63: =AK511 -> 0 | AL63: =AL511 -> 0 | AM63: =AM511 -> 0 | AO63: =AO511 -> 0 | AP63: =AP511 -> 0 | AQ63: =AQ511 -> 0 | AR63: =AR511 -> 0 | AS63: =AS511 -> 0 | AU63: =AU511 -> 0 | AV63: =AV511 -> 0 | AW63: =AW511 -> 0 | AX63: =AX511 -> 0 | AY63: =AY511 -> 0 | BA63: =BA511 -> 0 | BB63: =BB511 -> 0 | BC63: =BC511 -> 0 | BD63: =BD511 -> 0 | BE63: =BE511 -> 0 | BG63: =BG511 -> 0 | BH63: =BH511 -> 0 | BI63: =BI511 -> 0 | BJ63: =BJ511 -> 0 | BK63: =BK511 -> 0 | BM63: =BM511 -> 0 | BN63: =BN511 -> 0 | BO63: =BO511 -> 0 | BP63: =BP511 -> 0 | BQ63: =BQ511 -> 0 | BS63: =BS511 -> 0 | BT63: =BT511 -> 0 | BU63: =BU511 -> 0 | BV63: =BV511 -> 0 | BW63: =BW511 -> 0
F65: Surface de plancher chauffé [m²] | G65: =SUMIFS($O65:$BX65,$O$7:$BX$7,G$7) -> 2475 | H65: =SUMIFS($O65:$BX65,$O$7:$BX$7,H$7) -> 2475 | I65: =SUMIFS($O65:$BX65,$O$7:$BX$7,I$7) -> 2475 | J65: =SUMIFS($O65:$BX65,$O$7:$BX$7,J$7) -> 2475 | K65: =SUMIFS($O65:$BX65,$O$7:$BX$7,K$7) -> 2475 | Q65: =IFERROR(INDEX(Form_Bat[[Ach_ex_un]:[Ach_ex_un]],MATCH(Q6,Form_Bat[[BatID]:[BatID]],0)),"") -> 975 | R65: =IFERROR(INDEX(Form_Bat[[A_ch_et1]:[A_ch_et1]],MATCH(R6,Form_Bat[[BatID]:[BatID]],0)),"") -> 975 | S65: =IFERROR(INDEX(Form_Bat[[A_ch_et2]:[A_ch_et2]],MATCH(S6,Form_Bat[[BatID]:[BatID]],0)),"") -> 975 | T65: =IFERROR(INDEX(Form_Bat[[A_ch_et3]:[A_ch_et3]],MATCH(S6,Form_Bat[[BatID]:[BatID]],0)),"") -> 975 | U65: =IFERROR(INDEX(Form_Bat[[A_ch_et3]:[A_ch_et3]],MATCH(U6,Form_Bat[[BatID]:[BatID]],0)),"") -> 975 | W65: =IFERROR(INDEX(Form_Bat[[Ach_ex_un]:[Ach_ex_un]],MATCH(W6,Form_Bat[[BatID]:[BatID]],0)),"") -> 1500 | X65: =IFERROR(INDEX(Form_Bat[[A_ch_et1]:[A_ch_et1]],MATCH(X6,Form_Bat[[BatID]:[BatID]],0)),"") -> 1500 | Y65: =IFERROR(INDEX(Form_Bat[[A_ch_et2]:[A_ch_et2]],MATCH(Y6,Form_Bat[[BatID]:[BatID]],0)),"") -> 1500 | Z65: =IFERROR(INDEX(Form_Bat[[A_ch_et3]:[A_ch_et3]],MATCH(Y6,Form_Bat[[BatID]:[BatID]],0)),"") -> 1500 | AA65: =IFERROR(INDEX(Form_Bat[[A_ch_et3]:[A_ch_et3]],MATCH(AA6,Form_Bat[[BatID]:[BatID]],0)),"") -> 1500 | AC65: =IFERROR(INDEX(Form_Bat[[Ach_ex_un]:[Ach_ex_un]],MATCH(AC6,Form_Bat[[BatID]:[BatID]],0)),"") -> 0 | AD65: =IFERROR(INDEX(Form_Bat[[A_ch_et1]:[A_ch_et1]],MATCH(AD6,Form_Bat[[BatID]:[BatID]],0)),"") -> 0 | AE65: =IFERROR(INDEX(Form_Bat[[A_ch_et2]:[A_ch_et2]],MATCH(AE6,Form_Bat[[BatID]:[BatID]],0)),"") -> 0 | AF65: =IFERROR(INDEX(Form_Bat[[A_ch_et3]:[A_ch_et3]],MATCH(AE6,Form_Bat[[BatID]:[BatID]],0)),"") -> 0 | AG65: =IFERROR(INDEX(Form_Bat[[A_ch_et3]:[A_ch_et3]],MATCH(AG6,Form_Bat[[BatID]:[BatID]],0)),"") -> 0 | AI65: =IFERROR(INDEX(Form_Bat[[Ach_ex_un]:[Ach_ex_un]],MATCH(AI6,Form_Bat[[BatID]:[BatID]],0)),"") -> 0 | AJ65: =IFERROR(INDEX(Form_Bat[[A_ch_et1]:[A_ch_et1]],MATCH(AJ6,Form_Bat[[BatID]:[BatID]],0)),"") -> 0 | AK65: =IFERROR(INDEX(Form_Bat[[A_ch_et2]:[A_ch_et2]],MATCH(AK6,Form_Bat[[BatID]:[BatID]],0)),"") -> 0 | AL65: =IFERROR(INDEX(Form_Bat[[A_ch_et3]:[A_ch_et3]],MATCH(AK6,Form_Bat[[BatID]:[BatID]],0)),"") -> 0 | AM65: =IFERROR(INDEX(Form_Bat[[A_ch_et3]:[A_ch_et3]],MATCH(AM6,Form_Bat[[BatID]:[BatID]],0)),"") -> 0 | AO65: =IFERROR(INDEX(Form_Bat[[Ach_ex_un]:[Ach_ex_un]],MATCH(AO6,Form_Bat[[BatID]:[BatID]],0)),"") -> 0 | AP65: =IFERROR(INDEX(Form_Bat[[A_ch_et1]:[A_ch_et1]],MATCH(AP6,Form_Bat[[BatID]:[BatID]],0)),"") -> 0 | AQ65: =IFERROR(INDEX(Form_Bat[[A_ch_et2]:[A_ch_et2]],MATCH(AQ6,Form_Bat[[BatID]:[BatID]],0)),"") -> 0 | AR65: =IFERROR(INDEX(Form_Bat[[A_ch_et3]:[A_ch_et3]],MATCH(AQ6,Form_Bat[[BatID]:[BatID]],0)),"") -> 0 | AS65: =IFERROR(INDEX(Form_Bat[[A_ch_et3]:[A_ch_et3]],MATCH(AS6,Form_Bat[[BatID]:[BatID]],0)),"") -> 0 | AU65: =IFERROR(INDEX(Form_Bat[[Ach_ex_un]:[Ach_ex_un]],MATCH(AU6,Form_Bat[[BatID]:[BatID]],0)),"") -> 0 | AV65: =IFERROR(INDEX(Form_Bat[[A_ch_et1]:[A_ch_et1]],MATCH(AV6,Form_Bat[[BatID]:[BatID]],0)),"") -> 0 | AW65: =IFERROR(INDEX(Form_Bat[[A_ch_et2]:[A_ch_et2]],MATCH(AW6,Form_Bat[[BatID]:[BatID]],0)),"") -> 0 | AX65: =IFERROR(INDEX(Form_Bat[[A_ch_et3]:[A_ch_et3]],MATCH(AW6,Form_Bat[[BatID]:[BatID]],0)),"") -> 0 | AY65: =IFERROR(INDEX(Form_Bat[[A_ch_et3]:[A_ch_et3]],MATCH(AY6,Form_Bat[[BatID]:[BatID]],0)),"") -> 0 | BA65: =IFERROR(INDEX(Form_Bat[[Ach_ex_un]:[Ach_ex_un]],MATCH(BA6,Form_Bat[[BatID]:[BatID]],0)),"") -> 0 | BB65: =IFERROR(INDEX(Form_Bat[[A_ch_et1]:[A_ch_et1]],MATCH(BB6,Form_Bat[[BatID]:[BatID]],0)),"") -> 0 | BC65: =IFERROR(INDEX(Form_Bat[[A_ch_et2]:[A_ch_et2]],MATCH(BC6,Form_Bat[[BatID]:[BatID]],0)),"") -> 0 | BD65: =IFERROR(INDEX(Form_Bat[[A_ch_et3]:[A_ch_et3]],MATCH(BC6,Form_Bat[[BatID]:[BatID]],0)),"") -> 0 | BE65: =IFERROR(INDEX(Form_Bat[[A_ch_et3]:[A_ch_et3]],MATCH(BE6,Form_Bat[[BatID]:[BatID]],0)),"") -> 0 | BG65: =IFERROR(INDEX(Form_Bat[[Ach_ex_un]:[Ach_ex_un]],MATCH(BG6,Form_Bat[[BatID]:[BatID]],0)),"") -> 0 | BH65: =IFERROR(INDEX(Form_Bat[[A_ch_et1]:[A_ch_et1]],MATCH(BH6,Form_Bat[[BatID]:[BatID]],0)),"") -> 0 | BI65: =IFERROR(INDEX(Form_Bat[[A_ch_et2]:[A_ch_et2]],MATCH(BI6,Form_Bat[[BatID]:[BatID]],0)),"") -> 0 | BJ65: =IFERROR(INDEX(Form_Bat[[A_ch_et3]:[A_ch_et3]],MATCH(BI6,Form_Bat[[BatID]:[BatID]],0)),"") -> 0 | BK65: =IFERROR(INDEX(Form_Bat[[A_ch_et3]:[A_ch_et3]],MATCH(BK6,Form_Bat[[BatID]:[BatID]],0)),"") -> 0 | BM65: =IFERROR(INDEX(Form_Bat[[Ach_ex_un]:[Ach_ex_un]],MATCH(BM6,Form_Bat[[BatID]:[BatID]],0)),"") -> 0 | BN65: =IFERROR(INDEX(Form_Bat[[A_ch_et1]:[A_ch_et1]],MATCH(BN6,Form_Bat[[BatID]:[BatID]],0)),"") -> 0 | BO65: =IFERROR(INDEX(Form_Bat[[A_ch_et2]:[A_ch_et2]],MATCH(BO6,Form_Bat[[BatID]:[BatID]],0)),"") -> 0 | BP65: =IFERROR(INDEX(Form_Bat[[A_ch_et3]:[A_ch_et3]],MATCH(BO6,Form_Bat[[BatID]:[BatID]],0)),"") -> 0 | BQ65: =IFERROR(INDEX(Form_Bat[[A_ch_et3]:[A_ch_et3]],MATCH(BQ6,Form_Bat[[BatID]:[BatID]],0)),"") -> 0 | BS65: =IFERROR(INDEX(Form_Bat[[Ach_ex_un]:[Ach_ex_un]],MATCH(BS6,Form_Bat[[BatID]:[BatID]],0)),"") -> 0 | BT65: =IFERROR(INDEX(Form_Bat[[A_ch_et1]:[A_ch_et1]],MATCH(BT6,Form_Bat[[BatID]:[BatID]],0)),"") -> 0 | BU65: =IFERROR(INDEX(Form_Bat[[A_ch_et2]:[A_ch_et2]],MATCH(BU6,Form_Bat[[BatID]:[BatID]],0)),"") -> 0 | BV65: =IFERROR(INDEX(Form_Bat[[A_ch_et3]:[A_ch_et3]],MATCH(BU6,Form_Bat[[BatID]:[BatID]],0)),"") -> 0 | BW65: =IFERROR(INDEX(Form_Bat[[A_ch_et3]:[A_ch_et3]],MATCH(BW6,Form_Bat[[BatID]:[BatID]],0)),"") -> 0
E67: Conso.spécifque après travaux [kWh/m².an] | G67: =IF(G65>0,G62/G65*1000,0) -> 130.9284446 | H67: =IF(H65>0,H62/H65*1000,0) -> 90.64689883 | I67: =IF(I65>0,I62/I65*1000,0) -> 98.41364387 | J67: =IF(J65>0,J62/J65*1000,0) -> 88.12521332 | K67: =IF(K65>0,K62/K65*1000,0) -> 39.05846303 | Q67: =IF(Q65>0,Q62/Q65*1000,0) -> 116.4053564 | R67: =IF(R65>0,R62/R65*1000,0) -> 45.29846857 | S67: =IF(S65>0,S62/S65*1000,0) -> 65.01405215 | T67: =IF(T65>0,T62/T65*1000,0) -> 60.01107779 | U67: =IF(U65>0,U62/U65*1000,0) -> 52.73577072 | W67: =IF(W65>0,W62/W65*1000,0) -> 140.3684519 | X67: =IF(X65>0,X62/X65*1000,0) -> 120.1233785 | Y67: =IF(Y65>0,Y62/Y65*1000,0) -> 120.1233785 | Z67: =IF(Z65>0,Z62/Z65*1000,0) -> 106.3994014 | AA67: =IF(AA65>0,AA62/AA65*1000,0) -> 30.16821303 | AC67: =IF(AC65>0,AC62/AC65*1000,0) -> 0 | AD67: =IF(AD65>0,AD62/AD65*1000,0) -> 0 | AE67: =IF(AE65>0,AE62/AE65*1000,0) -> 0 | AF67: =IF(AF65>0,AF62/AF65*1000,0) -> 0 | AG67: =IF(AG65>0,AG62/AG65*1000,0) -> 0 | AI67: =IF(AI65>0,AI62/AI65*1000,0) -> 0 | AJ67: =IF(AJ65>0,AJ62/AJ65*1000,0) -> 0 | AK67: =IF(AK65>0,AK62/AK65*1000,0) -> 0 | AL67: =IF(AL65>0,AL62/AL65*1000,0) -> 0 | AM67: =IF(AM65>0,AM62/AM65*1000,0) -> 0 | AO67: =IF(AO65>0,AO62/AO65*1000,0) -> 0 | AP67: =IF(AP65>0,AP62/AP65*1000,0) -> 0 | AQ67: =IF(AQ65>0,AQ62/AQ65*1000,0) -> 0 | AR67: =IF(AR65>0,AR62/AR65*1000,0) -> 0 | AS67: =IF(AS65>0,AS62/AS65*1000,0) -> 0 | AU67: =IF(AU65>0,AU62/AU65*1000,0) -> 0 | AV67: =IF(AV65>0,AV62/AV65*1000,0) -> 0 | AW67: =IF(AW65>0,AW62/AW65*1000,0) -> 0 | AX67: =IF(AX65>0,AX62/AX65*1000,0) -> 0 | AY67: =IF(AY65>0,AY62/AY65*1000,0) -> 0 | BA67: =IF(BA65>0,BA62/BA65*1000,0) -> 0 | BB67: =IF(BB65>0,BB62/BB65*1000,0) -> 0 | BC67: =IF(BC65>0,BC62/BC65*1000,0) -> 0 | BD67: =IF(BD65>0,BD62/BD65*1000,0) -> 0 | BE67: =IF(BE65>0,BE62/BE65*1000,0) -> 0 | BG67: =IF(BG65>0,BG62/BG65*1000,0) -> 0 | BH67: =IF(BH65>0,BH62/BH65*1000,0) -> 0 | BI67: =IF(BI65>0,BI62/BI65*1000,0) -> 0 | BJ67: =IF(BJ65>0,BJ62/BJ65*1000,0) -> 0 | BK67: =IF(BK65>0,BK62/BK65*1000,0) -> 0 | BM67: =IF(BM65>0,BM62/BM65*1000,0) -> 0 | BN67: =IF(BN65>0,BN62/BN65*1000,0) -> 0 | BO67: =IF(BO65>0,BO62/BO65*1000,0) -> 0 | BP67: =IF(BP65>0,BP62/BP65*1000,0) -> 0 | BQ67: =IF(BQ65>0,BQ62/BQ65*1000,0) -> 0 | BS67: =IF(BS65>0,BS62/BS65*1000,0) -> 0 | BT67: =IF(BT65>0,BT62/BT65*1000,0) -> 0 | BU67: =IF(BU65>0,BU62/BU65*1000,0) -> 0 | BV67: =IF(BV65>0,BV62/BV65*1000,0) -> 0 | BW67: =IF(BW65>0,BW62/BW65*1000,0) -> 0
E68: Consom. spécifique avant travaux - Sit Mod. [kWh/m².an] | G68: =IF(G65>0,G63/G65*1000,0) -> 0 | H68: =IF(H65>0,H63/H65*1000,0) -> 130.9610386 | I68: =IF(I65>0,I63/I65*1000,0) -> 140.2188229 | J68: =IF(J65>0,J63/J65*1000,0) -> 139.9683178 | K68: =IF(K65>0,K63/K65*1000,0) -> 0 | Q68: =IF(Q65>0,Q63/Q65*1000,0) -> 0 | R68: =IF(R65>0,R63/R65*1000,0) -> 116.4859282 | S68: =IF(S65>0,S63/S65*1000,0) -> 139.9864577 | T68: =IF(T65>0,T63/T65*1000,0) -> 139.3505602 | U68: =IF(U65>0,U63/U65*1000,0) -> 0 | W68: =IF(W65>0,W63/W65*1000,0) -> 0 | X68: =IF(X65>0,X63/X65*1000,0) -> 140.3698603 | Y68: =IF(Y65>0,Y63/Y65*1000,0) -> 140.3698603 | Z68: =IF(Z65>0,Z63/Z65*1000,0) -> 140.3698603 | AA68: =IF(AA65>0,AA63/AA65*1000,0) -> 0 | AC68: =IF(AC65>0,AC63/AC65*1000,0) -> 0 | AD68: =IF(AD65>0,AD63/AD65*1000,0) -> 0 | AE68: =IF(AE65>0,AE63/AE65*1000,0) -> 0 | AF68: =IF(AF65>0,AF63/AF65*1000,0) -> 0 | AG68: =IF(AG65>0,AG63/AG65*1000,0) -> 0 | AI68: =IF(AI65>0,AI63/AI65*1000,0) -> 0 | AJ68: =IF(AJ65>0,AJ63/AJ65*1000,0) -> 0 | AK68: =IF(AK65>0,AK63/AK65*1000,0) -> 0 | AL68: =IF(AL65>0,AL63/AL65*1000,0) -> 0 | AM68: =IF(AM65>0,AM63/AM65*1000,0) -> 0 | AO68: =IF(AO65>0,AO63/AO65*1000,0) -> 0 | AP68: =IF(AP65>0,AP63/AP65*1000,0) -> 0 | AQ68: =IF(AQ65>0,AQ63/AQ65*1000,0) -> 0 | AR68: =IF(AR65>0,AR63/AR65*1000,0) -> 0 | AS68: =IF(AS65>0,AS63/AS65*1000,0) -> 0 | AU68: =IF(AU65>0,AU63/AU65*1000,0) -> 0 | AV68: =IF(AV65>0,AV63/AV65*1000,0) -> 0 | AW68: =IF(AW65>0,AW63/AW65*1000,0) -> 0 | AX68: =IF(AX65>0,AX63/AX65*1000,0) -> 0 | AY68: =IF(AY65>0,AY63/AY65*1000,0) -> 0 | BA68: =IF(BA65>0,BA63/BA65*1000,0) -> 0 | BB68: =IF(BB65>0,BB63/BB65*1000,0) -> 0 | BC68: =IF(BC65>0,BC63/BC65*1000,0) -> 0 | BD68: =IF(BD65>0,BD63/BD65*1000,0) -> 0 | BE68: =IF(BE65>0,BE63/BE65*1000,0) -> 0 | BG68: =IF(BG65>0,BG63/BG65*1000,0) -> 0 | BH68: =IF(BH65>0,BH63/BH65*1000,0) -> 0 | BI68: =IF(BI65>0,BI63/BI65*1000,0) -> 0 | BJ68: =IF(BJ65>0,BJ63/BJ65*1000,0) -> 0 | BK68: =IF(BK65>0,BK63/BK65*1000,0) -> 0 | BM68: =IF(BM65>0,BM63/BM65*1000,0) -> 0 | BN68: =IF(BN65>0,BN63/BN65*1000,0) -> 0 | BO68: =IF(BO65>0,BO63/BO65*1000,0) -> 0 | BP68: =IF(BP65>0,BP63/BP65*1000,0) -> 0 | BQ68: =IF(BQ65>0,BQ63/BQ65*1000,0) -> 0 | BS68: =IF(BS65>0,BS63/BS65*1000,0) -> 0 | BT68: =IF(BT65>0,BT63/BT65*1000,0) -> 0 | BU68: =IF(BU65>0,BU63/BU65*1000,0) -> 0 | BV68: =IF(BV65>0,BV63/BV65*1000,0) -> 0 | BW68: =IF(BW65>0,BW63/BW65*1000,0) -> 0
F70: GAIN [MWh/an] | H70: =SUMIFS($O70:$BX70,$O$7:$BX$7,H$7) -> 99.77749585 | I70: =SUMIFS($O70:$BX70,$O$7:$BX$7,I$7) -> 3.69032221 | J70: =SUMIFS($O70:$BX70,$O$7:$BX$7,J$7) -> 24.84386563 | R70: =R63-R62 -> 69.40777318 | S70: =S72-R72 -> 3.69032221 | T70: =T72-S72 -> 4.2579 | X70: =X63-X62 -> 30.36972267 | Y70: =Y72-X72 -> 0 | Z70: =Z72-Y72 -> 20.58596563 | AD70: =AD63-AD62 -> 0 | AE70: =AE72-AD72 -> 0 | AF70: =AF72-AE72 -> 0 | AJ70: =AJ63-AJ62 -> 0 | AK70: =AK72-AJ72 -> 0 | AL70: =AL72-AK72 -> 0 | AP70: =AP63-AP62 -> 0 | AQ70: =AQ72-AP72 -> 0 | AR70: =AR72-AQ72 -> 0 | AV70: =AV63-AV62 -> 0 | AW70: =AW72-AV72 -> 0 | AX70: =AX72-AW72 -> 0 | BB70: =BB63-BB62 -> 0 | BC70: =BC72-BB72 -> 0 | BD70: =BD72-BC72 -> 0 | BH70: =BH63-BH62 -> 0 | BI70: =BI72-BH72 -> 0 | BJ70: =BJ72-BI72 -> 0 | BN70: =BN63-BN62 -> 0 | BO70: =BO72-BN72 -> 0 | BP70: =BP72-BO72 -> 0 | BT70: =BT63-BT62 -> 0 | BU70: =BU72-BT72 -> 0 | BV70: =BV72-BU72 -> 0
H71: =IF(G62>0,H70/G62,0) -> 0.3079097126 | I71: =IF(G62>0,I70/G62,0) -> 0.01138819973 | J71: =IF(G62>0,J70/G62,0) -> 0.07666726309 | R71: =IF(Q62>0,R70/Q62,0) -> 0.6115479722 | S71: =IF(Q62>0,S70/Q62,0) -> 0.03251522072 | T71: =IF(Q62>0,T70/Q62,0) -> 0.03751611659 | X71: =IF(W62>0,X70/W62,0) -> 0.1442381212 | Y71: =IF(W62>0,Y70/W62,0) -> 0 | Z71: =IF(W62>0,Z70/W62,0) -> 0.09777109388 | AD71: =IF(AC62>0,AD70/AC62,0) -> 0 | AE71: =IF(AC62>0,AE70/AC62,0) -> 0 | AF71: =IF(AC62>0,AF70/AC62,0) -> 0 | AJ71: =IF(AI62>0,AJ70/AI62,0) -> 0 | AK71: =IF(AI62>0,AK70/AI62,0) -> 0 | AL71: =IF(AI62>0,AL70/AI62,0) -> 0 | AP71: =IF(AO62>0,AP70/AO62,0) -> 0 | AQ71: =IF(AO62>0,AQ70/AO62,0) -> 0 | AR71: =IF(AO62>0,AR70/AO62,0) -> 0 | AV71: =IF(AU62>0,AV70/AU62,0) -> 0 | AW71: =IF(AU62>0,AW70/AU62,0) -> 0 | AX71: =IF(AU62>0,AX70/AU62,0) -> 0 | BB71: =IF(BA62>0,BB70/BA62,0) -> 0 | BC71: =IF(BA62>0,BC70/BA62,0) -> 0 | BD71: =IF(BA62>0,BD70/BA62,0) -> 0 | BH71: =IF(BG62>0,BH70/BG62,0) -> 0 | BI71: =IF(BG62>0,BI70/BG62,0) -> 0 | BJ71: =IF(BG62>0,BJ70/BG62,0) -> 0 | BN71: =IF(BM62>0,BN70/BM62,0) -> 0 | BO71: =IF(BM62>0,BO70/BM62,0) -> 0 | BP71: =IF(BM62>0,BP70/BM62,0) -> 0 | BT71: =IF(BS62>0,BT70/BS62,0) -> 0 | BU71: =IF(BS62>0,BU70/BS62,0) -> 0 | BV71: =IF(BS62>0,BV70/BS62,0) -> 0
F72: GAIN CUMULES [MWh/an] | H72: =SUMIFS($O72:$BX72,$O$7:$BX$7,H$7) -> 99.77749585 | I72: =SUMIFS($O72:$BX72,$O$7:$BX$7,I$7) -> 103.4678181 | J72: =SUMIFS($O72:$BX72,$O$7:$BX$7,J$7) -> 128.3116837 | R72: =R63-R62 -> 69.40777318 | S72: =S63-S62 -> 73.09809539 | T72: =T63-T62 -> 77.35599539 | X72: =X63-X62 -> 30.36972267 | Y72: =Y63-Y62 -> 30.36972267 | Z72: =Z63-Z62 -> 50.9556883 | AD72: =AD63-AD62 -> 0 | AE72: =AE63-AE62 -> 0 | AF72: =AF63-AF62 -> 0 | AJ72: =AJ63-AJ62 -> 0 | AK72: =AK63-AK62 -> 0 | AL72: =AL63-AL62 -> 0 | AP72: =AP63-AP62 -> 0 | AQ72: =AQ63-AQ62 -> 0 | AR72: =AR63-AR62 -> 0 | AV72: =AV63-AV62 -> 0 | AW72: =AW63-AW62 -> 0 | AX72: =AX63-AX62 -> 0 | BB72: =BB63-BB62 -> 0 | BC72: =BC63-BC62 -> 0 | BD72: =BD63-BD62 -> 0 | BH72: =BH63-BH62 -> 0 | BI72: =BI63-BI62 -> 0 | BJ72: =BJ63-BJ62 -> 0 | BN72: =BN63-BN62 -> 0 | BO72: =BO63-BO62 -> 0 | BP72: =BP63-BP62 -> 0 | BT72: =BT63-BT62 -> 0 | BU72: =BU63-BU62 -> 0 | BV72: =BV63-BV62 -> 0
H73: =IF(G62>0,H72/G62,0) -> 0.3079097126 | I73: =IF(G62>0,I72/G62,0) -> 0.3192979123 | J73: =IF(G62>0,J72/G62,0) -> 0.3959651754 | R73: =IF(Q62>0,R72/Q62,0) -> 0.6115479722 | S73: =IF(Q62>0,S72/Q62,0) -> 0.6440631929 | T73: =IF(Q62>0,T72/Q62,0) -> 0.6815793095 | X73: =IF(W62>0,X72/W62,0) -> 0.1442381212 | Y73: =IF(W62>0,Y72/W62,0) -> 0.1442381212 | Z73: =IF(W62>0,Z72/W62,0) -> 0.2420092151 | AD73: =IF(AC62>0,AD72/AC62,0) -> 0 | AE73: =IF(AC62>0,AE72/AC62,0) -> 0 | AF73: =IF(AC62>0,AF72/AC62,0) -> 0 | AJ73: =IF(AI62>0,AJ72/AI62,0) -> 0 | AK73: =IF(AI62>0,AK72/AI62,0) -> 0 | AL73: =IF(AI62>0,AL72/AI62,0) -> 0 | AP73: =IF(AO62>0,AP72/AO62,0) -> 0 | AQ73: =IF(AO62>0,AQ72/AO62,0) -> 0 | AR73: =IF(AO62>0,AR72/AO62,0) -> 0 | AV73: =IF(AU62>0,AV72/AU62,0) -> 0 | AW73: =IF(AU62>0,AW72/AU62,0) -> 0 | AX73: =IF(AU62>0,AX72/AU62,0) -> 0 | BB73: =IF(BA62>0,BB72/BA62,0) -> 0 | BC73: =IF(BA62>0,BC72/BA62,0) -> 0 | BD73: =IF(BA62>0,BD72/BA62,0) -> 0 | BH73: =IF(BG62>0,BH72/BG62,0) -> 0 | BI73: =IF(BG62>0,BI72/BG62,0) -> 0 | BJ73: =IF(BG62>0,BJ72/BG62,0) -> 0 | BN73: =IF(BM62>0,BN72/BM62,0) -> 0 | BO73: =IF(BM62>0,BO72/BM62,0) -> 0 | BP73: =IF(BM62>0,BP72/BM62,0) -> 0 | BT73: =IF(BS62>0,BT72/BS62,0) -> 0 | BU73: =IF(BS62>0,BU72/BS62,0) -> 0 | BV73: =IF(BS62>0,BV72/BS62,0) -> 0
F75: Consommation par Unité de Production [MWh(s)/an] | I75: =I$6 -> SITE | S75: =S$6 -> BAT01 | Y75: =Y$6 -> BAT02 | AE75: =AE$6 -> BAT03 | AK75: =AK$6 -> BAT04 | AQ75: =AQ$6 -> BAT05 | AW75: =AW$6 -> BAT06 | BC75: =BC$6 -> BAT07 | BI75: =BI$6 -> BAT08 | BO75: =BO$6 -> BAT09 | BU75: =BU$6 -> BAT10
